Workbook

Sheet Title
A6: High Voltage Feeder Benalla Number 11 (BN11)
A7: Reliability Improvement Options
A20: Legend - Cells:
B21: Input
A24: Legend - Tabs:
B25: Title tab
B26: Source information
B27: Analysis
B28: Output
B29: NPV model input tabs
B30: NPV model tabs
A43: End of Sheet

Sheet Base Benefit Assumptions
A6: Base Benefit Assumptions
A7: This sheet includes the base benefit assumptions.
A10: CPI Figures (ABS) | D10: https://www.abs.gov.au/statistics/economy/price-indexes-and-inflation/consumer-price-index-australia/latest-release
A11: Year | B11: Index Number
A12: 2023-09-01 | B12: 135.3
A13: 2024-06-01 | B13: 138.8
A15: BN11: VCR values
A16: BN Zone Substation Customer Mix | B16: Weighting | C16: VCR ($/kWh) Sept-23 | D16: VCR ($/kWh) Jun-24
A17: Commercial customers | B17: ='VCR per ZSS'!D82 -> 0.2484810456 | C17: ='VCR per ZSS'!B74 -> 49.5352513 | D17: =($B$13/$B$12)*C17 -> 50.816651
A18: Agricultural customers | B18: ='VCR per ZSS'!D83 -> 0.1230724238 | C18: ='VCR per ZSS'!B73 -> 42.13611785 | D18: =($B$13/$B$12)*C18 -> 43.22611351
A19: Industrial customers | B19: ='VCR per ZSS'!D84 -> 0.3214248203 | C19: ='VCR per ZSS'!B75 -> 70.97604853 | D19: =($B$13/$B$12)*C19 -> 72.81208822
A20: Residential customers | B20: ='VCR per ZSS'!D85 -> 0.3070217103 | C20: =25.52 -> 25.52 | D20: =($B$13/$B$12)*C20 -> 26.1801626 | E20: ACR residential VCR figure used.
A21: Total customers | B21: =SUM(B17:B20) -> 1 | C21: =(B17*C17)+(B18*C18)+(B19*C19)+(B20*C20) -> 48.14302288 | D21: =(B17*D17)+(B18*D18)+(B19*D19)+(B20*D20) -> 49.38840781
C23: AER $ per MWh | D23: AER $ per MWh
A24: VCR (weighted) | C24: =C21*1000 -> 48143.02288 | D24: =D21*1000 -> 49388.40781
A27: VCR Resilence Values
A28: VCR Type | B28: VCR ($/MWh)
A29: Standard VCR | B29: =D24 -> 49388.40781
A30: 0.5 x Standard VCR | B30: =B29*0.5 -> 24694.2039
A31: 1.5 x Standard VCR | B31: =B29*1.5 -> 74082.61171
A32: 2 x Standard VCR | B32: =B29*2 -> 98776.81561
A34: Customer Type | B34: Weighting
A35: Residential | B35: =B20 -> 0.3070217103
A36: Business | B36: =SUM(B17:B19) -> 0.6929782897
A38: VCR Type | B38: Customer Type | C38: Applicable VCR Type | D38: Applicable CMOS [%] | E38: Applicable VCR [$/MWh]
A39: < 12 hrs | B39: Residential | C39: Standard VCR | D39: =VLOOKUP(A39,'Faults by Duration'!$A$16:$B$19,2,FALSE)*VLOOKUP(B39,$A$35:$B$36,2,FALSE) -> 0.2925637388 | E39: =D39*VLOOKUP(C39,$A$29:$B$32,2,FALSE) -> 14449.25724
A40: < 12 hrs | B40: Business | C40: Standard VCR | D40: =VLOOKUP(A40,'Faults by Duration'!$A$16:$B$19,2,FALSE)*VLOOKUP(B40,$A$35:$B$36,2,FALSE) -> 0.6603452217 | E40: =D40*VLOOKUP(C40,$A$29:$B$32,2,FALSE) -> 32613.3991
A41: 12 hrs - 24 hrs | B41: Residential | C41: 2 x Standard VCR | D41: =VLOOKUP(A41,'Faults by Duration'!$A$16:$B$19,2,FALSE)*VLOOKUP(B41,$A$35:$B$36,2,FALSE) -> 0.01026380705 | E41: 1013.826176
A42: 12 hrs - 24 hrs | B42: Business | C42: 1.5 x Standard VCR | D42: =VLOOKUP(A42,'Faults by Duration'!$A$16:$B$19,2,FALSE)*VLOOKUP(B42,$A$35:$B$36,2,FALSE) -> 0.0231664251 | E42: 1716.229276
A43: 24 hrs - 72 hrs | B43: Residential | C43: 1.5 x Standard VCR | D43: =VLOOKUP(A43,'Faults by Duration'!$A$16:$B$19,2,FALSE)*VLOOKUP(B43,$A$35:$B$36,2,FALSE) -> 0.002981727181 | E43: 220.8941369
A44: 24 hrs - 72 hrs | B44: Business | C44: Standard VCR | D44: =VLOOKUP(A44,'Faults by Duration'!$A$16:$B$19,2,FALSE)*VLOOKUP(B44,$A$35:$B$36,2,FALSE) -> 0.006730052414 | E44: 332.3865732
A45: > 72 hrs | B45: Residential | C45: 1.5 x Standard VCR | D45: =VLOOKUP(A45,'Faults by Duration'!$A$16:$B$19,2,FALSE)*VLOOKUP(B45,$A$35:$B$36,2,FALSE) -> 0.001212437259 | E45: 89.82051864
A46: > 72 hrs | B46: Business | C46: 0.5 x Standard VCR | D46: =VLOOKUP(A46,'Faults by Duration'!$A$16:$B$19,2,FALSE)*VLOOKUP(B46,$A$35:$B$36,2,FALSE) -> 0.002736590507 | E46: 67.57792399
B47: Residential | C47: CHECK | D47: =SUM(D39:D46)=1 -> TRUE
A49: VCR (weighted based on outage duration) | B49: AER $ per kWh
A50: < 12 hrs | B50: =SUM(E39:E40)/1000 -> 47.06265634
A51: 12 hrs - 24 hrs | B51: =SUM(E41:E42)/1000 -> 2.730055452
A52: 24 hrs - 72 hrs | B52: =SUM(E43:E44)/1000 -> 0.5532807101
A53: > 72 hrs | B53: =SUM(E45:E46)/1000 -> 0.1573984426
A55: > 72 hrs | B55: Business | C55: 0.5 x Standard VCR
A57: Assumptions
A58: 3.6 | B58: kWh per day per 1kW of solar panels | D58: Reference: | E58: https://www.energy.gov.au/solar/get-know-solar-technology/solar-panels | F58: Melbourne rate selected.
A59: =A58*365 -> 1314 | B59: kWh per year per 1kW of solar panels
A60: 5 | B60: kW assumed average system size
A61: =A59*A60 -> 6570 | B61: kWh per annum per household with solar
A63: Notes
A64: Assume that in-flight works are completed in October 2024 (including Advanced Automatic Circuit Reclosers and Neutral bus on the Remote REFCL)
A73: End of Sheet

Sheet Base Cost Assumptions
A6: Base cost assumptions
A7: This sheet includes the base cost assumptions.
A8: $s are in 2024$s.
A10: Cost assumptions
A11: Description | B11: Values | C11: Units | D11: Comments
A54: End of Sheet

Sheet Benefits Analysis AER VCR
A6: Benefits analysis
A7: This sheet includes the benefits analysis.
A11: Demand assumptions
A12: Description | B12: Values | C12: Comments
A13: Feeder Maximum Demand, MVA | B13: =Forecasts!L21 -> 10.74431517 | C13: 2023 value
A14: Assume median demand, MVA | B14: ='BN11 (Feeder)'!G104862 -> 4.146925531 | C14: Based on median MVA across calendar year 2023
A15: Assumed Power Factor. | B15: 0.98
A19: Benefit assumptions per switch
G20: Information obtained from 5 years of historical outage data pre_BNBVT | H20: Total impact per annum | L20: =SUM(L22,L28,L33,L38,L43,L48,L53) -> 1426606.479
A21: Switch ID | B21: Customers | C21: % of customers downstream of device | D21: Maximum demand weighted by customer numbers (MVA)* | E21: Median demand weighted by customer numbers (MVA)* | F21: Average kW per customer | G21: Average sustained outage time (Hrs) | H21: Average number of sustained outages per annum | I21: Average CMOS (Cust x Min) per annum | J21: Unserved Energy kWh per annum | K21: Outage Duration Category | L21: Average cost per annum
A22: Feeder CB | B22: ='Fault Rates'!K13 -> 4782 | C22: 1 | D22: =$B$13*C22 -> 10.74431517 | E22: =$B$14*C22 -> 4.146925531 | F22: ='BN11 Customer Avg. Energy Use'!$F$35 -> 0.9456259377 | G22: ='Pre BNBVT Fault Pivots'!G50 -> 3.14582462 | H22: ='Fault Rates'!L13 -> 1.494886924 | I22: =H22*(G22*60)*B22 -> 1349284.937 | J22: =(I22/60)*F22 -> 21265.3139 | K22: All | L22: =SUM(L23:L26) -> 1073970.461
K23: < 12 hrs | L23: =$J$22*VLOOKUP(K23,'Base Benefit Assumptions'!$A$50:$C$53,2,FALSE) -> 1000802.16
K24: 12 hrs - 24 hrs | L24: =$J$22*VLOOKUP(K24,'Base Benefit Assumptions'!$A$50:$C$53,2,FALSE) -> 58055.48615
K25: 24 hrs - 72 hrs | L25: =$J$22*VLOOKUP(K25,'Base Benefit Assumptions'!$A$50:$C$53,2,FALSE) -> 11765.68798
K26: > 72 hrs | L26: =$J$22*VLOOKUP(K26,'Base Benefit Assumptions'!$A$50:$C$53,2,FALSE) -> 3347.12729
A27: BN18925 / BNBVT | B27: ='Fault Rates'!K14 -> 4564 | C27: =B27/$B$22 -> 0.9544123798 | D27: =$B$13*C27 -> 10.25450741 | E27: =$B$14*C27 -> 3.957877064 | F27: ='BN11 Customer Avg. Energy Use'!$F$35 -> 0.9456259377
A28: BN001 | B28: ='Fault Rates'!K16 -> 3735 | C28: =B28/$B$22 -> 0.7810539523 | D28: =$B$13*C28 -> 8.391889827 | E28: =$B$14*C28 -> 3.238972576 | F28: ='BN11 Customer Avg. Energy Use'!$F$35 -> 0.9456259377 | G28: ='Pre BNBVT Fault Pivots'!CB41 -> 0.5634448907 | H28: ='Fault Rates'!L16 -> 0.1868608654 | I28: =H28*(G28*60)*B28 -> 23594.54776 | J28: =(I28/60)*F28 -> 371.8602725 | K28: All | L28: =SUM(L29:L32) -> 18780.20472
K29: < 12 hrs | L29: =$J$28*VLOOKUP(K29,'Base Benefit Assumptions'!$A$50:$C$53,2,FALSE) -> 17500.73221
K30: 12 hrs - 24 hrs | L30: =$J$28*VLOOKUP(K30,'Base Benefit Assumptions'!$A$50:$C$53,2,FALSE) -> 1015.199164
K31: 24 hrs - 72 hrs | L31: =$J$28*VLOOKUP(K31,'Base Benefit Assumptions'!$A$50:$C$53,2,FALSE) -> 205.7431156
K32: > 72 hrs | L32: =$J$28*VLOOKUP(K32,'Base Benefit Assumptions'!$A$50:$C$53,2,FALSE) -> 58.53022777
A33: BN161* | B33: ='Fault Rates'!K17 -> 3540 | C33: =B33/$B$22 -> 0.7402760351 | D33: ='BN161 2023'!G104866 -> 6.108329764 | E33: ='BN161 2023'!G104858 -> 2.848611587 | F33: ='BN11 Customer Avg. Energy Use'!$F$35 -> 0.9456259377 | G33: ='Pre BNBVT Fault Pivots'!Q44 -> 2.289497803 | H33: ='Fault Rates'!L17 -> 0.5605825963 | I33: =H33*(G33*60)*B33 -> 272605.3371 | J33: =(I33/60)*F33 -> 4296.377958 | K33: All | L33: =SUM(L34:L37) -> 216981.6557
K34: < 12 hrs | L34: =$J$33*VLOOKUP(K34,'Base Benefit Assumptions'!$A$50:$C$53,2,FALSE) -> 202198.9593
K35: 12 hrs - 24 hrs | L35: =$J$33*VLOOKUP(K35,'Base Benefit Assumptions'!$A$50:$C$53,2,FALSE) -> 11729.35007
K36: 24 hrs - 72 hrs | L36: =$J$33*VLOOKUP(K36,'Base Benefit Assumptions'!$A$50:$C$53,2,FALSE) -> 2377.103047
K37: > 72 hrs | L37: =$J$33*VLOOKUP(K37,'Base Benefit Assumptions'!$A$50:$C$53,2,FALSE) -> 676.2431995
A38: BN004 | B38: ='Fault Rates'!K18 -> 510 | C38: =B38/$B$22 -> 0.1066499373 | D38: =C38*$B$13 -> 1.145880539 | E38: =C38*$B$14 -> 0.4422693477 | F38: ='BN11 Customer Avg. Energy Use'!$F$35 -> 0.9456259377 | G38: ='Pre BNBVT Fault Pivots'!AQ33 -> 4.148954248 | H38: ='Fault Rates'!L18 -> 0.1868608654 | I38: =H38*(G38*60)*B38 -> 23723.48176 | J38: =(I38/60)*F38 -> 373.892328 | K38: All | L38: =SUM(L39:L42) -> 18882.83041
K39: < 12 hrs | L39: =$J$38*VLOOKUP(K39,'Base Benefit Assumptions'!$A$50:$C$53,2,FALSE) -> 17596.36614
K40: 12 hrs - 24 hrs | L40: =$J$38*VLOOKUP(K40,'Base Benefit Assumptions'!$A$50:$C$53,2,FALSE) -> 1020.746789
K41: 24 hrs - 72 hrs | L41: =$J$38*VLOOKUP(K41,'Base Benefit Assumptions'!$A$50:$C$53,2,FALSE) -> 206.8674127
K42: > 72 hrs | L42: =$J$38*VLOOKUP(K42,'Base Benefit Assumptions'!$A$50:$C$53,2,FALSE) -> 58.85007014
A43: BN046 | B43: ='Fault Rates'!K19 -> 305 | C43: =B43/$B$22 -> 0.06378084483 | D43: =C43*$B$13 -> 0.6852814986 | E43: =C43*$B$14 -> 0.2644944138 | F43: ='BN11 Customer Avg. Energy Use'!$F$35 -> 0.9456259377 | G43: ='Pre BNBVT Fault Pivots'!Z75 -> 2.863497268 | H43: ='Fault Rates'!L19 -> 0.3737217309 | I43: =H43*(G43*60)*B43 -> 19583.76614 | J43: =(I43/60)*F43 -> 308.6486204 | K43: All | L43: =SUM(L44:L47) -> 15587.80194
K44: < 12 hrs | L44: =$J$43*VLOOKUP(K44,'Base Benefit Assumptions'!$A$50:$C$53,2,FALSE) -> 14525.82395
K45: 12 hrs - 24 hrs | L45: =$J$43*VLOOKUP(K45,'Base Benefit Assumptions'!$A$50:$C$53,2,FALSE) -> 842.6278488
K46: 24 hrs - 72 hrs | L46: =$J$43*VLOOKUP(K46,'Base Benefit Assumptions'!$A$50:$C$53,2,FALSE) -> 170.7693279
K47: > 72 hrs | L47: =$J$43*VLOOKUP(K47,'Base Benefit Assumptions'!$A$50:$C$53,2,FALSE) -> 48.58081217
A48: BN064 | B48: ='Fault Rates'!K20 -> 664 | C48: 0.138854036 | D48: =C48*$B$13 -> 1.491891525 | E48: =C48*$B$14 -> 0.5758173468 | F48: ='BN11 Customer Avg. Energy Use'!$F$35 -> 0.9456259377 | G48: ='Pre BNBVT Fault Pivots'!AI109 -> 3.293741633 | H48: ='Fault Rates'!L20 -> 0.5605825963 | I48: =H48*(G48*60)*B48 -> 73561.14318 | J48: =(I48/60)*F48 -> 1159.355417 | K48: All | L48: =SUM(L49:L52) -> 58551.37985
K49: < 12 hrs | L49: =$J$48*VLOOKUP(K49,'Base Benefit Assumptions'!$A$50:$C$53,2,FALSE) -> 54562.34555
K50: 12 hrs - 24 hrs | L50: =$J$48*VLOOKUP(K50,'Base Benefit Assumptions'!$A$50:$C$53,2,FALSE) -> 3165.104576
K51: 24 hrs - 72 hrs | L51: =$J$48*VLOOKUP(K51,'Base Benefit Assumptions'!$A$50:$C$53,2,FALSE) -> 641.4489882
K52: > 72 hrs | L52: =$J$48*VLOOKUP(K52,'Base Benefit Assumptions'!$A$50:$C$53,2,FALSE) -> 182.480737
A53: BN009 | B53: ='Fault Rates'!K21 -> 450 | C53: 0.09410288582 | D53: =C53*$B$13 -> 1.011071063 | E53: =C53*$B$14 -> 0.3902376597 | F53: ='BN11 Customer Avg. Energy Use'!$F$35 -> 0.9456259377 | G53: ='Pre BNBVT Fault Pivots'!AY74 -> 2.969796296 | H53: ='Fault Rates'!L21 -> 0.3737217309 | I53: =H53*(G53*60)*B53 -> 29966.69013 | J53: =(I53/60)*F53 -> 472.2879909 | K53: All | L53: =SUM(L54:L57) -> 23852.14504
K54: < 12 hrs | L54: =$J$53*VLOOKUP(K54,'Base Benefit Assumptions'!$A$50:$C$53,2,FALSE) -> 22227.12741
K55: 12 hrs - 24 hrs | L55: =$J$53*VLOOKUP(K55,'Base Benefit Assumptions'!$A$50:$C$53,2,FALSE) -> 1289.372405
K56: 24 hrs - 72 hrs | L56: =$J$53*VLOOKUP(K56,'Base Benefit Assumptions'!$A$50:$C$53,2,FALSE) -> 261.307835
K57: > 72 hrs | L57: =$J$53*VLOOKUP(K57,'Base Benefit Assumptions'!$A$50:$C$53,2,FALSE) -> 74.33739424
A58: MV Line Fuses | B58: ='Fault Rates'!K22 -> 26
A59: MV Subs Fuses | B59: ='Fault Rates'!K23 -> 5
A60: *Actual 2023 maximum demand and median demand used for BN161 | D60: Legend:
E61: Data sourced from BN161 2023 tab.
A62: Euroa township customers | B62: =B33-B38-B43-B48-B53 -> 1611
A65: Benefit assumptions for Euroa township and downstream of Euroa township
A66: Euroa - additional point of supply | B66: Customers impacted between Feeder CB and BN161 | C66: % of customers in section | D66: Maximum demand weighted by customer numbers (MVA) | E66: Median demand weighted by customer numbers (MVA) | F66: Average kW per customer | G66: Average sustained outage time (Hrs) | H66: Average number of sustained outages per annum | I66: Average CMOS (Cust x Min) per annum | J66: Unserved Energy kWh per annum | K66: Outage Duration Category | L66: Average cost per annum
A67: Section between the Feeder CB and ACR161 | B67: =B22-B33 -> 1242 | C67: =B67/$B$22 -> 0.2597239649 | D67: =$B$13*C67 -> 2.790556135 | E67: =$B$14*C67 -> 1.077055941 | F67: ='BN11 Customer Avg. Energy Use'!$F$35 -> 0.9456259377 | G67: =G22 -> 3.14582462 | H67: =H22 -> 1.494886924 | I67: =H67*(G67*60)*B67 -> 350441.6336 | J67: =(I67/60)*F67 -> 5523.11164 | K67: All | L67: =SUM(L68:L71) -> 278935.8664
K68: < 12 hrs | L68: =$J$67*VLOOKUP(K68,'Base Benefit Assumptions'!$A$50:$C$53,2,FALSE) -> 259932.3051
K69: 12 hrs - 24 hrs | L69: =$J$67*VLOOKUP(K69,'Base Benefit Assumptions'!$A$50:$C$53,2,FALSE) -> 15078.40105
K70: 24 hrs - 72 hrs | L70: =$J$67*VLOOKUP(K70,'Base Benefit Assumptions'!$A$50:$C$53,2,FALSE) -> 3055.83113
K71: > 72 hrs | L71: =$J$67*VLOOKUP(K71,'Base Benefit Assumptions'!$A$50:$C$53,2,FALSE) -> 869.3291707
A72: Benefit for customers in Euroa township and downstream of township (base case) | L72: =L22-L67 -> 795034.5951
A75: CMOS remaining for customers in Euroa from express feeder to Euroa from Benalla Zone Substation (option 4)
A76: Length of feeder [km] | B76: 1207 | C76: Fault rate / km per year | D76: =H22/B76 -> 0.001238514435 | E76: Outage time [hrs] | F76: =G22 -> 3.14582462 | G76: Outage duration [mins] per year | H76: =F76*60*D76*B76 -> 282.1591253 | I76: Pr outage in given minute | J76: =H76/(365*24*60) -> 0.0005368324302
A77: Length of express feeder [km] | B77: ='Cost Options'!B136 -> 47 | C77: Fault rate / km per year | D77: =D76*B77/B76 -> 4.822715697e-05 | E77: Outage time [hrs] | F77: =F76 -> 3.14582462 | G77: Outage duration [mins] per year | H77: =F77*60*D77*B77 -> 0.4278339813 | I77: Pr outage in given minute | J77: =H77/(365*24*60) -> 8.13991593e-07
A78: Outage duration [min] of both feeders at the same time per year | B78: =J76*J77*365*24*60 -> 0.0002296751559 | C78: CMOS lost [customers x min] | D78: =B78*B62 -> 0.3700066761 | E78: CMOS remaining [%] | F78: =D78/I67 -> 1.055829675e-06
A80: Output for report
A82: Switch ID | B82: Customers | C82: Average sustained outage time (Hrs) | D82: Average number of sustained outages per annum
A83: =A22 -> Feeder CB | B83: =B22 -> 4782 | C83: =G22 -> 3.14582462 | D83: =H22 -> 1.494886924
A84: BN18925 | B84: =B27 -> 4564 | C84: 0 | D84: 0
A85: =A28 -> BN001 | B85: =B28 -> 3735 | C85: =G28 -> 0.5634448907 | D85: =H28 -> 0.1868608654
A86: =A33 -> BN161* | B86: =B33 -> 3540 | C86: =G33 -> 2.289497803 | D86: =H33 -> 0.5605825963
A87: =A38 -> BN004 | B87: =B38 -> 510 | C87: =G38 -> 4.148954248 | D87: =H38 -> 0.1868608654
A88: =A53 -> BN009 | B88: =B53 -> 450 | C88: =G53 -> 2.969796296 | D88: =H53 -> 0.3737217309
A89: =A43 -> BN046 | B89: =B43 -> 305 | C89: =G43 -> 2.863497268 | D89: =H43 -> 0.3737217309
A90: =A48 -> BN064 | B90: =B48 -> 664 | C90: =G48 -> 3.293741633 | D90: =H48 -> 0.5605825963
A101: End of Sheet

Sheet Cost Options
A6: Cost for each option
A7: This sheet includes the capital cost for each option.
A9: New BESS for Euroa
A10: Description | B10: Values | C10: Units | D10: Comments
A60: New 22kV Line between RUBA12 and BN064 and MSD2 and BN009
A61: Description | B61: Values | C61: Units | D61: Comments
A97: Euroa Diesel Generators
A98: Description | B98: Values | C98: Units | D98: Comments
A133: New 22kV Line to Euroa from Benalla Zone Substation
A134: Description | B134: Values | C134: Units | D134: Comments
A136: Assumed length | B136: 47 | C136: km | D136: 45kms plus 2km allowance for deviations to a direct line route.
A175: End of Sheet

Sheet Forecasts
A6: Forecasts - Demand and Benefits
A7: This sheet includes the forecast inputs and assumptions.
A10: Demand forecast for BN11
A11: asset_type | B11: asset | C11: extremum | D11: scenario | E11: season | F11: poe | G11: forecast_round | H11: unit | I11: region | J11: rating | K11: 2022 | L11: 2023 | M11: 2024 | N11: 2025 | O11: 2026 | P11: 2027 | Q11: 2028 | R11: 2029 | S11: 2030 | T11: 2031 | U11: 2032 | V11: 2033 | W11: 2034 | X11: 2035 | Y11: 2036 | Z11: 2037
A12: feeder | B12: bn11 | C12: maximum | E12: Summer | F12: 10 | G12: 202311 | H12: Amps | I12: north | J12: 285 | K12: 306.6104556
A13: feeder | B13: bn11 | C13: maximum | E13: Summer | F13: 50 | G13: 202311 | H13: Amps | I13: north | J13: 285 | K13: 280.7804866
A14: feeder | B14: bn11 | C14: maximum | E14: Summer | F14: 90 | G14: 202311 | H14: Amps | I14: north | J14: 285 | K14: 255.6602908
A15: feeder | B15: bn11 | C15: maximum | D15: Step Change | E15: Summer | F15: 90 | G15: 202311 | H15: Amps | I15: north | J15: 285 | L15: 256.6659667 | M15: 258.4526969 | N15: 261.065565 | O15: 264.2298648 | P15: 267.7528339 | Q15: 271.2722645 | R15: 274.7523902 | S15: 278.7067674 | T15: 283.1871134 | U15: 287.8858779 | V15: 292.6248649 | W15: 297.5637374 | X15: 302.0706362 | Y15: 306.4128747 | Z15: 310.5140841
A16: feeder | B16: bn11 | C16: maximum | D16: Step Change | E16: Summer | F16: 10 | G16: 202311 | H16: Amps | I16: north | J16: 285 | L16: 308.2615997 | M16: 310.3052743 | N16: 313.0264522 | O16: 315.9387547 | P16: 319.3114718 | Q16: 323.1551527 | R16: 327.0928872 | S16: 331.4628291 | T16: 336.2086316 | U16: 341.0921715 | V16: 346.3305548 | W16: 351.7805107 | X16: 356.7577737 | Y16: 360.9336596 | Z16: 364.5380049
A17: feeder | B17: bn11 | C17: maximum | D17: Step Change | E17: Summer | F17: 50 | G17: 202311 | H17: Amps | I17: north | J17: 285 | L17: 281.9651479 | M17: 283.2184406 | N17: 285.90203 | O17: 289.4337494 | P17: 292.7577237 | Q17: 296.9673231 | R17: 300.8858849 | S17: 305.3697909 | T17: 309.9262864 | U17: 314.716708 | V17: 319.7266967 | W17: 324.9337013 | X17: 329.6959962 | Y17: 334.0536148 | Z17: 338.2282601
A20: Voltage | B20: 22000 | C20: Assumed a constant voltage | K20: VA | L20: =L17*SQRT(3)*$B$20 -> 10744315.17 | M20: 10792072.03 | N20: 10894330.52 | O20: 11028907.11 | P20: 11155567.54 | Q20: 11315974.82 | R20: 11465292.08 | S20: 11636151.85 | T20: 11809777.64 | U20: 11992317.22 | V20: 12183223.43 | W20: 12381636.96 | X20: 12563104.76 | Y20: 12729152.33 | Z20: 12888227.68
K21: MVA | L21: =L20/1000000 -> 10.74431517 | M21: =M20/1000000 -> 10.79207203 | N21: 10.89433052 | O21: 11.02890711 | P21: 11.15556754 | Q21: 11.31597482 | R21: 11.46529208 | S21: 11.63615185 | T21: 11.80977764 | U21: 11.99231722 | V21: 12.18322343 | W21: 12.38163696 | X21: 12.56310476 | Y21: 12.72915233 | Z21: 12.88822768
A24: Reliability benefit figures, increasing over time based on growth (which has been derived from the BN11 demand forecast)
K25: Description | M25: 2024 | N25: 2025 | O25: 2026 | P25: 2027 | Q25: 2028 | R25: 2029 | S25: 2030 | T25: 2031 | U25: 2032 | V25: 2033 | W25: 2034 | X25: 2035 | Y25: 2036 | Z25: 2037 | AA25: 2038 | AB25: 2039 | AC25: 2040 | AD25: 2041 | AE25: 2042 | AF25: 2043 | AG25: 2044 | AH25: 2045 | AI25: 2046 | AJ25: 2047 | AK25: 2048 | AL25: 2049 | AM25: 2050 | AN25: 2051 | AO25: 2052 | AP25: 2053 | AQ25: 2054 | AR25: 2055 | AS25: 2056 | AT25: 2057 | AU25: 2058 | AV25: 2059 | AW25: 2060 | AX25: 2061 | AY25: 2062 | AZ25: 2063 | BA25: 2064 | BB25: 2065 | BC25: 2066 | BD25: 2067 | BE25: 2068 | BF25: 2069 | BG25: 2070 | BH25: 2071 | BI25: 2072 | BJ25: 2073
K26: Benefit of additional supply point to Euroa | M26: ='Benefits Analysis AER VCR'!L72 -> 795034.5951 | N26: =$M$26*(N20/$M$20) -> 802567.8137 | O26: =$M$26*(O20/$M$20) -> 812481.8542 | P26: 821812.7245 | Q26: 833629.6709 | R26: 844629.6333 | S26: 857216.5977 | T26: 870007.331 | U26: 883454.7284 | V26: 897518.4819 | W26: 912135.2872 | X26: 925503.7288 | Y26: 937736.1863 | Z26: 949455.0116
K28: Benefit of additional supply point to Euroa, $m's | M28: =M26/1000000 -> 0.7950345951 | N28: 0.8025678137 | O28: 0.8124818542 | P28: 0.8218127245 | Q28: 0.8336296709 | R28: 0.8446296333 | S28: 0.8572165977 | T28: 0.870007331 | U28: 0.8834547284 | V28: 0.8975184819 | W28: 0.9121352872 | X28: 0.9255037288 | Y28: 0.9377361863 | Z28: 0.9494550116 | AA28: =Z28*(1+$Z$30) -> 0.9608253444 | AB28: =AA28*(1+$Z$30) -> 0.9723318442 | AC28: 0.9839761417 | AD28: 0.9957598872 | AE28: 1.007684751 | AF28: 1.019752422 | AG28: 1.031964611 | AH28: 1.044323049 | AI28: 1.056829488 | AJ28: 1.069485699 | AK28: 1.082293476 | AL28: 1.095254634 | AM28: 1.108371011 | AN28: 1.121644465 | AO28: 1.135076877 | AP28: 1.148670151 | AQ28: 1.162426212 | AR28: 1.176347012 | AS28: 1.190434522 | AT28: 1.204690739 | AU28: 1.219117683 | AV28: 1.233717399 | AW28: 1.248491957 | AX28: 1.263443449 | AY28: 1.278573994 | AZ28: 1.293885738 | BA28: 1.30938085 | BB28: 1.325061525 | BC28: 1.340929987 | BD28: 1.356988484 | BE28: 1.373239291 | BF28: 1.389684712 | BG28: 1.406327078 | BH28: 1.423168747 | BI28: 1.440212106 | BJ28: 1.457459569
Y30: Growth rate for future years | Z30: =(Z28-X28)/2 -> 0.01197564143
A36: End of Sheet

Sheet Annualised cost
A6: Annualised Cost Calculation
A7: This sheet includes the annualised cost calculation scenarios and the benefits.
A11: Assumptions | B11: Value
A12: Real discount rate | B12: ='1_KMA'!I28 -> 0.0556
A13: Capex for Option 4 (Preferred Option) | B13: ='2.1_Op4'!J29 -> 23.48523181
A14: Higher costs (Sensitivity Scenario 3) | B14: =Controls!F24 -> 1.15
A15: Lower costs (Sensitivity Scenario 4) | B15: =Controls!F25 -> 0.85
A17: Benefits of adding a supply point to Euroa (minus the incremental opex of the new network solution) and the annualised capex of the preferred network solution (for the central, higher cost and lower cost scenarios)
A18: Description | C18: FY25 | D18: FY26 | E18: FY27 | F18: FY28 | G18: FY29 | H18: FY30 | I18: FY31 | J18: FY32 | K18: FY33 | L18: FY34 | M18: FY35 | N18: FY36 | O18: FY37 | P18: FY38 | Q18: FY39 | R18: FY40 | S18: FY41 | T18: FY42 | U18: FY43 | V18: FY44 | W18: FY45 | X18: FY46 | Y18: FY47 | Z18: FY48 | AA18: FY49 | AB18: FY50 | AC18: FY51 | AD18: FY52 | AE18: FY53 | AF18: FY54 | AG18: FY55 | AH18: FY56 | AI18: FY57 | AJ18: FY58 | AK18: FY59 | AL18: FY60 | AM18: FY61 | AN18: FY62 | AO18: FY63 | AP18: FY64 | AQ18: FY65 | AR18: FY66 | AS18: FY67 | AT18: FY68 | AU18: FY69 | AV18: FY70 | AW18: FY71 | AX18: FY72 | AY18: FY73 | AZ18: FY74
A19: Benefits of adding a supply point to Euroa (minus the incremental opex of the new network solution) | C19: ='2.1_BC'!J85+'2.1_BC'!J96+'2.1_BC'!J114-'2.1_Op4'!J82 -> 0.8124818542 | D19: ='2.1_BC'!K85+'2.1_BC'!K96+'2.1_BC'!K114-'2.1_Op4'!K82 -> 1.383360855 | E19: ='2.1_BC'!L85+'2.1_BC'!L96+'2.1_BC'!L114-'2.1_Op4'!L82 -> 1.482325933 | F19: ='2.1_BC'!M85+'2.1_BC'!M96+'2.1_BC'!M114-'2.1_Op4'!M82 -> 1.493325895 | G19: ='2.1_BC'!N85+'2.1_BC'!N96+'2.1_BC'!N114-'2.1_Op4'!N82 -> 1.50591286 | H19: ='2.1_BC'!O85+'2.1_BC'!O96+'2.1_BC'!O114-'2.1_Op4'!O82 -> 1.662703593 | I19: ='2.1_BC'!P85+'2.1_BC'!P96+'2.1_BC'!P114-'2.1_Op4'!P82 -> 1.67615099 | J19: ='2.1_BC'!Q85+'2.1_BC'!Q96+'2.1_BC'!Q114-'2.1_Op4'!Q82 -> 1.690214744 | K19: ='2.1_BC'!R85+'2.1_BC'!R96+'2.1_BC'!R114-'2.1_Op4'!R82 -> 1.704831549 | L19: ='2.1_BC'!S85+'2.1_BC'!S96+'2.1_BC'!S114-'2.1_Op4'!S82 -> 1.718199991 | M19: ='2.1_BC'!T85+'2.1_BC'!T96+'2.1_BC'!T114-'2.1_Op4'!T82 -> 1.874432448 | N19: ='2.1_BC'!U85+'2.1_BC'!U96+'2.1_BC'!U114-'2.1_Op4'!U82 -> 1.886151273 | O19: ='2.1_BC'!V85+'2.1_BC'!V96+'2.1_BC'!V114-'2.1_Op4'!V82 -> 1.897521606 | P19: ='2.1_BC'!W85+'2.1_BC'!W96+'2.1_BC'!W114-'2.1_Op4'!W82 -> 1.909028106 | Q19: ='2.1_BC'!X85+'2.1_BC'!X96+'2.1_BC'!X114-'2.1_Op4'!X82 -> 1.920672404 | R19: ='2.1_BC'!Y85+'2.1_BC'!Y96+'2.1_BC'!Y114-'2.1_Op4'!Y82 -> 1.932456149 | S19: ='2.1_BC'!Z85+'2.1_BC'!Z96+'2.1_BC'!Z114-'2.1_Op4'!Z82 -> 1.944381012 | T19: ='2.1_BC'!AA85+'2.1_BC'!AA96+'2.1_BC'!AA114-'2.1_Op4'!AA82 -> 1.956448684 | U19: ='2.1_BC'!AB85+'2.1_BC'!AB96+'2.1_BC'!AB114-'2.1_Op4'!AB82 -> 1.968660873 | V19: ='2.1_BC'!AC85+'2.1_BC'!AC96+'2.1_BC'!AC114-'2.1_Op4'!AC82 -> 1.981019311 | W19: ='2.1_BC'!AD85+'2.1_BC'!AD96+'2.1_BC'!AD114-'2.1_Op4'!AD82 -> 1.993525749 | X19: ='2.1_BC'!AE85+'2.1_BC'!AE96+'2.1_BC'!AE114-'2.1_Op4'!AE82 -> 2.00618196 | Y19: ='2.1_BC'!AF85+'2.1_BC'!AF96+'2.1_BC'!AF114-'2.1_Op4'!AF82 -> 2.018989738 | Z19: ='2.1_BC'!AG85+'2.1_BC'!AG96+'2.1_BC'!AG114-'2.1_Op4'!AG82 -> 2.031950896 | AA19: ='2.1_BC'!AH85+'2.1_BC'!AH96+'2.1_BC'!AH114-'2.1_Op4'!AH82 -> 2.045067273 | AB19: ='2.1_BC'!AI85+'2.1_BC'!AI96+'2.1_BC'!AI114-'2.1_Op4'!AI82 -> 2.058340727 | AC19: ='2.1_BC'!AJ85+'2.1_BC'!AJ96+'2.1_BC'!AJ114-'2.1_Op4'!AJ82 -> 2.071773139 | AD19: ='2.1_BC'!AK85+'2.1_BC'!AK96+'2.1_BC'!AK114-'2.1_Op4'!AK82 -> 2.085366412 | AE19: ='2.1_BC'!AL85+'2.1_BC'!AL96+'2.1_BC'!AL114-'2.1_Op4'!AL82 -> 2.099122474 | AF19: ='2.1_BC'!AM85+'2.1_BC'!AM96+'2.1_BC'!AM114-'2.1_Op4'!AM82 -> 2.113043274 | AG19: ='2.1_BC'!AN85+'2.1_BC'!AN96+'2.1_BC'!AN114-'2.1_Op4'!AN82 -> 2.127130784 | AH19: ='2.1_BC'!AO85+'2.1_BC'!AO96+'2.1_BC'!AO114-'2.1_Op4'!AO82 -> 2.141387001 | AI19: ='2.1_BC'!AP85+'2.1_BC'!AP96+'2.1_BC'!AP114-'2.1_Op4'!AP82 -> 2.155813945 | AJ19: ='2.1_BC'!AQ85+'2.1_BC'!AQ96+'2.1_BC'!AQ114-'2.1_Op4'!AQ82 -> 2.170413661 | AK19: ='2.1_BC'!AR85+'2.1_BC'!AR96+'2.1_BC'!AR114-'2.1_Op4'!AR82 -> 2.185188218 | AL19: ='2.1_BC'!AS85+'2.1_BC'!AS96+'2.1_BC'!AS114-'2.1_Op4'!AS82 -> 2.20013971 | AM19: ='2.1_BC'!AT85+'2.1_BC'!AT96+'2.1_BC'!AT114-'2.1_Op4'!AT82 -> 2.215270256 | AN19: ='2.1_BC'!AU85+'2.1_BC'!AU96+'2.1_BC'!AU114-'2.1_Op4'!AU82 -> 2.230582 | AO19: ='2.1_BC'!AV85+'2.1_BC'!AV96+'2.1_BC'!AV114-'2.1_Op4'!AV82 -> 2.246077112 | AP19: ='2.1_BC'!AW85+'2.1_BC'!AW96+'2.1_BC'!AW114-'2.1_Op4'!AW82 -> 2.261757787 | AQ19: ='2.1_BC'!AX85+'2.1_BC'!AX96+'2.1_BC'!AX114-'2.1_Op4'!AX82 -> 2.277626249 | AR19: ='2.1_BC'!AY85+'2.1_BC'!AY96+'2.1_BC'!AY114-'2.1_Op4'!AY82 -> 2.293684745 | AS19: ='2.1_BC'!AZ85+'2.1_BC'!AZ96+'2.1_BC'!AZ114-'2.1_Op4'!AZ82 -> 2.309935553 | AT19: ='2.1_BC'!BA85+'2.1_BC'!BA96+'2.1_BC'!BA114-'2.1_Op4'!BA82 -> 2.326380974 | AU19: ='2.1_BC'!BB85+'2.1_BC'!BB96+'2.1_BC'!BB114-'2.1_Op4'!BB82 -> 2.34302334 | AV19: ='2.1_BC'!BC85+'2.1_BC'!BC96+'2.1_BC'!BC114-'2.1_Op4'!BC82 -> 2.359865009 | AW19: ='2.1_BC'!BD85+'2.1_BC'!BD96+'2.1_BC'!BD114-'2.1_Op4'!BD82 -> 2.376908368 | AX19: ='2.1_BC'!BE85+'2.1_BC'!BE96+'2.1_BC'!BE114-'2.1_Op4'!BE82 -> 2.394155831 | AY19: ='2.1_BC'!BF85+'2.1_BC'!BF96+'2.1_BC'!BF114-'2.1_Op4'!BF82 -> 0.9366962619 | AZ19: ='2.1_BC'!BG85+'2.1_BC'!BG96+'2.1_BC'!BG114-'2.1_Op4'!BG82 -> 0.9366962619
A20: Annualised capex of preferred option (Central) | B20: =$B$12*$B$13 -> 1.305778889 | C20: 1.305778889 | D20: 1.305778889 | E20: 1.305778889 | F20: 1.305778889 | G20: 1.305778889 | H20: 1.305778889 | I20: 1.305778889 | J20: 1.305778889 | K20: 1.305778889 | L20: 1.305778889 | M20: 1.305778889 | N20: 1.305778889 | O20: 1.305778889 | P20: 1.305778889 | Q20: 1.305778889 | R20: 1.305778889 | S20: 1.305778889 | T20: 1.305778889 | U20: 1.305778889 | V20: 1.305778889 | W20: 1.305778889 | X20: 1.305778889 | Y20: 1.305778889 | Z20: 1.305778889 | AA20: 1.305778889 | AB20: 1.305778889 | AC20: 1.305778889 | AD20: 1.305778889 | AE20: 1.305778889 | AF20: 1.305778889 | AG20: 1.305778889 | AH20: 1.305778889 | AI20: =$B$12*$B$13 -> 1.305778889 | AJ20: 1.305778889 | AK20: 1.305778889 | AL20: 1.305778889 | AM20: 1.305778889 | AN20: 1.305778889 | AO20: 1.305778889 | AP20: 1.305778889 | AQ20: 1.305778889 | AR20: 1.305778889 | AS20: 1.305778889 | AT20: 1.305778889 | AU20: 1.305778889 | AV20: 1.305778889 | AW20: 1.305778889 | AX20: 1.305778889 | AY20: 1.305778889 | AZ20: 1.305778889
A21: Annualised capex of preferred option (Higher costs) | B21: =$B$12*$B$13*$B$14 -> 1.501645722 | C21: 1.501645722 | D21: 1.501645722 | E21: 1.501645722 | F21: 1.501645722 | G21: 1.501645722 | H21: 1.501645722 | I21: 1.501645722 | J21: 1.501645722 | K21: 1.501645722 | L21: 1.501645722 | M21: 1.501645722 | N21: 1.501645722 | O21: 1.501645722 | P21: 1.501645722 | Q21: 1.501645722 | R21: 1.501645722 | S21: 1.501645722 | T21: 1.501645722 | U21: 1.501645722 | V21: 1.501645722 | W21: 1.501645722 | X21: 1.501645722 | Y21: 1.501645722 | Z21: 1.501645722 | AA21: 1.501645722 | AB21: 1.501645722 | AC21: 1.501645722 | AD21: 1.501645722 | AE21: 1.501645722 | AF21: 1.501645722 | AG21: 1.501645722 | AH21: 1.501645722 | AI21: =$B$12*$B$13*$B$14 -> 1.501645722 | AJ21: 1.501645722 | AK21: 1.501645722 | AL21: 1.501645722 | AM21: 1.501645722 | AN21: 1.501645722 | AO21: 1.501645722 | AP21: 1.501645722 | AQ21: 1.501645722 | AR21: 1.501645722 | AS21: 1.501645722 | AT21: 1.501645722 | AU21: 1.501645722 | AV21: 1.501645722 | AW21: 1.501645722 | AX21: 1.501645722 | AY21: 1.501645722 | AZ21: 1.501645722
A22: Annualised capex of preferred option (Lower costs) | B22: =$B$12*$B$13*$B$15 -> 1.109912055 | C22: 1.109912055 | D22: 1.109912055 | E22: 1.109912055 | F22: 1.109912055 | G22: 1.109912055 | H22: 1.109912055 | I22: 1.109912055 | J22: 1.109912055 | K22: 1.109912055 | L22: 1.109912055 | M22: 1.109912055 | N22: 1.109912055 | O22: 1.109912055 | P22: 1.109912055 | Q22: 1.109912055 | R22: 1.109912055 | S22: 1.109912055 | T22: 1.109912055 | U22: 1.109912055 | V22: 1.109912055 | W22: 1.109912055 | X22: 1.109912055 | Y22: 1.109912055 | Z22: 1.109912055 | AA22: 1.109912055 | AB22: 1.109912055 | AC22: 1.109912055 | AD22: 1.109912055 | AE22: 1.109912055 | AF22: 1.109912055 | AG22: 1.109912055 | AH22: 1.109912055 | AI22: =$B$12*$B$13*$B$15 -> 1.109912055 | AJ22: 1.109912055 | AK22: 1.109912055 | AL22: 1.109912055 | AM22: 1.109912055 | AN22: 1.109912055 | AO22: 1.109912055 | AP22: 1.109912055 | AQ22: 1.109912055 | AR22: 1.109912055 | AS22: 1.109912055 | AT22: 1.109912055 | AU22: 1.109912055 | AV22: 1.109912055 | AW22: 1.109912055 | AX22: 1.109912055 | AY22: 1.109912055 | AZ22: 1.109912055
A89: End of Sheet

Sheet Fault Rates
A6: Fault Rates
A7: This sheet includes the customer numbers and fault rates pre the BNBVT.
L11: Fault Rates Pre BNBVT
J12: Switch ID | K12: Customers | L12: Sustained Fault Count Per Year | M12: Momentary Fault Count Per Year | O12: 5.351575342 | P12: Years of data pre BNBVT
E13: BN11 | F13: (4,782) customers | J13: Feeder CB | K13: 4782 | L13: 1.494886924 | M13: 2.05546952
J14: BN18925 | K14: 4564 | L14: 0 | M14: 0.1868608654
J15: BNBVT | K15: 4565
E16: BN18925 | F16: (4,564) | J16: BN001 | K16: 3735 | L16: 0.1868608654 | M16: 1.681747789
E17: BNBVT | F17: (4,565) | J17: BN161 | K17: 3540 | L17: 0.5605825963 | M17: 1.868608654
J18: BN004 | K18: 510 | L18: 0.1868608654 | M18: 0.1868608654
J19: BN046 | K19: 305 | L19: 0.3737217309 | M19: 7.661295483
J20: BN064 | K20: 664 | L20: 0.5605825963 | M20: 14.01456491
E21: BN001 | F21: (3,735) | J21: BN009 | K21: 450 | L21: 0.3737217309 | M21: 7.661295483
J22: MV Line Fuses | K22: 26 | L22: 0.2565629343 | O22: 126 | P22: Line fuse count
J23: MV Subs Fuses | K23: 5 | L23: 0.1955520685 | O23: 258 | P23: Sub fuse count
E25: BN161 | F25: (3,540)
B30: BN004 | D30: BN046 | F30: BN064 | H30: BN009
B31: (510) | D31: (305) | F31: (664) | H31: (450)
A44: End of Sheet

Sheet Pre BNBVT Fault Pivots
A6: Fault Data
A7: This sheet includes the historical fault data.
A15: Feeder CB Trips | K15: BN161 ACR Trips | T15: BN046 ACR Trips | AC15: BN064 ACR Trips | AK15: BN004 Sectionaliser Trips | AS15: BN009 ACR Trips | BA15: MV Line Fuse Trips | BI15: MV Sub Fuse Trips | BV15: BN001 ACR Trips
BV16: FEEDER_FINAL | BW16: BN11
A17: CLASSIFICATION | B17: Feeder Trip | K17: CLASSIFICATION | L17: Recloser Trip | T17: CLASSIFICATION | U17: Recloser Trip | AC17: CLASSIFICATION | AD17: Recloser Trip | AK17: CLASSIFICATION | AL17: (Multiple Items) | AS17: CLASSIFICATION | AT17: Recloser Trip | BA17: CLASSIFICATION | BB17: Drop Out Fuse Trip | BI17: CLASSIFICATION | BJ17: Drop Out Fuse Trip | BV17: CLASSIFICATION | BW17: Recloser Trip
A18: ASSET_COMPO_DEVICE | B18: (All) | K18: ASSET_COMPO_DEVICE | L18: BN161 | T18: ASSET_COMPO_DEVICE | U18: BN046 | AC18: ASSET_COMPO_DEVICE | AD18: BN064 | AK18: ASSET_COMPO_DEVICE | AL18: BN004 | AS18: ASSET_COMPO_DEVICE | AT18: BN009 | BA18: FUSE_APP | BB18: LINE FUSE | BI18: FUSE_APP | BJ18: SUB FUSE | BQ18: CLASSIFICATION | BR18: Drop Out Fuse Trip | BV18: ASSET_COMPO_DEVICE | BW18: BN001
A19: PRE_BNBVT | B19: TRUE | K19: PRE_BNBVT | L19: TRUE | T19: PRE_BNBVT | U19: TRUE | AC19: PRE_BNBVT | AD19: TRUE | AK19: PRE_BNBVT | AL19: TRUE | AS19: PRE_BNBVT | AT19: TRUE | BA19: PRE_BNBVT | BB19: TRUE | BI19: PRE_BNBVT | BJ19: TRUE | BQ19: PRE_BNBVT | BR19: TRUE | BV19: PRE_BNBVT | BW19: TRUE
F21: Values | P21: Values | Y21: Values | AH21: Values | AP21: Values | AX21: Values | BF21: Values | BN21: Values | BQ21: Sum of CUSTOMER_COUNT | CA21: Values
A22: AER_FY | B22: START_DATE | C22: INCIDENT_REFERENCE_NUMBER | D22: SUSTAIN | E22: CA_REASON | F22: Sum of CUSTOMER_COUNT | G22: Sum of CMOS | H22: Minutes off supply per customer | K22: AER_FY | L22: START_DATE | M22: INCIDENT_REFERENCE_NUMBER | N22: SUSTAIN | O22: CA_REASON | P22: Sum of CUSTOMER_COUNT | Q22: Sum of CMOS | T22: AER_FY | U22: START_DATE | V22: INCIDENT_REFERENCE_NUMBER | W22: SUSTAIN | X22: CA_REASON | Y22: Sum of CUSTOMER_COUNT | Z22: Sum of CMOS | AC22: AER_FY | AD22: START_DATE | AE22: INCIDENT_REFERENCE_NUMBER | AF22: SUSTAIN | AG22: CA_REASON | AH22: Sum of CUSTOMER_COUNT | AI22: Sum of CMOS | AK22: AER_FY | AL22: START_DATE | AM22: INCIDENT_REFERENCE_NUMBER | AN22: SUSTAIN | AO22: CA_REASON | AP22: Sum of CUSTOMER_COUNT | AQ22: Sum of CMOS | AS22: AER_FY | AT22: START_DATE | AU22: INCIDENT_REFERENCE_NUMBER | AV22: SUSTAIN | AW22: CA_REASON | AX22: Sum of CUSTOMER_COUNT | AY22: Sum of CMOS | BA22: AER_FY | BB22: START_DATE | BC22: INCIDENT_REFERENCE_NUMBER | BD22: SUSTAIN | BE22: CA_REASON | BF22: Sum of CUSTOMER_COUNT | BG22: Sum of CMOS | BI22: AER_FY | BJ22: START_DATE | BK22: INCIDENT_REFERENCE_NUMBER | BL22: SUSTAIN | BM22: CA_REASON | BN22: Sum of CUSTOMER_COUNT | BO22: Sum of CMOS | BQ22: ASSET_COMPO_DEVICE | BR22: FUSE_APP | BS22: Total | BV22: AER_FY | BW22: START_DATE | BX22: INCIDENT_REFERENCE_NUMBER | BY22: SUSTAIN | BZ22: CA_REASON | CA22: Sum of CUSTOMER_COUNT | CB22: Sum of CMOS
A23: FY19 | B23: 2018-12-10 | C23: INCD-193765-r | D23: YES | E23: Weather | F23: 4572 | G23: 2149327 | H23: =GETPIVOTDATA("Sum of CMOS",$A$21,"AER_FY","FY19","START_DATE",DATE(2018,12,10),"INCIDENT_REFERENCE_NUMBER","INCD-193765-r","SUSTAIN","YES","CA_REASON","Weather")/GETPIVOTDATA("Sum of CUSTOMER_COUNT",$A$21,"AER_FY","FY19","START_DATE",DATE(2018,12,10),"INCIDENT_REFERENCE_NUMBER","INCD-193765-r","SUSTAIN","YES","CA_REASON","Weather") -> 470.1065179 | J23: Lightning | K23: FY19 | L23: 2019-01-30 | M23: INCD-198743-r | N23: NO | O23: Weather | P23: 1250 | Q23: 0 | T23: FY19 | U23: 2018-08-23 | V23: INCD-181767-r | W23: NO | X23: Unknown | Y23: 278 | Z23: 0 | AC23: FY19 | AD23: 2018-09-12 | AE23: INCD-183390-r | AF23: NO | AG23: Unknown | AH23: 624 | AI23: 0 | AK23: FY23 | AL23: 2023-03-06 | AM23: INCD-88927-a | AN23: NO | AO23: Animal | AP23: 3945 | AQ23: 0 | AS23: FY19 | AT23: 2018-09-15 | AU23: INCD-183881-r | AV23: NO | AW23: Unknown | AX23: 428 | AY23: 0 | BA23: FY19 | BB23: 2018-07-07 | BC23: INCD-179033-r | BD23: YES | BE23: Weather | BF23: 34 | BG23: 8602 | BI23: FY19 | BJ23: 2018-07-03 | BK23: INCD-178817-r | BL23: YES | BM23: Animal | BN23: 1 | BO23: 100 | BR23: LINE FUSE | BS23: 285 | BV23: FY19 | BW23: 2018-09-18 | BX23: INCD-184127-r | BY23: NO | BZ23: Unknown | CA23: 3470 | CB23: 0
A24: FY19 | B24: 2019-01-04 | C24: INCD-196739-r | D24: NO | E24: Unknown | F24: 4577 | G24: 0 | K24: FY19 | L24: 2019-01-31 | M24: INCD-199280-r | N24: NO | O24: Unknown | P24: 3300 | Q24: 0 | T24: FY19 | U24: 2018-09-11 | V24: INCD-183244-r | W24: NO | X24: Unknown | Y24: 276 | Z24: 0 | AC24: FY19 | AD24: 2018-10-01 | AE24: INCD-185432-r | AF24: NO | AG24: Unknown | AH24: 624 | AI24: 0 | AK24: FY23 | AL24: 2023-03-06 | AM24: INCD-88927-a | AN24: YES | AO24: Animal | AP24: 494 | AQ24: 126958 | AS24: FY19 | AT24: 2018-11-11 | AU24: INCD-189021-r | AV24: NO | AW24: Unknown | AX24: 429 | AY24: 0 | BA24: FY19 | BB24: 2018-07-17 | BC24: INCD-179630-r | BD24: YES | BE24: Weather | BF24: 34 | BG24: 4282 | BI24: FY19 | BJ24: 2018-08-13 | BK24: INCD-181193-r | BL24: YES | BM24: Unknown | BN24: 1 | BO24: 25 | BQ24: 2122004000 | BR24: SUB FUSE | BS24: 36 | BV24: FY19 | BW24: 2019-01-30 | BX24: INCD-198742-r | BY24: NO | BZ24: Unknown | CA24: 3473 | CB24: 0
A25: FY19 | B25: 2019-02-03 | C25: INCD-200252-r | D25: NO | E25: Unknown | F25: 4581 | G25: 0 | K25: FY19 | L25: 2019-01-31 | M25: INCD-199282-r | N25: YES | O25: Weather | P25: 3300 | Q25: 39600 | R25: =GETPIVOTDATA("Sum of CMOS",$K$21,"AER_FY","FY19","START_DATE",DATE(2019,1,31),"INCIDENT_REFERENCE_NUMBER","INCD-199282-r","SUSTAIN","YES","CA_REASON","Weather")/GETPIVOTDATA("Sum of CUSTOMER_COUNT",$K$21,"AER_FY","FY19","START_DATE",DATE(2019,1,31),"INCIDENT_REFERENCE_NUMBER","INCD-199282-r","SUSTAIN","YES","CA_REASON","Weather") -> 12 | T25: FY19 | U25: 2018-10-01 | V25: INCD-185296-r | W25: NO | X25: Unknown | Y25: 278 | Z25: 0 | AC25: FY19 | AD25: 2018-10-12 | AE25: INCD-186408-r | AF25: NO | AG25: Unknown | AH25: 623 | AI25: 0 | AS25: FY19 | AT25: 2019-01-30 | AU25: INCD-198746-r | AV25: NO | AW25: Unknown | AX25: 428 | AY25: 0 | BA25: FY19 | BB25: 2018-09-18 | BC25: INCD-184135-r | BD25: YES | BE25: Other | BF25: 90 | BG25: 5688 | BI25: FY19 | BJ25: 2018-08-31 | BK25: INCD-182574-r | BL25: YES | BM25: Vegetation | BN25: 2 | BO25: 110 | BQ25: 2122195000 | BR25: SUB FUSE | BS25: 12 | BV25: FY19 | BW25: 2019-04-12 | BX25: INCD-208095-r | BY25: NO | BZ25: Asset failure | CA25: 3482 | CB25: 0
A26: FY19 | B26: 2019-02-03 | C26: INCD-200256-r | D26: NO | E26: Unknown | F26: 4581 | G26: 0 | K26: FY19 | L26: 2019-03-18 | M26: INCD-205761-r | N26: YES | O26: Animal | P26: 625 | Q26: 109054 | T26: FY19 | U26: 2018-10-02 | V26: INCD-185548-r | W26: NO | X26: Unknown | Y26: 279 | Z26: 0 | AC26: FY19 | AD26: 2018-10-30 | AE26: INCD-187422-r | AF26: NO | AG26: Unknown | AH26: 625 | AI26: 0 | AS26: FY19 | AT26: 2019-04-09 | AU26: INCD-207995-r | AV26: NO | AW26: Unknown | AX26: 431 | AY26: 0 | BA26: FY19 | BB26: 2018-10-16 | BC26: INCD-186830-r | BD26: YES | BE26: Weather | BF26: 1 | BG26: 220 | BI26: FY19 | BJ26: 2018-09-04 | BK26: INCD-182935-r | BL26: YES | BM26: Other | BN26: 2 | BO26: 10 | BQ26: 2125016200 | BR26: SUB FUSE | BS26: 2 | BV26: FY20 | BW26: 2019-10-11 | BX26: INCD-226186-r | BY26: YES | BZ26: Third party | CA26: 3517 | CB26: 126268
A27: FY19 | B27: 2019-03-05 | C27: INCD-203917-r | D27: YES | E27: Weather | F27: 4584 | G27: 704488 | H27: =GETPIVOTDATA("Sum of CMOS",$A$21,"AER_FY","FY19","START_DATE",DATE(2019,3,5),"INCIDENT_REFERENCE_NUMBER","INCD-203917-r","SUSTAIN","YES","CA_REASON","Weather")/GETPIVOTDATA("Sum of CUSTOMER_COUNT",$A$21,"AER_FY","FY19","START_DATE",DATE(2019,3,5),"INCIDENT_REFERENCE_NUMBER","INCD-203917-r","SUSTAIN","YES","CA_REASON","Weather") -> 153.6841187 | J27: Extreme weather, tree on wire, broken conductor: 2 HUME COURT, BENALLA 3672,, BN1 FDR; tree on line, broken wire. Isolated | K27: FY19 | L27: 2019-05-02 | M27: INCD-209693-r | N27: NO | O27: Unknown | P27: 895 | Q27: 0 | T27: FY19 | U27: 2018-10-14 | V27: INCD-186572-r | W27: NO | X27: Unknown | Y27: 278 | Z27: 0 | AC27: FY19 | AD27: 2018-12-02 | AE27: INCD-192459-r | AF27: NO | AG27: Unknown | AH27: 625 | AI27: 0 | AN27: YES | AQ27: =AVERAGEIF(AN23:AN24,AN27,AQ23:AQ24) -> 126958 | AS27: FY19 | AT27: 2019-06-29 | AU27: INCD-216227-r | AV27: NO | AW27: Unknown | AX27: 430 | AY27: 0 | BA27: FY19 | BB27: 2018-12-02 | BC27: INCD-192523-r | BD27: YES | BE27: Weather | BF27: 37 | BG27: 14097 | BI27: FY19 | BJ27: 2018-09-12 | BK27: INCD-183344-r | BL27: YES | BM27: Other | BN27: 2 | BO27: 22 | BQ27: 2126253100 | BR27: SUB FUSE | BS27: 1 | BV27: FY20 | BW27: 2020-02-16 | BX27: INCD-241108-r | BY27: NO | BZ27: Asset failure | CA27: 3518 | CB27: 0
A28: FY19 | B28: 2019-03-29 | C28: INCD-207392-r | D28: YES | E28: Vegetation | F28: 4588 | G28: 533932 | H28: =GETPIVOTDATA("Sum of CMOS",$A$21,"AER_FY","FY19","START_DATE",DATE(2019,3,29),"INCIDENT_REFERENCE_NUMBER","INCD-207392-r","SUSTAIN","YES","CA_REASON","Vegetation")/GETPIVOTDATA("Sum of CUSTOMER_COUNT",$A$21,"AER_FY","FY19","START_DATE",DATE(2019,3,29),"INCIDENT_REFERENCE_NUMBER","INCD-207392-r","SUSTAIN","YES","CA_REASON","Vegetation") -> 116.3757629 | J28: Public Tree Branch Outside Clearance, Branch on line; 2 HUME COURT, BENALLA 3672. | K28: FY22 | L28: 2021-07-23 | M28: INCD-27125-a | N28: NO | O28: Unknown | P28: 917 | Q28: 0 | T28: FY19 | U28: 2018-11-06 | V28: INCD-188544-r | W28: NO | X28: Unknown | Y28: 272 | Z28: 0 | AC28: FY19 | AD28: 2018-12-02 | AE28: INCD-192495-r | AF28: NO | AG28: Unknown | AH28: 625 | AI28: 0 | AS28: FY20 | AT28: 2019-07-07 | AU28: INCD-217277-r | AV28: NO | AW28: Unknown | AX28: 431 | AY28: 0 | BA28: FY19 | BB28: 2018-12-09 | BC28: INCD-193672-r | BD28: YES | BE28: Weather | BF28: 90 | BG28: 15930 | BI28: FY19 | BJ28: 2018-09-12 | BK28: INCD-183398-r | BL28: YES | BM28: Animal | BN28: 3 | BO28: 498 | BQ28: 2128059800 | BR28: SUB FUSE | BS28: 1 | BV28: FY22 | BW28: 2021-09-28 | BX28: INCD-30074-a | BY28: NO | BZ28: Unknown | CA28: 3544 | CB28: 0
A29: FY19 | B29: 2019-04-21 | C29: INCD-208467-r | D29: NO | E29: Weather | F29: 9052 | G29: 0 | J29: Lightning | K29: FY22 | L29: 2022-01-14 | M29: INCD-48128-a | N29: NO | O29: Unknown | P29: 3396 | Q29: 0 | T29: FY19 | U29: 2019-01-30 | V29: INCD-198740-r | W29: NO | X29: Unknown | Y29: 276 | Z29: 0 | AC29: FY19 | AD29: 2018-12-14 | AE29: INCD-194681-r | AF29: NO | AG29: Unknown | AH29: 626 | AI29: 0 | AN29: Customer Numbers | AQ29: 510 | AS29: FY20 | AT29: 2019-09-16 | AU29: INCD-223170-r | AV29: NO | AW29: Unknown | AX29: 249 | AY29: 0 | BA29: FY19 | BB29: 2018-12-10 | BC29: INCD-193873-r | BD29: YES | BE29: Weather | BF29: 366 | BG29: 64050 | BI29: FY19 | BJ29: 2018-09-16 | BK29: INCD-183915-r | BL29: YES | BM29: Other | BN29: 1 | BO29: 128 | BQ29: 2139001700 | BR29: SUB FUSE | BS29: 1 | BV29: FY22 | BW29: 2021-10-16 | BX29: INCD-31128-a | BY29: NO | BZ29: Unknown | CA29: 3563 | CB29: 0
A30: FY19 | B30: 2019-06-29 | C30: INCD-216238-r | D30: NO | E30: Unknown | F30: 4591 | G30: 0 | K30: FY23 | L30: 2022-08-16 | M30: INCD-70564-a | N30: NO | O30: Unknown | P30: 923 | Q30: 0 | T30: FY19 | U30: 2019-02-15 | V30: INCD-201560-r | W30: NO | X30: Unknown | Y30: 276 | Z30: 0 | AC30: FY19 | AD30: 2018-12-25 | AE30: INCD-196125-r | AF30: NO | AG30: Unknown | AH30: 626 | AI30: 0 | AS30: FY20 | AT30: 2019-09-25 | AU30: INCD-224326-r | AV30: NO | AW30: Unknown | AX30: 432 | AY30: 0 | BA30: FY19 | BB30: 2018-12-10 | BC30: INCD-193876-r | BD30: YES | BE30: Weather | BF30: 312 | BG30: 99614 | BI30: FY19 | BJ30: 2018-09-16 | BK30: INCD-183919-r | BL30: YES | BM30: Animal | BN30: 1 | BO30: 147 | BQ30: 2139014100 | BR30: SUB FUSE | BS30: 3 | BV30: FY22 | BW30: 2022-01-27 | BX30: INCD-50599-a | BY30: NO | BZ30: Unknown | CA30: 3572 | CB30: 0
A31: FY20 | B31: 2019-11-21 | C31: INCD-228397-r | D31: NO | E31: Unknown | F31: 4625 | G31: 0 | K31: FY23 | L31: 2022-08-17 | M31: INCD-70699-a | N31: NO | O31: Unknown | P31: 923 | Q31: 0 | T31: FY19 | U31: 2019-03-02 | V31: INCD-203326-r | W31: NO | X31: Unknown | Y31: 275 | Z31: 0 | AC31: FY19 | AD31: 2019-01-10 | AE31: INCD-197149-r | AF31: NO | AG31: Unknown | AH31: 627 | AI31: 0 | AN31: Average minutes off per customer | AQ31: =AQ27/AQ29 -> 248.9372549 | AS31: FY20 | AT31: 2019-11-03 | AU31: INCD-227425-r | AV31: NO | AW31: Unknown | AX31: 431 | AY31: 0 | BA31: FY19 | BB31: 2018-12-13 | BC31: INCD-194610-r | BD31: YES | BE31: Weather | BF31: 2 | BG31: 2896 | BI31: FY19 | BJ31: 2018-09-22 | BK31: INCD-184612-r | BL31: YES | BM31: Animal | BN31: 1 | BO31: 61 | BQ31: 2139020600 | BR31: SUB FUSE | BS31: 2 | BV31: FY22 | BW31: 2022-01-27 | BX31: INCD-50607-a | BY31: NO | BZ31: Unknown | CA31: 3505 | CB31: 0
A32: FY20 | B32: 2019-12-30 | C32: INCD-231956-r | D32: NO | E32: Unknown | F32: 4630 | G32: 0 | K32: FY23 | L32: 2022-10-13 | M32: INCD-74259-a | N32: YES | O32: Asset failure | P32: 3350 | Q32: 1310214 | R32: =GETPIVOTDATA("Sum of CMOS",$K$21,"AER_FY","FY23","START_DATE",DATE(2022,10,13),"INCIDENT_REFERENCE_NUMBER","INCD-74259-a","SUSTAIN","YES","CA_REASON","Asset failure")/GETPIVOTDATA("Sum of CUSTOMER_COUNT",$K$21,"AER_FY","FY23","START_DATE",DATE(2022,10,13),"INCIDENT_REFERENCE_NUMBER","INCD-74259-a","SUSTAIN","YES","CA_REASON","Asset failure") -> 391.1086567 | T32: FY19 | U32: 2019-03-28 | V32: INCD-207282-r | W32: NO | X32: Unknown | Y32: 277 | Z32: 0 | AC32: FY19 | AD32: 2019-01-12 | AE32: INCD-197243-r | AF32: NO | AG32: Unknown | AH32: 626 | AI32: 0 | AS32: FY20 | AT32: 2019-12-12 | AU32: INCD-230251-r | AV32: NO | AW32: Unknown | AX32: 432 | AY32: 0 | BA32: FY19 | BB32: 2019-01-29 | BC32: INCD-198643-r | BD32: YES | BE32: Asset failure | BF32: 12 | BG32: 1584 | BI32: FY19 | BJ32: 2018-10-03 | BK32: INCD-185573-r | BL32: YES | BM32: Animal | BN32: 2 | BO32: 212 | BQ32: 2139026700 | BR32: SUB FUSE | BS32: 3 | BV32: FY23 | BW32: 2022-10-07 | BX32: INCD-74050-a | BY32: NO | BZ32: Unknown | CA32: 3483 | CB32: 0
A33: FY20 | B33: 2020-02-01 | C33: INCD-238553-r | D33: NO | E33: Weather | F33: 219 | G33: 0 | J33: Lightning | K33: FY23 | L33: 2023-01-22 | M33: INCD-83012-a | N33: NO | O33: Unknown | P33: 3146 | Q33: 0 | T33: FY19 | U33: 2019-05-02 | V33: INCD-209695-r | W33: NO | X33: Unknown | Y33: 247 | Z33: 0 | AC33: FY19 | AD33: 2019-01-16 | AE33: INCD-197541-r | AF33: YES | AG33: Network business | AH33: 626 | AI33: 42568 | AJ33: =GETPIVOTDATA("Sum of CMOS",$AC$21,"AER_FY","FY19","START_DATE",DATE(2019,1,16),"INCIDENT_REFERENCE_NUMBER","INCD-197541-r","SUSTAIN","YES","CA_REASON","Network business")/GETPIVOTDATA("Sum of CUSTOMER_COUNT",$AC$21,"AER_FY","FY19","START_DATE",DATE(2019,1,16),"INCIDENT_REFERENCE_NUMBER","INCD-197541-r","SUSTAIN","YES","CA_REASON","Network business") -> 68 | AN33: Average Hrs off per customer | AQ33: =AQ31/60 -> 4.148954248 | AS33: FY20 | AT33: 2019-12-12 | AU33: INCD-230252-r | AV33: YES | AW33: Vegetation | AX33: 432 | AY33: 95215 | BA33: FY19 | BB33: 2019-01-30 | BC33: INCD-198989-r | BD33: YES | BE33: Weather | BF33: 9 | BG33: 6264 | BI33: FY19 | BJ33: 2018-10-10 | BK33: INCD-186080-r | BL33: YES | BM33: Animal | BN33: 1 | BO33: 271 | BQ33: 2139032800 | BR33: SUB FUSE | BS33: 36
A34: FY20 | B34: 2020-02-01 | C34: INCD-238553-r | D34: YES | E34: Weather | F34: 4624 | G34: 2781552 | H34: =GETPIVOTDATA("Sum of CMOS",$A$21,"AER_FY","FY20","START_DATE",DATE(2020,2,1),"INCIDENT_REFERENCE_NUMBER","INCD-238553-r","SUSTAIN","YES","CA_REASON","Weather")/GETPIVOTDATA("Sum of CUSTOMER_COUNT",$A$21,"AER_FY","FY20","START_DATE",DATE(2020,2,1),"INCIDENT_REFERENCE_NUMBER","INCD-238553-r","SUSTAIN","YES","CA_REASON","Weather") -> 601.5467128 | J34: Lightning | K34: FY23 | L34: 2023-03-06 | M34: INCD-88928-a | N34: NO | O34: Unknown | P34: 921 | Q34: 0 | T34: FY19 | U34: 2019-06-03 | V34: INCD-213027-r | W34: NO | X34: Unknown | Y34: 276 | Z34: 0 | AC34: FY19 | AD34: 2019-01-25 | AE34: INCD-198376-r | AF34: YES | AG34: Unknown | AH34: 625 | AI34: 81093 | AS34: FY20 | AT34: 2019-12-25 | AU34: INCD-231480-r | AV34: NO | AW34: Unknown | AX34: 432 | AY34: 0 | BA34: FY19 | BB34: 2019-01-30 | BC34: INCD-199048-r | BD34: YES | BE34: Weather | BF34: 13 | BG34: 6565 | BI34: FY19 | BJ34: 2018-10-17 | BK34: INCD-186926-r | BL34: YES | BM34: Other | BN34: 2 | BO34: 332 | BQ34: 2139035700 | BR34: SUB FUSE | BS34: 2
A35: FY21 | B35: 2020-10-31 | C35: INCD-10535-a | D35: NO | E35: Unknown | F35: 4646 | G35: 0 | K35: FY23 | L35: 2023-05-17 | M35: INCD-95468-a | N35: NO | O35: Unknown | P35: 919 | Q35: 0 | T35: FY20 | U35: 2020-01-13 | V35: INCD-234303-r | W35: NO | X35: Unknown | Y35: 280 | Z35: 0 | AC35: FY19 | AD35: 2019-01-27 | AE35: INCD-198567-r | AF35: NO | AG35: Unknown | AH35: 625 | AI35: 0 | AS35: FY20 | AT35: 2019-12-25 | AU35: INCD-231520-r | AV35: NO | AW35: Unknown | AX35: 432 | AY35: 0 | BA35: FY19 | BB35: 2019-01-30 | BC35: INCD-47056-s | BD35: YES | BE35: Weather | BF35: 37 | BG35: 1577 | BI35: FY19 | BJ35: 2018-11-02 | BK35: INCD-187986-r | BL35: YES | BM35: Weather | BN35: 2 | BO35: 308 | BQ35: 2139037000 | BR35: SUB FUSE | BS35: 2 | BY35: YES | CB35: =AVERAGEIF(BY23:BY32,BY35,CB23:CB32) -> 126268
A36: FY21 | B36: 2021-05-03 | C36: INCD-21572-a | D36: YES | E36: Weather | F36: 4651 | G36: 74416 | J36: Extreme weather | T36: FY20 | U36: 2020-01-15 | V36: INCD-235006-r | W36: NO | X36: Unknown | Y36: 280 | Z36: 0 | AC36: FY19 | AD36: 2019-01-30 | AE36: INCD-198738-r | AF36: NO | AG36: Unknown | AH36: 625 | AI36: 0 | AS36: FY20 | AT36: 2020-01-14 | AU36: INCD-234460-r | AV36: NO | AW36: Unknown | AX36: 433 | AY36: 0 | BA36: FY19 | BB36: 2019-01-31 | BC36: INCD-199284-r | BD36: YES | BE36: Weather | BF36: 2 | BG36: 736 | BI36: FY19 | BJ36: 2018-11-02 | BK36: INCD-188061-r | BL36: YES | BM36: Weather | BN36: 1 | BO36: 126 | BQ36: 2139046900 | BR36: SUB FUSE | BS36: 1
A37: FY22 | B37: 2021-10-28 | C37: INCD-32755-a | D37: YES | E37: Third party | F37: 4265 | G37: 976433 | J37: Lightning | T37: FY21 | U37: 2020-07-17 | V37: INCD-2077-a | W37: NO | X37: Unknown | Y37: 283 | Z37: 0 | AC37: FY19 | AD37: 2019-01-30 | AE37: INCD-198739-r | AF37: NO | AG37: Unknown | AH37: 625 | AI37: 0 | AS37: FY20 | AT37: 2020-02-07 | AU37: INCD-239581-r | AV37: NO | AW37: Unknown | AX37: 433 | AY37: 0 | BA37: FY19 | BB37: 2019-01-31 | BC37: INCD-199434-r | BD37: YES | BE37: Weather | BF37: 2 | BG37: 100 | BI37: FY19 | BJ37: 2018-11-03 | BK37: INCD-188250-r | BL37: YES | BM37: Weather | BN37: 2 | BO37: 186 | BQ37: 2139051300 | BR37: SUB FUSE | BS37: 12 | BY37: Customer Numbers | CB37: 3735
A38: FY22 | B38: 2022-01-14 | C38: INCD-48095-a | D38: NO | E38: Unknown | F38: 4700 | G38: 0 | N38: YES | Q38: =AVERAGEIF(N23:N35,N38,Q23:Q35) -> 486289.3333 | T38: FY21 | U38: 2021-01-01 | V38: INCD-14892-a | W38: NO | X38: Unknown | Y38: 284 | Z38: 0 | AC38: FY19 | AD38: 2019-01-30 | AE38: INCD-198741-r | AF38: NO | AG38: Unknown | AH38: 625 | AI38: 0 | AS38: FY20 | AT38: 2020-02-11 | AU38: INCD-239928-r | AV38: NO | AW38: Unknown | AX38: 412 | AY38: 0 | BA38: FY19 | BB38: 2019-02-07 | BC38: INCD-200912-r | BD38: YES | BE38: Asset failure | BF38: 14 | BG38: 1316 | BI38: FY19 | BJ38: 2018-11-03 | BK38: INCD-188268-r | BL38: YES | BM38: Other | BN38: 1 | BO38: 4 | BQ38: 2139058600 | BR38: SUB FUSE | BS38: 2
A39: FY22 | B39: 2022-06-19 | C39: INCD-65596-a | D39: YES | E39: Animal | F39: 2 | G39: 554 | J39: Animal or Bird | T39: FY21 | U39: 2021-01-04 | V39: INCD-15274-a | W39: NO | X39: Unknown | Y39: 284 | Z39: 0 | AC39: FY19 | AD39: 2019-03-01 | AE39: INCD-203274-r | AF39: NO | AG39: Unknown | AH39: 626 | AI39: 0 | AS39: FY20 | AT39: 2020-02-18 | AU39: INCD-241425-r | AV39: NO | AW39: Unknown | AX39: 434 | AY39: 0 | BA39: FY19 | BB39: 2019-03-05 | BC39: INCD-204099-r | BD39: YES | BE39: Weather | BF39: 67 | BG39: 10050 | BI39: FY19 | BJ39: 2018-11-14 | BK39: INCD-189481-r | BL39: YES | BM39: Unknown | BN39: 1 | BO39: 11 | BQ39: 2139062500 | BR39: SUB FUSE | BS39: 36 | BY39: Average minutes off per customer | CB39: =CB35/CB37 -> 33.80669344
A40: FY22 | B40: 2022-06-19 | C40: INCD-65600-a | D40: YES | E40: Animal | F40: 1 | G40: 98 | J40: Animal or Bird | N40: Customer Numbers | Q40: 3540 | T40: FY21 | U40: 2021-02-02 | V40: INCD-17216-a | W40: NO | X40: Unknown | Y40: 283 | Z40: 0 | AC40: FY19 | AD40: 2019-03-15 | AE40: INCD-205536-r | AF40: NO | AG40: Animal | AH40: 625 | AI40: 0 | AS40: FY20 | AT40: 2020-03-13 | AU40: INCD-244900-r | AV40: NO | AW40: Unknown | AX40: 434 | AY40: 0 | BA40: FY19 | BB40: 2019-03-22 | BC40: INCD-206345-r | BD40: YES | BE40: Other | BF40: 21 | BG40: 2226 | BI40: FY19 | BJ40: 2018-11-17 | BK40: INCD-189973-r | BL40: YES | BM40: Asset failure | BN40: 2 | BO40: 90 | BQ40: 2139062600 | BR40: SUB FUSE | BS40: 3
A41: FY24 | B41: 2023-08-08 | C41: INCD-100032-U | D41: NO | E41: Unknown | F41: 4346 | G41: 0 | T41: FY21 | U41: 2021-02-04 | V41: INCD-17330-a | W41: NO | X41: Unknown | Y41: 283 | Z41: 0 | AC41: FY19 | AD41: 2019-03-17 | AE41: INCD-205656-r | AF41: NO | AG41: Unknown | AH41: 625 | AI41: 0 | AS41: FY20 | AT41: 2020-04-23 | AU41: INCD-248751-r | AV41: NO | AW41: Unknown | AX41: 433 | AY41: 0 | BA41: FY19 | BB41: 2019-03-22 | BC41: INCD-206443-r | BD41: YES | BE41: Overload | BF41: 33 | BG41: 4653 | BI41: FY19 | BJ41: 2018-11-29 | BK41: INCD-192004-r | BL41: YES | BM41: Other | BN41: 1 | BO41: 4 | BQ41: 2139064000 | BR41: SUB FUSE | BS41: 2 | BY41: Average Hrs off per customer | CB41: =CB39/60 -> 0.5634448907
N42: Average minutes off per customer | Q42: =Q38/Q40 -> 137.3698682 | T42: FY21 | U42: 2021-03-12 | V42: INCD-19068-a | W42: NO | X42: Unknown | Y42: 285 | Z42: 0 | AC42: FY19 | AD42: 2019-03-18 | AE42: INCD-205760-r | AF42: NO | AG42: Unknown | AH42: 625 | AI42: 0 | AS42: FY21 | AT42: 2020-10-06 | AU42: INCD-9138-a | AV42: NO | AW42: Unknown | AX42: 429 | AY42: 0 | BA42: FY19 | BB42: 2019-04-21 | BC42: INCD-208462-r | BD42: YES | BE42: Weather | BF42: 61 | BG42: 3843 | BI42: FY19 | BJ42: 2018-12-05 | BK42: INCD-193033-r | BL42: YES | BM42: Weather | BN42: 1 | BO42: 81 | BQ42: 2139064400 | BR42: SUB FUSE | BS42: 1
T43: FY21 | U43: 2021-03-26 | V43: INCD-19892-a | W43: NO | X43: Unknown | Y43: 284 | Z43: 0 | AC43: FY19 | AD43: 2019-03-22 | AE43: INCD-206338-r | AF43: NO | AG43: Unknown | AH43: 603 | AI43: 0 | AS43: FY21 | AT43: 2020-10-08 | AU43: INCD-9220-a | AV43: NO | AW43: Unknown | AX43: 429 | AY43: 0 | BA43: FY19 | BB43: 2019-04-21 | BC43: INCD-208482-r | BD43: YES | BE43: Weather | BF43: 12 | BG43: 1560 | BI43: FY19 | BJ43: 2018-12-05 | BK43: INCD-193161-r | BL43: YES | BM43: Other | BN43: 2 | BO43: 202 | BQ43: 2139065400 | BR43: SUB FUSE | BS43: 1
D44: YES | G44: =AVERAGEIF(D23:D41,D44,G23:G41) -> 902600 | N44: Average Hrs off per customer | Q44: =Q42/60 -> 2.289497803 | T44: FY21 | U44: 2021-04-12 | V44: INCD-20573-a | W44: NO | X44: Unknown | Y44: 284 | Z44: 0 | AC44: FY19 | AD44: 2019-03-22 | AE44: INCD-206339-r | AF44: NO | AG44: Unknown | AH44: 603 | AI44: 0 | AS44: FY21 | AT44: 2020-12-31 | AU44: INCD-14847-a | AV44: NO | AW44: Unknown | AX44: 430 | AY44: 0 | BA44: FY19 | BB44: 2019-04-21 | BC44: INCD-208532-r | BD44: YES | BE44: Weather | BF44: 31 | BG44: 7285 | BI44: FY19 | BJ44: 2018-12-06 | BK44: INCD-193297-r | BL44: YES | BM44: Animal | BN44: 2 | BO44: 208 | BQ44: 2139067000 | BR44: SUB FUSE | BS44: 2
T45: FY21 | U45: 2021-06-09 | V45: INCD-23495-a | W45: NO | X45: Unknown | Y45: 282 | Z45: 0 | AC45: FY19 | AD45: 2019-03-22 | AE45: INCD-206341-r | AF45: NO | AG45: Unknown | AH45: 603 | AI45: 0 | AS45: FY21 | AT45: 2021-01-07 | AU45: INCD-15580-a | AV45: NO | AW45: Unknown | AX45: 430 | AY45: 0 | BA45: FY19 | BB45: 2019-04-24 | BC45: INCD-208677-r | BD45: YES | BE45: Weather | BF45: 1 | BG45: 304 | BI45: FY19 | BJ45: 2018-12-13 | BK45: INCD-194353-r | BL45: YES | BM45: Animal | BN45: 1 | BO45: 235 | BQ45: 2139067100 | BR45: SUB FUSE | BS45: 3
D46: Customer Numbers | G46: 4782 | T46: FY21 | U46: 2021-06-30 | V46: INCD-26076-a | W46: NO | X46: Unknown | Y46: 281 | Z46: 0 | AC46: FY19 | AD46: 2019-04-30 | AE46: INCD-209325-r | AF46: NO | AG46: Unknown | AH46: 622 | AI46: 0 | AS46: FY21 | AT46: 2021-02-27 | AU46: INCD-18526-a | AV46: NO | AW46: Unknown | AX46: 430 | AY46: 0 | BA46: FY20 | BB46: 2019-09-10 | BC46: INCD-222591-r | BD46: YES | BE46: Vegetation | BF46: 40 | BG46: 3160 | BI46: FY19 | BJ46: 2018-12-13 | BK46: INCD-194480-r | BL46: YES | BM46: Weather | BN46: 1 | BO46: 217 | BQ46: 2139068000 | BR46: SUB FUSE | BS46: 2
T47: FY22 | U47: 2021-09-25 | V47: INCD-30014-a | W47: NO | X47: Unknown | Y47: 287 | Z47: 0 | AC47: FY20 | AD47: 2019-07-17 | AE47: INCD-218188-r | AF47: NO | AG47: Unknown | AH47: 621 | AI47: 0 | AS47: FY21 | AT47: 2021-03-27 | AU47: INCD-19894-a | AV47: NO | AW47: Unknown | AX47: 429 | AY47: 0 | BA47: FY20 | BB47: 2019-09-16 | BC47: INCD-223173-r | BD47: YES | BE47: Vegetation | BF47: 183 | BG47: 44286 | BI47: FY19 | BJ47: 2018-12-15 | BK47: INCD-194897-r | BL47: YES | BM47: Weather | BN47: 2 | BO47: 406 | BQ47: 2139068900 | BR47: SUB FUSE | BS47: 1
D48: Average minutes off per customer | G48: =G44/G46 -> 188.7494772 | T48: FY22 | U48: 2021-12-19 | V48: INCD-43690-a | W48: NO | X48: Unknown | Y48: 290 | Z48: 0 | AC48: FY20 | AD48: 2019-09-08 | AE48: INCD-222236-r | AF48: NO | AG48: Vegetation | AH48: 1016 | AI48: 0 | AS48: FY21 | AT48: 2021-04-04 | AU48: INCD-20163-a | AV48: NO | AW48: Unknown | AX48: 429 | AY48: 0 | BA48: FY20 | BB48: 2019-09-26 | BC48: INCD-224478-r | BD48: YES | BE48: Other | BF48: 1 | BG48: 285 | BI48: FY19 | BJ48: 2018-12-26 | BK48: INCD-196203-r | BL48: YES | BM48: Animal | BN48: 4 | BO48: 772 | BQ48: 2139073500 | BR48: SUB FUSE | BS48: 1
T49: FY22 | U49: 2022-01-01 | V49: INCD-45555-a | W49: NO | X49: Asset failure | Y49: 11 | Z49: 0 | AC49: FY20 | AD49: 2019-09-08 | AE49: INCD-222236-r | AF49: YES | AG49: Vegetation | AH49: 623 | AI49: 270007 | AS49: FY21 | AT49: 2021-04-18 | AU49: INCD-20977-a | AV49: NO | AW49: Unknown | AX49: 428 | AY49: 0 | BA49: FY20 | BB49: 2019-11-07 | BC49: INCD-227711-r | BD49: YES | BE49: Animal | BF49: 15 | BG49: 2047 | BI49: FY19 | BJ49: 2018-12-27 | BK49: INCD-44487-s | BL49: YES | BM49: Animal | BN49: 2 | BO49: 190 | BQ49: 2139075600 | BR49: SUB FUSE | BS49: 2
D50: Average Hrs off per customer | G50: =G48/60 -> 3.14582462 | T50: FY22 | U50: 2022-01-01 | V50: INCD-45555-a | W50: YES | X50: Asset failure | Y50: 291 | Z50: 76845 | AC50: FY20 | AD50: 2019-10-21 | AE50: INCD-226786-r | AF50: NO | AG50: Unknown | AH50: 627 | AI50: 0 | AS50: FY21 | AT50: 2021-06-08 | AU50: INCD-23054-a | AV50: NO | AW50: Unknown | AX50: 430 | AY50: 0 | BA50: FY20 | BB50: 2019-11-09 | BC50: INCD-227827-r | BD50: YES | BE50: Other | BF50: 22 | BG50: 3036 | BI50: FY19 | BJ50: 2019-01-04 | BK50: INCD-196742-r | BL50: YES | BM50: Animal | BN50: 12 | BO50: 1128 | BQ50: 2139076100 | BR50: SUB FUSE | BS50: 1
T51: FY22 | U51: 2022-01-14 | V51: INCD-48122-a | W51: NO | X51: Unknown | Y51: 292 | Z51: 0 | AC51: FY20 | AD51: 2019-10-29 | AE51: INCD-227207-r | AF51: NO | AG51: Unknown | AH51: 627 | AI51: 0 | AS51: FY22 | AT51: 2021-11-01 | AU51: INCD-35766-a | AV51: NO | AW51: Unknown | AX51: 428 | AY51: 0 | BA51: FY20 | BB51: 2019-11-26 | BC51: INCD-228882-r | BD51: YES | BE51: Weather | BF51: 2 | BG51: 624 | BI51: FY19 | BJ51: 2019-01-04 | BK51: INCD-196752-r | BL51: YES | BM51: Animal | BN51: 1 | BO51: 25 | BQ51: 2139076300 | BR51: SUB FUSE | BS51: 2
T52: FY22 | U52: 2022-01-19 | V52: INCD-49306-a | W52: NO | X52: Unknown | Y52: 292 | Z52: 0 | AC52: FY20 | AD52: 2019-11-05 | AE52: INCD-227652-r | AF52: NO | AG52: Animal | AH52: 627 | AI52: 0 | AS52: FY22 | AT52: 2021-11-02 | AU52: INCD-35882-a | AV52: NO | AW52: Unknown | AX52: 426 | AY52: 0 | BA52: FY20 | BB52: 2019-11-29 | BC52: INCD-229042-r | BD52: YES | BE52: Animal | BF52: 3 | BG52: 261 | BI52: FY19 | BJ52: 2019-01-06 | BK52: INCD-196924-r | BL52: YES | BM52: Animal | BN52: 2 | BO52: 198 | BQ52: 2139078400 | BR52: SUB FUSE | BS52: 2
T53: FY22 | U53: 2022-01-24 | V53: INCD-50021-a | W53: NO | X53: Unknown | Y53: 292 | Z53: 0 | AC53: FY20 | AD53: 2020-01-15 | AE53: INCD-234655-r | AF53: NO | AG53: Unknown | AH53: 628 | AI53: 0 | AS53: FY22 | AT53: 2021-12-19 | AU53: INCD-43586-a | AV53: NO | AW53: Weather | AX53: 428 | AY53: 0 | BA53: FY20 | BB53: 2019-12-17 | BC53: INCD-230398-r | BD53: YES | BE53: Overload | BF53: 11 | BG53: 935 | BI53: FY19 | BJ53: 2019-01-12 | BK53: INCD-197245-r | BL53: YES | BM53: Animal | BN53: 1 | BO53: 80 | BQ53: 2139079000 | BR53: SUB FUSE | BS53: 2
D54: CMOS | G54: =SUM(G23:G41) -> 7220800 | T54: FY22 | U54: 2022-02-14 | V54: INCD-53787-a | W54: NO | X54: Unknown | Y54: 292 | Z54: 0 | AC54: FY20 | AD54: 2020-01-15 | AE54: INCD-234872-r | AF54: NO | AG54: Unknown | AH54: 628 | AI54: 0 | AS54: FY22 | AT54: 2021-12-19 | AU54: INCD-43588-a | AV54: NO | AW54: Unknown | AX54: 426 | AY54: 0 | BA54: FY20 | BB54: 2020-01-09 | BC54: INCD-233726-r | BD54: YES | BE54: Animal | BF54: 3 | BG54: 435 | BI54: FY19 | BJ54: 2019-01-28 | BK54: INCD-198585-r | BL54: YES | BM54: Animal | BN54: 1 | BO54: 92 | BQ54: 2139080500 | BR54: SUB FUSE | BS54: 1
D55: Customer count | G55: =SUM(GETPIVOTDATA("Sum of CUSTOMER_COUNT",$A$21,"AER_FY","FY19","START_DATE",DATE(2018,12,10),"INCIDENT_REFERENCE_NUMBER","INCD-193765-r","SUSTAIN","YES","CA_REASON","Weather"),F27:F28,GETPIVOTDATA("Sum of CUSTOMER_COUNT",$A$21,"AER_FY","FY20","START_DATE",DATE(2020,2,1),"INCIDENT_REFERENCE_NUMBER","INCD-238553-r","SUSTAIN","YES","CA_REASON","Weather"),F36:F37,F39:F40,GETPIVOTDATA("Sum of CUSTOMER_COUNT",$A$21,"AER_FY","FY19","START_DATE",DATE(2018,12,10),"INCIDENT_REFERENCE_NUMBER","INCD-193765-r","SUSTAIN","YES","CA_REASON","Weather"),GETPIVOTDATA("Sum of CUSTOMER_COUNT",$A$21,"AER_FY","FY20","START_DATE",DATE(2020,2,1),"INCIDENT_REFERENCE_NUMBER","INCD-238553-r","SUSTAIN","YES","CA_REASON","Weather"),GETPIVOTDATA("Sum of CUSTOMER_COUNT",$A$21,"AER_FY","FY19","START_DATE",DATE(2018,12,10),"INCIDENT_REFERENCE_NUMBER","INCD-193765-r","SUSTAIN","YES","CA_REASON","Weather")) -> 41055 | T55: FY22 | U55: 2022-04-02 | V55: INCD-59909-a | W55: NO | X55: Unknown | Y55: 291 | Z55: 0 | AC55: FY20 | AD55: 2020-02-10 | AE55: INCD-239797-r | AF55: NO | AG55: Unknown | AH55: 628 | AI55: 0 | AS55: FY22 | AT55: 2022-01-14 | AU55: INCD-48142-a | AV55: NO | AW55: Unknown | AX55: 432 | AY55: 0 | BA55: FY20 | BB55: 2020-01-11 | BC55: INCD-234173-r | BD55: YES | BE55: Animal | BF55: 18 | BG55: 6750 | BI55: FY19 | BJ55: 2019-01-29 | BK55: INCD-198718-r | BL55: YES | BM55: Animal | BN55: 36 | BO55: 2628 | BQ55: 2139081300 | BR55: SUB FUSE | BS55: 19
G56: =G54/G55 -> 175.8811351 | T56: FY22 | U56: 2022-06-25 | V56: INCD-65827-a | W56: NO | X56: Unknown | Y56: 294 | Z56: 0 | AC56: FY20 | AD56: 2020-02-16 | AE56: INCD-240983-r | AF56: NO | AG56: Unknown | AH56: 628 | AI56: 0 | AS56: FY22 | AT56: 2022-02-13 | AU56: INCD-53701-a | AV56: NO | AW56: Unknown | AX56: 433 | AY56: 0 | BA56: FY20 | BB56: 2020-01-14 | BC56: INCD-234467-r | BD56: YES | BE56: Other | BF56: 21 | BG56: 4851 | BI56: FY19 | BJ56: 2019-01-30 | BK56: INCD-198748-r | BL56: YES | BM56: Weather | BN56: 428 | BO56: 68078 | BQ56: 2139081500 | BR56: SUB FUSE | BS56: 1
T57: FY23 | U57: 2022-07-09 | V57: INCD-66909-a | W57: NO | X57: Unknown | Y57: 294 | Z57: 0 | AC57: FY20 | AD57: 2020-02-16 | AE57: INCD-241088-r | AF57: NO | AG57: Unknown | AH57: 628 | AI57: 0 | AS57: FY22 | AT57: 2022-03-05 | AU57: INCD-56315-a | AV57: NO | AW57: Unknown | AX57: 431 | AY57: 0 | BA57: FY20 | BB57: 2020-01-19 | BC57: INCD-235678-r | BD57: YES | BE57: Other | BF57: 63 | BG57: 9207 | BI57: FY19 | BJ57: 2019-01-30 | BK57: INCD-198809-r | BL57: YES | BM57: Weather | BN57: 1 | BO57: 552 | BQ57: 2139085100 | BR57: SUB FUSE | BS57: 39
G58: =G56/60 -> 2.931352251 | T58: FY23 | U58: 2022-11-08 | V58: INCD-75975-a | W58: NO | X58: Unknown | Y58: 289 | Z58: 0 | AC58: FY20 | AD58: 2020-02-18 | AE58: INCD-241446-r | AF58: NO | AG58: Unknown | AH58: 514 | AI58: 0 | AS58: FY23 | AT58: 2022-09-17 | AU58: INCD-73352-a | AV58: NO | AW58: Unknown | AX58: 433 | AY58: 0 | BA58: FY20 | BB58: 2020-01-19 | BC58: INCD-235681-r | BD58: YES | BE58: Weather | BF58: 67 | BG58: 15745 | BI58: FY19 | BJ58: 2019-01-30 | BK58: INCD-198975-r | BL58: YES | BM58: Vegetation | BN58: 1 | BO58: 1795 | BQ58: 2139085800 | BR58: SUB FUSE | BS58: 1
T59: FY23 | U59: 2023-01-28 | V59: INCD-83871-a | W59: NO | X59: Unknown | Y59: 288 | Z59: 0 | AC59: FY20 | AD59: 2020-03-05 | AE59: INCD-244031-r | AF59: NO | AG59: Unknown | AH59: 629 | AI59: 0 | AS59: FY23 | AT59: 2022-11-01 | AU59: INCD-75588-a | AV59: NO | AW59: Unknown | AX59: 431 | AY59: 0 | BA59: FY20 | BB59: 2020-01-20 | BC59: INCD-236293-r | BD59: YES | BE59: Weather | BF59: 3 | BG59: 861 | BI59: FY19 | BJ59: 2019-01-30 | BK59: INCD-199061-r | BL59: YES | BM59: Weather | BN59: 2 | BO59: 2568 | BQ59: 2139086600 | BR59: SUB FUSE | BS59: 1
T60: FY23 | U60: 2023-02-01 | V60: INCD-84388-a | W60: NO | X60: Unknown | Y60: 288 | Z60: 0 | AC60: FY20 | AD60: 2020-03-10 | AE60: INCD-244617-r | AF60: NO | AG60: Unknown | AH60: 630 | AI60: 0 | AS60: FY23 | AT60: 2023-03-05 | AU60: INCD-88621-a | AV60: NO | AW60: Unknown | AX60: 430 | AY60: 0 | BA60: FY20 | BB60: 2020-01-23 | BC60: INCD-236807-r | BD60: YES | BE60: Weather | BF60: 67 | BG60: 18492 | BI60: FY19 | BJ60: 2019-01-30 | BK60: INCD-199137-r | BL60: YES | BM60: Weather | BN60: 2 | BO60: 340 | BQ60: 2139091400 | BR60: SUB FUSE | BS60: 2
T61: FY23 | U61: 2023-02-09 | V61: INCD-85510-a | W61: NO | X61: Unknown | Y61: 288 | Z61: 0 | AC61: FY20 | AD61: 2020-03-26 | AE61: INCD-245437-r | AF61: NO | AG61: Unknown | AH61: 631 | AI61: 0 | AS61: FY23 | AT61: 2023-03-09 | AU61: INCD-89318-a | AV61: YES | AW61: Other | AX61: 431 | AY61: 65154 | BA61: FY20 | BB61: 2020-02-02 | BC61: INCD-238793-r | BD61: YES | BE61: Other | BF61: 1 | BG61: 548 | BI61: FY19 | BJ61: 2019-01-30 | BK61: INCD-47094-s | BL61: YES | BM61: Weather | BN61: 1 | BO61: 1870 | BQ61: 2139092300 | BR61: SUB FUSE | BS61: 1
T62: FY23 | U62: 2023-02-13 | V62: INCD-85927-a | W62: YES | X62: Unknown | Y62: 286 | Z62: 27959 | AA62: =GETPIVOTDATA("Sum of CMOS",$T$21,"AER_FY","FY23","START_DATE",DATE(2023,2,13),"INCIDENT_REFERENCE_NUMBER","INCD-85927-a","SUSTAIN","YES","CA_REASON","Unknown")/GETPIVOTDATA("Sum of CUSTOMER_COUNT",$T$21,"AER_FY","FY23","START_DATE",DATE(2023,2,13),"INCIDENT_REFERENCE_NUMBER","INCD-85927-a","SUSTAIN","YES","CA_REASON","Unknown") -> 97.75874126 | AC62: FY20 | AD62: 2020-03-26 | AE62: INCD-245439-r | AF62: NO | AG62: Unknown | AH62: 631 | AI62: 0 | AS62: FY24 | AT62: 2023-08-30 | AU62: INCD-102160-U | AV62: NO | AW62: Unknown | AX62: 430 | AY62: 0 | BA62: FY20 | BB62: 2020-02-06 | BC62: INCD-239423-r | BD62: YES | BE62: Weather | BF62: 1 | BG62: 30 | BI62: FY19 | BJ62: 2019-01-30 | BK62: INCD-47144-s | BL62: YES | BM62: Vegetation | BN62: 3 | BO62: 870 | BQ62: 2139096900 | BR62: SUB FUSE | BS62: 1
T63: FY23 | U63: 2023-03-17 | V63: INCD-90161-a | W63: NO | X63: Unknown | Y63: 287 | Z63: 0 | AC63: FY20 | AD63: 2020-03-28 | AE63: INCD-245546-r | AF63: NO | AG63: Unknown | AH63: 631 | AI63: 0 | AS63: FY24 | AT63: 2023-09-20 | AU63: INCD-103758-U | AV63: NO | AW63: Unknown | AX63: 431 | AY63: 0 | BA63: FY20 | BB63: 2020-02-07 | BC63: INCD-239525-r | BD63: YES | BE63: Overload | BF63: 32 | BG63: 4320 | BI63: FY19 | BJ63: 2019-01-31 | BK63: INCD-199367-r | BL63: YES | BM63: Weather | BN63: 1 | BO63: 257 | BQ63: 2139097100 | BR63: SUB FUSE | BS63: 1
T64: FY23 | U64: 2023-03-21 | V64: INCD-90740-a | W64: NO | X64: Unknown | Y64: 284 | Z64: 0 | AC64: FY20 | AD64: 2020-05-20 | AE64: INCD-252408-r | AF64: NO | AG64: Unknown | AH64: 631 | AI64: 0 | AS64: FY24 | AT64: 2023-10-04 | AU64: INCD-105105-U | AV64: NO | AW64: Unknown | AX64: 431 | AY64: 0 | BA64: FY20 | BB64: 2020-02-10 | BC64: INCD-239794-r | BD64: YES | BE64: Other | BF64: 21 | BG64: 5691 | BI64: FY19 | BJ64: 2019-01-31 | BK64: INCD-199539-r | BL64: YES | BM64: Weather | BN64: 1 | BO64: 186 | BQ64: 2139098000 | BR64: SUB FUSE | BS64: 1
T65: FY23 | U65: 2023-03-21 | V65: INCD-90851-a | W65: NO | X65: Unknown | Y65: 285 | Z65: 0 | AC65: FY21 | AD65: 2020-07-08 | AE65: INCD-1087-a | AF65: NO | AG65: Unknown | AH65: 630 | AI65: 0 | AS65: FY24 | AT65: 2023-10-05 | AU65: INCD-105444-U | AV65: NO | AW65: Unknown | AX65: 430 | AY65: 0 | BA65: FY20 | BB65: 2020-02-10 | BC65: INCD-239839-r | BD65: YES | BE65: Weather | BF65: 21 | BG65: 7846 | BI65: FY19 | BJ65: 2019-01-31 | BK65: INCD-199543-r | BL65: YES | BM65: Overload | BN65: 1 | BO65: 318 | BQ65: 2139103500 | BR65: SUB FUSE | BS65: 2
AC66: FY21 | AD66: 2020-10-09 | AE66: INCD-9392-a | AF66: NO | AG66: Unknown | AH66: 628 | AI66: 0 | BA66: FY20 | BB66: 2020-02-11 | BC66: INCD-239939-r | BD66: YES | BE66: Weather | BF66: 21 | BG66: 4662 | BI66: FY19 | BJ66: 2019-01-31 | BK66: INCD-199604-r | BL66: YES | BM66: Weather | BN66: 1 | BO66: 118 | BQ66: 2139107700 | BR66: SUB FUSE | BS66: 6
AC67: FY21 | AD67: 2020-10-12 | AE67: INCD-9464-a | AF67: NO | AG67: Unknown | AH67: 628 | AI67: 0 | BA67: FY20 | BB67: 2020-02-11 | BC67: INCD-239953-r | BD67: YES | BE67: Overload | BF67: 16 | BG67: 5471 | BI67: FY19 | BJ67: 2019-01-31 | BK67: INCD-199704-r | BL67: YES | BM67: Weather | BN67: 3 | BO67: 300 | BQ67: 2139110500 | BR67: SUB FUSE | BS67: 1
AC68: FY21 | AD68: 2020-10-30 | AE68: INCD-10486-a | AF68: NO | AG68: Unknown | AH68: 628 | AI68: 0 | AV68: YES | AY68: =AVERAGEIF(AV23:AV65,AV68,AY23:AY65) -> 80184.5 | BA68: FY20 | BB68: 2020-02-18 | BC68: INCD-241463-r | BD68: YES | BE68: Weather | BF68: 114 | BG68: 25448 | BI68: FY19 | BJ68: 2019-01-31 | BK68: INCD-47236-s | BL68: YES | BM68: Overload | BN68: 1 | BO68: 370 | BQ68: 2139110700 | BR68: SUB FUSE | BS68: 2
W69: YES | Z69: =AVERAGEIF(W23:W65,W69,Z23:Z65) -> 52402 | AC69: FY21 | AD69: 2020-12-21 | AE69: INCD-13982-a | AF69: NO | AG69: Unknown | AH69: 628 | AI69: 0 | BA69: FY20 | BB69: 2020-02-18 | BC69: INCD-241511-r | BD69: YES | BE69: Overload | BF69: 14 | BG69: 4340 | BI69: FY19 | BJ69: 2019-02-03 | BK69: INCD-200263-r | BL69: YES | BM69: Weather | BN69: 39 | BO69: 10959 | BQ69: 2139110900 | BR69: SUB FUSE | BS69: 2
AC70: FY21 | AD70: 2021-01-01 | AE70: INCD-14890-a | AF70: NO | AG70: Unknown | AH70: 628 | AI70: 0 | AV70: Customer Numbers | AY70: 450 | BA70: FY20 | BB70: 2020-02-18 | BC70: INCD-241675-r | BD70: YES | BE70: Weather | BF70: 33 | BG70: 4785 | BI70: FY19 | BJ70: 2019-02-07 | BK70: INCD-200973-r | BL70: YES | BM70: Weather | BN70: 1 | BO70: 106 | BQ70: 2139111300 | BR70: SUB FUSE | BS70: 11
W71: Customer Numbers | Z71: 305 | AC71: FY21 | AD71: 2021-01-09 | AE71: INCD-15797-a | AF71: NO | AG71: Unknown | AH71: 627 | AI71: 0 | BA71: FY20 | BB71: 2020-02-18 | BC71: INCD-241750-r | BD71: YES | BE71: Weather | BF71: 2 | BG71: 182 | BI71: FY19 | BJ71: 2019-02-09 | BK71: INCD-201195-r | BL71: YES | BM71: Overload | BN71: 1 | BO71: 129 | BQ71: 2139116400 | BR71: SUB FUSE | BS71: 3
AC72: FY21 | AD72: 2021-01-10 | AE72: INCD-15883-a | AF72: NO | AG72: Unknown | AH72: 627 | AI72: 0 | AV72: Average minutes off per customer | AY72: =AY68/AY70 -> 178.1877778 | BA72: FY20 | BB72: 2020-02-21 | BC72: INCD-242388-r | BD72: YES | BE72: Other | BF72: 21 | BG72: 2562 | BI72: FY19 | BJ72: 2019-02-19 | BK72: INCD-201763-r | BL72: YES | BM72: Animal | BN72: 1 | BO72: 240 | BQ72: 2139120500 | BR72: SUB FUSE | BS72: 1
W73: Average minutes off per customer | Z73: =Z69/Z71 -> 171.8098361 | AC73: FY21 | AD73: 2021-02-08 | AE73: INCD-17625-a | AF73: NO | AG73: Unknown | AH73: 626 | AI73: 0 | BA73: FY20 | BB73: 2020-05-20 | BC73: INCD-252540-r | BD73: YES | BE73: Weather | BF73: 6 | BG73: 1446 | BI73: FY19 | BJ73: 2019-03-02 | BK73: INCD-203319-r | BL73: YES | BM73: Other | BN73: 1 | BO73: 104 | BQ73: 2139121500 | BR73: SUB FUSE | BS73: 2
AC74: FY21 | AD74: 2021-02-25 | AE74: INCD-18435-a | AF74: NO | AG74: Unknown | AH74: 628 | AI74: 0 | AV74: Average Hrs off per customer | AY74: =AY72/60 -> 2.969796296 | BA74: FY20 | BB74: 2020-05-20 | BC74: INCD-252582-r | BD74: YES | BE74: Other | BF74: 22 | BG74: 14784 | BI74: FY19 | BJ74: 2019-03-04 | BK74: INCD-203396-r | BL74: YES | BM74: Asset failure | BN74: 2 | BO74: 2030 | BQ74: 2139134200 | BR74: SUB FUSE | BS74: 1
W75: Average Hrs off per customer | Z75: =Z73/60 -> 2.863497268 | AC75: FY21 | AD75: 2021-03-05 | AE75: INCD-18799-a | AF75: NO | AG75: Unknown | AH75: 628 | AI75: 0 | BA75: FY20 | BB75: 2020-06-13 | BC75: INCD-255805-r | BD75: YES | BE75: Overload | BF75: 66 | BG75: 4831 | BI75: FY19 | BJ75: 2019-03-08 | BK75: INCD-204621-r | BL75: YES | BM75: Other | BN75: 1 | BO75: 145 | BQ75: 2139136900 | BR75: SUB FUSE | BS75: 1
AC76: FY21 | AD76: 2021-03-22 | AE76: INCD-19553-a | AF76: NO | AG76: Unknown | AH76: 629 | AI76: 0 | BA76: FY20 | BB76: 2020-06-15 | BC76: INCD-255889-r | BD76: YES | BE76: Overload | BF76: 1 | BG76: 326 | BI76: FY19 | BJ76: 2019-03-08 | BK76: INCD-204713-r | BL76: YES | BM76: Animal | BN76: 1 | BO76: 87 | BQ76: 2139140100 | BR76: SUB FUSE | BS76: 3
AC77: FY21 | AD77: 2021-06-09 | AE77: INCD-23372-a | AF77: NO | AG77: Unknown | AH77: 589 | AI77: 0 | BA77: FY20 | BB77: 2020-06-16 | BC77: INCD-256160-r | BD77: YES | BE77: Animal | BF77: 2 | BG77: 202 | BI77: FY19 | BJ77: 2019-03-15 | BK77: INCD-205537-r | BL77: YES | BM77: Animal | BN77: 1 | BO77: 148 | BQ77: 2139144100 | BR77: SUB FUSE | BS77: 3
AC78: FY21 | AD78: 2021-06-17 | AE78: INCD-25171-a | AF78: NO | AG78: Unknown | AH78: 629 | AI78: 0 | BA78: FY20 | BB78: 2020-06-21 | BC78: INCD-256776-r | BD78: YES | BE78: Other | BF78: 66 | BG78: 5874 | BI78: FY19 | BJ78: 2019-03-18 | BK78: INCD-205674-r | BL78: YES | BM78: Animal | BN78: 1 | BO78: 222 | BQ78: 2139146500 | BR78: SUB FUSE | BS78: 2
AC79: FY21 | AD79: 2021-06-18 | AE79: INCD-25330-a | AF79: NO | AG79: Unknown | AH79: 628 | AI79: 0 | BA79: FY21 | BB79: 2020-07-25 | BC79: INCD-3168-a | BD79: YES | BE79: Asset failure | BF79: 29 | BG79: 6380 | BI79: FY19 | BJ79: 2019-03-22 | BK79: INCD-206348-r | BL79: YES | BM79: Weather | BN79: 1 | BO79: 109 | BQ79: 2139148300 | BR79: SUB FUSE | BS79: 1
AC80: FY22 | AD80: 2021-09-21 | AE80: INCD-29890-a | AF80: NO | AG80: Unknown | AH80: 626 | AI80: 0 | BA80: FY21 | BB80: 2020-08-09 | BC80: INCD-4456-a | BD80: YES | BE80: Animal | BF80: 159 | BG80: 15423 | BI80: FY19 | BJ80: 2019-03-22 | BK80: INCD-206386-r | BL80: YES | BM80: Weather | BN80: 1 | BO80: 43 | BQ80: 2139149300 | BR80: SUB FUSE | BS80: 1
AC81: FY22 | AD81: 2021-12-01 | AE81: INCD-40282-a | AF81: NO | AG81: Unknown | AH81: 626 | AI81: 0 | BA81: FY21 | BB81: 2020-10-08 | BC81: INCD-9270-a | BD81: YES | BE81: Weather | BF81: 21 | BG81: 8610 | BI81: FY19 | BJ81: 2019-03-22 | BK81: INCD-206394-r | BL81: YES | BM81: Other | BN81: 2 | BO81: 600 | BQ81: 2139149600 | BR81: SUB FUSE | BS81: 1
AC82: FY22 | AD82: 2022-01-05 | AE82: INCD-46127-a | AF82: NO | AG82: Unknown | AH82: 632 | AI82: 0 | BA82: FY21 | BB82: 2020-10-24 | BC82: INCD-10111-a | BD82: YES | BE82: Other | BF82: 12 | BG82: 1560 | BI82: FY19 | BJ82: 2019-03-22 | BK82: INCD-206414-r | BL82: YES | BM82: Other | BN82: 1 | BO82: 1099 | BQ82: 2139150300 | BR82: SUB FUSE | BS82: 1
AC83: FY22 | AD83: 2022-01-07 | AE83: INCD-46504-a | AF83: NO | AG83: Unknown | AH83: 632 | AI83: 0 | BA83: FY21 | BB83: 2021-01-07 | BC83: INCD-15591-a | BD83: YES | BE83: Vegetation | BF83: 67 | BG83: 26197 | BI83: FY19 | BJ83: 2019-03-22 | BK83: INCD-206503-r | BL83: YES | BM83: Other | BN83: 2 | BO83: 368 | BQ83: 2139150700 | BR83: SUB FUSE | BS83: 2
AC84: FY22 | AD84: 2022-01-07 | AE84: INCD-46571-a | AF84: NO | AG84: Unknown | AH84: 629 | AI84: 0 | BA84: FY21 | BB84: 2021-03-15 | BC84: INCD-19240-a | BD84: YES | BE84: Asset failure | BF84: 35 | BG84: 5285 | BI84: FY19 | BJ84: 2019-03-22 | BK84: INCD-206590-r | BL84: YES | BM84: Weather | BN84: 1 | BO84: 454 | BQ84: 2139150900 | BR84: SUB FUSE | BS84: 1
AC85: FY22 | AD85: 2022-01-14 | AE85: INCD-48404-a | AF85: NO | AG85: Unknown | AH85: 629 | AI85: 0 | BA85: FY21 | BB85: 2021-04-27 | BC85: INCD-12016-b | BD85: YES | BE85: Asset failure | BF85: 20 | BG85: 1260 | BI85: FY19 | BJ85: 2019-03-22 | BK85: INCD-206623-r | BL85: YES | BM85: Other | BN85: 1 | BO85: 114 | BQ85: 2139153300 | BR85: SUB FUSE | BS85: 1
AC86: FY22 | AD86: 2022-01-23 | AE86: INCD-49909-a | AF86: NO | AG86: Unknown | AH86: 632 | AI86: 0 | BA86: FY22 | BB86: 2021-07-24 | BC86: INCD-27192-a | BD86: YES | BE86: Weather | BF86: 16 | BG86: 2679 | BI86: FY19 | BJ86: 2019-03-22 | BK86: INCD-206742-r | BL86: YES | BM86: Weather | BN86: 2 | BO86: 1108 | BQ86: 2139153900 | BR86: SUB FUSE | BS86: 2
AC87: FY22 | AD87: 2022-01-26 | AE87: INCD-50588-a | AF87: NO | AG87: Unknown | AH87: 630 | AI87: 0 | BA87: FY22 | BB87: 2021-08-03 | BC87: INCD-27905-a | BD87: YES | BE87: Vegetation | BF87: 7 | BG87: 2828 | BI87: FY19 | BJ87: 2019-03-29 | BK87: INCD-207322-r | BL87: YES | BM87: Animal | BN87: 1 | BO87: 163 | BQ87: 2139155900 | BR87: SUB FUSE | BS87: 3
AC88: FY22 | AD88: 2022-01-29 | AE88: INCD-51563-a | AF88: NO | AG88: Unknown | AH88: 632 | AI88: 0 | BA88: FY22 | BB88: 2021-09-28 | BC88: INCD-30078-a | BD88: YES | BE88: Overload | BF88: 22 | BG88: 2024 | BI88: FY19 | BJ88: 2019-04-09 | BK88: INCD-207987-r | BL88: YES | BM88: Unknown | BN88: 2 | BO88: 28 | BQ88: 2139169700 | BR88: SUB FUSE | BS88: 1
AC89: FY22 | AD89: 2022-02-09 | AE89: INCD-53336-a | AF89: NO | AG89: Unknown | AH89: 630 | AI89: 0 | BA89: FY22 | BB89: 2021-09-28 | BC89: INCD-30082-a | BD89: YES | BE89: Overload | BF89: 88 | BG89: 18832 | BI89: FY19 | BJ89: 2019-04-13 | BK89: INCD-208121-r | BL89: YES | BM89: Animal | BN89: 1 | BO89: 73 | BQ89: 2139170700 | BR89: SUB FUSE | BS89: 33
AC90: FY22 | AD90: 2022-06-29 | AE90: INCD-65956-a | AF90: NO | AG90: Unknown | AH90: 627 | AI90: 0 | BA90: FY22 | BB90: 2021-10-04 | BC90: INCD-30346-a | BD90: YES | BE90: Weather | BF90: 2 | BG90: 8 | BI90: FY19 | BJ90: 2019-04-30 | BK90: INCD-209347-r | BL90: YES | BM90: Animal | BN90: 2 | BO90: 412 | BQ90: 2139171200 | BR90: SUB FUSE | BS90: 2
AC91: FY23 | AD91: 2022-08-23 | AE91: INCD-71395-a | AF91: NO | AG91: Unknown | AH91: 624 | AI91: 0 | BA91: FY22 | BB91: 2021-10-13 | BC91: INCD-30713-a | BD91: YES | BE91: Animal | BF91: 5 | BG91: 620 | BI91: FY19 | BJ91: 2019-05-02 | BK91: INCD-209723-r | BL91: YES | BM91: Weather | BN91: 1 | BO91: 128 | BQ91: 2139184000 | BR91: SUB FUSE | BS91: 1
AC92: FY23 | AD92: 2022-09-25 | AE92: INCD-73593-a | AF92: NO | AG92: Unknown | AH92: 626 | AI92: 0 | BA92: FY22 | BB92: 2021-10-27 | BC92: INCD-32339-a | BD92: YES | BE92: Animal | BF92: 2 | BG92: 216 | BI92: FY19 | BJ92: 2019-05-02 | BK92: INCD-209738-r | BL92: YES | BM92: Vegetation | BN92: 1 | BO92: 122 | BQ92: 2139189700 | BR92: SUB FUSE | BS92: 1
AC93: FY23 | AD93: 2022-11-06 | AE93: INCD-75839-a | AF93: NO | AG93: Unknown | AH93: 624 | AI93: 0 | BA93: FY22 | BB93: 2021-10-28 | BC93: INCD-32631-a | BD93: YES | BE93: Weather | BF93: 12 | BG93: 2844 | BI93: FY19 | BJ93: 2019-05-02 | BK93: INCD-209799-r | BL93: YES | BM93: Weather | BN93: 1 | BO93: 151 | BQ93: 2139196500 | BR93: SUB FUSE | BS93: 1
AC94: FY23 | AD94: 2022-11-16 | AE94: INCD-76686-a | AF94: NO | AG94: Unknown | AH94: 620 | AI94: 0 | BA94: FY22 | BB94: 2021-10-29 | BC94: INCD-34379-a | BD94: YES | BE94: Vegetation | BF94: 296 | BG94: 233840 | BI94: FY19 | BJ94: 2019-05-02 | BK94: INCD-209897-r | BL94: YES | BM94: Other | BN94: 1 | BO94: 136 | BQ94: 2139199500 | BR94: SUB FUSE | BS94: 1
AC95: FY23 | AD95: 2022-12-11 | AE95: INCD-78290-a | AF95: NO | AG95: Unknown | AH95: 624 | AI95: 0 | BA95: FY22 | BB95: 2021-10-29 | BC95: INCD-34448-a | BD95: YES | BE95: Weather | BF95: 32 | BG95: 26476 | BI95: FY19 | BJ95: 2019-05-03 | BK95: INCD-210056-r | BL95: YES | BM95: Weather | BN95: 2 | BO95: 340 | BQ95: 2139233500 | BR95: SUB FUSE | BS95: 1
AC96: FY23 | AD96: 2022-12-21 | AE96: INCD-78823-a | AF96: NO | AG96: Unknown | AH96: 622 | AI96: 0 | BA96: FY22 | BB96: 2021-11-06 | BC96: INCD-37091-a | BD96: YES | BE96: Weather | BF96: 11 | BG96: 1716 | BI96: FY19 | BJ96: 2019-05-03 | BK96: INCD-210072-r | BL96: YES | BM96: Weather | BN96: 1 | BO96: 168 | BQ96: 2139284300 | BR96: SUB FUSE | BS96: 1
AC97: FY23 | AD97: 2023-02-05 | AE97: INCD-85016-a | AF97: NO | AG97: Unknown | AH97: 626 | AI97: 0 | BA97: FY22 | BB97: 2021-11-12 | BC97: INCD-24033-b | BD97: YES | BE97: Other | BF97: 5 | BG97: 50 | BI97: FY19 | BJ97: 2019-05-03 | BK97: INCD-210093-r | BL97: YES | BM97: Weather | BN97: 16 | BO97: 1151 | BQ97: 2139285000 | BR97: SUB FUSE | BS97: 1
AC98: FY23 | AD98: 2023-03-17 | AE98: INCD-90284-a | AF98: NO | AG98: Unknown | AH98: 624 | AI98: 0 | BA98: FY22 | BB98: 2021-11-12 | BC98: INCD-24034-b | BD98: YES | BE98: Overload | BF98: 1 | BG98: 21 | BI98: FY19 | BJ98: 2019-05-22 | BK98: INCD-212062-r | BL98: YES | BM98: Weather | BN98: 1 | BO98: 74 | BQ98: 2139285500 | BR98: SUB FUSE | BS98: 1
AC99: FY23 | AD99: 2023-04-16 | AE99: INCD-93882-a | AF99: NO | AG99: Unknown | AH99: 627 | AI99: 0 | BA99: FY22 | BB99: 2021-12-19 | BC99: INCD-43904-a | BD99: YES | BE99: Weather | BF99: 6 | BG99: 3180 | BI99: FY19 | BJ99: 2019-06-11 | BK99: INCD-213695-r | BL99: YES | BM99: Weather | BN99: 1 | BO99: 60 | BQ99: 2139286700 | BR99: SUB FUSE | BS99: 1
AC100: FY23 | AD100: 2023-06-24 | AE100: INCD-97337-a | AF100: NO | AG100: Unknown | AH100: 624 | AI100: 0 | BA100: FY22 | BB100: 2021-12-19 | BC100: INCD-44157-a | BD100: YES | BE100: Weather | BF100: 3 | BG100: 2619 | BI100: FY19 | BJ100: 2019-06-29 | BK100: INCD-216248-r | BL100: YES | BM100: Weather | BN100: 4 | BO100: 976 | BQ100: 2139295100 | BR100: SUB FUSE | BS100: 2
BA101: FY22 | BB101: 2021-12-20 | BC101: INCD-44204-a | BD101: YES | BE101: Asset failure | BF101: 2 | BG101: 10 | BI101: FY20 | BJ101: 2019-07-01 | BK101: INCD-216508-r | BL101: YES | BM101: Asset failure | BN101: 1 | BO101: 129 | BQ101: 2139299900 | BR101: SUB FUSE | BS101: 1
BA102: FY22 | BB102: 2022-01-07 | BC102: INCD-46768-a | BD102: YES | BE102: Weather | BF102: 7 | BG102: 4067 | BI102: FY20 | BJ102: 2019-07-08 | BK102: INCD-52627-s | BL102: YES | BM102: Asset failure | BN102: 3 | BO102: 516 | BQ102: 2139304500 | BR102: SUB FUSE | BS102: 2
AF103: YES | AI103: =AVERAGEIF(AF23:AF100,AF103,AI23:AI100) -> 131222.6667 | BA103: FY22 | BB103: 2022-01-07 | BC103: INCD-46841-a | BD103: YES | BE103: Weather | BF103: 7 | BG103: 8085 | BI103: FY20 | BJ103: 2019-07-17 | BK103: INCD-218174-r | BL103: YES | BM103: Animal | BN103: 2 | BO103: 728 | BQ103: 2139307900 | BR103: SUB FUSE | BS103: 1
BA104: FY22 | BB104: 2022-01-09 | BC104: INCD-47039-a | BD104: YES | BE104: Vegetation | BF104: 7 | BG104: 1232 | BI104: FY20 | BJ104: 2019-07-22 | BK104: INCD-218350-r | BL104: YES | BM104: Animal | BN104: 1 | BO104: 136 | BQ104: 2139315400 | BR104: SUB FUSE | BS104: 1
AF105: Customer Numbers | AI105: 664 | BA105: FY22 | BB105: 2022-01-10 | BC105: INCD-47137-a | BD105: YES | BE105: Animal | BF105: 11 | BG105: 1837 | BI105: FY20 | BJ105: 2019-08-02 | BK105: INCD-75761-x | BL105: YES | BM105: Animal | BN105: 1 | BO105: 20 | BQ105: 2139326600 | BR105: SUB FUSE | BS105: 1
BA106: FY22 | BB106: 2022-01-10 | BC106: INCD-47150-a | BD106: YES | BE106: Animal | BF106: 19 | BG106: 6669 | BI106: FY20 | BJ106: 2019-10-19 | BK106: INCD-226721-r | BL106: YES | BM106: Animal | BN106: 2 | BO106: 202 | BQ106: 2139327100 | BR106: SUB FUSE | BS106: 1
AF107: Average minutes off per customer | AI107: =AI103/AI105 -> 197.624498 | BA107: FY22 | BB107: 2022-01-11 | BC107: INCD-47341-a | BD107: YES | BE107: Weather | BF107: 42 | BG107: 9870 | BI107: FY20 | BJ107: 2019-10-21 | BK107: INCD-226788-r | BL107: YES | BM107: Animal | BN107: 2 | BO107: 178 | BQ107: 2139331000 | BR107: SUB FUSE | BS107: 1
BA108: FY22 | BB108: 2022-01-11 | BC108: INCD-47418-a | BD108: YES | BE108: Weather | BF108: 1 | BG108: 1453 | BI108: FY20 | BJ108: 2019-10-23 | BK108: INCD-226886-r | BL108: YES | BM108: Animal | BN108: 1 | BO108: 156 | BQ108: 2139332100 | BR108: SUB FUSE | BS108: 1
AF109: Average Hrs off per customer | AI109: =AI107/60 -> 3.293741633 | BA109: FY22 | BB109: 2022-01-11 | BC109: INCD-47472-a | BD109: YES | BE109: Overload | BF109: 42 | BG109: 3528 | BI109: FY20 | BJ109: 2019-10-29 | BK109: INCD-227238-r | BL109: YES | BM109: Other | BN109: 1 | BO109: 144 | BQ109: 2139800122 | BR109: SUB FUSE | BS109: 14
BA110: FY22 | BB110: 2022-01-14 | BC110: INCD-48313-a | BD110: YES | BE110: Weather | BF110: 13 | BG110: 2067 | BI110: FY20 | BJ110: 2019-11-03 | BK110: INCD-227480-r | BL110: YES | BM110: Animal | BN110: 1 | BO110: 303 | BQ110: 2139800124 | BR110: SUB FUSE | BS110: 2
BA111: FY22 | BB111: 2022-01-14 | BC111: INCD-48580-a | BD111: YES | BE111: Weather | BF111: 39 | BG111: 34929 | BI111: FY20 | BJ111: 2019-11-05 | BK111: INCD-227653-r | BL111: YES | BM111: Animal | BN111: 1 | BO111: 103 | BQ111: 2139800181 | BR111: SUB FUSE | BS111: 3
BA112: FY22 | BB112: 2022-01-14 | BC112: INCD-48797-a | BD112: YES | BE112: Weather | BF112: 2 | BG112: 4674 | BI112: FY20 | BJ112: 2019-11-29 | BK112: INCD-229017-r | BL112: YES | BM112: Animal | BN112: 5 | BO112: 545 | BQ112: 2139800226 | BR112: SUB FUSE | BS112: 2
BA113: FY22 | BB113: 2022-01-15 | BC113: INCD-48825-a | BD113: YES | BE113: Weather | BF113: 13 | BG113: 1352 | BI113: FY20 | BJ113: 2019-12-16 | BK113: INCD-56680-s | BL113: YES | BM113: Other | BN113: 1 | BO113: 18 | BQ113: 2139800240 | BR113: SUB FUSE | BS113: 1
BA114: FY22 | BB114: 2022-02-24 | BC114: INCD-55128-a | BD114: YES | BE114: Weather | BF114: 64 | BG114: 11264 | BI114: FY20 | BJ114: 2019-12-19 | BK114: INCD-230833-r | BL114: YES | BM114: Overload | BN114: 1 | BO114: 307 | BQ114: 2139800243 | BR114: SUB FUSE | BS114: 1
BA115: FY22 | BB115: 2022-03-16 | BC115: INCD-57951-a | BD115: YES | BE115: Animal | BF115: 15 | BG115: 3600 | BI115: FY20 | BJ115: 2020-01-02 | BK115: INCD-232718-r | BL115: YES | BM115: Other | BN115: 34 | BO115: 5610 | BQ115: 2139800276 | BR115: SUB FUSE | BS115: 1
BA116: FY22 | BB116: 2022-05-22 | BC116: INCD-64084-a | BD116: YES | BE116: Other | BF116: 114 | BG116: 37734 | BI116: FY20 | BJ116: 2020-01-15 | BK116: INCD-234900-r | BL116: YES | BM116: Weather | BN116: 1 | BO116: 367 | BQ116: 2139800329 | BR116: SUB FUSE | BS116: 1
BA117: FY22 | BB117: 2022-05-29 | BC117: INCD-64603-a | BD117: YES | BE117: Animal | BF117: 243 | BG117: 28917 | BI117: FY20 | BJ117: 2020-01-15 | BK117: INCD-234923-r | BL117: YES | BM117: Weather | BN117: 1 | BO117: 265 | BQ117: 2139800342 | BR117: SUB FUSE | BS117: 2
BA118: FY23 | BB118: 2022-07-25 | BC118: INCD-67800-a | BD118: YES | BE118: Animal | BF118: 2 | BG118: 1088 | BI118: FY20 | BJ118: 2020-01-15 | BK118: INCD-235056-r | BL118: YES | BM118: Animal | BN118: 7 | BO118: 3892 | BQ118: 2139800345 | BR118: SUB FUSE | BS118: 2
BA119: FY23 | BB119: 2022-08-23 | BC119: INCD-71399-a | BD119: YES | BE119: Other | BF119: 3 | BG119: 630 | BI119: FY20 | BJ119: 2020-01-16 | BK119: INCD-235077-r | BL119: YES | BM119: Other | BN119: 1 | BO119: 33 | BQ119: 2139800348 | BR119: SUB FUSE | BS119: 2
BA120: FY23 | BB120: 2022-09-07 | BC120: INCD-72481-a | BD120: YES | BE120: Overload | BF120: 1 | BG120: 7 | BI120: FY20 | BJ120: 2020-01-21 | BK120: INCD-236468-r | BL120: YES | BM120: Animal | BN120: 1 | BO120: 209 | BQ120: 2139800349 | BR120: SUB FUSE | BS120: 2
BA121: FY23 | BB121: 2022-10-01 | BC121: INCD-73803-a | BD121: YES | BE121: Other | BF121: 1 | BG121: 453 | BI121: FY20 | BJ121: 2020-02-02 | BK121: INCD-238828-r | BL121: YES | BM121: Asset failure | BN121: 2 | BO121: 2086 | BQ121: 2139802120 | BR121: SUB FUSE | BS121: 2
BA122: FY23 | BB122: 2022-10-07 | BC122: INCD-74053-a | BD122: YES | BE122: Other | BF122: 90 | BG122: 28710 | BI122: FY20 | BJ122: 2020-02-03 | BK122: INCD-238834-r | BL122: YES | BM122: Weather | BN122: 1 | BO122: 528 | BQ122: 2139802121 | BR122: SUB FUSE | BS122: 2
BA123: FY23 | BB123: 2022-10-13 | BC123: INCD-74307-a | BD123: YES | BE123: Other | BF123: 19 | BG123: 10127 | BI123: FY20 | BJ123: 2020-02-04 | BK123: INCD-238096-r | BL123: YES | BM123: Other | BN123: 2 | BO123: 8 | BQ123: 2139802127 | BR123: SUB FUSE | BS123: 1
BA124: FY23 | BB124: 2022-10-13 | BC124: INCD-74314-a | BD124: YES | BE124: Weather | BF124: 25 | BG124: 42525 | BI124: FY20 | BJ124: 2020-02-05 | BK124: INCD-239351-r | BL124: YES | BM124: Animal | BN124: 1 | BO124: 114 | BQ124: 2139802128 | BR124: SUB FUSE | BS124: 2
BA125: FY23 | BB125: 2022-10-13 | BC125: INCD-74513-a | BD125: YES | BE125: Weather | BF125: 2 | BG125: 11332 | BI125: FY20 | BJ125: 2020-02-06 | BK125: INCD-239401-r | BL125: YES | BM125: Other | BN125: 1 | BO125: 83 | BQ125: 2139802234 | BR125: SUB FUSE | BS125: 1
BA126: FY23 | BB126: 2022-10-21 | BC126: INCD-32274-b | BD126: YES | BE126: Weather | BF126: 3 | BG126: 165 | BI126: FY20 | BJ126: 2020-02-07 | BK126: INCD-239599-r | BL126: YES | BM126: Weather | BN126: 3 | BO126: 921 | BQ126: 2139802403 | BR126: SUB FUSE | BS126: 2
BA127: FY23 | BB127: 2022-10-21 | BC127: INCD-75385-a | BD127: YES | BE127: Weather | BF127: 1 | BG127: 12926 | BI127: FY20 | BJ127: 2020-02-07 | BK127: INCD-239604-r | BL127: YES | BM127: Weather | BN127: 2 | BO127: 390 | BQ127: 2139802411 | BR127: SUB FUSE | BS127: 3
BA128: FY23 | BB128: 2022-10-25 | BC128: INCD-32511-b | BD128: YES | BE128: Animal | BF128: 1 | BG128: 189 | BI128: FY20 | BJ128: 2020-02-08 | BK128: INCD-239628-r | BL128: YES | BM128: Weather | BN128: 1 | BO128: 317 | BQ128: 2139802416 | BR128: SUB FUSE | BS128: 1
BA129: FY23 | BB129: 2022-10-25 | BC129: INCD-74939-a | BD129: YES | BE129: Vegetation | BF129: 23 | BG129: 5474 | BI129: FY20 | BJ129: 2020-02-08 | BK129: INCD-239634-r | BL129: YES | BM129: Weather | BN129: 1 | BO129: 634 | BQ129: 2139802424 | BR129: SUB FUSE | BS129: 3
BA130: FY23 | BB130: 2022-10-29 | BC130: INCD-75347-a | BD130: YES | BE130: Animal | BF130: 3 | BG130: 381 | BI130: FY20 | BJ130: 2020-02-08 | BK130: INCD-239647-r | BL130: YES | BM130: Weather | BN130: 2 | BO130: 1000 | BQ130: 2139802505 | BR130: SUB FUSE | BS130: 2
BA131: FY23 | BB131: 2022-11-01 | BC131: INCD-75564-a | BD131: YES | BE131: Other | BF131: 2 | BG131: 940 | BI131: FY20 | BJ131: 2020-02-08 | BK131: INCD-239656-r | BL131: YES | BM131: Weather | BN131: 1 | BO131: 151 | BQ131: 2139802510 | BR131: SUB FUSE | BS131: 2
BA132: FY23 | BB132: 2022-11-06 | BC132: INCD-75858-a | BD132: YES | BE132: Weather | BF132: 1 | BG132: 959 | BI132: FY20 | BJ132: 2020-02-08 | BK132: INCD-239668-r | BL132: YES | BM132: Weather | BN132: 2 | BO132: 306 | BQ132: 2139802520 | BR132: SUB FUSE | BS132: 2
BA133: FY23 | BB133: 2022-11-08 | BC133: INCD-75977-a | BD133: YES | BE133: Animal | BF133: 1 | BG133: 139 | BI133: FY20 | BJ133: 2020-02-08 | BK133: INCD-57013-s | BL133: YES | BM133: Weather | BN133: 1 | BO133: 4 | BQ133: 2139802543 | BR133: SUB FUSE | BS133: 10
BA134: FY23 | BB134: 2022-11-08 | BC134: INCD-76001-a | BD134: YES | BE134: Animal | BF134: 4 | BG134: 1343 | BI134: FY20 | BJ134: 2020-02-10 | BK134: INCD-239804-r | BL134: YES | BM134: Animal | BN134: 1 | BO134: 344 | BQ134: 2139802556 | BR134: SUB FUSE | BS134: 2
BA135: FY23 | BB135: 2022-11-15 | BC135: INCD-34783-b | BD135: YES | BE135: Other | BF135: 4 | BG135: 2012 | BI135: FY20 | BJ135: 2020-02-10 | BK135: INCD-239823-r | BL135: YES | BM135: Weather | BN135: 1 | BO135: 223 | BQ135: 2139802557 | BR135: SUB FUSE | BS135: 1
BA136: FY23 | BB136: 2022-11-15 | BC136: INCD-76624-a | BD136: YES | BE136: Weather | BF136: 61 | BG136: 29646 | BI136: FY20 | BJ136: 2020-02-11 | BK136: INCD-239931-r | BL136: YES | BM136: Weather | BN136: 1 | BO136: 135 | BQ136: 2139802626 | BR136: SUB FUSE | BS136: 1
BA137: FY23 | BB137: 2022-11-16 | BC137: INCD-76693-a | BD137: YES | BE137: Animal | BF137: 3 | BG137: 1809 | BI137: FY20 | BJ137: 2020-02-11 | BK137: INCD-239937-r | BL137: YES | BM137: Weather | BN137: 1 | BO137: 539 | BQ137: 2139802708 | BR137: SUB FUSE | BS137: 2
BA138: FY23 | BB138: 2022-11-18 | BC138: INCD-76782-a | BD138: YES | BE138: Weather | BF138: 2 | BG138: 734 | BI138: FY20 | BJ138: 2020-02-13 | BK138: INCD-240041-r | BL138: YES | BM138: Other | BN138: 1 | BO138: 1059 | BQ138: 2139802715 | BR138: SUB FUSE | BS138: 1
BA139: FY23 | BB139: 2022-11-19 | BC139: INCD-76848-a | BD139: YES | BE139: Weather | BF139: 1 | BG139: 495 | BI139: FY20 | BJ139: 2020-02-14 | BK139: INCD-240161-r | BL139: YES | BM139: Weather | BN139: 1 | BO139: 125 | BQ139: 2139802727 | BR139: SUB FUSE | BS139: 1
BA140: FY23 | BB140: 2022-11-19 | BC140: INCD-77033-a | BD140: YES | BE140: Animal | BF140: 1 | BG140: 2531 | BI140: FY20 | BJ140: 2020-02-17 | BK140: INCD-241182-r | BL140: YES | BM140: Animal | BN140: 2 | BO140: 302 | BQ140: 2139802728 | BR140: SUB FUSE | BS140: 1
BA141: FY23 | BB141: 2022-11-19 | BC141: INCD-77531-a | BD141: YES | BE141: Weather | BF141: 1 | BG141: 6976 | BI141: FY20 | BJ141: 2020-02-18 | BK141: INCD-241466-r | BL141: YES | BM141: Weather | BN141: 1 | BO141: 135 | BQ141: 2139802826 | BR141: SUB FUSE | BS141: 2
BA142: FY23 | BB142: 2022-11-20 | BC142: INCD-77001-a | BD142: YES | BE142: Weather | BF142: 1 | BG142: 39 | BI142: FY20 | BJ142: 2020-02-19 | BK142: INCD-241874-r | BL142: YES | BM142: Other | BN142: 1 | BO142: 310 | BQ142: 2139802837 | BR142: SUB FUSE | BS142: 1
BA143: FY23 | BB143: 2022-11-20 | BC143: INCD-77048-a | BD143: YES | BE143: Vegetation | BF143: 3 | BG143: 4356 | BI143: FY20 | BJ143: 2020-02-19 | BK143: INCD-242051-r | BL143: YES | BM143: Weather | BN143: 3 | BO143: 1143 | BQ143: 2139802847 | BR143: SUB FUSE | BS143: 1
BA144: FY23 | BB144: 2022-11-21 | BC144: INCD-35618-b | BD144: YES | BE144: Vegetation | BF144: 30 | BG144: 7827 | BI144: FY20 | BJ144: 2020-02-20 | BK144: INCD-242168-r | BL144: YES | BM144: Weather | BN144: 1 | BO144: 94 | BQ144: 2139803211 | BR144: SUB FUSE | BS144: 2
BA145: FY23 | BB145: 2022-11-26 | BC145: INCD-77654-a | BD145: YES | BE145: Asset failure | BF145: 1 | BG145: 141 | BI145: FY20 | BJ145: 2020-02-21 | BK145: INCD-242352-r | BL145: YES | BM145: Other | BN145: 1 | BO145: 256 | BQ145: 2139803218 | BR145: SUB FUSE | BS145: 1
BA146: FY23 | BB146: 2022-12-21 | BC146: INCD-78826-a | BD146: YES | BE146: Animal | BF146: 2 | BG146: 308 | BI146: FY20 | BJ146: 2020-02-23 | BK146: INCD-242495-r | BL146: YES | BM146: Animal | BN146: 1 | BO146: 193 | BQ146: 2139803303 | BR146: SUB FUSE | BS146: 1
BA147: FY23 | BB147: 2022-12-21 | BC147: INCD-78838-a | BD147: YES | BE147: Animal | BF147: 2 | BG147: 892 | BI147: FY20 | BJ147: 2020-02-24 | BK147: INCD-242650-r | BL147: YES | BM147: Weather | BN147: 1 | BO147: 80 | BQ147: 2144216300 | BR147: SUB FUSE | BS147: 4
BA148: FY23 | BB148: 2023-01-02 | BC148: INCD-80082-a | BD148: YES | BE148: Weather | BF148: 3 | BG148: 459 | BI148: FY20 | BJ148: 2020-03-05 | BK148: INCD-244087-r | BL148: YES | BM148: Animal | BN148: 2 | BO148: 204 | BQ148: 2145800134 | BR148: SUB FUSE | BS148: 3
BA149: FY23 | BB149: 2023-01-02 | BC149: INCD-80089-a | BD149: YES | BE149: Weather | BF149: 1 | BG149: 170 | BI149: FY20 | BJ149: 2020-03-10 | BK149: INCD-244618-r | BL149: YES | BM149: Animal | BN149: 2 | BO149: 164 | BQ149: 2147323600 | BR149: SUB FUSE | BS149: 4
BA150: FY23 | BB150: 2023-01-10 | BC150: INCD-80989-a | BD150: YES | BE150: Other | BF150: 7 | BG150: 7038 | BI150: FY20 | BJ150: 2020-03-13 | BK150: INCD-244909-r | BL150: YES | BM150: Animal | BN150: 1 | BO150: 154 | BQ150: 2152047100 | BR150: SUB FUSE | BS150: 16
BA151: FY23 | BB151: 2023-01-13 | BC151: INCD-81324-a | BD151: YES | BE151: Other | BF151: 90 | BG151: 24930 | BI151: FY20 | BJ151: 2020-03-18 | BK151: INCD-245073-r | BL151: YES | BM151: Animal | BN151: 1 | BO151: 90 | BQ151: 2601598917 | BR151: SUB FUSE | BS151: 1
BA152: FY23 | BB152: 2023-01-22 | BC152: INCD-83014-a | BD152: YES | BE152: Weather | BF152: 99 | BG152: 11974 | BI152: FY20 | BJ152: 2020-03-21 | BK152: INCD-245242-r | BL152: YES | BM152: Animal | BN152: 39 | BO152: 3822 | BQ152: 2601625730 | BR152: SUB FUSE | BS152: 2
BA153: FY23 | BB153: 2023-01-29 | BC153: INCD-83989-a | BD153: YES | BE153: Weather | BF153: 2 | BG153: 1626 | BI153: FY20 | BJ153: 2020-03-28 | BK153: INCD-245553-r | BL153: YES | BM153: Animal | BN153: 1 | BO153: 65 | BQ153: 2601722841 | BR153: SUB FUSE | BS153: 1
BA154: FY23 | BB154: 2023-02-05 | BC154: INCD-85044-a | BD154: YES | BE154: Other | BF154: 1 | BG154: 360 | BI154: FY20 | BJ154: 2020-03-30 | BK154: INCD-245708-r | BL154: YES | BM154: Asset failure | BN154: 2 | BO154: 202 | BQ154: 2601783465 | BR154: SUB FUSE | BS154: 1
BA155: FY23 | BB155: 2023-02-06 | BC155: INCD-85117-a | BD155: YES | BE155: Other | BF155: 1 | BG155: 333 | BI155: FY20 | BJ155: 2020-04-21 | BK155: INCD-248401-r | BL155: YES | BM155: Weather | BN155: 1 | BO155: 146 | BQ155: 5657229 | BR155: LINE FUSE | BS155: 2
BA156: FY23 | BB156: 2023-02-08 | BC156: INCD-85437-a | BD156: YES | BE156: Other | BF156: 3 | BG156: 3870 | BI156: FY20 | BJ156: 2020-04-24 | BK156: INCD-248812-r | BL156: YES | BM156: Other | BN156: 2 | BO156: 326 | BQ156: 5697091 | BR156: LINE FUSE | BS156: 40
BA157: FY23 | BB157: 2023-02-12 | BC157: INCD-85827-a | BD157: YES | BE157: Asset failure | BF157: 2 | BG157: 410 | BI157: FY20 | BJ157: 2020-05-05 | BK157: INCD-250402-r | BL157: YES | BM157: Animal | BN157: 2 | BO157: 238 | BQ157: 5700604 | BR157: LINE FUSE | BS157: 1
BA158: FY23 | BB158: 2023-02-20 | BC158: INCD-86872-a | BD158: YES | BE158: Animal | BF158: 1 | BG158: 461 | BI158: FY20 | BJ158: 2020-05-20 | BK158: INCD-252475-r | BL158: YES | BM158: Weather | BN158: 2 | BO158: 962 | BQ158: 814343 | BR158: LINE FUSE | BS158: 48
BA159: FY23 | BB159: 2023-02-20 | BC159: INCD-86917-a | BD159: YES | BE159: Other | BF159: 10 | BG159: 1560 | BI159: FY20 | BJ159: 2020-05-20 | BK159: INCD-252505-r | BL159: YES | BM159: Weather | BN159: 2 | BO159: 850 | BQ159: 814348 | BR159: LINE FUSE | BS159: 43
BA160: FY23 | BB160: 2023-02-20 | BC160: INCD-87164-a | BD160: YES | BE160: Animal | BF160: 1 | BG160: 2010 | BI160: FY20 | BJ160: 2020-05-20 | BK160: INCD-252538-r | BL160: YES | BM160: Weather | BN160: 1 | BO160: 338 | BQ160: 814359 | BR160: LINE FUSE | BS160: 38
BA161: FY23 | BB161: 2023-02-24 | BC161: INCD-87535-a | BD161: YES | BE161: Animal | BF161: 2 | BG161: 324 | BI161: FY20 | BJ161: 2020-05-20 | BK161: INCD-252539-r | BL161: YES | BM161: Weather | BN161: 14 | BO161: 4256 | BQ161: 814362 | BR161: LINE FUSE | BS161: 402
BA162: FY23 | BB162: 2023-03-05 | BC162: INCD-88635-a | BD162: YES | BE162: Animal | BF162: 1 | BG162: 340 | BI162: FY20 | BJ162: 2020-05-20 | BK162: INCD-252682-r | BL162: YES | BM162: Weather | BN162: 1 | BO162: 163 | BQ162: 814363 | BR162: LINE FUSE | BS162: 459
BA163: FY23 | BB163: 2023-03-11 | BC163: INCD-89551-a | BD163: YES | BE163: Animal | BF163: 1 | BG163: 681 | BI163: FY20 | BJ163: 2020-05-20 | BK163: INCD-252689-r | BL163: YES | BM163: Weather | BN163: 2 | BO163: 1912 | BQ163: 814372 | BR163: LINE FUSE | BS163: 11
BA164: FY23 | BB164: 2023-03-12 | BC164: INCD-89604-a | BD164: YES | BE164: Animal | BF164: 3 | BG164: 1206 | BI164: FY20 | BJ164: 2020-05-23 | BK164: INCD-253064-r | BL164: YES | BM164: Weather | BN164: 1 | BO164: 96 | BQ164: 814375 | BR164: LINE FUSE | BS164: 9
BA165: FY23 | BB165: 2023-03-17 | BC165: INCD-90167-a | BD165: YES | BE165: Animal | BF165: 1 | BG165: 270 | BI165: FY20 | BJ165: 2020-06-16 | BK165: INCD-256075-r | BL165: YES | BM165: Animal | BN165: 2 | BO165: 422 | BQ165: 814376 | BR165: LINE FUSE | BS165: 12
BA166: FY23 | BB166: 2023-03-17 | BC166: INCD-90288-a | BD166: YES | BE166: Animal | BF166: 3 | BG166: 372 | BI166: FY20 | BJ166: 2020-06-30 | BK166: INCD-73-a | BL166: YES | BM166: Animal | BN166: 1 | BO166: 95 | BQ166: 814379 | BR166: LINE FUSE | BS166: 61
BA167: FY23 | BB167: 2023-03-21 | BC167: INCD-90792-a | BD167: YES | BE167: Animal | BF167: 1 | BG167: 240 | BI167: FY21 | BJ167: 2020-07-04 | BK167: INCD-574-a | BL167: YES | BM167: Animal | BN167: 1 | BO167: 236 | BQ167: 814380 | BR167: LINE FUSE | BS167: 44
BA168: FY23 | BB168: 2023-03-21 | BC168: INCD-90816-a | BD168: YES | BE168: Weather | BF168: 1 | BG168: 279 | BI168: FY21 | BJ168: 2020-07-09 | BK168: INCD-1141-a | BL168: YES | BM168: Animal | BN168: 1 | BO168: 151 | BQ168: 814384 | BR168: LINE FUSE | BS168: 95
BA169: FY23 | BB169: 2023-03-21 | BC169: INCD-90855-a | BD169: YES | BE169: Weather | BF169: 1 | BG169: 777 | BI169: FY21 | BJ169: 2020-07-17 | BK169: INCD-2082-a | BL169: YES | BM169: Animal | BN169: 2 | BO169: 130 | BQ169: 814386 | BR169: LINE FUSE | BS169: 21
BA170: FY23 | BB170: 2023-03-21 | BC170: INCD-90917-a | BD170: YES | BE170: Animal | BF170: 1 | BG170: 1322 | BI170: FY21 | BJ170: 2020-08-04 | BK170: INCD-4087-a | BL170: YES | BM170: Animal | BN170: 2 | BO170: 164 | BQ170: 814387 | BR170: LINE FUSE | BS170: 178
BA171: FY23 | BB171: 2023-03-25 | BC171: INCD-91405-a | BD171: YES | BE171: Animal | BF171: 1 | BG171: 1317 | BI171: FY21 | BJ171: 2020-08-04 | BK171: INCD-4097-a | BL171: YES | BM171: Other | BN171: 4 | BO171: 24 | BQ171: 814404 | BR171: LINE FUSE | BS171: 40
BA172: FY23 | BB172: 2023-04-05 | BC172: INCD-92751-a | BD172: YES | BE172: Animal | BF172: 25 | BG172: 7150 | BI172: FY21 | BJ172: 2020-08-19 | BK172: INCD-4882-a | BL172: YES | BM172: Other | BN172: 3 | BO172: 525 | BQ172: 814417 | BR172: LINE FUSE | BS172: 16
BA173: FY23 | BB173: 2023-04-25 | BC173: INCD-94558-a | BD173: YES | BE173: Animal | BF173: 1 | BG173: 138 | BI173: FY21 | BJ173: 2020-08-25 | BK173: INCD-5637-a | BL173: YES | BM173: Animal | BN173: 1 | BO173: 46 | BQ173: 814419 | BR173: LINE FUSE | BS173: 13
BA174: FY23 | BB174: 2023-05-14 | BC174: INCD-40870-b | BD174: YES | BE174: Other | BF174: 1 | BG174: 2195 | BI174: FY21 | BJ174: 2020-09-11 | BK174: INCD-7947-a | BL174: YES | BM174: Other | BN174: 2 | BO174: 20 | BQ174: 814423 | BR174: LINE FUSE | BS174: 6
BA175: FY23 | BB175: 2023-06-01 | BC175: INCD-96041-a | BD175: YES | BE175: Animal | BF175: 2 | BG175: 360 | BI175: FY21 | BJ175: 2020-09-27 | BK175: INCD-8706-a | BL175: YES | BM175: Asset failure | BN175: 3 | BO175: 240 | BQ175: 814424 | BR175: LINE FUSE | BS175: 67
BA176: FY23 | BB176: 2023-06-19 | BC176: INCD-96766-a | BD176: YES | BE176: Other | BF176: 22 | BG176: 4048 | BI176: FY21 | BJ176: 2020-10-08 | BK176: INCD-5591-b | BL176: YES | BM176: Weather | BN176: 2 | BO176: 8 | BQ176: 814426 | BR176: LINE FUSE | BS176: 28
BA177: FY23 | BB177: 2023-06-21 | BC177: INCD-96891-a | BD177: YES | BE177: Planned | BF177: 2 | BG177: 16 | BI177: FY21 | BJ177: 2020-10-08 | BK177: INCD-9250-a | BL177: YES | BM177: Weather | BN177: 2 | BO177: 678 | BQ177: 814428 | BR177: LINE FUSE | BS177: 113
BA178: FY23 | BB178: 2023-06-28 | BC178: INCD-97788-a | BD178: YES | BE178: Animal | BF178: 1 | BG178: 124 | BI178: FY21 | BJ178: 2020-10-08 | BK178: INCD-9263-a | BL178: YES | BM178: Weather | BN178: 6 | BO178: 1632 | BQ178: 814450 | BR178: LINE FUSE | BS178: 63
BA179: FY24 | BB179: 2023-07-04 | BC179: INCD-44705-b | BD179: YES | BE179: Animal | BF179: 1 | BG179: 3 | BI179: FY21 | BJ179: 2020-10-08 | BK179: INCD-9293-a | BL179: YES | BM179: Animal | BN179: 1 | BO179: 136 | BQ179: 814452 | BR179: LINE FUSE | BS179: 26
BA180: FY24 | BB180: 2023-08-24 | BC180: INCD-100190-V | BD180: YES | BE180: Other | BF180: 2 | BG180: 18 | BI180: FY21 | BJ180: 2020-10-09 | BK180: INCD-9385-a | BL180: YES | BM180: Weather | BN180: 1 | BO180: 217 | BQ180: 814455 | BR180: LINE FUSE | BS180: 312
BA181: FY24 | BB181: 2023-08-25 | BC181: INCD-101655-U | BD181: YES | BE181: Animal | BF181: 1 | BG181: 70 | BI181: FY21 | BJ181: 2020-10-09 | BK181: INCD-9395-a | BL181: YES | BM181: Weather | BN181: 1 | BO181: 55 | BQ181: 814457 | BR181: LINE FUSE | BS181: 228
BA182: FY24 | BB182: 2023-08-25 | BC182: INCD-101660-U | BD182: YES | BE182: Animal | BF182: 1 | BG182: 62 | BI182: FY21 | BJ182: 2020-10-10 | BK182: INCD-9413-a | BL182: YES | BM182: Weather | BN182: 1 | BO182: 95 | BQ182: 814467 | BR182: LINE FUSE | BS182: 75
BA183: FY24 | BB183: 2023-08-28 | BC183: INCD-101880-U | BD183: YES | BE183: Other | BF183: 1 | BG183: 36 | BI183: FY21 | BJ183: 2020-10-12 | BK183: INCD-9527-a | BL183: YES | BM183: Asset failure | BN183: 1 | BO183: 1796 | BQ183: 814491 | BR183: LINE FUSE | BS183: 18
BA184: FY24 | BB184: 2023-09-02 | BC184: INCD-102603-U | BD184: YES | BE184: Unknown | BF184: 1 | BG184: 397 | BI184: FY21 | BJ184: 2020-10-16 | BK184: INCD-9734-a | BL184: YES | BM184: Other | BN184: 1 | BO184: 105 | BQ184: 814521 | BR184: LINE FUSE | BS184: 20
BA185: FY24 | BB185: 2023-09-04 | BC185: INCD-102731-U | BD185: YES | BE185: Weather | BF185: 1 | BG185: 87 | BI185: FY21 | BJ185: 2020-10-23 | BK185: INCD-10066-a | BL185: YES | BM185: Animal | BN185: 2 | BO185: 262 | BQ185: 814522 | BR185: LINE FUSE | BS185: 12
BA186: FY24 | BB186: 2023-09-22 | BC186: INCD-103934-U | BD186: YES | BE186: Animal | BF186: 1 | BG186: 118 | BI186: FY21 | BJ186: 2020-10-30 | BK186: INCD-10474-a | BL186: YES | BM186: Animal | BN186: 1 | BO186: 85 | BQ186: 814523 | BR186: LINE FUSE | BS186: 21
BA187: FY24 | BB187: 2023-09-26 | BC187: INCD-104253-U | BD187: YES | BE187: Animal | BF187: 90 | BG187: 13230 | BI187: FY21 | BJ187: 2020-10-30 | BK187: INCD-10487-a | BL187: YES | BM187: Other | BN187: 2 | BO187: 2408 | BQ187: 814535 | BR187: LINE FUSE | BS187: 63
BA188: FY24 | BB188: 2023-10-04 | BC188: INCD-105120-U | BD188: YES | BE188: Weather | BF188: 19 | BG188: 2318 | BI188: FY21 | BJ188: 2020-10-31 | BK188: INCD-10506-a | BL188: YES | BM188: Other | BN188: 1 | BO188: 120 | BQ188: 814538 | BR188: LINE FUSE | BS188: 378
BA189: FY24 | BB189: 2023-10-04 | BC189: INCD-105198-U | BD189: YES | BE189: Animal | BF189: 1 | BG189: 128 | BI189: FY21 | BJ189: 2020-11-20 | BK189: INCD-56749-s | BL189: YES | BM189: Weather | BN189: 3 | BO189: 18 | BQ189: 815446 | BR189: LINE FUSE | BS189: 68
BA190: FY24 | BB190: 2023-10-06 | BC190: INCD-105462-U | BD190: YES | BE190: Unknown | BF190: 19 | BG190: 3655 | BI190: FY21 | BJ190: 2020-12-22 | BK190: INCD-14136-a | BL190: YES | BM190: Animal | BN190: 1 | BO190: 100 | BQ190: 855348 | BR190: LINE FUSE | BS190: 25
BA191: FY24 | BB191: 2023-10-12 | BC191: INCD-106198-U | BD191: YES | BE191: Weather | BF191: 3 | BG191: 414 | BI191: FY21 | BJ191: 2020-12-31 | BK191: INCD-14849-a | BL191: YES | BM191: Animal | BN191: 2 | BO191: 262 | BQ191: 870002 | BR191: LINE FUSE | BS191: 90
BA192: FY24 | BB192: 2023-10-24 | BC192: INCD-107354-U | BD192: YES | BE192: Animal | BF192: 1 | BG192: 204 | BI192: FY21 | BJ192: 2021-01-03 | BK192: INCD-15144-a | BL192: YES | BM192: Other | BN192: 3 | BO192: 342 | BQ192: 870012 | BR192: LINE FUSE | BS192: 33
BA193: FY24 | BB193: 2023-10-25 | BC193: INCD-107579-U | BD193: YES | BE193: Other | BF193: 1 | BG193: 10 | BI193: FY21 | BJ193: 2021-01-12 | BK193: INCD-16007-a | BL193: YES | BM193: Other | BN193: 4 | BO193: 240 | BQ193: BN054 | BR193: LINE FUSE | BS193: 21
BA194: FY24 | BB194: 2023-11-06 | BC194: INCD-108819-U | BD194: YES | BE194: Animal | BF194: 1 | BG194: 58 | BI194: FY21 | BJ194: 2021-01-29 | BK194: INCD-9664-c | BL194: YES | BM194: Other | BN194: 19 | BO194: 1311 | BQ194: BN092 | BR194: LINE FUSE | BS194: 18
BA195: FY24 | BB195: 2023-11-07 | BC195: INCD-108924-U | BD195: YES | BE195: Weather | BF195: 1 | BG195: 205 | BI195: FY21 | BJ195: 2021-02-05 | BK195: INCD-17457-a | BL195: YES | BM195: Weather | BN195: 3 | BO195: 282 | BQ195: BN094 | BR195: LINE FUSE | BS195: 14
BI196: FY21 | BJ196: 2021-02-08 | BK196: INCD-17638-a | BL196: YES | BM196: Animal | BN196: 1 | BO196: 229 | BQ196: BN10067 | BR196: LINE FUSE | BS196: 1
BI197: FY21 | BJ197: 2021-02-27 | BK197: INCD-18533-a | BL197: YES | BM197: Animal | BN197: 2 | BO197: 370 | BQ197: BN10276 | BR197: LINE FUSE | BS197: 2
BI198: FY21 | BJ198: 2021-03-12 | BK198: INCD-19072-a | BL198: YES | BM198: Animal | BN198: 2 | BO198: 144 | BQ198: BN10370 | BR198: LINE FUSE | BS198: 1
BI199: FY21 | BJ199: 2021-03-13 | BK199: INCD-19127-a | BL199: YES | BM199: Animal | BN199: 1 | BO199: 101 | BQ199: BN10393 | BR199: LINE FUSE | BS199: 1
BI200: FY21 | BJ200: 2021-03-13 | BK200: INCD-19139-a | BL200: YES | BM200: Animal | BN200: 2 | BO200: 202 | BQ200: BN10398 | BR200: LINE FUSE | BS200: 2
BI201: FY21 | BJ201: 2021-03-23 | BK201: INCD-19573-a | BL201: YES | BM201: Animal | BN201: 2 | BO201: 198 | BQ201: BN10412 | BR201: LINE FUSE | BS201: 3
BI202: FY21 | BJ202: 2021-03-27 | BK202: INCD-19909-a | BL202: YES | BM202: Animal | BN202: 2 | BO202: 198 | BQ202: BN10443 | BR202: LINE FUSE | BS202: 2
BC203: Number of sustained MV Fuse Events events | BD203: =COUNTIF(BD23:BD195,BE203) -> 173 | BE203: YES | BI203: FY21 | BJ203: 2021-05-03 | BK203: INCD-21583-a | BL203: YES | BM203: Animal | BN203: 1 | BO203: 164 | BQ203: BN10472 | BR203: LINE FUSE | BS203: 3
BI204: FY21 | BJ204: 2021-05-08 | BK204: INCD-21767-a | BL204: YES | BM204: Animal | BN204: 54 | BO204: 5454 | BQ204: BN10477 | BR204: LINE FUSE | BS204: 1
BC205: Number of Years | BD205: 5 | BI205: FY21 | BJ205: 2021-06-09 | BK205: INCD-15747-b | BL205: YES | BM205: Animal | BN205: 1 | BO205: 193 | BQ205: BN10491 | BR205: LINE FUSE | BS205: 2
BI206: FY21 | BJ206: 2021-06-10 | BK206: INCD-23809-a | BL206: YES | BM206: Weather | BN206: 1 | BO206: 1015 | BQ206: BN10497 | BR206: LINE FUSE | BS206: 2
BD207: =BD203/BD205 -> 34.6 | BI207: FY21 | BJ207: 2021-06-18 | BK207: INCD-25311-a | BL207: YES | BM207: Other | BN207: 1 | BO207: 383 | BQ207: BN10520 | BR207: LINE FUSE | BS207: 1
BI208: FY22 | BJ208: 2021-07-01 | BK208: INCD-26145-a | BL208: YES | BM208: Animal | BN208: 1 | BO208: 558 | BQ208: BN10534 | BR208: LINE FUSE | BS208: 2
BI209: FY22 | BJ209: 2021-07-25 | BK209: INCD-27215-a | BL209: YES | BM209: Weather | BN209: 1 | BO209: 102 | BQ209: BN10538 | BR209: LINE FUSE | BS209: 1
BI210: FY22 | BJ210: 2021-07-26 | BK210: INCD-27287-a | BL210: YES | BM210: Other | BN210: 2 | BO210: 178 | BQ210: BN10542 | BR210: LINE FUSE | BS210: 1
BI211: FY22 | BJ211: 2021-07-26 | BK211: INCD-27312-a | BL211: YES | BM211: Other | BN211: 36 | BO211: 3600 | BQ211: BN10543 | BR211: LINE FUSE | BS211: 1
BI212: FY22 | BJ212: 2021-08-13 | BK212: INCD-28219-a | BL212: YES | BM212: Other | BN212: 1 | BO212: 175 | BQ212: BN10566 | BR212: LINE FUSE | BS212: 2
BI213: FY22 | BJ213: 2021-08-30 | BK213: INCD-28786-a | BL213: YES | BM213: Asset failure | BN213: 1 | BO213: 157 | BQ213: BN10568 | BR213: LINE FUSE | BS213: 2
... 193 more rows

Sheet Faults by Duration
A6: Fault Data by Duration
A7: This sheet calculates the CMOS impact based on outage duration.
A9: All Trips
B11: CMOS Total | C11: CMOS > 0 hrs | D11: CMOS > 12 hrs | E11: CMOS > 24 hrs | F11: CMOS > 72 hrs
A12: CMOS | B12: =SUM(B47,B74,B131,B147,B204,B391,B675,B699) -> 10746949 | C12: =SUM(C47,C74,C131,C147,C204,C391,C675,C699) -> 10746949 | D12: =SUM(D47,D74,D131,D147,D204,D391,D675,D699) -> 506085 | E12: =SUM(E47,E74,E131,E147,E204,E391,E675,E699) -> 146812 | F12: =SUM(F47,F74,F131,F147,F204,F391,F675,F699) -> 42440
A13: CMOS [%] | C13: =C12/$B$12 -> 1 | D13: =D12/$B$12 -> 0.04709103951 | E13: =E12/$B$12 -> 0.01366080736 | F13: =F12/$B$12 -> 0.003949027766
A15: Outage Duration | B15: CMOS [%]
A16: < 12 hrs | B16: =C13-D13 -> 0.9529089605
A17: 12 hrs - 24 hrs | B17: =D13-E13 -> 0.03343023215
A18: 24 hrs - 72 hrs | B18: =E13-F13 -> 0.009711779594
A19: > 72 hrs | B19: =F13 -> 0.003949027766
A20: Total | B20: =SUM(B16:B19) -> 1
A23: Feeder CB Trips
A25: Customers | B25: CMOS | C25: Duration [mins] | D25: Duration - 12 hrs | E25: Duration - 24 hrs | F25: Duration - 72 hrs
A26: ='Pre BNBVT Fault Pivots'!F23 -> 4572 | B26: ='Pre BNBVT Fault Pivots'!G23 -> 2149327 | C26: =B26/A26 -> 470.1065179 | D26: =C26-12*60 -> -249.8934821 | E26: =C26-24*60 -> -969.8934821 | F26: =C26-72*60 -> -3849.893482
A27: ='Pre BNBVT Fault Pivots'!F24 -> 4577 | B27: ='Pre BNBVT Fault Pivots'!G24 -> 0 | C27: 0 | D27: -720 | E27: -1440 | F27: -4320
A28: ='Pre BNBVT Fault Pivots'!F25 -> 4581 | B28: ='Pre BNBVT Fault Pivots'!G25 -> 0 | C28: 0 | D28: -720 | E28: -1440 | F28: -4320
A29: ='Pre BNBVT Fault Pivots'!F26 -> 4581 | B29: ='Pre BNBVT Fault Pivots'!G26 -> 0 | C29: 0 | D29: -720 | E29: -1440 | F29: -4320
A30: ='Pre BNBVT Fault Pivots'!F27 -> 4584 | B30: ='Pre BNBVT Fault Pivots'!G27 -> 704488 | C30: 153.6841187 | D30: -566.3158813 | E30: -1286.315881 | F30: -4166.315881
A31: ='Pre BNBVT Fault Pivots'!F28 -> 4588 | B31: ='Pre BNBVT Fault Pivots'!G28 -> 533932 | C31: 116.3757629 | D31: -603.6242371 | E31: -1323.624237 | F31: -4203.624237
A32: ='Pre BNBVT Fault Pivots'!F29 -> 9052 | B32: ='Pre BNBVT Fault Pivots'!G29 -> 0 | C32: 0 | D32: -720 | E32: -1440 | F32: -4320
A33: ='Pre BNBVT Fault Pivots'!F30 -> 4591 | B33: ='Pre BNBVT Fault Pivots'!G30 -> 0 | C33: 0 | D33: -720 | E33: -1440 | F33: -4320
A34: ='Pre BNBVT Fault Pivots'!F31 -> 4625 | B34: ='Pre BNBVT Fault Pivots'!G31 -> 0 | C34: 0 | D34: -720 | E34: -1440 | F34: -4320
A35: ='Pre BNBVT Fault Pivots'!F32 -> 4630 | B35: ='Pre BNBVT Fault Pivots'!G32 -> 0 | C35: 0 | D35: -720 | E35: -1440 | F35: -4320
A36: ='Pre BNBVT Fault Pivots'!F33 -> 219 | B36: ='Pre BNBVT Fault Pivots'!G33 -> 0 | C36: 0 | D36: -720 | E36: -1440 | F36: -4320
A37: ='Pre BNBVT Fault Pivots'!F34 -> 4624 | B37: ='Pre BNBVT Fault Pivots'!G34 -> 2781552 | C37: 601.5467128 | D37: -118.4532872 | E37: -838.4532872 | F37: -3718.453287
A38: ='Pre BNBVT Fault Pivots'!F35 -> 4646 | B38: ='Pre BNBVT Fault Pivots'!G35 -> 0 | C38: 0 | D38: -720 | E38: -1440 | F38: -4320
A39: ='Pre BNBVT Fault Pivots'!F36 -> 4651 | B39: ='Pre BNBVT Fault Pivots'!G36 -> 74416 | C39: 16 | D39: -704 | E39: -1424 | F39: -4304
A40: ='Pre BNBVT Fault Pivots'!F37 -> 4265 | B40: ='Pre BNBVT Fault Pivots'!G37 -> 976433 | C40: 228.9409144 | D40: -491.0590856 | E40: -1211.059086 | F40: -4091.059086
A41: ='Pre BNBVT Fault Pivots'!F38 -> 4700 | B41: ='Pre BNBVT Fault Pivots'!G38 -> 0 | C41: 0 | D41: -720 | E41: -1440 | F41: -4320
A42: ='Pre BNBVT Fault Pivots'!F39 -> 2 | B42: ='Pre BNBVT Fault Pivots'!G39 -> 554 | C42: 277 | D42: -443 | E42: -1163 | F42: -4043
A43: ='Pre BNBVT Fault Pivots'!F40 -> 1 | B43: ='Pre BNBVT Fault Pivots'!G40 -> 98 | C43: 98 | D43: -622 | E43: -1342 | F43: -4222
A44: ='Pre BNBVT Fault Pivots'!F41 -> 4346 | B44: ='Pre BNBVT Fault Pivots'!G41 -> 0 | C44: ='Pre BNBVT Fault Pivots'!H41 -> 0 | D44: -720 | E44: -1440 | F44: -4320
A45: ='Pre BNBVT Fault Pivots'!F42 -> 0
B46: CMOS Total | C46: CMOS > 0 hrs | D46: CMOS > 12 hrs | E46: CMOS > 24 hrs | F46: CMOS > 72 hrs
A47: CMOS | B47: =SUM(B26:B44) -> 7220800 | C47: =SUMIF(C26:C44,">0", $B$26:$B$44) -> 7220800 | D47: =SUMIF(D26:D44,">0", $B$26:$B$44) -> 0 | E47: =SUMIF(E26:E44,">0", $B$26:$B$44) -> 0 | F47: =SUMIF(F26:F44,">0", $B$26:$B$44) -> 0
A48: CMOS [%] | C48: =C47/$B$47 -> 1 | D48: =D47/$B$47 -> 0 | E48: =E47/$B$47 -> 0 | F48: =F47/$B$47 -> 0
A50: Outage Duration | B50: CMOS [%]
A51: < 12 hrs | B51: =C48-D48 -> 1
A52: 12 - 24 hrs | B52: =D48-E48 -> 0
A53: 24 - 72 hrs | B53: =E48-F48 -> 0
A54: > 72 hrs | B54: =F48 -> 0
A57: BN161 ACR Trips
A59: Customers | B59: CMOS | C59: Duration [mins] | D59: Duration - 12 hrs | E59: Duration - 24 hrs | F59: Duration - 72 hrs
A60: ='Pre BNBVT Fault Pivots'!P23 -> 1250 | B60: ='Pre BNBVT Fault Pivots'!Q23 -> 0 | C60: =B60/A60 -> 0 | D60: =C60-12*60 -> -720 | E60: =C60-24*60 -> -1440 | F60: =C60-72*60 -> -4320
A61: ='Pre BNBVT Fault Pivots'!P24 -> 3300 | B61: ='Pre BNBVT Fault Pivots'!Q24 -> 0 | C61: 0 | D61: -720 | E61: -1440 | F61: -4320
A62: ='Pre BNBVT Fault Pivots'!P25 -> 3300 | B62: ='Pre BNBVT Fault Pivots'!Q25 -> 39600 | C62: 12 | D62: -708 | E62: -1428 | F62: -4308
A63: ='Pre BNBVT Fault Pivots'!P26 -> 625 | B63: ='Pre BNBVT Fault Pivots'!Q26 -> 109054 | C63: 174.4864 | D63: -545.5136 | E63: -1265.5136 | F63: -4145.5136
A64: ='Pre BNBVT Fault Pivots'!P27 -> 895 | B64: ='Pre BNBVT Fault Pivots'!Q27 -> 0 | C64: 0 | D64: -720 | E64: -1440 | F64: -4320
A65: ='Pre BNBVT Fault Pivots'!P28 -> 917 | B65: ='Pre BNBVT Fault Pivots'!Q28 -> 0 | C65: 0 | D65: -720 | E65: -1440 | F65: -4320
A66: ='Pre BNBVT Fault Pivots'!P29 -> 3396 | B66: ='Pre BNBVT Fault Pivots'!Q29 -> 0 | C66: 0 | D66: -720 | E66: -1440 | F66: -4320
A67: ='Pre BNBVT Fault Pivots'!P30 -> 923 | B67: ='Pre BNBVT Fault Pivots'!Q30 -> 0 | C67: 0 | D67: -720 | E67: -1440 | F67: -4320
A68: ='Pre BNBVT Fault Pivots'!P31 -> 923 | B68: ='Pre BNBVT Fault Pivots'!Q31 -> 0 | C68: 0 | D68: -720 | E68: -1440 | F68: -4320
A69: ='Pre BNBVT Fault Pivots'!P32 -> 3350 | B69: ='Pre BNBVT Fault Pivots'!Q32 -> 1310214 | C69: 391.1086567 | D69: -328.8913433 | E69: -1048.891343 | F69: -3928.891343
A70: ='Pre BNBVT Fault Pivots'!P33 -> 3146 | B70: ='Pre BNBVT Fault Pivots'!Q33 -> 0 | C70: 0 | D70: -720 | E70: -1440 | F70: -4320
A71: ='Pre BNBVT Fault Pivots'!P34 -> 921 | B71: ='Pre BNBVT Fault Pivots'!Q34 -> 0 | C71: 0 | D71: -720 | E71: -1440 | F71: -4320
A72: ='Pre BNBVT Fault Pivots'!P35 -> 919 | B72: ='Pre BNBVT Fault Pivots'!Q35 -> 0 | C72: 0 | D72: -720 | E72: -1440 | F72: -4320
B73: CMOS Total | C73: CMOS > 0 hrs | D73: CMOS > 12 hrs | E73: CMOS > 24 hrs | F73: CMOS > 72 hrs
A74: CMOS | B74: =SUM(B60:B72) -> 1458868 | C74: =SUMIF(C60:C72,">0", $B$60:$B$72) -> 1458868 | D74: =SUMIF(D60:D72,">0", $B$60:$B$72) -> 0 | E74: =SUMIF(E60:E72,">0", $B$60:$B$72) -> 0 | F74: =SUMIF(F60:F72,">0", $B$60:$B$72) -> 0
A75: CMOS [%] | C75: =C74/$B$74 -> 1 | D75: =D74/$B$74 -> 0 | E75: =E74/$B$74 -> 0 | F75: =F74/$B$74 -> 0
A77: Outage Duration | B77: CMOS [%]
A78: < 12 hrs | B78: =C75-D75 -> 1
A79: 12 - 24 hrs | B79: =D75-E75 -> 0
A80: 24 - 72 hrs | B80: =E75-F75 -> 0
A81: > 72 hrs | B81: =F75 -> 0
A84: BN046 ACR Trips
A86: Customers | B86: CMOS | C86: Duration [mins] | D86: Duration - 12 hrs | E86: Duration - 24 hrs | F86: Duration - 72 hrs
A87: ='Pre BNBVT Fault Pivots'!Y23 -> 278 | B87: ='Pre BNBVT Fault Pivots'!Z23 -> 0 | C87: =B87/A87 -> 0 | D87: =C87-12*60 -> -720 | E87: =C87-24*60 -> -1440 | F87: =C87-72*60 -> -4320
A88: ='Pre BNBVT Fault Pivots'!Y24 -> 276 | B88: ='Pre BNBVT Fault Pivots'!Z24 -> 0 | C88: 0 | D88: -720 | E88: -1440 | F88: -4320
A89: ='Pre BNBVT Fault Pivots'!Y25 -> 278 | B89: ='Pre BNBVT Fault Pivots'!Z25 -> 0 | C89: 0 | D89: -720 | E89: -1440 | F89: -4320
A90: ='Pre BNBVT Fault Pivots'!Y26 -> 279 | B90: ='Pre BNBVT Fault Pivots'!Z26 -> 0 | C90: 0 | D90: -720 | E90: -1440 | F90: -4320
A91: ='Pre BNBVT Fault Pivots'!Y27 -> 278 | B91: ='Pre BNBVT Fault Pivots'!Z27 -> 0 | C91: 0 | D91: -720 | E91: -1440 | F91: -4320
A92: ='Pre BNBVT Fault Pivots'!Y28 -> 272 | B92: ='Pre BNBVT Fault Pivots'!Z28 -> 0 | C92: 0 | D92: -720 | E92: -1440 | F92: -4320
A93: ='Pre BNBVT Fault Pivots'!Y29 -> 276 | B93: ='Pre BNBVT Fault Pivots'!Z29 -> 0 | C93: 0 | D93: -720 | E93: -1440 | F93: -4320
A94: ='Pre BNBVT Fault Pivots'!Y30 -> 276 | B94: ='Pre BNBVT Fault Pivots'!Z30 -> 0 | C94: 0 | D94: -720 | E94: -1440 | F94: -4320
A95: ='Pre BNBVT Fault Pivots'!Y31 -> 275 | B95: ='Pre BNBVT Fault Pivots'!Z31 -> 0 | C95: 0 | D95: -720 | E95: -1440 | F95: -4320
A96: ='Pre BNBVT Fault Pivots'!Y32 -> 277 | B96: ='Pre BNBVT Fault Pivots'!Z32 -> 0 | C96: 0 | D96: -720 | E96: -1440 | F96: -4320
A97: ='Pre BNBVT Fault Pivots'!Y33 -> 247 | B97: ='Pre BNBVT Fault Pivots'!Z33 -> 0 | C97: 0 | D97: -720 | E97: -1440 | F97: -4320
A98: ='Pre BNBVT Fault Pivots'!Y34 -> 276 | B98: ='Pre BNBVT Fault Pivots'!Z34 -> 0 | C98: 0 | D98: -720 | E98: -1440 | F98: -4320
A99: ='Pre BNBVT Fault Pivots'!Y35 -> 280 | B99: ='Pre BNBVT Fault Pivots'!Z35 -> 0 | C99: 0 | D99: -720 | E99: -1440 | F99: -4320
A100: ='Pre BNBVT Fault Pivots'!Y36 -> 280 | B100: ='Pre BNBVT Fault Pivots'!Z36 -> 0 | C100: 0 | D100: -720 | E100: -1440 | F100: -4320
A101: ='Pre BNBVT Fault Pivots'!Y37 -> 283 | B101: ='Pre BNBVT Fault Pivots'!Z37 -> 0 | C101: 0 | D101: -720 | E101: -1440 | F101: -4320
A102: ='Pre BNBVT Fault Pivots'!Y38 -> 284 | B102: ='Pre BNBVT Fault Pivots'!Z38 -> 0 | C102: 0 | D102: -720 | E102: -1440 | F102: -4320
A103: ='Pre BNBVT Fault Pivots'!Y39 -> 284 | B103: ='Pre BNBVT Fault Pivots'!Z39 -> 0 | C103: 0 | D103: -720 | E103: -1440 | F103: -4320
A104: ='Pre BNBVT Fault Pivots'!Y40 -> 283 | B104: ='Pre BNBVT Fault Pivots'!Z40 -> 0 | C104: 0 | D104: -720 | E104: -1440 | F104: -4320
A105: ='Pre BNBVT Fault Pivots'!Y41 -> 283 | B105: ='Pre BNBVT Fault Pivots'!Z41 -> 0 | C105: 0 | D105: -720 | E105: -1440 | F105: -4320
A106: ='Pre BNBVT Fault Pivots'!Y42 -> 285 | B106: ='Pre BNBVT Fault Pivots'!Z42 -> 0 | C106: 0 | D106: -720 | E106: -1440 | F106: -4320
A107: ='Pre BNBVT Fault Pivots'!Y43 -> 284 | B107: ='Pre BNBVT Fault Pivots'!Z43 -> 0 | C107: 0 | D107: -720 | E107: -1440 | F107: -4320
A108: ='Pre BNBVT Fault Pivots'!Y44 -> 284 | B108: ='Pre BNBVT Fault Pivots'!Z44 -> 0 | C108: 0 | D108: -720 | E108: -1440 | F108: -4320
A109: ='Pre BNBVT Fault Pivots'!Y45 -> 282 | B109: ='Pre BNBVT Fault Pivots'!Z45 -> 0 | C109: 0 | D109: -720 | E109: -1440 | F109: -4320
A110: ='Pre BNBVT Fault Pivots'!Y46 -> 281 | B110: ='Pre BNBVT Fault Pivots'!Z46 -> 0 | C110: 0 | D110: -720 | E110: -1440 | F110: -4320
A111: ='Pre BNBVT Fault Pivots'!Y47 -> 287 | B111: ='Pre BNBVT Fault Pivots'!Z47 -> 0 | C111: 0 | D111: -720 | E111: -1440 | F111: -4320
A112: ='Pre BNBVT Fault Pivots'!Y48 -> 290 | B112: ='Pre BNBVT Fault Pivots'!Z48 -> 0 | C112: 0 | D112: -720 | E112: -1440 | F112: -4320
A113: ='Pre BNBVT Fault Pivots'!Y49 -> 11 | B113: ='Pre BNBVT Fault Pivots'!Z49 -> 0 | C113: 0 | D113: -720 | E113: -1440 | F113: -4320
A114: ='Pre BNBVT Fault Pivots'!Y50 -> 291 | B114: ='Pre BNBVT Fault Pivots'!Z50 -> 76845 | C114: 264.0721649 | D114: -455.9278351 | E114: -1175.927835 | F114: -4055.927835
A115: ='Pre BNBVT Fault Pivots'!Y51 -> 292 | B115: ='Pre BNBVT Fault Pivots'!Z51 -> 0 | C115: 0 | D115: -720 | E115: -1440 | F115: -4320
A116: ='Pre BNBVT Fault Pivots'!Y52 -> 292 | B116: ='Pre BNBVT Fault Pivots'!Z52 -> 0 | C116: 0 | D116: -720 | E116: -1440 | F116: -4320
A117: ='Pre BNBVT Fault Pivots'!Y53 -> 292 | B117: ='Pre BNBVT Fault Pivots'!Z53 -> 0 | C117: 0 | D117: -720 | E117: -1440 | F117: -4320
A118: ='Pre BNBVT Fault Pivots'!Y54 -> 292 | B118: ='Pre BNBVT Fault Pivots'!Z54 -> 0 | C118: 0 | D118: -720 | E118: -1440 | F118: -4320
A119: ='Pre BNBVT Fault Pivots'!Y55 -> 291 | B119: ='Pre BNBVT Fault Pivots'!Z55 -> 0 | C119: 0 | D119: -720 | E119: -1440 | F119: -4320
A120: ='Pre BNBVT Fault Pivots'!Y56 -> 294 | B120: ='Pre BNBVT Fault Pivots'!Z56 -> 0 | C120: 0 | D120: -720 | E120: -1440 | F120: -4320
A121: ='Pre BNBVT Fault Pivots'!Y57 -> 294 | B121: ='Pre BNBVT Fault Pivots'!Z57 -> 0 | C121: 0 | D121: -720 | E121: -1440 | F121: -4320
A122: ='Pre BNBVT Fault Pivots'!Y58 -> 289 | B122: ='Pre BNBVT Fault Pivots'!Z58 -> 0 | C122: 0 | D122: -720 | E122: -1440 | F122: -4320
A123: ='Pre BNBVT Fault Pivots'!Y59 -> 288 | B123: ='Pre BNBVT Fault Pivots'!Z59 -> 0 | C123: 0 | D123: -720 | E123: -1440 | F123: -4320
A124: ='Pre BNBVT Fault Pivots'!Y60 -> 288 | B124: ='Pre BNBVT Fault Pivots'!Z60 -> 0 | C124: 0 | D124: -720 | E124: -1440 | F124: -4320
A125: ='Pre BNBVT Fault Pivots'!Y61 -> 288 | B125: ='Pre BNBVT Fault Pivots'!Z61 -> 0 | C125: 0 | D125: -720 | E125: -1440 | F125: -4320
A126: ='Pre BNBVT Fault Pivots'!Y62 -> 286 | B126: ='Pre BNBVT Fault Pivots'!Z62 -> 27959 | C126: 97.75874126 | D126: -622.2412587 | E126: -1342.241259 | F126: -4222.241259
A127: ='Pre BNBVT Fault Pivots'!Y63 -> 287 | B127: ='Pre BNBVT Fault Pivots'!Z63 -> 0 | C127: 0 | D127: -720 | E127: -1440 | F127: -4320
A128: ='Pre BNBVT Fault Pivots'!Y64 -> 284 | B128: ='Pre BNBVT Fault Pivots'!Z64 -> 0 | C128: 0 | D128: -720 | E128: -1440 | F128: -4320
A129: ='Pre BNBVT Fault Pivots'!Y65 -> 285 | B129: ='Pre BNBVT Fault Pivots'!Z65 -> 0 | C129: 0 | D129: -720 | E129: -1440 | F129: -4320
B130: CMOS Total | C130: CMOS > 0 hrs | D130: CMOS > 12 hrs | E130: CMOS > 24 hrs | F130: CMOS > 72 hrs
A131: CMOS | B131: =SUM(B87:B129) -> 104804 | C131: =SUMIF(C87:C129,">0", $B$87:$B$129) -> 104804 | D131: =SUMIF(D87:D129,">0", $B$87:$B$129) -> 0 | E131: =SUMIF(E87:E129,">0", $B$87:$B$129) -> 0 | F131: =SUMIF(F87:F129,">0", $B$87:$B$129) -> 0
A132: CMOS [%] | C132: =C131/$B$131 -> 1 | D132: =D131/$B$131 -> 0 | E132: =E131/$B$131 -> 0 | F132: =F131/$B$131 -> 0
A134: Outage Duration | B134: CMOS [%]
A135: < 12 hrs | B135: =C132-D132 -> 1
A136: 12 - 24 hrs | B136: =D132-E132 -> 0
A137: 24 - 72 hrs | B137: =E132-F132 -> 0
A138: > 72 hrs | B138: =F132 -> 0
A141: BN004 Sectionaliser Trips
A143: Customers | B143: CMOS | C143: Duration [mins] | D143: Duration - 12 hrs | E143: Duration - 24 hrs | F143: Duration - 72 hrs
A144: ='Pre BNBVT Fault Pivots'!AP23 -> 3945 | B144: ='Pre BNBVT Fault Pivots'!AQ23 -> 0 | C144: =B144/A144 -> 0 | D144: =C144-12*60 -> -720 | E144: =C144-24*60 -> -1440 | F144: =C144-72*60 -> -4320
A145: ='Pre BNBVT Fault Pivots'!AP24 -> 494 | B145: ='Pre BNBVT Fault Pivots'!AQ24 -> 126958 | C145: =B145/A145 -> 257 | D145: =C145-12*60 -> -463 | E145: =C145-24*60 -> -1183 | F145: =C145-72*60 -> -4063
B146: CMOS Total | C146: CMOS > 0 hrs | D146: CMOS > 12 hrs | E146: CMOS > 24 hrs | F146: CMOS > 72 hrs
A147: CMOS | B147: =SUM(B144:B145) -> 126958 | C147: =SUMIF(C144:C145,">0", $B$144:$B$145) -> 126958 | D147: =SUMIF(D144:D145,">0", $B$144:$B$145) -> 0 | E147: =SUMIF(E144:E145,">0", $B$144:$B$145) -> 0 | F147: =SUMIF(F144:F145,">0", $B$144:$B$145) -> 0
A148: CMOS [%] | C148: =C147/$B$147 -> 1 | D148: =D147/$B$147 -> 0 | E148: =E147/$B$147 -> 0 | F148: =F147/$B$147 -> 0
A150: Outage Duration | B150: CMOS [%]
A151: < 12 hrs | B151: =C148-D148 -> 1
A152: 12 - 24 hrs | B152: =D148-E148 -> 0
A153: 24 - 72 hrs | B153: =E148-F148 -> 0
A154: > 72 hrs | B154: =F148 -> 0
A157: BN009 ACR Trips
A159: Customers | B159: CMOS | C159: Duration [mins] | D159: Duration - 12 hrs | E159: Duration - 24 hrs | F159: Duration - 72 hrs
A160: ='Pre BNBVT Fault Pivots'!AX23 -> 428 | B160: ='Pre BNBVT Fault Pivots'!AY23 -> 0 | C160: =B160/A160 -> 0 | D160: =C160-12*60 -> -720 | E160: =C160-24*60 -> -1440 | F160: =C160-72*60 -> -4320
A161: ='Pre BNBVT Fault Pivots'!AX24 -> 429 | B161: ='Pre BNBVT Fault Pivots'!AY24 -> 0 | C161: 0 | D161: -720 | E161: -1440 | F161: -4320
A162: ='Pre BNBVT Fault Pivots'!AX25 -> 428 | B162: ='Pre BNBVT Fault Pivots'!AY25 -> 0 | C162: 0 | D162: -720 | E162: -1440 | F162: -4320
A163: ='Pre BNBVT Fault Pivots'!AX26 -> 431 | B163: ='Pre BNBVT Fault Pivots'!AY26 -> 0 | C163: 0 | D163: -720 | E163: -1440 | F163: -4320
A164: ='Pre BNBVT Fault Pivots'!AX27 -> 430 | B164: ='Pre BNBVT Fault Pivots'!AY27 -> 0 | C164: 0 | D164: -720 | E164: -1440 | F164: -4320
A165: ='Pre BNBVT Fault Pivots'!AX28 -> 431 | B165: ='Pre BNBVT Fault Pivots'!AY28 -> 0 | C165: 0 | D165: -720 | E165: -1440 | F165: -4320
A166: ='Pre BNBVT Fault Pivots'!AX29 -> 249 | B166: ='Pre BNBVT Fault Pivots'!AY29 -> 0 | C166: 0 | D166: -720 | E166: -1440 | F166: -4320
A167: ='Pre BNBVT Fault Pivots'!AX30 -> 432 | B167: ='Pre BNBVT Fault Pivots'!AY30 -> 0 | C167: 0 | D167: -720 | E167: -1440 | F167: -4320
A168: ='Pre BNBVT Fault Pivots'!AX31 -> 431 | B168: ='Pre BNBVT Fault Pivots'!AY31 -> 0 | C168: 0 | D168: -720 | E168: -1440 | F168: -4320
A169: ='Pre BNBVT Fault Pivots'!AX32 -> 432 | B169: ='Pre BNBVT Fault Pivots'!AY32 -> 0 | C169: 0 | D169: -720 | E169: -1440 | F169: -4320
A170: ='Pre BNBVT Fault Pivots'!AX33 -> 432 | B170: ='Pre BNBVT Fault Pivots'!AY33 -> 95215 | C170: 220.4050926 | D170: -499.5949074 | E170: -1219.594907 | F170: -4099.594907
A171: ='Pre BNBVT Fault Pivots'!AX34 -> 432 | B171: ='Pre BNBVT Fault Pivots'!AY34 -> 0 | C171: 0 | D171: -720 | E171: -1440 | F171: -4320
A172: ='Pre BNBVT Fault Pivots'!AX35 -> 432 | B172: ='Pre BNBVT Fault Pivots'!AY35 -> 0 | C172: 0 | D172: -720 | E172: -1440 | F172: -4320
A173: ='Pre BNBVT Fault Pivots'!AX36 -> 433 | B173: ='Pre BNBVT Fault Pivots'!AY36 -> 0 | C173: 0 | D173: -720 | E173: -1440 | F173: -4320
A174: ='Pre BNBVT Fault Pivots'!AX37 -> 433 | B174: ='Pre BNBVT Fault Pivots'!AY37 -> 0 | C174: 0 | D174: -720 | E174: -1440 | F174: -4320
A175: ='Pre BNBVT Fault Pivots'!AX38 -> 412 | B175: ='Pre BNBVT Fault Pivots'!AY38 -> 0 | C175: 0 | D175: -720 | E175: -1440 | F175: -4320
A176: ='Pre BNBVT Fault Pivots'!AX39 -> 434 | B176: ='Pre BNBVT Fault Pivots'!AY39 -> 0 | C176: 0 | D176: -720 | E176: -1440 | F176: -4320
A177: ='Pre BNBVT Fault Pivots'!AX40 -> 434 | B177: ='Pre BNBVT Fault Pivots'!AY40 -> 0 | C177: 0 | D177: -720 | E177: -1440 | F177: -4320
A178: ='Pre BNBVT Fault Pivots'!AX41 -> 433 | B178: ='Pre BNBVT Fault Pivots'!AY41 -> 0 | C178: 0 | D178: -720 | E178: -1440 | F178: -4320
A179: ='Pre BNBVT Fault Pivots'!AX42 -> 429 | B179: ='Pre BNBVT Fault Pivots'!AY42 -> 0 | C179: 0 | D179: -720 | E179: -1440 | F179: -4320
A180: ='Pre BNBVT Fault Pivots'!AX43 -> 429 | B180: ='Pre BNBVT Fault Pivots'!AY43 -> 0 | C180: 0 | D180: -720 | E180: -1440 | F180: -4320
A181: ='Pre BNBVT Fault Pivots'!AX44 -> 430 | B181: ='Pre BNBVT Fault Pivots'!AY44 -> 0 | C181: 0 | D181: -720 | E181: -1440 | F181: -4320
A182: ='Pre BNBVT Fault Pivots'!AX45 -> 430 | B182: ='Pre BNBVT Fault Pivots'!AY45 -> 0 | C182: 0 | D182: -720 | E182: -1440 | F182: -4320
A183: ='Pre BNBVT Fault Pivots'!AX46 -> 430 | B183: ='Pre BNBVT Fault Pivots'!AY46 -> 0 | C183: 0 | D183: -720 | E183: -1440 | F183: -4320
A184: ='Pre BNBVT Fault Pivots'!AX47 -> 429 | B184: ='Pre BNBVT Fault Pivots'!AY47 -> 0 | C184: 0 | D184: -720 | E184: -1440 | F184: -4320
A185: ='Pre BNBVT Fault Pivots'!AX48 -> 429 | B185: ='Pre BNBVT Fault Pivots'!AY48 -> 0 | C185: 0 | D185: -720 | E185: -1440 | F185: -4320
A186: ='Pre BNBVT Fault Pivots'!AX49 -> 428 | B186: ='Pre BNBVT Fault Pivots'!AY49 -> 0 | C186: 0 | D186: -720 | E186: -1440 | F186: -4320
A187: ='Pre BNBVT Fault Pivots'!AX50 -> 430 | B187: ='Pre BNBVT Fault Pivots'!AY50 -> 0 | C187: 0 | D187: -720 | E187: -1440 | F187: -4320
A188: ='Pre BNBVT Fault Pivots'!AX51 -> 428 | B188: ='Pre BNBVT Fault Pivots'!AY51 -> 0 | C188: 0 | D188: -720 | E188: -1440 | F188: -4320
A189: ='Pre BNBVT Fault Pivots'!AX52 -> 426 | B189: ='Pre BNBVT Fault Pivots'!AY52 -> 0 | C189: 0 | D189: -720 | E189: -1440 | F189: -4320
A190: ='Pre BNBVT Fault Pivots'!AX53 -> 428 | B190: ='Pre BNBVT Fault Pivots'!AY53 -> 0 | C190: 0 | D190: -720 | E190: -1440 | F190: -4320
A191: ='Pre BNBVT Fault Pivots'!AX54 -> 426 | B191: ='Pre BNBVT Fault Pivots'!AY54 -> 0 | C191: 0 | D191: -720 | E191: -1440 | F191: -4320
A192: ='Pre BNBVT Fault Pivots'!AX55 -> 432 | B192: ='Pre BNBVT Fault Pivots'!AY55 -> 0 | C192: 0 | D192: -720 | E192: -1440 | F192: -4320
A193: ='Pre BNBVT Fault Pivots'!AX56 -> 433 | B193: ='Pre BNBVT Fault Pivots'!AY56 -> 0 | C193: 0 | D193: -720 | E193: -1440 | F193: -4320
A194: ='Pre BNBVT Fault Pivots'!AX57 -> 431 | B194: ='Pre BNBVT Fault Pivots'!AY57 -> 0 | C194: 0 | D194: -720 | E194: -1440 | F194: -4320
A195: ='Pre BNBVT Fault Pivots'!AX58 -> 433 | B195: ='Pre BNBVT Fault Pivots'!AY58 -> 0 | C195: 0 | D195: -720 | E195: -1440 | F195: -4320
A196: ='Pre BNBVT Fault Pivots'!AX59 -> 431 | B196: ='Pre BNBVT Fault Pivots'!AY59 -> 0 | C196: 0 | D196: -720 | E196: -1440 | F196: -4320
A197: ='Pre BNBVT Fault Pivots'!AX60 -> 430 | B197: ='Pre BNBVT Fault Pivots'!AY60 -> 0 | C197: 0 | D197: -720 | E197: -1440 | F197: -4320
A198: ='Pre BNBVT Fault Pivots'!AX61 -> 431 | B198: ='Pre BNBVT Fault Pivots'!AY61 -> 65154 | C198: 151.1693735 | D198: -568.8306265 | E198: -1288.830626 | F198: -4168.830626
A199: ='Pre BNBVT Fault Pivots'!AX62 -> 430 | B199: ='Pre BNBVT Fault Pivots'!AY62 -> 0 | C199: 0 | D199: -720 | E199: -1440 | F199: -4320
A200: ='Pre BNBVT Fault Pivots'!AX63 -> 431 | B200: ='Pre BNBVT Fault Pivots'!AY63 -> 0 | C200: 0 | D200: -720 | E200: -1440 | F200: -4320
A201: ='Pre BNBVT Fault Pivots'!AX64 -> 431 | B201: ='Pre BNBVT Fault Pivots'!AY64 -> 0 | C201: 0 | D201: -720 | E201: -1440 | F201: -4320
A202: ='Pre BNBVT Fault Pivots'!AX65 -> 430 | B202: ='Pre BNBVT Fault Pivots'!AY65 -> 0 | C202: 0 | D202: -720 | E202: -1440 | F202: -4320
B203: CMOS Total | C203: CMOS > 0 hrs | D203: CMOS > 12 hrs | E203: CMOS > 24 hrs | F203: CMOS > 72 hrs
A204: CMOS | B204: =SUM(B160:B202) -> 160369 | C204: =SUMIF(C160:C202,">0", $B$160:$B$202) -> 160369 | D204: =SUMIF(D160:D202,">0", $B$160:$B$202) -> 0 | E204: =SUMIF(E160:E202,">0", $B$160:$B$202) -> 0 | F204: =SUMIF(F160:F202,">0", $B$160:$B$202) -> 0
A205: CMOS [%] | C205: =C204/$B$204 -> 1 | D205: =D204/$B$204 -> 0 | E205: =E204/$B$204 -> 0 | F205: =F204/$B$204 -> 0
A207: Outage Duration | B207: CMOS [%]
A208: < 12 hrs | B208: =C205-D205 -> 1
A209: 12 - 24 hrs | B209: =D205-E205 -> 0
A210: 24 - 72 hrs | B210: =E205-F205 -> 0
A211: > 72 hrs | B211: =F205 -> 0
A214: MV Line Fuse Trips
A216: Customers | B216: CMOS | C216: Duration [mins] | D216: Duration - 12 hrs | E216: Duration - 24 hrs | F216: Duration - 72 hrs
A217: ='Pre BNBVT Fault Pivots'!BF23 -> 34 | B217: ='Pre BNBVT Fault Pivots'!BG23 -> 8602 | C217: =B217/A217 -> 253 | D217: =C217-12*60 -> -467 | E217: =C217-24*60 -> -1187 | F217: =C217-72*60 -> -4067
A218: ='Pre BNBVT Fault Pivots'!BF24 -> 34 | B218: ='Pre BNBVT Fault Pivots'!BG24 -> 4282 | C218: 125.9411765 | D218: -594.0588235 | E218: -1314.058824 | F218: -4194.058824
A219: ='Pre BNBVT Fault Pivots'!BF25 -> 90 | B219: ='Pre BNBVT Fault Pivots'!BG25 -> 5688 | C219: 63.2 | D219: -656.8 | E219: -1376.8 | F219: -4256.8
A220: ='Pre BNBVT Fault Pivots'!BF26 -> 1 | B220: ='Pre BNBVT Fault Pivots'!BG26 -> 220 | C220: 220 | D220: -500 | E220: -1220 | F220: -4100
A221: ='Pre BNBVT Fault Pivots'!BF27 -> 37 | B221: ='Pre BNBVT Fault Pivots'!BG27 -> 14097 | C221: 381 | D221: -339 | E221: -1059 | F221: -3939
A222: ='Pre BNBVT Fault Pivots'!BF28 -> 90 | B222: ='Pre BNBVT Fault Pivots'!BG28 -> 15930 | C222: 177 | D222: -543 | E222: -1263 | F222: -4143
A223: ='Pre BNBVT Fault Pivots'!BF29 -> 366 | B223: ='Pre BNBVT Fault Pivots'!BG29 -> 64050 | C223: 175 | D223: -545 | E223: -1265 | F223: -4145
A224: ='Pre BNBVT Fault Pivots'!BF30 -> 312 | B224: ='Pre BNBVT Fault Pivots'!BG30 -> 99614 | C224: 319.275641 | D224: -400.724359 | E224: -1120.724359 | F224: -4000.724359
A225: ='Pre BNBVT Fault Pivots'!BF31 -> 2 | B225: ='Pre BNBVT Fault Pivots'!BG31 -> 2896 | C225: 1448 | D225: 728 | E225: 8 | F225: -2872
A226: ='Pre BNBVT Fault Pivots'!BF32 -> 12 | B226: ='Pre BNBVT Fault Pivots'!BG32 -> 1584 | C226: 132 | D226: -588 | E226: -1308 | F226: -4188
A227: ='Pre BNBVT Fault Pivots'!BF33 -> 9 | B227: ='Pre BNBVT Fault Pivots'!BG33 -> 6264 | C227: 696 | D227: -24 | E227: -744 | F227: -3624
A228: ='Pre BNBVT Fault Pivots'!BF34 -> 13 | B228: ='Pre BNBVT Fault Pivots'!BG34 -> 6565 | C228: 505 | D228: -215 | E228: -935 | F228: -3815
A229: ='Pre BNBVT Fault Pivots'!BF35 -> 37 | B229: ='Pre BNBVT Fault Pivots'!BG35 -> 1577 | C229: 42.62162162 | D229: -677.3783784 | E229: -1397.378378 | F229: -4277.378378
A230: ='Pre BNBVT Fault Pivots'!BF36 -> 2 | B230: ='Pre BNBVT Fault Pivots'!BG36 -> 736 | C230: 368 | D230: -352 | E230: -1072 | F230: -3952
A231: ='Pre BNBVT Fault Pivots'!BF37 -> 2 | B231: ='Pre BNBVT Fault Pivots'!BG37 -> 100 | C231: 50 | D231: -670 | E231: -1390 | F231: -4270
... 466 more rows

Sheet BN11 Customer Avg. Energy Use
A7: Energy use on BN11
A8: This sheet calculates the average kW per customer rate on BN11 including solar contribution.
A10: Historical Data
A11: Year | B11: Feeder | C11: Customer Type | D11: Sum kWh | E11: No. of Customers | F11: Avg. kW | G11: Avg. kW / customer
A12: 2022 | B12: bn11 | C12: C | D12: 3873076.27 | E12: 426 | F12: =D12/(24*365) -> 442.1319943 | G12: =F12/E12 -> 1.037868531
A13: 2022 | B13: bn11 | C13: F | D13: 2891745.94 | E13: 1309 | F13: 330.107984 | G13: 0.2521833339
A14: 2022 | B14: bn11 | C14: I | D14: 727506.48 | E14: 45 | F14: 83.04868493 | G14: 1.845526332
A15: 2022 | B15: bn11 | C15: R | D15: 4239333.39 | E15: 2806 | F15: 483.9421678 | G15: 0.1724669165
A16: 2023 | B16: bn11 | C16: C | D16: 9823463.95 | E16: 434 | F16: 1121.399994 | G16: 2.583870955
A17: 2023 | B17: bn11 | C17: F | D17: 6863231.64 | E17: 1318 | F17: 783.4739315 | G17: 0.5944415262
A18: 2023 | B18: bn11 | C18: I | D18: 1695270.61 | E18: 44 | F18: 193.5240422 | G18: 4.398273687
A19: 2023 | B19: bn11 | C19: R | D19: 10443547.56 | E19: 2883 | F19: 1192.185795 | G19: 0.4135226481
A20: 2024 | B20: bn11 | C20: C | D20: 8051171.3 | E20: 437 | F20: 919.0834817 | G20: 2.103165862
A21: 2024 | B21: bn11 | C21: F | D21: 5506895.75 | E21: 1319 | F21: 628.6410674 | G21: 0.4766042967
A22: 2024 | B22: bn11 | C22: I | D22: 1335712.52 | E22: 43 | F22: 152.4785982 | G22: 3.546013911
A23: 2024 | B23: bn11 | C23: R | D23: 8795940.42 | E23: 2896 | F23: 1004.102788 | G23: 0.3467205759
A26: Solar Contribution
A27: No. of Customers w/ Solar | B27: kWh per year per household | C27: Total kWh per year (Solar)
A28: 1512 | B28: ='Base Benefit Assumptions'!A61 -> 6570 | C28: =A28*B28 -> 9933840
A32: Yearly Summary
A33: Year | B33: Total kWh | C33: No. of Customers | D33: Avg. kW / Customer | E33: Total kWh (w/ Solar) | F33: Avg. kW / Customer (Solar)
A34: 2022 | B34: =SUMIF($A$12:$A$23,A34,$D$12:$D$23) -> 11731662.08 | C34: =SUMIF($A$12:$A$23,A34,$E$12:$E$23) -> 4586 | D34: =(B34/(24*365))/C34 -> 0.2920259117 | E34: =B34+$C$28 -> 21665502.08 | F34: =(E34/(24*365))/C34 -> 0.5393002248
A35: 2023 | B35: =SUMIF($A$12:$A$23,A35,$D$12:$D$23) -> 28825513.76 | C35: =SUMIF($A$12:$A$23,A35,$E$12:$E$23) -> 4679 | D35: =(B35/(24*365))/C35 -> 0.7032664592 | E35: =B35+$C$28 -> 38759353.76 | F35: =(E35/(24*365))/C35 -> 0.9456259377 | G35: Used for benefit analysis
A36: 2024 | B36: =SUMIF($A$12:$A$23,A36,$D$12:$D$23)*12/9 -> 31586293.32 | C36: 4695 | D36: 0.7679960057 | E36: 41520133.32 | F36: 1.009529552
A39: End of Sheet

Sheet VCR per ZSS
A6: VCR per zone substation
A7: This sheet includes the VCR rates per zone substation.
A12: PERIOD | B12: APR22 - MAR23
A13: UNITOFMEASURE | B13: KWH
A14: CUSTOMER TYPE | B14: bdl | C14: bge | D14: bn | E14: bom | F14: bra | G14: brt | H14: bwa | I14: bwn | J14: bwr | K14: cf | L14: cln | M14: cnr | N14: cpk | O14: cre | P14: cyn | Q14: drn | R14: elm | S14: epg | T14: fgy | U14: ftr | V14: hpk | W14: klk | X14: klo | Y14: kms | Z14: ldl | AA14: lga | AB14: llg | AC14: lyd | AD14: lys | AE14: mby | AF14: mdg | AG14: mdi | AH14: mfa | AI14: mjg | AJ14: moe | AK14: msd | AL14: mwe | AM14: mwl | AN14: mwt | AO14: myt | AP14: nla | AQ14: nrn | AR14: nw | AS14: ofr | AT14: phi | AU14: phm | AV14: ruba | AW14: rve | AX14: rwn | AY14: rwt | AZ14: sfs | BA14: sle | BB14: smg | BC14: smr | BD14: tgn | BE14: trc | BF14: tt | BG14: uwy | BH14: wgi | BI14: wgl | BJ14: wn | BK14: wo | BL14: wots | BM14: wt | BN14: wyk | BO14: yn | BP14: Grand Total
A15: COMMERCIAL | B15: 85409118.72 | C15: 27915734.81 | D15: 34144607.93 | E15: 318870.56 | F15: 122463939.4 | G15: 19832199.98 | H15: 13605856.96 | I15: 49263301.37 | J15: 87354199.19 | K15: 10293190.05 | L15: 55840243.11 | M15: 3300238.16 | N15: 40466516.57 | O15: 90649911.55 | P15: 90308196.25 | Q15: 46711361.15 | R15: 53054625.89 | S15: 181458599.6 | T15: 54353355.76 | U15: 18329658.24 | V15: 78089453.19 | W15: 4528415.6 | X15: 32654778.29 | Y15: 19996165.77 | Z15: 72472549.1 | AA15: 54103830.51 | AB15: 27875403.67 | AC15: 17745689.67 | AD15: 40653.79 | AE15: 6774228.41 | AF15: 1167866.45 | AG15: 187710.76 | AH15: 24541701.89 | AI15: 15183250.97 | AJ15: 37324342 | AK15: 17180364.56 | AL15: 570364.1 | AM15: 60408995.7 | AO15: 18358867.64 | AP15: 6177404.46 | AQ15: 42302589.54 | AS15: 55158885.97 | AT15: 16503774.07 | AU15: 84136193.57 | AV15: 14471610.13 | AW15: 22951231.76 | AX15: 24256178.09 | AY15: 96382776.19 | AZ15: 1833406.07 | BA15: 37163641.92 | BB15: 65344927 | BC15: 46407608.81 | BD15: 60681280 | BE15: 360400.39 | BF15: 87955548.28 | BG15: 662453.73 | BH15: 37488656.11 | BI15: 118063157.3 | BJ15: 61455633.4 | BK15: 81559925.43 | BL15: 29319768.78 | BM15: 88257000.82 | BN15: 28867757.44 | BO15: 684251.45 | BP15: =SUM(B15:BO15) -> 2682724418
A16: FARM | B16: 12685316.55 | C16: 2936155.41 | D16: 16911791.6 | E16: 1647.59 | F16: 33794.56 | G16: 1933916.16 | H16: 3698254.71 | I16: 617834.93 | J16: 129608.95 | K16: 4977.98 | L16: 5410883.57 | M16: 305380 | N16: 1532109.45 | O16: 3661774.66 | P16: 122446.56 | Q16: 9239116.64 | R16: 602370.95 | S16: 780179.89 | T16: 391304.43 | U16: 26035991.21 | V16: 86473.7 | W16: 2741210.66 | X16: 790779.57 | Y16: 1839689 | Z16: 13458745.01 | AA16: 29472997.84 | AB16: 14535190.84 | AC16: 525946.7 | AE16: 1353460.23 | AF16: 25161.33 | AG16: 148692.41 | AH16: 35461349.1 | AI16: 739934.65 | AJ16: 16030895.91 | AK16: 6929077.76 | AM16: 5307808.17 | AO16: 8728522.72 | AP16: 3560464.44 | AQ16: 165910.3 | AS16: 3943825.56 | AT16: 601380.66 | AU16: 11917667.04 | AV16: 7941511.86 | AW16: 31085.46 | AX16: 511828.18 | AY16: 58849.61 | AZ16: 89565.83 | BA16: 11778701.34 | BB16: 72029.87 | BC16: 11172869.28 | BD16: 10291253.22 | BE16: 529290.13 | BF16: 7977.2 | BG16: 52923.63 | BH16: 7377790.97 | BI16: 33651235.46 | BJ16: 21917626.44 | BK16: 81695.09 | BL16: 17865105.93 | BM16: 50343.83 | BN16: 7067562.58 | BP16: =SUM(B16:BO16) -> 375949285.3
A17: INDUSTRIAL | B17: 16002541.47 | C17: 2550090.53 | D17: 44168054.93 | F17: 25575732.72 | G17: 430532.2 | H17: 19767228.08 | I17: 797537.49 | J17: 47968254.96 | K17: 144973.43 | L17: 3435077.46 | M17: 605633.35 | N17: 39550384.41 | O17: 2711842.29 | P17: 24633572.5 | Q17: 6294655.07 | R17: 2409172.46 | S17: 14872780.52 | T17: 11338366.95 | U17: 5269295.16 | V17: 13474909.72 | W17: 111662.42 | X17: 1151582.98 | Y17: 3719455.9 | Z17: 23447006.76 | AA17: 34312461.95 | AB17: 11499498.25 | AC17: 263956.59 | AD17: 1191433.99 | AE17: 702439.78 | AF17: 24744.38 | AH17: 14228895.09 | AI17: 1400719.18 | AJ17: 13713994.63 | AK17: 2434528.46 | AL17: 313026.62 | AM17: 284265186.8 | AO17: 18864809.79 | AP17: 2446718.64 | AQ17: 58815.73 | AS17: 2552350.15 | AT17: 2538740.06 | AU17: 16863059.54 | AV17: 1082017.35 | AW17: 427539.67 | AX17: 6229874.13 | AY17: 31846858.75 | AZ17: 91787.78 | BA17: 13393258.68 | BB17: 1555122.99 | BC17: 20232366.3 | BD17: 15452433.65 | BE17: 38299.55 | BF17: 36128198.63 | BG17: 137846.02 | BH17: 5271451 | BI17: 13714285.24 | BJ17: 67097845.82 | BK17: 53068969.02 | BL17: 44246075.86 | BM17: 8937924.4 | BN17: 2327098.2 | BO17: 1459060.83 | BP17: 1040844037
A18: LIGHT | B18: 904332.53 | D18: 438320.56 | E18: 1165.41 | F18: 1448791.37 | G18: 25221.98 | H18: 73684.91 | I18: 6004032.81 | J18: 415.8 | K18: 205883.73 | N18: 2080384.21 | O18: 2742061.77 | Q18: 688875.93 | R18: 3219541.64 | T18: 1107453.93 | V18: 2786805.51 | X18: 5847261.59 | Y18: 591082.71 | AA18: 328707.56 | AB18: 86094.21 | AE18: 36500.24 | AH18: 936622.39 | AI18: 55405.69 | AK18: 156139.22 | AM18: 1238477.09 | AO18: 1106735.56 | AP18: 5571.05 | AS18: 200745.28 | AT18: 56269.4 | AU18: 4577790.02 | AV18: 245409.23 | AX18: 2058187 | AY18: 1084132.58 | AZ18: 1799295.69 | BB18: 5983984.15 | BC18: 145576.15 | BD18: 1456237.28 | BE18: 659184.69 | BH18: 1045161.04 | BI18: 2744141.55 | BJ18: 666580.11 | BK18: 1432619.92 | BL18: 68790.22 | BP18: 56339673.71
A19: RESIDENTIAL | B19: 104536315.1 | C19: 68129221.02 | D19: 41750555.05 | E19: 783169.53 | F19: 98838199.93 | G19: 25629951.12 | H19: 8191590.05 | I19: 49172808.19 | J19: 62564595.76 | K19: 4413971.24 | L19: 142661326.8 | M19: 4304703.42 | N19: 83484626.99 | O19: 96390533.97 | P19: 96324753.57 | Q19: 141378824.8 | R19: 149637825.8 | S19: 105364829.7 | T19: 68772821.52 | U19: 27457971.29 | V19: 104951555.8 | W19: 16198771.29 | X19: 60406029.76 | Y19: 32635811.42 | Z19: 97071302.95 | AA19: 46851749.09 | AB19: 33223884.54 | AC19: 38170786.97 | AE19: 10082863.49 | AF19: 3835172.72 | AG19: 169955.66 | AH19: 31541981.56 | AI19: 7375643.16 | AJ19: 61722383.22 | AK19: 29995145.48 | AM19: 53673830.18 | AO19: 29602310.85 | AP19: 16954153.72 | AQ19: 26412251.1 | AR19: 121778.93 | AS19: 97265985.21 | AT19: 42614332.39 | AU19: 61326347.59 | AV19: 22466097.74 | AW19: 37195819.15 | AX19: 85582115.31 | AY19: 62274911.86 | AZ19: 5801771.34 | BA19: 43998171.55 | BB19: 59351990.66 | BC19: 50099622.34 | BD19: 73921424.38 | BE19: 413566.42 | BF19: 48494335.71 | BG19: 6023383.51 | BH19: 86354201.6 | BI19: 104080110.4 | BJ19: 68278243.1 | BK19: 52445156.68 | BL19: 51985778.5 | BM19: 96439237.67 | BN19: 68092639.27 | BP19: 3305291199
A20: Grand Total | B20: 219537624.3 | C20: 101531201.8 | D20: 137413330.1 | E20: 1104853.09 | F20: 248360458 | G20: 47851821.44 | H20: 45336614.71 | I20: 105855514.8 | J20: 198017074.7 | K20: 15062996.43 | L20: 207347531 | M20: 8515954.93 | N20: 167114021.6 | O20: 196156124.2 | P20: 211388968.9 | Q20: 204312833.6 | R20: 208923536.7 | S20: 302476389.8 | T20: 135963302.6 | U20: 77092915.9 | V20: 199396065.3 | W20: 23580059.97 | X20: 100850432.2 | Y20: 58782204.8 | Z20: 206449603.8 | AA20: 165069746.9 | AB20: 87220071.51 | AC20: 56706379.93 | AD20: 1232087.78 | AE20: 18949492.15 | AF20: 5069738.45 | AG20: 506358.83 | AH20: 106710550 | AI20: 24754953.65 | AJ20: 128791615.8 | AK20: 56695255.48 | AL20: 883390.72 | AM20: 404894297.9 | AO20: 76661246.56 | AP20: 29144312.31 | AQ20: 68939566.67 | AR20: 121778.93 | AS20: 159121792.2 | AT20: 62314496.58 | AU20: 178821057.8 | AV20: 46206646.31 | AW20: 60605676.04 | AX20: 118640857.7 | AY20: 191647529 | AZ20: 9615826.71 | BA20: 106333773.5 | BB20: 132308054.7 | BC20: 128058042.9 | BD20: 161802628.5 | BE20: 2000741.18 | BF20: 172586059.8 | BG20: 6876606.89 | BH20: 137537260.7 | BI20: 272252929.9 | BJ20: 219415928.9 | BK20: 188588366.1 | BL20: 143485519.3 | BM20: 193684506.7 | BN20: 106355057.5 | BO20: 2143312.28 | BP20: 7461174949
A23: PERIOD | B23: APR21 - MAR22
A24: UNITOFMEASURE | B24: KWH %
A25: CUSTOMER TYPE | B25: bdl | C25: bge | D25: bn | E25: bom | F25: bra | G25: brt | H25: bwa | I25: bwn | J25: bwr | K25: cf | L25: cln | M25: cnr | N25: cpk | O25: cre | P25: cyn | Q25: drn | R25: elm | S25: epg | T25: fgy | U25: ftr | V25: hpk | W25: klk | X25: klo | Y25: kms | Z25: ldl | AA25: lga | AB25: llg | AC25: lyd | AD25: lys | AE25: mby | AF25: mdg | AG25: mdi | AH25: mfa | AI25: mjg | AJ25: moe | AK25: msd | AL25: mwe | AM25: mwl | AN25: mwt | AO25: myt | AP25: nla | AQ25: nrn | AR25: nw | AS25: ofr | AT25: phi | AU25: phm | AV25: ruba | AW25: rve | AX25: rwn | AY25: rwt | AZ25: sfs | BA25: sle | BB25: smg | BC25: smr | BD25: tgn | BE25: trc | BF25: tt | BG25: uwy | BH25: wgi | BI25: wgl | BJ25: wn | BK25: wo | BL25: wots | BM25: wt | BN25: wyk | BO25: yn | BP25: Grand Total
A26: COMMERCIAL | B26: =B15/B$20 -> 0.3890409172 | C26: =C15/C$20 -> 0.2749473494 | D26: 0.2484810456 | E26: 0.2886090132 | F26: 0.4930895216 | G26: 0.414450263 | H26: 0.3001074749 | I26: 0.4653824741 | J26: 0.4411447818 | K26: 0.6833427929 | L26: 0.2693074899 | M26: 0.3875358885 | N26: 0.2421491397 | O26: 0.4621314369 | P26: 0.4272133817 | Q26: 0.228626662 | R26: 0.2539427904 | S26: 0.5999099625 | T26: 0.3997648978 | U26: 0.2377606039 | V26: 0.3916298602 | W26: 0.1920442783 | X26: 0.3237941334 | Y26: 0.3401737964 | Z26: 0.3510423259 | AA26: 0.3277634546 | AB26: 0.3195984959 | AC26: 0.3129399142 | AD26: 0.03299585521 | AE26: 0.3574886523 | AF26: 0.230360296 | AG26: 0.3707069945 | AH26: 0.2299838384 | AI26: 0.6133419268 | AJ26: 0.2898041288 | AK26: 0.3030300228 | AL26: 0.645653262 | AM26: 0.1491969534 | AO26: 0.2394804215 | AP26: 0.2119591773 | AQ26: 0.6136184427 | AR26: 0 | AS26: 0.3466457059 | AT26: 0.2648464639 | AU26: 0.4705049541 | AV26: 0.3131932587 | AW26: 0.378697727 | AX26: 0.2044504613 | AY26: 0.502916874 | AZ26: 0.1906654649 | BA26: 0.3494998879 | BB26: 0.4938847235 | BC26: 0.3623951121 | BD26: 0.3750327207 | BE26: 0.1801334393 | BF26: 0.5096329818 | BG26: 0.09633439 | BH26: 0.2725709085 | BI26: 0.4336524765 | BJ26: 0.2800873834 | BK26: 0.4324759109 | BL26: 0.2043395663 | BM26: 0.4556740357 | BN26: 0.2714281589 | BO26: =BO15/BO$20 -> 0.3192495356 | BP26: 0.3595579029
A27: FARM | B27: =B16/B$20 -> 0.05778197058 | C27: 0.02891874969 | D27: 0.1230724238 | E27: 0.001491229934 | F27: 0.0001360706139 | G27: 0.04041468228 | H27: 0.08157324347 | I27: 0.00583658708 | J27: 0.0006545342124 | K27: 0.0003304774069 | L27: 0.02609572221 | M27: 0.03585974826 | N27: 0.009168048468 | O27: 0.01866765401 | P27: 0.0005792476336 | Q27: 0.04522044198 | R27: 0.002883212488 | S27: 0.00257930839 | T27: 0.002878015042 | U27: 0.3377222266 | V27: 0.0004336780661 | W27: 0.1162512166 | X27: 0.007841112356 | Y27: 0.03129669951 | Z27: 0.06519143055 | AA27: 0.1785487552 | AB27: 0.1666496093 | AC27: 0.009274912288 | AD27: 0 | AE27: 0.07142461757 | AF27: 0.004963043015 | AG27: 0.2936502756 | AH27: 0.3323134319 | AI27: 0.02989036701 | AJ27: 0.12447158 | AK27: 0.1222161837 | AL27: 0 | AM27: 0.01310912057 | AO27: 0.1138583458 | AP27: 0.1221666994 | AQ27: 0.002406604915 | AR27: 0 | AS27: 0.02478494935 | AT27: 0.009650734468 | AU27: 0.06664576974 | AV27: 0.171869471 | AW27: 0.0005129133446 | AX27: 0.004314097098 | AY27: 0.0003070721042 | AZ27: 0.009314418063 | BA27: 0.1107710274 | BB27: 0.0005444103171 | BC27: 0.08724847756 | BD27: 0.06360374558 | BE27: 0.2645470265 | BF27: 4.622157785e-05 | BG27: 0.007696183721 | BH27: 0.05364212528 | BI27: 0.1236028404 | BJ27: 0.09989077162 | BK27: 0.0004331926283 | BL27: 0.1245080759 | BM27: 0.0002599269857 | BN27: 0.06645252936 | BO27: 0 | BP27: 0.05038741054
A28: INDUSTRIAL | B28: 0.07289202258 | C28: 0.02511632371 | D28: 0.3214248203 | E28: 0 | F28: 0.1029782797 | G28: 0.008997195656 | H28: 0.436010236 | I28: 0.007534208223 | J28: 0.242243024 | K28: 0.00962447483 | L28: 0.01656676327 | M28: 0.07111749122 | N28: 0.2366670614 | O28: 0.01382491778 | P28: 0.1165319677 | Q28: 0.0308089069 | R28: 0.01153135974 | S28: 0.04917005433 | T28: 0.08339284744 | U28: 0.06834992682 | V28: 0.06757861395 | W28: 0.004735459543 | X28: 0.01141872132 | Y28: 0.06327520229 | Z28: 0.1135725442 | AA28: 0.2078664479 | AB28: 0.1318446322 | AC28: 0.004654795286 | AD28: 0.9670041448 | AE28: 0.0370690557 | AF28: 0.004880800113 | AG28: 0 | AH28: 0.1333410341 | AI28: 0.05658338932 | AJ28: 0.106482045 | AK28: 0.04294060304 | AL28: 0.354346738 | AM28: 0.7020725859 | AO28: 0.2460801335 | AP28: 0.08395183986 | AQ28: 0.0008531491107 | AR28: 0 | AS28: 0.01604023004 | AT28: 0.04074076177 | AU28: 0.09430130741 | AV28: 0.02341692021 | AW28: 0.007054449318 | AX28: 0.05251035984 | AY28: 0.1661741162 | AZ28: 0.009545490239 | BA28: 0.1259548894 | BB28: 0.01175380436 | BC28: 0.1579937179 | BD28: 0.09550174673 | BE28: 0.01914268091 | BF28: 0.2093343962 | BG28: 0.02004564492 | BH28: 0.03832743921 | BI28: 0.0503733247 | BJ28: 0.3058020726 | BK28: 0.2814010753 | BL28: 0.3083661409 | BM28: 0.04614682171 | BN28: 0.02188046582 | BO28: 0.6807504644 | BP28: 0.1395013579
A29: LIGHT | B29: 0.004119259889 | C29: 0 | D29: 0.003189796505 | E29: 0.00105480992 | F29: 0.005833422042 | G29: 0.0005270850563 | H29: 0.001625284783 | I29: 0.056719131 | J29: 2.099818921e-06 | K29: 0.0136681789 | L29: 0 | M29: 0 | N29: 0.01244889082 | O29: 0.01397897609 | P29: 0 | Q29: 0.003371672341 | R29: 0.0154101433 | S29: 0 | T29: 0.008145241465 | U29: 0 | V29: 0.0139762312 | W29: 0 | X29: 0.05797953923 | Y29: 0.01005547022 | Z29: 0 | AA29: 0.00199132528 | AB29: 0.0009870917154 | AC29: 0 | AD29: 0 | AE29: 0.001926185658 | AF29: 0 | AG29: 0 | AH29: 0.008777223899 | AI29: 0.002238165774 | AJ29: 0 | AK29: 0.002754008579 | AL29: 0 | AM29: 0.00305876644 | AO29: 0.01443670185 | AP29: 0.0001911539357 | AQ29: 0 | AR29: 0 | AS29: 0.001261582573 | AT29: 0.0009029905253 | AU29: 0.0255998375 | AV29: 0.005311124039 | AW29: 0 | AX29: 0.01734804552 | AY29: 0.005656908731 | AZ29: 0.1871181485 | BA29: 0 | BB29: 0.04522766331 | BC29: 0.001136798179 | BD29: 0.009000084197 | BE29: 0.3294702466 | BF29: 0 | BG29: 0 | BH29: 0.007599111939 | BI29: 0.01007938299 | BJ29: 0.003037975016 | BK29: 0.007596544524 | BL29: 0.0004794227344 | BM29: 0 | BN29: 0 | BO29: 0 | BP29: 0.007551045793
A30: RESIDENTIAL | B30: 0.4761658298 | C30: 0.6710175772 | D30: 0.3038319138 | E30: 0.708844947 | F30: 0.397962706 | G30: 0.535610774 | H30: 0.1806837608 | I30: 0.4645275996 | J30: 0.3159555602 | K30: 0.293034076 | L30: 0.6880300246 | M30: 0.505486872 | N30: 0.4995668597 | O30: 0.4913970152 | P30: 0.4556754029 | Q30: 0.6919723168 | R30: 0.7162324941 | S30: 0.3483406748 | T30: 0.5058189983 | U30: 0.3561672427 | V30: 0.5263471755 | W30: 0.6869690455 | X30: 0.5989664937 | Y30: 0.5551988315 | Z30: 0.4701936994 | AA30: 0.283830017 | AB30: 0.3809201708 | AC30: 0.6731303782 | AD30: 0 | AE30: 0.5320914888 | AF30: =AF19/AF$20 -> 0.7564833488 | AG30: 0.3356427299 | AH30: 0.2955844717 | AI30: 0.2979461511 | AJ30: 0.4792422461 | AK30: 0.5290591819 | AL30: 0 | AM30: 0.1325625736 | AO30: 0.3861443973 | AP30: 0.5817311295 | AQ30: 0.3831218033 | AR30: 1 | AS30: 0.6112675321 | AT30: 0.6838590493 | AU30: 0.3429481313 | AV30: 0.486209226 | AW30: 0.6137349103 | AX30: 0.7213544892 | AY30: 0.324945029 | AZ30: 0.6033564783 | BA30: 0.4137741952 | BB30: 0.4485893985 | BC30: 0.3912258942 | BD30: 0.4568617028 | BE30: 0.2067066066 | BF30: 0.2809864004 | BG30: 0.8759237814 | BH30: 0.627860415 | BI30: 0.3822919753 | BJ30: 0.3111817973 | BK30: 0.2780932767 | BL30: 0.3623067941 | BM30: 0.4979192157 | BN30: 0.640238846 | BO30: 0 | BP30: 0.4429987531
A31: Grand Total | B31: =SUM(B15:B19)/B20 -> 1 | C31: =SUM(C15:C19)/C20 -> 1 | D31: 1 | E31: 1 | F31: 1 | G31: 1 | H31: 1 | I31: 1 | J31: 1 | K31: 1 | L31: 1 | M31: 1 | N31: 1 | O31: 1 | P31: 1 | Q31: 1 | R31: 1 | S31: 1 | T31: 1 | U31: 1 | V31: 0.999965559 | W31: 1 | X31: 1 | Y31: 1 | Z31: 1 | AA31: 1 | AB31: 1 | AC31: 1 | AD31: 1 | AE31: 1 | AF31: 0.9966874879 | AG31: 1 | AH31: 1 | AI31: 1 | AJ31: 1 | AK31: 1 | AL31: 1 | AM31: 1 | AO31: 1 | AP31: 1 | AQ31: 1 | AR31: 1 | AS31: 1 | AT31: 1 | AU31: 1 | AV31: 1 | AW31: 1 | AX31: 0.999977453 | AY31: 1 | AZ31: 1 | BA31: 1 | BB31: 1 | BC31: 1 | BD31: 1 | BE31: 1 | BF31: 1 | BG31: 1 | BH31: 1 | BI31: 1 | BJ31: 1 | BK31: 1 | BL31: 1 | BM31: 1 | BN31: 1 | BO31: =SUM(BO15:BO19)/BO20 -> 1 | BP31: 0.9999964703
B35: AusNet | Q35: UE | T35: JEMENA
B36: CBTS | C36: RWTS66 | D36: RWTS22 | E36: MWTS | F36: SMTS | G36: ERTS | H36: WOTS66 | I36: WOTS22 | J36: WOTS | K36: MBTS | L36: GNTS | M36: TTS | N36: TSTS | O36: TOTAL | Q36: CBTS | R36: RWTS66 | S36: RWTS22 | T36: SMTS
A37: COMMERCIAL | B37: =SUM(I15,L15,O15,AB15,AC15,AQ15,AS15,AU15) -> 422972218.4 | C37: =SUM(F15,J15,N15,P15,Z15,AF15,AX15,BN15) -> 467357202.5 | D37: =AY15 -> 96382776.19 | E37: =SUM(B15,M15,U15,AA15,AD15,AH15,AJ15,AL15,AM15,AP15,AT15,BA15,BD15,BH15,BI15,BO15,AN15,BV15) -> 560791068.4 | F37: =SUM(Q15,S15,W15,X15,Y15,AG15,AV15,BB15,BC15,BU15) -> 411761177.2 | G37: =SUM(C15,T15,V15,AZ15,BG15,AW15) -> 185805635.3 | H37: =SUM(H15,BK15) -> 95165782.39 | I37: =BL15 -> 29319768.78 | J37: =H37+I37 -> 124485551.2 | K37: =SUM(G15,K15,AO15,AE15,BR15) -> 55258486.08 | L37: =SUM(D15,AK15,AI15,BJ15,BS15) -> 127963856.9 | M37: =SUM(BF15,BM15) -> 176212549.1 | N37: =R15+BT15 -> 53054625.89 | O37: =SUM(B37:N37) -> 2806530698 | Q37: 304867000 | R37: 188063000 | S37: 47173000 | T37: 183716000
A38: FARM | B38: =SUM(I16,L16,O16,AB16,AC16,AQ16,AS16,AU16) -> 40779033.6 | C38: =SUM(F16,J16,N16,P16,Z16,AF16,AX16,BN16) -> 22881256.62 | D38: =AY16 -> 58849.61 | E38: =SUM(B16,M16,U16,AA16,AD16,AH16,AJ16,AL16,AM16,AP16,AT16,BA16,BD16,BH16,BI16,BO16,AN16,BV16) -> 192560564.9 | F38: =SUM(Q16,S16,W16,X16,Y16,AG16,AV16,BB16,BC16,BU16) -> 34726079.18 | G38: =SUM(C16,T16,V16,AZ16,BG16,AW16) -> 3587508.46 | H38: =SUM(H16,BK16) -> 3779949.8 | I38: =BL16 -> 17865105.93 | J38: =H38+I38 -> 21645055.73 | K38: =SUM(G16,K16,AO16,AE16,BR16) -> 12020877.09 | L38: =SUM(D16,AK16,AI16,BJ16,BS16) -> 46498430.45 | M38: =SUM(BF16,BM16) -> 58321.03 | N38: =R16+BT16 -> 602370.95 | O38: =SUM(B38:N38) -> 397063403.3 | Q38: 0 | R38: 0 | S38: 0 | T38: 0
A39: INDUSTRIAL | B39: 38182137.5 | C39: 169756668.1 | D39: 31846858.75 | E39: 424178417.1 | F39: 49019643.53 | G39: =SUM(C17,T17,V17,AZ17,BG17,AW17) -> 28020540.67 | H39: 72836197.1 | I39: 44246075.86 | J39: 117082273 | K39: =SUM(G17,K17,AO17,AE17,BR17) -> 20142755.2 | L39: =SUM(D17,AK17,AI17,BJ17,BS17) -> 115101148.4 | M39: =SUM(BF17,BM17) -> 45066123.03 | N39: =R17+BT17 -> 2409172.46 | O39: 1157888011 | Q39: 67181000 | R39: 82345000 | S39: 3138000 | T39: 92801000
A40: LIGHT | B40: 13610724.09 | C40: 5587778.38 | D40: 1084132.58 | E40: 8715519.89 | F40: 13502189.76 | G40: 5693555.13 | H40: 1506304.83 | I40: 68790.22 | J40: 1575095.05 | K40: =SUM(G18,K18,AO18,AE18,BR18) -> 1374341.51 | L40: =SUM(D18,AK18,AI18,BJ18,BS18) -> 1316445.58 | M40: =SUM(BF18,BM18) -> 0 | N40: =R18+BT18 -> 3219541.64 | O40: 57254418.66 | Q40: 0 | R40: 0 | S40: 0 | T40: 0
A41: RESIDENTIAL | B41: 544623924.4 | C41: 595793406.5 | D41: 62274911.86 | E41: 698011327.8 | F41: 488071933.5 | G41: 290874572.3 | H41: 60636746.73 | I41: 51985778.5 | J41: 112622525.2 | K41: =SUM(G19,K19,AO19,AE19,BR19) -> 69729096.7 | L41: =SUM(D19,AK19,AI19,BJ19,BS19) -> 147399586.8 | M41: =SUM(BF19,BM19) -> 144933573.4 | N41: =R19+BT19 -> 149637825.8 | O41: 3416595209 | Q41: 297080000 | R41: 160439000 | S41: 60639000 | T41: 120000000
A42: GRAND TOTAL | B42: =SUM(B37:B41) -> 1060168038 | C42: 1261376312 | D42: 191647529 | E42: 1884256898 | F42: 997081023.1 | G42: 513981811.9 | H42: 233924980.8 | I42: 143485519.3 | J42: 377410500.1 | K42: =SUM(K37:K41) -> 158525556.6 | L42: =SUM(L37:L41) -> 438279468.1 | M42: =SUM(M37:M41) -> 366270566.5 | N42: =SUM(N37:N41) -> 208923536.7 | O42: =SUM(O37:O41) -> 7835331740 | Q42: =SUM(Q37:Q41) -> 669128000 | R42: 430847000 | S42: 110950000 | T42: =SUM(T37:T41) -> 396517000
A46: COMMERCIAL | B46: =B37/B$42 -> 0.3989671479 | C46: 0.3705136984 | D46: 0.502916874 | E46: 0.2976192201 | F46: 0.4129666172 | G46: 0.3615023548 | H46: 0.4068218026 | I46: 0.2043395663 | J46: 0.3298412501 | K46: 0.3485777768 | L46: 0.2919686323 | M46: 0.4810993981 | N46: 0.2539427904 | O46: 0.358189135
A47: FARM | B47: 0.03846468874 | C47: 0.01813991305 | D47: 0.0003070721042 | E47: 0.1021944328 | F47: 0.03482774055 | G47: 0.006979835428 | H47: 0.01615881205 | I47: 0.1245080759 | J47: 0.05735149319 | K47: 0.07582926911 | L47: 0.1060931069 | M47: 0.0001592293657 | N47: 0.002883212488 | O47: 0.05067601685
A48: INDUSTRIAL | B48: 0.03601517508 | C48: 0.1345805105 | D48: 0.1661741162 | E48: 0.2251170833 | F48: 0.04916314963 | G48: 0.05451659966 | H48: 0.3113656217 | I48: 0.3083661409 | J48: 0.3102252664 | K48: 0.1270631413 | L48: 0.2626204437 | M48: 0.1230405256 | N48: 0.01153135974 | O48: 0.1477777903
A49: LIGHT | B49: 0.01283827054 | C49: 0.00442990591 | D49: 0.005656908731 | E49: 0.004625441413 | F49: 0.01354171772 | G49: 0.01107734748 | H49: 0.006439264522 | I49: 0.0004794227344 | J49: 0.004173426678 | K49: 0.008669526477 | L49: 0.003003667011 | M49: 0 | N49: 0.0154101433 | O49: 0.007307210538
A50: RESIDENTIAL | B50: 0.5137147177 | C50: 0.4723359721 | D50: 0.324945029 | E50: 0.3704438224 | F50: 0.4895007749 | G50: 0.5659238627 | H50: 0.2592144991 | I50: 0.3623067941 | J50: 0.2984085636 | K50: 0.4398602863 | L50: 0.3363141501 | M50: 0.3957008469 | N50: 0.7162324941 | O50: 0.4360498474
A51: GRAND TOTAL | B51: =SUM(B46:B50) -> 1 | C51: 1 | D51: 1 | E51: 1 | F51: 1 | G51: 1 | H51: 1 | I51: 1 | J51: 1 | K51: 1 | L51: 1 | M51: 1 | N51: 1 | O51: 1
B54: Add light to Residential for VCR calcs.
B55: Add data from other db's to calculate overall VCR
A56: For TCPR Spreadsheet
A57: RESIDENTIAL | B57: =(B41+B40+Q41+Q40)/(B42+Q42) -> 0.4946027919 | C57: =(C40+C41+R40+R41)/(C42+R42) -> 0.4501889198 | D57: =(D40+D41+S40+S41)/(D42+S42) -> 0.409778774 | E57: =E50+E49 -> 0.3750692639 | F57: =(F41+F40+T40+T41)/(F42+T42) -> 0.4460211 | G57: 0.5770012101 | H57: 0.2656537636 | I57: 0.3627862169 | J57: 0.3025819903 | K57: 0.4485298128 | L57: 0.3393178171 | M57: 0.3957008469 | N57: 0.7316426374
A58: AGRICULTURAL | B58: =(B38+Q38)/(B42+Q42) -> 0.02358129129 | C58: =(C38+R38)/(C42+R42) -> 0.01352141674 | D58: =(D38+S38)/(D42+S42) -> 0.0001944814625 | E58: =E47 -> 0.1021944328 | F58: =(F38+T38)/(F42+T42) -> 0.02491828964 | G58: 0.006979835428 | H58: 0.01615881205 | I58: 0.1245080759 | J58: 0.05735149319 | K58: 0.07582926911 | L58: 0.1060931069 | M58: 0.0001592293657 | N58: 0.002883212488
A59: COMMERCIAL | B59: =(B37+Q37)/(B42+Q42) -> 0.4208875765 | C59: =(C37+R37)/(C42+R42) -> 0.3873130679 | D59: =(D37+S37)/(D42+S42) -> 0.4744115944 | E59: =E46 -> 0.2976192201 | F59: =(F37+T37)/(F42+T42) -> 0.4272947918 | G59: 0.3615023548 | H59: 0.4068218026 | I59: 0.2043395663 | J59: 0.3298412501 | K59: 0.3485777768 | L59: 0.2919686323 | M59: 0.4810993981 | N59: 0.2539427904
A60: INDUSTRIAL | B60: =(B39+Q39)/(B42+Q42) -> 0.06092834031 | C60: =(C39+R39)/(C42+R42) -> 0.1489765956 | D60: =(D39+S39)/(D42+S42) -> 0.1156151502 | E60: =E48 -> 0.2251170833 | F60: =(F39+T39)/(F42+T42) -> 0.1017658185 | G60: 0.05451659966 | H60: 0.3113656217 | I60: 0.3083661409 | J60: 0.3102252664 | K60: 0.1270631413 | L60: 0.2626204437 | M60: 0.1230405256 | N60: 0.01153135974
A64: AUSNET | B64: =B42/(B42+Q42) -> 0.6130633592 | C64: =C42/(C42+R42) -> 0.7453958961 | D64: =D42/(D42+S42) -> 0.6333413549 | F64: =F42/(F42+T42) -> 0.7154724724 | P64: =(B42-O20)/(B42+Q42+O20) -> 0.4487319554
A65: UE | B65: =Q42/(B42+Q42) -> 0.3869366408 | C65: =R42/(C42+R42) -> 0.2546041039 | D65: =S42/(D42+S42) -> 0.3666586451 | F65: NA
A66: JEN | B66: NA | C66: NA | D66: NA | F66: =T42/(F42+T42) -> 0.2845275276
A70: VCR scenarios
B71: AER | C71: AER values + Res Ausnet | D71: All Ausnet values
A72: Residential | B72: 23.84412478 | C72: 53.42 | D72: 53.42
A73: Agricultural | B73: 42.13611785 | C73: 42.13611785 | D73: 32.1
A74: Commercial | B74: 49.5352513 | C74: 49.5352513 | D74: 32.1
A75: Industrial excluding DC | B75: 70.97604853 | C75: 70.97604853 | D75: 32.1
B81: =B25 -> bdl | C81: =C25 -> bge | D81: bn | E81: bom | F81: bra | G81: brt | H81: bwa | I81: bwn | J81: bwr | K81: cf | L81: cln | M81: cnr | N81: cpk | O81: cre | P81: cyn | Q81: drn | R81: elm | S81: epg | T81: fgy | U81: ftr | V81: hpk | W81: klk | X81: klo | Y81: kms | Z81: ldl | AA81: lga | AB81: llg | AC81: lyd | AD81: lys | AE81: mby | AF81: mdg | AG81: mdi | AH81: mfa | AI81: mjg | AJ81: moe | AK81: msd | AL81: mwe | AM81: mwl | AN81: mwt | AO81: myt | AP81: nla | AQ81: nrn | AR81: nw | AS81: ofr | AT81: phi | AU81: phm | AV81: ruba | AW81: rve | AX81: rwn | AY81: rwt | AZ81: sfs | BA81: sle | BB81: smg | BC81: smr | BD81: tgn | BE81: trc | BF81: tt | BG81: uwy | BH81: wgi | BI81: wgl | BJ81: wn | BK81: =BK25 -> wo | BL81: =BL25 -> wots | BM81: wt | BN81: wyk | BO81: yn | BP81: Grand Total
A82: COMMERCIAL | B82: =B26 -> 0.3890409172 | C82: 0.2749473494 | D82: 0.2484810456 | E82: 0.2886090132 | F82: 0.4930895216 | G82: 0.414450263 | H82: 0.3001074749 | I82: 0.4653824741 | J82: 0.4411447818 | K82: 0.6833427929 | L82: 0.2693074899 | M82: 0.3875358885 | N82: 0.2421491397 | O82: 0.4621314369 | P82: 0.4272133817 | Q82: 0.228626662 | R82: 0.2539427904 | S82: 0.5999099625 | T82: 0.3997648978 | U82: 0.2377606039 | V82: 0.3916298602 | W82: 0.1920442783 | X82: 0.3237941334 | Y82: 0.3401737964 | Z82: 0.3510423259 | AA82: 0.3277634546 | AB82: 0.3195984959 | AC82: 0.3129399142 | AD82: 0.03299585521 | AE82: 0.3574886523 | AF82: 0.230360296 | AG82: 0.3707069945 | AH82: 0.2299838384 | AI82: 0.6133419268 | AJ82: 0.2898041288 | AK82: 0.3030300228 | AL82: 0.645653262 | AM82: 0.1491969534 | AO82: 0.2394804215 | AP82: 0.2119591773 | AQ82: 0.6136184427 | AR82: 0 | AS82: 0.3466457059 | AT82: 0.2648464639 | AU82: 0.4705049541 | AV82: 0.3131932587 | AW82: 0.378697727 | AX82: 0.2044504613 | AY82: 0.502916874 | AZ82: 0.1906654649 | BA82: 0.3494998879 | BB82: 0.4938847235 | BC82: 0.3623951121 | BD82: 0.3750327207 | BE82: 0.1801334393 | BF82: 0.5096329818 | BG82: 0.09633439 | BH82: 0.2725709085 | BI82: 0.4336524765 | BJ82: 0.2800873834 | BK82: =BK26 -> 0.4324759109 | BL82: 0.2043395663 | BM82: 0.4556740357 | BN82: 0.2714281589 | BO82: 0.3192495356 | BP82: 0.3595579029
A83: FARM | B83: =B27 -> 0.05778197058 | C83: 0.02891874969 | D83: 0.1230724238 | E83: 0.001491229934 | F83: 0.0001360706139 | G83: 0.04041468228 | H83: 0.08157324347 | I83: 0.00583658708 | J83: 0.0006545342124 | K83: 0.0003304774069 | L83: 0.02609572221 | M83: 0.03585974826 | N83: 0.009168048468 | O83: 0.01866765401 | P83: 0.0005792476336 | Q83: 0.04522044198 | R83: 0.002883212488 | S83: 0.00257930839 | T83: 0.002878015042 | U83: 0.3377222266 | V83: 0.0004336780661 | W83: 0.1162512166 | X83: 0.007841112356 | Y83: 0.03129669951 | Z83: 0.06519143055 | AA83: 0.1785487552 | AB83: 0.1666496093 | AC83: 0.009274912288 | AD83: 0 | AE83: 0.07142461757 | AF83: 0.004963043015 | AG83: 0.2936502756 | AH83: 0.3323134319 | AI83: 0.02989036701 | AJ83: 0.12447158 | AK83: 0.1222161837 | AL83: 0 | AM83: 0.01310912057 | AO83: 0.1138583458 | AP83: 0.1221666994 | AQ83: 0.002406604915 | AR83: 0 | AS83: 0.02478494935 | AT83: 0.009650734468 | AU83: 0.06664576974 | AV83: 0.171869471 | AW83: 0.0005129133446 | AX83: 0.004314097098 | AY83: 0.0003070721042 | AZ83: 0.009314418063 | BA83: 0.1107710274 | BB83: 0.0005444103171 | BC83: 0.08724847756 | BD83: 0.06360374558 | BE83: 0.2645470265 | BF83: 4.622157785e-05 | BG83: 0.007696183721 | BH83: 0.05364212528 | BI83: 0.1236028404 | BJ83: 0.09989077162 | BK83: =BK27 -> 0.0004331926283 | BL83: 0.1245080759 | BM83: 0.0002599269857 | BN83: 0.06645252936 | BO83: 0 | BP83: 0.05038741054
A84: INDUSTRIAL | B84: 0.07289202258 | C84: 0.02511632371 | D84: 0.3214248203 | E84: 0 | F84: 0.1029782797 | G84: 0.008997195656 | H84: 0.436010236 | I84: 0.007534208223 | J84: 0.242243024 | K84: 0.00962447483 | L84: 0.01656676327 | M84: 0.07111749122 | N84: 0.2366670614 | O84: 0.01382491778 | P84: 0.1165319677 | Q84: 0.0308089069 | R84: 0.01153135974 | S84: 0.04917005433 | T84: 0.08339284744 | U84: 0.06834992682 | V84: 0.06757861395 | W84: 0.004735459543 | X84: 0.01141872132 | Y84: 0.06327520229 | Z84: 0.1135725442 | AA84: 0.2078664479 | AB84: 0.1318446322 | AC84: 0.004654795286 | AD84: 0.9670041448 | AE84: 0.0370690557 | AF84: 0.004880800113 | AG84: 0 | AH84: 0.1333410341 | AI84: 0.05658338932 | AJ84: 0.106482045 | AK84: 0.04294060304 | AL84: 0.354346738 | AM84: 0.7020725859 | AO84: 0.2460801335 | AP84: 0.08395183986 | AQ84: 0.0008531491107 | AR84: 0 | AS84: 0.01604023004 | AT84: 0.04074076177 | AU84: 0.09430130741 | AV84: 0.02341692021 | AW84: 0.007054449318 | AX84: 0.05251035984 | AY84: 0.1661741162 | AZ84: 0.009545490239 | BA84: 0.1259548894 | BB84: 0.01175380436 | BC84: 0.1579937179 | BD84: 0.09550174673 | BE84: 0.01914268091 | BF84: 0.2093343962 | BG84: 0.02004564492 | BH84: 0.03832743921 | BI84: 0.0503733247 | BJ84: 0.3058020726 | BK84: 0.2814010753 | BL84: 0.3083661409 | BM84: 0.04614682171 | BN84: 0.02188046582 | BO84: 0.6807504644 | BP84: 0.1395013579
A85: RESIDENTIAL | B85: =B29+B30 -> 0.4802850897 | C85: =C29+C30 -> 0.6710175772 | D85: 0.3070217103 | E85: 0.7098997569 | F85: 0.403796128 | G85: 0.5361378591 | H85: 0.1823090456 | I85: 0.5212467306 | J85: 0.3159576601 | K85: 0.3067022549 | L85: 0.6880300246 | M85: 0.505486872 | N85: 0.5120157505 | O85: 0.5053759913 | P85: 0.4556754029 | Q85: 0.6953439892 | R85: 0.7316426374 | S85: 0.3483406748 | T85: 0.5139642398 | U85: 0.3561672427 | V85: 0.5403234067 | W85: 0.6869690455 | X85: 0.656946033 | Y85: 0.5652543018 | Z85: 0.4701936994 | AA85: 0.2858213423 | AB85: 0.3819072626 | AC85: 0.6731303782 | AD85: 0 | AE85: 0.5340176745 | AF85: 0.7564833488 | AG85: 0.3356427299 | AH85: 0.3043616956 | AI85: 0.3001843168 | AJ85: 0.4792422461 | AK85: 0.5318131904 | AL85: 0 | AM85: 0.1356213401 | AO85: 0.4005810992 | AP85: 0.5819222835 | AQ85: 0.3831218033 | AR85: 1 | AS85: 0.6125291147 | AT85: 0.6847620398 | AU85: 0.3685479688 | AV85: 0.4915203501 | AW85: 0.6137349103 | AX85: 0.7387025347 | AY85: 0.3306019377 | AZ85: 0.7904746268 | BA85: 0.4137741952 | BB85: 0.4938170618 | BC85: 0.3923626924 | BD85: 0.4658617869 | BE85: 0.5361768532 | BF85: 0.2809864004 | BG85: 0.8759237814 | BH85: 0.635459527 | BI85: 0.3923713583 | BJ85: 0.3142197723 | BK85: =BK29+BK30 -> 0.2856898212 | BL85: =BL29+BL30 -> 0.3627862169 | BM85: 0.4979192157 | BN85: 0.640238846 | BO85: 0 | BP85: 0.4505497989
B87: =SUM(B82:B85) -> 1 | C87: =SUM(C82:C85) -> 1 | D87: 1 | E87: 1 | F87: 1 | G87: 1 | H87: 1 | I87: 1 | J87: 1 | K87: 1 | L87: 1 | M87: 1 | N87: 1 | O87: 1 | P87: 1 | Q87: 1 | R87: 1 | S87: 1 | T87: 1 | U87: 1 | V87: 0.999965559 | W87: 1 | X87: 1 | Y87: 1 | Z87: 1 | AA87: 1 | AB87: 1 | AC87: 1 | AD87: 1 | AE87: 1 | AF87: 0.9966874879 | AG87: 1 | AH87: 1 | AI87: 1 | AJ87: 1 | AK87: 1 | AL87: 1 | AM87: 1 | AO87: 1 | AP87: 1 | AQ87: 1 | AR87: 1 | AS87: 1 | AT87: 1 | AU87: 1 | AV87: 1 | AW87: 1 | AX87: 0.999977453 | AY87: 1 | AZ87: 1 | BA87: 1 | BB87: 1 | BC87: 1 | BD87: 1 | BE87: 1 | BF87: 1 | BG87: 1 | BH87: 1 | BI87: 1 | BJ87: 1 | BK87: =SUM(BK82:BK85) -> 1 | BL87: =SUM(BL82:BL85) -> 1 | BM87: 1 | BN87: 1 | BO87: 1 | BP87: 0.9999964703
A91: VCR by Zone substation (by scenario)
B92: =B81 -> bdl | C92: =C81 -> bge | D92: bn | E92: bom | F92: bra | G92: brt | H92: bwa | I92: bwn | J92: bwr | K92: cf | L92: cln | M92: cnr | N92: cpk | O92: cre | P92: cyn | Q92: drn | R92: elm | S92: epg | T92: fgy | U92: ftr | V92: hpk | W92: klk | X92: klo | Y92: kms | Z92: ldl | AA92: lga | AB92: llg | AC92: lyd | AD92: lys | AE92: mby | AF92: mdg | AG92: mdi | AH92: mfa | AI92: mjg | AJ92: moe | AK92: msd | AL92: mwe | AM92: mwl | AN92: mwt | AO92: myt | AP92: nla | AQ92: nrn | AR92: nw | AS92: ofr | AT92: phi | AU92: phm | AV92: ruba | AW92: rve | AX92: rwn | AY92: rwt | AZ92: sfs | BA92: sle | BB92: smg | BC92: smr | BD92: tgn | BE92: trc | BF92: tt | BG92: uwy | BH92: wgi | BI92: wgl | BJ92: wn | BK92: wo | BL92: wots | BM92: wt | BN92: wyk | BO92: =BO81 -> yn | BP92: Grand Total
A93: AER VCR | B93: =$B$72*B85+B84*$B$75+B83*$B$73+B82*$B$74 -> 38.33151286 | C93: =$B$72*C85+C84*$B$75+C83*$B$73+C82*$B$74 -> 32.62059415 | D93: 47.62849281 | E93: 31.28609302 | F93: 41.3682035 | G93: 35.65513915 | H93: 53.59636229 | I93: 36.26218934 | J93: 46.60698365 | K93: 41.85963603 | L93: 32.02110377 | M93: 37.80820876 | N93: 41.38748473 | O93: 36.70986556 | P93: 40.32268923 | Q93: 31.99705634 | R93: 30.96443601 | S93: 41.62114747 | T93: 38.09764531 | U93: 39.3515387 | V93: 37.09775877 | W93: 31.1276164 | X93: 32.8443767 | Y93: 36.13833385 | Z93: 39.40817128 | AA93: 45.32789533 | AB93: 41.31741483 | AC93: 32.2729498 | AD93: 70.26859109 | AE93: 36.08204549 | AF93: 30.00418179 | AG93: 38.73945389 | AH93: 42.11596311 | AI93: 42.8152082 | AJ93: 38.58505623 | AK93: 35.88875825 | AL93: 57.13272786 | AM93: 61.00698611 | AO93: 43.67757275 | AP93: 35.48107896 | AQ93: 39.69290599 | AR93: 23.84412478 | AS93: 33.95921649 | AT93: 32.74505044 | AU93: 41.59561307 | AV93: 36.13793209 | AW93: 33.91516797 | AX93: 31.64997755 | AY93: 44.60234855 | AZ93: 29.36281195 | BA93: 40.78588973 | BB93: 37.09651746 | BC93: 42.19695987 | BD93: 39.14375818 | BE93: 34.21327952 | BF93: 46.80434848 | BG93: 27.40463213 | BH93: 33.6344458 | BI93: 39.62027942 | BJ93: 47.28012646 | BK93: 48.2258161 | BL93: 45.90522873 | BM93: 37.73064715 | BN93: 33.06423761 | BO93: =$B$72*BO85+BO84*$B$75+BO83*$B$73+BO82*$B$74 -> 64.13108397 | BP93: 40.57814172 | BR93: 41.0100365
A94: =C71 -> AER values + Res Ausnet | B94: =$C$72*B85+B84*$C$75+B83*$C$73+B82*$C$74 -> 52.53636474 | C94: =$C$72*C85+C84*$C$75+C83*$C$73+C82*$C$74 -> 52.46652628 | D94: 56.7089286 | E94: 52.28199965 | F94: 53.31082739 | G94: 51.51188557 | H94: 58.98831187 | I94: 51.6785176 | J94: 55.95170798 | K94: 50.93062365 | L94: 52.37019392 | M94: 52.75842541 | N94: 56.53079868 | O94: 51.65680282 | P94: 53.79968809 | Q94: 52.5624634 | R94: 52.60340736 | S94: 51.9236278 | T94: 53.29858753 | U94: 49.88549663 | V94: 53.07829642 | W94: 51.44532717 | X94: 52.2741306 | Y94: 52.85622454 | Z94: 53.31456146 | AA94: 53.78131168 | AB94: 52.61265637 | AC94: 52.18136987 | AD94: 70.26859109 | AE94: 51.8760856 | AF94: 52.37783891 | AG94: 48.66638138 | AH94: 51.11772665 | AI94: 51.6934221 | AJ94: 52.7590651 | AK94: 51.61759881 | AL94: 57.13272786 | AM94: 65.01810595 | AO94: 55.52510935 | AP94: 52.6919398 | AQ94: 51.02406863 | AR94: 53.42 | AS94: 52.07530115 | AT94: 52.99748708 | AU94: 52.49574181 | AV94: 50.67507663 | AW94: 52.0669151 | AX94: 53.49775154 | AY94: 54.38019021 | AZ94: 52.74179088 | BA94: 53.0236237 | BB94: 51.70158926 | BC94: 53.8014299 | BD94: 52.92202826 | BE94: 50.07117922 | BF94: 55.1147672 | BG94: 53.31084459 | BH94: 52.42871748 | BI94: 51.22500575 | BJ94: 56.57345123 | BK94: 56.67534261 | BL94: 56.63494861 | BM94: 52.45704374 | BN94: 51.99986182 | BO94: =$C$72*BO85+BO84*$C$75+BO83*$C$73+BO82*$C$74 -> 64.13108397 | BP94: 53.90354635 | BR94: 54.1417251
A95: =D71 -> All Ausnet values | B95: =$D$72*B85+B84*$D$75+B83*$D$73+B82*$D$74 -> 42.33967811 | C95: =$D$72*C85+C84*$D$75+C83*$D$73+C82*$D$74 -> 46.40609475 | D95: 38.64570286 | E95: 47.23506282 | F95: 40.70893345 | G95: 43.53045916 | H95: 35.98682885 | I95: 43.2129803 | J95: 38.83621731 | K95: 38.63889207 | L95: 46.76880012 | M95: 42.87698011 | N95: 43.0161758 | O95: 42.87461613 | P95: 41.81499959 | Q95: 46.92473385 | R95: 47.69862103 | S95: 39.52662319 | T95: 43.05771759 | U95: 39.69348561 | V95: 43.61858948 | W95: 46.74618005 | X95: 46.10608942 | Y95: 44.15122171 | Z95: 42.12452967 | AA95: 38.19371102 | AB95: 40.24226284 | AC95: 46.45113966 | AD95: 32.1 | AE95: 43.48525682 | AF95: 48.12189336 | AG95: 39.255903 | AH95: 38.58899135 | AI95: 38.49992964 | AJ95: 42.31744469 | AK95: 43.43825722 | AL95: 32.1 | AM95: 34.99144697 | AO95: 40.64038903 | AP95: 44.50658308 | AQ95: 40.26815685 | AR95: 53.42 | AS95: 45.15912073 | AT95: 46.69912669 | AU95: 39.95744269 | AV95: 42.57921386 | AW95: 45.18482829 | AX95: 47.84841428 | AY95: 39.14843331 | AZ95: 48.95291904 | BA95: 40.92166584 | BB95: 42.62817976 | BC95: 40.4651726 | BD95: 42.0321733 | BE95: 43.53129051 | BF95: 38.09063006 | BG95: 50.77469502 | BH95: 45.64799712 | BI95: 40.46535736 | BJ95: 38.79916555 | BK95: 38.19090699 | BL95: 39.83460214 | BM95: 42.71563768 | BN95: 45.7498922 | BO95: =$D$72*BO85+BO84*$D$75+BO83*$D$73+BO82*$D$74 -> 32.1 | BP95: 41.70560841 | BR95: 41.56608
A101: End of Sheet

Sheet Transformer Unit Rates

Sheet Secondary Unit Rates
A6: Secondary Unit Rates
A7: This sheet includes the unit rates for Secondary Equipment.
A69: End of Sheet

Sheet Lines Unit Rates
A6: Lines Unit Rates
A7: This sheet includes the unit rates for Lines.
A50: End of Sheet

Sheet REFCL Figures
A6: REFCL Measurements and Forecasts
A7: This sheet includes the REFCL measurements and forecasts for the feeders (and REFCL supply buses) near BN11.
A10: ZSS | B10: REFCL Feeder | C10: Region | D10: Feeder Class | E10: BUS | F10: BUS Name | G10: ZSS-mod | H10: Limit | I10: I0 (A) -2021 | J10: I0 (A) -2022 | K10: I0 (A) -2023 | L10: I0 (A) -2024 | M10: I0 (A) -2025 | N10: I0 (A) -2026 | O10: I0 (A) -2027 | P10: I0 (A) -2028 | Q10: I0 (A) -2029 | R10: I0 (A) -2030 | S10: I0 (A) -2031
A11: BN | B11: BN6 | C11: North | D11: RURAL LONG | E11: BN BUS 2 | F11: BN BUS 2 | G11: BN ZSS | H11: 80 | I11: 42.92267862 | J11: 43.40399019 | K11: 43.68250597 | L11: 43.94245404 | M11: 44.22096983 | N11: 44.4809179 | O11: 44.75943368 | P11: 45.03794947 | Q11: 45.29789754 | R11: 45.59498105 | S11: 45.85492911
A12: MSD | B12: MSD2 | C12: North | D12: RURAL LONG | E12: MSD BUS 1 | F12: MSD BUS 1 | G12: MSD ZSS | H12: 80 | I12: 23.12174127 | J12: 23.13953438 | K12: 23.59439557 | L12: 24.03301172 | M12: 24.50411796 | N12: 24.94273411 | O12: 25.36510522 | P12: 25.80372137 | Q12: 26.22609248 | R12: 26.66470863 | S12: 27.07083469
A13: SMR | B13: SMR14 | C13: North | D13: RURAL LONG | E13: SMR BUS 1 | F13: SMR BUS 1 | G13: SMR ZSS | H13: 80 | I13: 38.82734888 | J13: 38.85481267 | K13: 39.37363798 | L13: 39.89246329 | M13: 40.43487157 | N13: 40.95369688 | O13: 41.44893922 | P13: 41.99134749 | Q13: 42.48658984 | R13: 43.00541514 | S13: 43.5133939
A14: SMR | B14: SMR24 | C14: North | D14: RURAL LONG | E14: SMR BUS 2 | F14: SMR BUS 2 | G14: SMR ZSS | H14: 80 | I14: 52.94493873 | J14: 53.99131037 | K14: 55.04056679 | L14: 56.06597647 | M14: 57.13382556 | N14: 58.1353885 | O14: 59.06541123 | P14: 60.04312744 | Q14: 60.99174284 | R14: 61.92176557 | S14: 62.82794157
A15: RUBA | B15: RUBA12 | C15: North | D15: RURAL LONG | E15: RUBA BUS 1 | F15: RUBA BUS 1 | G15: RUBA ZSS | H15: 80 | I15: 30.38102751 | J15: 30.39363164 | K15: 30.89566231 | L15: 31.39769298 | M15: 31.8845106 | N15: 32.34090212 | O15: 32.72122838 | P15: 33.1167677 | Q15: 33.49709397 | R15: 33.88521061 | S15: 34.26553688
A19: REFCL Feeder | B19: BUS | C19: REFCL BUS | D19: Region | E19: Feeder Class | F19: Latest Measured Ic - TunePoint (Bus/zss only) | G19: Latest SUMMATED Ic - ELSPEC (Bus/zss only) (Sum of Feeder Size A) | H19: Latest Measured Ic - ELSPEC | I19: REFCL Bus Damping (worst case %) | J19: Date Measured | K19: Tunepoint to Summated Bus Variance | M19: ELSPEC Limit
A20: BN11 | B20: BN BUS 1 | C20: BN BUS 1 | D20: North | E20: RURAL LONG | F20: 97.7 | G20: =SUMIF(C:C,C20,H:H) -> 94 | H20: 6 | I20: =2.1/F20 -> 0.02149437052 | J20: 2023-09-21 | K20: =F20-G20 -> 3.7 | M20: =L20-K20 -> -3.7
A21: BN12 | B21: BN BUS 1 | C21: BN BUS 1 | D21: North | E21: RURAL LONG | F21: 97.7 | G21: 94 | H21: 13 | I21: =2.1/F21 -> 0.02149437052 | J21: 2023-09-21 | K21: 3.7 | M21: -3.7
A22: BN22 | B22: BN BUS 1 | C22: BN BUS 1 | D22: North | E22: RURAL SHORT | F22: 97.7 | G22: 94 | H22: 11 | I22: 0.02149437052 | J22: 2023-09-21 | K22: =F22-G22 -> 3.7 | M22: -3.7
A23: BN23 | B23: BN BUS 2 | C23: BN BUS 1 | D23: North | E23: URBAN | F23: 97.7 | G23: 94 | H23: 40 | I23: 0.02149437052 | J23: 2023-09-21 | K23: 3.7 | M23: -3.7
A24: BN24 | B24: BN BUS 2 | C24: BN BUS 1 | D24: North | E24: RURAL LONG | F24: 97.7 | G24: 94 | H24: 24 | I24: 0.02149437052 | J24: 2023-09-21 | K24: 3.7 | M24: -3.7
A25: BN11 (downstream) | B25: BNBVT BUS 1 | C25: BNBVT BUS 1 | F25: 71 | G25: 71 | H25: 71 | I25: 0.05 | J25: 2023-09-21 | K25: 0 | M25: 0
A26: MSD1 | B26: MSD BUS 1 | C26: MSD BUS 1 | D26: North | E26: RURAL LONG | F26: 82 | G26: 71 | H26: 28 | I26: 0.027 | J26: 2023-05-29 | K26: 11 | M26: -11
A27: MSD2 | B27: MSD BUS 1 | C27: MSD BUS 1 | D27: North | E27: RURAL LONG | F27: 82 | G27: 71 | H27: 21 | I27: 0.027 | J27: 2023-05-29 | K27: 11 | M27: -11
A28: MSD4 | B28: MSD BUS 1 | C28: MSD BUS 1 | D28: North | E28: RURAL LONG | F28: 82 | G28: 71 | H28: 22 | I28: 0.027 | J28: 2023-05-29 | K28: 11 | M28: -11
A29: RUBA12 | B29: RUBA BUS 1 | C29: RUBA BUS 1 | D29: North | E29: RURAL LONG | F29: 78 | G29: 69.8 | H29: 28.5 | I29: 0.039 | J29: 2023-05-24 | K29: =F29-G29 -> 8.2 | M29: -8.2
A30: RUBA13 | B30: RUBA BUS 1 | C30: RUBA BUS 1 | D30: North | E30: RURAL SHORT | F30: 78 | G30: 69.8 | H30: 1.7 | I30: 0.039 | J30: 2023-05-24 | K30: 8.2 | M30: -8.2
A31: RUBA21 | B31: RUBA BUS 2 | C31: RUBA BUS 1 | D31: North | E31: RURAL SHORT | F31: 78 | G31: 69.8 | H31: 1.6 | I31: 0.039 | J31: 2023-05-24 | K31: 8.2 | M31: -8.2
A32: RUBA22 | B32: RUBA BUS 2 | C32: RUBA BUS 1 | D32: North | E32: RURAL SHORT | F32: 78 | G32: 69.8 | H32: 30 | I32: 0.039 | J32: 2023-05-24 | K32: 8.2 | M32: -8.2
A33: RUBA24 | B33: RUBA BUS 2 | C33: RUBA BUS 1 | D33: North | E33: RURAL SHORT | F33: 78 | G33: 69.8 | H33: 8 | I33: 0.039 | J33: 2023-05-24 | K33: 8.2 | M33: -8.2
A34: SMR12 | B34: SMR BUS 1 | C34: SMR BUS 1 | D34: North | E34: RURAL SHORT | F34: 65 | G34: 58 | H34: 6 | I34: 0.035 | J34: 2023-08-09 | K34: 7 | M34: -7
A35: SMR13 | B35: SMR BUS 1 | C35: SMR BUS 1 | D35: North | E35: RURAL SHORT | F35: 65 | G35: 58 | H35: 11 | I35: 0.035 | J35: 2023-08-09 | K35: 7 | M35: -7
A36: SMR14 | B36: SMR BUS 1 | C36: SMR BUS 1 | D36: North | E36: RURAL LONG | F36: 65 | G36: 58 | H36: 41 | I36: 0.035 | J36: 2023-08-09 | K36: 7 | M36: =L36-K36 -> -7
A37: SMR22 | B37: SMR BUS 2 | C37: SMR BUS 2 | D37: North | E37: RURAL LONG | F37: 109 | G37: 101 | H37: 25 | I37: 0.028 | J37: 2023-08-09 | K37: 8 | M37: -8
A38: SMR23 | B38: SMR BUS 2 | C38: SMR BUS 2 | D38: North | E38: RURAL SHORT | F38: 109 | G38: 101 | H38: 19 | I38: 0.028 | J38: 2023-08-09 | K38: 8 | M38: -8
A39: SMR24 | B39: SMR BUS 2 | C39: SMR BUS 2 | D39: North | E39: RURAL LONG | F39: 109 | G39: 101 | H39: 57 | I39: 0.028 | J39: 2023-08-09 | K39: 8 | M39: -8
A56: End of Sheet

Sheet BN11 (Feeder)
A6: BN11 Feeder Demand
A7: This sheet includes the BN11 feeder demand.
A10: Interval | B10: 5m | G10: BN.CB.BN11FDR22.AMPS.BPH
E11: 2023-01-01 | F11: 2023-01-01T00:05:00 | G11: 108.7875
E12: 2023-01-01T00:05:00 | F12: 2023-01-01T00:10:00 | G12: 112.9208333
A13: BN.CB.BN11FDR22.AMPS.BPH | E13: 2023-01-01T00:10:00 | F13: 2023-01-01T00:15:00 | G13: 116.9583333
E14: 2023-01-01T00:15:00 | F14: 2023-01-01T00:20:00 | G14: 119.2958333
E15: 2023-01-01T00:20:00 | F15: 2023-01-01T00:25:00 | G15: 125.3625
E16: 2023-01-01T00:25:00 | F16: 2023-01-01T00:30:00 | G16: 130.525
E17: 2023-01-01T00:30:00 | F17: 2023-01-01T00:35:00 | G17: 130.9625
E18: 2023-01-01T00:35:00 | F18: 2023-01-01T00:40:00 | G18: 131.2375
E19: 2023-01-01T00:40:00 | F19: 2023-01-01T00:45:00 | G19: 132.425
E20: 2023-01-01T00:45:00 | F20: 2023-01-01T00:50:00 | G20: 134.2
E21: 2023-01-01T00:50:00 | F21: 2023-01-01T00:55:00 | G21: 135.475
E22: 2023-01-01T00:55:00 | F22: 2023-01-01T01:00:00 | G22: 136.828125
E23: 2023-01-01T01:00:00 | F23: 2023-01-01T01:05:00 | G23: 139.634375
E24: 2023-01-01T01:05:00 | F24: 2023-01-01T01:10:00 | G24: 139.6458333
E25: 2023-01-01T01:10:00 | F25: 2023-01-01T01:15:00 | G25: 138.2916667
E26: 2023-01-01T01:15:00 | F26: 2023-01-01T01:20:00 | G26: 135.5125
E27: 2023-01-01T01:20:00 | F27: 2023-01-01T01:25:00 | G27: 137.2
E28: 2023-01-01T01:25:00 | F28: 2023-01-01T01:30:00 | G28: 137.2
E29: 2023-01-01T01:30:00 | F29: 2023-01-01T01:35:00 | G29: 135.46875
E30: 2023-01-01T01:35:00 | F30: 2023-01-01T01:40:00 | G30: 138.55625
E31: 2023-01-01T01:40:00 | F31: 2023-01-01T01:45:00 | G31: 141.7625
E32: 2023-01-01T01:45:00 | F32: 2023-01-01T01:50:00 | G32: 140.5125
E33: 2023-01-01T01:50:00 | F33: 2023-01-01T01:55:00 | G33: 139.4083333
E34: 2023-01-01T01:55:00 | F34: 2023-01-01T02:00:00 | G34: 139.0875
E35: 2023-01-01T02:00:00 | F35: 2023-01-01T02:05:00 | G35: 139.1541667
E36: 2023-01-01T02:05:00 | F36: 2023-01-01T02:10:00 | G36: 132.3375
E37: 2023-01-01T02:10:00 | F37: 2023-01-01T02:15:00 | G37: 127.4475
E38: 2023-01-01T02:15:00 | F38: 2023-01-01T02:20:00 | G38: 125.4275
E39: 2023-01-01T02:20:00 | F39: 2023-01-01T02:25:00 | G39: 122.4479167
E40: 2023-01-01T02:25:00 | F40: 2023-01-01T02:30:00 | G40: 118.7270833
E41: 2023-01-01T02:30:00 | F41: 2023-01-01T02:35:00 | G41: 117.2375
E42: 2023-01-01T02:35:00 | F42: 2023-01-01T02:40:00 | G42: 115.9041667
E43: 2023-01-01T02:40:00 | F43: 2023-01-01T02:45:00 | G43: 112.6395833
E44: 2023-01-01T02:45:00 | F44: 2023-01-01T02:50:00 | G44: 111.70625
E45: 2023-01-01T02:50:00 | F45: 2023-01-01T02:55:00 | G45: 108.9
E46: 2023-01-01T02:55:00 | F46: 2023-01-01T03:00:00 | G46: 106.7125
E47: 2023-01-01T03:00:00 | F47: 2023-01-01T03:05:00 | G47: 103.5545455
E48: 2023-01-01T03:05:00 | F48: 2023-01-01T03:10:00 | G48: 102.0454545
E49: 2023-01-01T03:10:00 | F49: 2023-01-01T03:15:00 | G49: 101.3625
E50: 2023-01-01T03:15:00 | F50: 2023-01-01T03:20:00 | G50: 99.95
E51: 2023-01-01T03:20:00 | F51: 2023-01-01T03:25:00 | G51: 97.09134615
E52: 2023-01-01T03:25:00 | F52: 2023-01-01T03:30:00 | G52: 95.73365385
E53: 2023-01-01T03:30:00 | F53: 2023-01-01T03:35:00 | G53: 95.5125
E54: 2023-01-01T03:35:00 | F54: 2023-01-01T03:40:00 | G54: 93.67916667
E55: 2023-01-01T03:40:00 | F55: 2023-01-01T03:45:00 | G55: 91.92083333
E56: 2023-01-01T03:45:00 | F56: 2023-01-01T03:50:00 | G56: 93.4875
E57: 2023-01-01T03:50:00 | F57: 2023-01-01T03:55:00 | G57: 92.65625
E58: 2023-01-01T03:55:00 | F58: 2023-01-01T04:00:00 | G58: 88.19375
E59: 2023-01-01T04:00:00 | F59: 2023-01-01T04:05:00 | G59: 89.0875
E60: 2023-01-01T04:05:00 | F60: 2023-01-01T04:10:00 | G60: 89.1125
E61: 2023-01-01T04:10:00 | F61: 2023-01-01T04:15:00 | G61: 88.06875
E62: 2023-01-01T04:15:00 | F62: 2023-01-01T04:20:00 | G62: 89.15625
E63: 2023-01-01T04:20:00 | F63: 2023-01-01T04:25:00 | G63: 90.0125
E64: 2023-01-01T04:25:00 | F64: 2023-01-01T04:30:00 | G64: 89.9125
E65: 2023-01-01T04:30:00 | F65: 2023-01-01T04:35:00 | G65: 87.52916667
E66: 2023-01-01T04:35:00 | F66: 2023-01-01T04:40:00 | G66: 85.75833333
E67: 2023-01-01T04:40:00 | F67: 2023-01-01T04:45:00 | G67: 85.375
E68: 2023-01-01T04:45:00 | F68: 2023-01-01T04:50:00 | G68: 86
E69: 2023-01-01T04:50:00 | F69: 2023-01-01T04:55:00 | G69: 87.075
E70: 2023-01-01T04:55:00 | F70: 2023-01-01T05:00:00 | G70: 86.22
E71: 2023-01-01T05:00:00 | F71: 2023-01-01T05:05:00 | G71: 86.455
E72: 2023-01-01T05:05:00 | F72: 2023-01-01T05:10:00 | G72: 88.725
E73: 2023-01-01T05:10:00 | F73: 2023-01-01T05:15:00 | G73: 89.5
E74: 2023-01-01T05:15:00 | F74: 2023-01-01T05:20:00 | G74: 91.025
E75: 2023-01-01T05:20:00 | F75: 2023-01-01T05:25:00 | G75: 89.8
E76: 2023-01-01T05:25:00 | F76: 2023-01-01T05:30:00 | G76: 87.93333333
E77: 2023-01-01T05:30:00 | F77: 2023-01-01T05:35:00 | G77: 88.73484848
E78: 2023-01-01T05:35:00 | F78: 2023-01-01T05:40:00 | G78: 89.41515152
E79: 2023-01-01T05:40:00 | F79: 2023-01-01T05:45:00 | G79: 88.325
E80: 2023-01-01T05:45:00 | F80: 2023-01-01T05:50:00 | G80: 89.96666667
E81: 2023-01-01T05:50:00 | F81: 2023-01-01T05:55:00 | G81: 91.475
E82: 2023-01-01T05:55:00 | F82: 2023-01-01T06:00:00 | G82: 91.24166667
E83: 2023-01-01T06:00:00 | F83: 2023-01-01T06:05:00 | G83: 89.07083333
E84: 2023-01-01T06:05:00 | F84: 2023-01-01T06:10:00 | G84: 91.37916667
E85: 2023-01-01T06:10:00 | F85: 2023-01-01T06:15:00 | G85: 93.90833333
E86: 2023-01-01T06:15:00 | F86: 2023-01-01T06:20:00 | G86: 92.13333333
E87: 2023-01-01T06:20:00 | F87: 2023-01-01T06:25:00 | G87: 90.41666667
E88: 2023-01-01T06:25:00 | F88: 2023-01-01T06:30:00 | G88: 92.6
E89: 2023-01-01T06:30:00 | F89: 2023-01-01T06:35:00 | G89: 91.55
E90: 2023-01-01T06:35:00 | F90: 2023-01-01T06:40:00 | G90: 90.275
E91: 2023-01-01T06:40:00 | F91: 2023-01-01T06:45:00 | G91: 86.325
E92: 2023-01-01T06:45:00 | F92: 2023-01-01T06:50:00 | G92: 86.89166667
E93: 2023-01-01T06:50:00 | F93: 2023-01-01T06:55:00 | G93: 87.03333333
E94: 2023-01-01T06:55:00 | F94: 2023-01-01T07:00:00 | G94: 86.9
E95: 2023-01-01T07:00:00 | F95: 2023-01-01T07:05:00 | G95: 86.125
E96: 2023-01-01T07:05:00 | F96: 2023-01-01T07:10:00 | G96: 88.175
E97: 2023-01-01T07:10:00 | F97: 2023-01-01T07:15:00 | G97: 86.35833333
E98: 2023-01-01T07:15:00 | F98: 2023-01-01T07:20:00 | G98: 87.81666667
E99: 2023-01-01T07:20:00 | F99: 2023-01-01T07:25:00 | G99: 88.325
E100: 2023-01-01T07:25:00 | F100: 2023-01-01T07:30:00 | G100: 87.125
E101: 2023-01-01T07:30:00 | F101: 2023-01-01T07:35:00 | G101: 85.85
E102: 2023-01-01T07:35:00 | F102: 2023-01-01T07:40:00 | G102: 89.15
E103: 2023-01-01T07:40:00 | F103: 2023-01-01T07:45:00 | G103: 87.9
E104: 2023-01-01T07:45:00 | F104: 2023-01-01T07:50:00 | G104: 84.705
E105: 2023-01-01T07:50:00 | F105: 2023-01-01T07:55:00 | G105: 83.58875
E106: 2023-01-01T07:55:00 | F106: 2023-01-01T08:00:00 | G106: 84.48125
E107: 2023-01-01T08:00:00 | F107: 2023-01-01T08:05:00 | G107: 76.825
E108: 2023-01-01T08:05:00 | F108: 2023-01-01T08:10:00 | G108: 73.5625
E109: 2023-01-01T08:10:00 | F109: 2023-01-01T08:15:00 | G109: 72.7375
E110: 2023-01-01T08:15:00 | F110: 2023-01-01T08:20:00 | G110: 71.65
E111: 2023-01-01T08:20:00 | F111: 2023-01-01T08:25:00 | G111: 68.75
E112: 2023-01-01T08:25:00 | F112: 2023-01-01T08:30:00 | G112: 64.75
E113: 2023-01-01T08:30:00 | F113: 2023-01-01T08:35:00 | G113: 65.925
E114: 2023-01-01T08:35:00 | F114: 2023-01-01T08:40:00 | G114: 65.85833333
E115: 2023-01-01T08:40:00 | F115: 2023-01-01T08:45:00 | G115: 63.86666667
E116: 2023-01-01T08:45:00 | F116: 2023-01-01T08:50:00 | G116: 60.7
E117: 2023-01-01T08:50:00 | F117: 2023-01-01T08:55:00 | G117: 59.5
E118: 2023-01-01T08:55:00 | F118: 2023-01-01T09:00:00 | G118: 53.90833333
E119: 2023-01-01T09:00:00 | F119: 2023-01-01T09:05:00 | G119: 52.14166667
E120: 2023-01-01T09:05:00 | F120: 2023-01-01T09:10:00 | G120: 55
E121: 2023-01-01T09:10:00 | F121: 2023-01-01T09:15:00 | G121: 58.15
E122: 2023-01-01T09:15:00 | F122: 2023-01-01T09:20:00 | G122: 55.05
E123: 2023-01-01T09:20:00 | F123: 2023-01-01T09:25:00 | G123: 50.34166667
E124: 2023-01-01T09:25:00 | F124: 2023-01-01T09:30:00 | G124: 49.35833333
E125: 2023-01-01T09:30:00 | F125: 2023-01-01T09:35:00 | G125: 46.525
E126: 2023-01-01T09:35:00 | F126: 2023-01-01T09:40:00 | G126: 43.175
E127: 2023-01-01T09:40:00 | F127: 2023-01-01T09:45:00 | G127: 43.625
E128: 2023-01-01T09:45:00 | F128: 2023-01-01T09:50:00 | G128: 42.175
E129: 2023-01-01T09:50:00 | F129: 2023-01-01T09:55:00 | G129: 39.095
E130: 2023-01-01T09:55:00 | F130: 2023-01-01T10:00:00 | G130: 38.36333333
E131: 2023-01-01T10:00:00 | F131: 2023-01-01T10:05:00 | G131: 37.76666667
E132: 2023-01-01T10:05:00 | F132: 2023-01-01T10:10:00 | G132: 36.5
E133: 2023-01-01T10:10:00 | F133: 2023-01-01T10:15:00 | G133: 35.68
E134: 2023-01-01T10:15:00 | F134: 2023-01-01T10:20:00 | G134: 36.42
E135: 2023-01-01T10:20:00 | F135: 2023-01-01T10:25:00 | G135: 35.04166667
E136: 2023-01-01T10:25:00 | F136: 2023-01-01T10:30:00 | G136: 33.0797619
E137: 2023-01-01T10:30:00 | F137: 2023-01-01T10:35:00 | G137: 34.78690476
E138: 2023-01-01T10:35:00 | F138: 2023-01-01T10:40:00 | G138: 37.45416667
E139: 2023-01-01T10:40:00 | F139: 2023-01-01T10:45:00 | G139: 37.3125
E140: 2023-01-01T10:45:00 | F140: 2023-01-01T10:50:00 | G140: 37.275
E141: 2023-01-01T10:50:00 | F141: 2023-01-01T10:55:00 | G141: 38.3
E142: 2023-01-01T10:55:00 | F142: 2023-01-01T11:00:00 | G142: 37.82083333
E143: 2023-01-01T11:00:00 | F143: 2023-01-01T11:05:00 | G143: 37.65416667
E144: 2023-01-01T11:05:00 | F144: 2023-01-01T11:10:00 | G144: 35.65
E145: 2023-01-01T11:10:00 | F145: 2023-01-01T11:15:00 | G145: 35.675
E146: 2023-01-01T11:15:00 | F146: 2023-01-01T11:20:00 | G146: 33.6125
E147: 2023-01-01T11:20:00 | F147: 2023-01-01T11:25:00 | G147: 32.6125
E148: 2023-01-01T11:25:00 | F148: 2023-01-01T11:30:00 | G148: 31.875
E149: 2023-01-01T11:30:00 | F149: 2023-01-01T11:35:00 | G149: 30.875
E150: 2023-01-01T11:35:00 | F150: 2023-01-01T11:40:00 | G150: 32.76875
E151: 2023-01-01T11:40:00 | F151: 2023-01-01T11:45:00 | G151: 32.72291667
E152: 2023-01-01T11:45:00 | F152: 2023-01-01T11:50:00 | G152: 31.68333333
E153: 2023-01-01T11:50:00 | F153: 2023-01-01T11:55:00 | G153: 33.03333333
E154: 2023-01-01T11:55:00 | F154: 2023-01-01T12:00:00 | G154: 34.83541667
E155: 2023-01-01T12:00:00 | F155: 2023-01-01T12:05:00 | G155: 37.21458333
E156: 2023-01-01T12:05:00 | F156: 2023-01-01T12:10:00 | G156: 39.91666667
E157: 2023-01-01T12:10:00 | F157: 2023-01-01T12:15:00 | G157: 34.5125
E158: 2023-01-01T12:15:00 | F158: 2023-01-01T12:20:00 | G158: 37.5125
E159: 2023-01-01T12:20:00 | F159: 2023-01-01T12:25:00 | G159: 39.65
E160: 2023-01-01T12:25:00 | F160: 2023-01-01T12:30:00 | G160: 43.225
E161: 2023-01-01T12:30:00 | F161: 2023-01-01T12:35:00 | G161: 44.9125
E162: 2023-01-01T12:35:00 | F162: 2023-01-01T12:40:00 | G162: 44.1625
E163: 2023-01-01T12:40:00 | F163: 2023-01-01T12:45:00 | G163: 43.8375
E164: 2023-01-01T12:45:00 | F164: 2023-01-01T12:50:00 | G164: 46.49375
E165: 2023-01-01T12:50:00 | F165: 2023-01-01T12:55:00 | G165: 44.95625
E166: 2023-01-01T12:55:00 | F166: 2023-01-01T13:00:00 | G166: 44.8375
E167: 2023-01-01T13:00:00 | F167: 2023-01-01T13:05:00 | G167: 47.21666667
E168: 2023-01-01T13:05:00 | F168: 2023-01-01T13:10:00 | G168: 55.04583333
E169: 2023-01-01T13:10:00 | F169: 2023-01-01T13:15:00 | G169: 56.35
E170: 2023-01-01T13:15:00 | F170: 2023-01-01T13:20:00 | G170: 63.825
E171: 2023-01-01T13:20:00 | F171: 2023-01-01T13:25:00 | G171: 56.1625
E172: 2023-01-01T13:25:00 | F172: 2023-01-01T13:30:00 | G172: 65.15
E173: 2023-01-01T13:30:00 | F173: 2023-01-01T13:35:00 | G173: 73.275
E174: 2023-01-01T13:35:00 | F174: 2023-01-01T13:40:00 | G174: 66.6
E175: 2023-01-01T13:40:00 | F175: 2023-01-01T13:45:00 | G175: 70.875
E176: 2023-01-01T13:45:00 | F176: 2023-01-01T13:50:00 | G176: 75.8
E177: 2023-01-01T13:50:00 | F177: 2023-01-01T13:55:00 | G177: 76.2375
E178: 2023-01-01T13:55:00 | F178: 2023-01-01T14:00:00 | G178: 96.0875
E179: 2023-01-01T14:00:00 | F179: 2023-01-01T14:05:00 | G179: 82.7
E180: 2023-01-01T14:05:00 | F180: 2023-01-01T14:10:00 | G180: 79.2
E181: 2023-01-01T14:10:00 | F181: 2023-01-01T14:15:00 | G181: 98.6
E182: 2023-01-01T14:15:00 | F182: 2023-01-01T14:20:00 | G182: 128.2333333
E183: 2023-01-01T14:20:00 | F183: 2023-01-01T14:25:00 | G183: 127.3166667
E184: 2023-01-01T14:25:00 | F184: 2023-01-01T14:30:00 | G184: 111.3
E185: 2023-01-01T14:30:00 | F185: 2023-01-01T14:35:00 | G185: 102.825
E186: 2023-01-01T14:35:00 | F186: 2023-01-01T14:40:00 | G186: 121.675
E187: 2023-01-01T14:40:00 | F187: 2023-01-01T14:45:00 | G187: 123.85625
E188: 2023-01-01T14:45:00 | F188: 2023-01-01T14:50:00 | G188: 123.66875
E189: 2023-01-01T14:50:00 | F189: 2023-01-01T14:55:00 | G189: 132.7166667
E190: 2023-01-01T14:55:00 | F190: 2023-01-01T15:00:00 | G190: 132.7583333
E191: 2023-01-01T15:00:00 | F191: 2023-01-01T15:05:00 | G191: 134.875
E192: 2023-01-01T15:05:00 | F192: 2023-01-01T15:10:00 | G192: 135.6416667
E193: 2023-01-01T15:10:00 | F193: 2023-01-01T15:15:00 | G193: 132.7458333
E194: 2023-01-01T15:15:00 | F194: 2023-01-01T15:20:00 | G194: 141.7875
E195: 2023-01-01T15:20:00 | F195: 2023-01-01T15:25:00 | G195: 145.4375
E196: 2023-01-01T15:25:00 | F196: 2023-01-01T15:30:00 | G196: 127.5625
E197: 2023-01-01T15:30:00 | F197: 2023-01-01T15:35:00 | G197: 108.6375
E198: 2023-01-01T15:35:00 | F198: 2023-01-01T15:40:00 | G198: 98.17916667
E199: 2023-01-01T15:40:00 | F199: 2023-01-01T15:45:00 | G199: 91.925
E200: 2023-01-01T15:45:00 | F200: 2023-01-01T15:50:00 | G200: 96.77083333
E201: 2023-01-01T15:50:00 | F201: 2023-01-01T15:55:00 | G201: 111.4625
E202: 2023-01-01T15:55:00 | F202: 2023-01-01T16:00:00 | G202: 104.775
E203: 2023-01-01T16:00:00 | F203: 2023-01-01T16:05:00 | G203: 107.9583333
E204: 2023-01-01T16:05:00 | F204: 2023-01-01T16:10:00 | G204: 101.9066667
E205: 2023-01-01T16:10:00 | F205: 2023-01-01T16:15:00 | G205: 109.3725
E206: 2023-01-01T16:15:00 | F206: 2023-01-01T16:20:00 | G206: 104.1875
E207: 2023-01-01T16:20:00 | F207: 2023-01-01T16:25:00 | G207: 108.6333333
... 4275 more rows

Sheet BN161 2023
A6: BN161 Demand
A7: This sheet includes the BN161 demand.
A10: BN161 cross check
E11: 2023-01-01 | F11: 2023-01-01T00:05:00 | G11: 75.42708333
E12: 2023-01-01T00:05:00 | F12: 2023-01-01T00:10:00 | G12: 77.25625
E13: 2023-01-01T00:10:00 | F13: 2023-01-01T00:15:00 | G13: 79.37061404
E14: 2023-01-01T00:15:00 | F14: 2023-01-01T00:20:00 | G14: 81.0502193
E15: 2023-01-01T00:20:00 | F15: 2023-01-01T00:25:00 | G15: 85.39583333
E16: 2023-01-01T00:25:00 | F16: 2023-01-01T00:30:00 | G16: 86
E17: 2023-01-01T00:30:00 | F17: 2023-01-01T00:35:00 | G17: 86.59916667
E18: 2023-01-01T00:35:00 | F18: 2023-01-01T00:40:00 | G18: 86.47916667
E19: 2023-01-01T00:40:00 | F19: 2023-01-01T00:45:00 | G19: 86.93815789
E20: 2023-01-01T00:45:00 | F20: 2023-01-01T00:50:00 | G20: 87.83684211
E21: 2023-01-01T00:50:00 | F21: 2023-01-01T00:55:00 | G21: 88.62916667
E22: 2023-01-01T00:55:00 | F22: 2023-01-01T01:00:00 | G22: 89.66458333
E23: 2023-01-01T01:00:00 | F23: 2023-01-01T01:05:00 | G23: 89.98541667
E24: 2023-01-01T01:05:00 | F24: 2023-01-01T01:10:00 | G24: 91.22777778
E25: 2023-01-01T01:10:00 | F25: 2023-01-01T01:15:00 | G25: 91.26930556
E26: 2023-01-01T01:15:00 | F26: 2023-01-01T01:20:00 | G26: 91.55083333
E27: 2023-01-01T01:20:00 | F27: 2023-01-01T01:25:00 | G27: 92.70625
E28: 2023-01-01T01:25:00 | F28: 2023-01-01T01:30:00 | G28: 93.57291667
E29: 2023-01-01T01:30:00 | F29: 2023-01-01T01:35:00 | G29: 91.67291667
E30: 2023-01-01T01:35:00 | F30: 2023-01-01T01:40:00 | G30: 92.59375
E31: 2023-01-01T01:40:00 | F31: 2023-01-01T01:45:00 | G31: 91.18958333
E32: 2023-01-01T01:45:00 | F32: 2023-01-01T01:50:00 | G32: 91.30833333
E33: 2023-01-01T01:50:00 | F33: 2023-01-01T01:55:00 | G33: 91.29583333
E34: 2023-01-01T01:55:00 | F34: 2023-01-01T02:00:00 | G34: 91.12708333
E35: 2023-01-01T02:00:00 | F35: 2023-01-01T02:05:00 | G35: 91.22291667
E36: 2023-01-01T02:05:00 | F36: 2023-01-01T02:10:00 | G36: 87.40416667
E37: 2023-01-01T02:10:00 | F37: 2023-01-01T02:15:00 | G37: 86.06666667
E38: 2023-01-01T02:15:00 | F38: 2023-01-01T02:20:00 | G38: 83.185
E39: 2023-01-01T02:20:00 | F39: 2023-01-01T02:25:00 | G39: 82.09833333
E40: 2023-01-01T02:25:00 | F40: 2023-01-01T02:30:00 | G40: 79.57166667
E41: 2023-01-01T02:30:00 | F41: 2023-01-01T02:35:00 | G41: 79.63333333
E42: 2023-01-01T02:35:00 | F42: 2023-01-01T02:40:00 | G42: 78.495
E43: 2023-01-01T02:40:00 | F43: 2023-01-01T02:45:00 | G43: 77.07916667
E44: 2023-01-01T02:45:00 | F44: 2023-01-01T02:50:00 | G44: 77.31875
E45: 2023-01-01T02:50:00 | F45: 2023-01-01T02:55:00 | G45: 75.16541667
E46: 2023-01-01T02:55:00 | F46: 2023-01-01T03:00:00 | G46: 74.20333333
E47: 2023-01-01T03:00:00 | F47: 2023-01-01T03:05:00 | G47: 73.28541667
E48: 2023-01-01T03:05:00 | F48: 2023-01-01T03:10:00 | G48: 71.5
E49: 2023-01-01T03:10:00 | F49: 2023-01-01T03:15:00 | G49: 69.6985119
E50: 2023-01-01T03:15:00 | F50: 2023-01-01T03:20:00 | G50: 70.7202381
E51: 2023-01-01T03:20:00 | F51: 2023-01-01T03:25:00 | G51: 67.97361111
E52: 2023-01-01T03:25:00 | F52: 2023-01-01T03:30:00 | G52: 67.26909722
E53: 2023-01-01T03:30:00 | F53: 2023-01-01T03:35:00 | G53: 67.46354167
E54: 2023-01-01T03:35:00 | F54: 2023-01-01T03:40:00 | G54: 65.75108333
E55: 2023-01-01T03:40:00 | F55: 2023-01-01T03:45:00 | G55: 64.56
E56: 2023-01-01T03:45:00 | F56: 2023-01-01T03:50:00 | G56: 64.59308333
E57: 2023-01-01T03:50:00 | F57: 2023-01-01T03:55:00 | G57: 64.69375
E58: 2023-01-01T03:55:00 | F58: 2023-01-01T04:00:00 | G58: 62.54166667
E59: 2023-01-01T04:00:00 | F59: 2023-01-01T04:05:00 | G59: 62.52083333
E60: 2023-01-01T04:05:00 | F60: 2023-01-01T04:10:00 | G60: 62.1311828
E61: 2023-01-01T04:10:00 | F61: 2023-01-01T04:15:00 | G61: 62.5483871
E62: 2023-01-01T04:15:00 | F62: 2023-01-01T04:20:00 | G62: 63.47043011
E63: 2023-01-01T04:20:00 | F63: 2023-01-01T04:25:00 | G63: 64.49027778
E64: 2023-01-01T04:25:00 | F64: 2023-01-01T04:30:00 | G64: 63.37638889
E65: 2023-01-01T04:30:00 | F65: 2023-01-01T04:35:00 | G65: 61.83333333
E66: 2023-01-01T04:35:00 | F66: 2023-01-01T04:40:00 | G66: 61.58958333
E67: 2023-01-01T04:40:00 | F67: 2023-01-01T04:45:00 | G67: 60.71958333
E68: 2023-01-01T04:45:00 | F68: 2023-01-01T04:50:00 | G68: 61.63333333
E69: 2023-01-01T04:50:00 | F69: 2023-01-01T04:55:00 | G69: 61.52416667
E70: 2023-01-01T04:55:00 | F70: 2023-01-01T05:00:00 | G70: 60.83076923
E71: 2023-01-01T05:00:00 | F71: 2023-01-01T05:05:00 | G71: 61.54923077
E72: 2023-01-01T05:05:00 | F72: 2023-01-01T05:10:00 | G72: 63.09291667
E73: 2023-01-01T05:10:00 | F73: 2023-01-01T05:15:00 | G73: 63.31041667
E74: 2023-01-01T05:15:00 | F74: 2023-01-01T05:20:00 | G74: 63.02666667
E75: 2023-01-01T05:20:00 | F75: 2023-01-01T05:25:00 | G75: 61.87181818
E76: 2023-01-01T05:25:00 | F76: 2023-01-01T05:30:00 | G76: 61.85707071
E77: 2023-01-01T05:30:00 | F77: 2023-01-01T05:35:00 | G77: 62.63383838
E78: 2023-01-01T05:35:00 | F78: 2023-01-01T05:40:00 | G78: 62.0791958
E79: 2023-01-01T05:40:00 | F79: 2023-01-01T05:45:00 | G79: 63.58974359
E80: 2023-01-01T05:45:00 | F80: 2023-01-01T05:50:00 | G80: 63.40980392
E81: 2023-01-01T05:50:00 | F81: 2023-01-01T05:55:00 | G81: 63.15790441
E82: 2023-01-01T05:55:00 | F82: 2023-01-01T06:00:00 | G82: 64.09895833
E83: 2023-01-01T06:00:00 | F83: 2023-01-01T06:05:00 | G83: 64.1
E84: 2023-01-01T06:05:00 | F84: 2023-01-01T06:10:00 | G84: 66.24166667
E85: 2023-01-01T06:10:00 | F85: 2023-01-01T06:15:00 | G85: 65.30833333
E86: 2023-01-01T06:15:00 | F86: 2023-01-01T06:20:00 | G86: 64.35
E87: 2023-01-01T06:20:00 | F87: 2023-01-01T06:25:00 | G87: 62.41666667
E88: 2023-01-01T06:25:00 | F88: 2023-01-01T06:30:00 | G88: 63.76666667
E89: 2023-01-01T06:30:00 | F89: 2023-01-01T06:35:00 | G89: 64.36
E90: 2023-01-01T06:35:00 | F90: 2023-01-01T06:40:00 | G90: 64.92333333
E91: 2023-01-01T06:40:00 | F91: 2023-01-01T06:45:00 | G91: 60.54444444
E92: 2023-01-01T06:45:00 | F92: 2023-01-01T06:50:00 | G92: 60.4
E93: 2023-01-01T06:50:00 | F93: 2023-01-01T06:55:00 | G93: 61.39555556
E94: 2023-01-01T06:55:00 | F94: 2023-01-01T07:00:00 | G94: 60.93333333
E95: 2023-01-01T07:00:00 | F95: 2023-01-01T07:05:00 | G95: 60.34333333
E96: 2023-01-01T07:05:00 | F96: 2023-01-01T07:10:00 | G96: 60.58333333
E97: 2023-01-01T07:10:00 | F97: 2023-01-01T07:15:00 | G97: 60.5
E98: 2023-01-01T07:15:00 | F98: 2023-01-01T07:20:00 | G98: 61.45454545
E99: 2023-01-01T07:20:00 | F99: 2023-01-01T07:25:00 | G99: 61.09545455
E100: 2023-01-01T07:25:00 | F100: 2023-01-01T07:30:00 | G100: 61.01666667
E101: 2023-01-01T07:30:00 | F101: 2023-01-01T07:35:00 | G101: 60.66666667
E102: 2023-01-01T07:35:00 | F102: 2023-01-01T07:40:00 | G102: 62.51666667
E103: 2023-01-01T07:40:00 | F103: 2023-01-01T07:45:00 | G103: 59.48333333
E104: 2023-01-01T07:45:00 | F104: 2023-01-01T07:50:00 | G104: 57.63333333
E105: 2023-01-01T07:50:00 | F105: 2023-01-01T07:55:00 | G105: 58.38333333
E106: 2023-01-01T07:55:00 | F106: 2023-01-01T08:00:00 | G106: 58.05
E107: 2023-01-01T08:00:00 | F107: 2023-01-01T08:05:00 | G107: 53.64166667
E108: 2023-01-01T08:05:00 | F108: 2023-01-01T08:10:00 | G108: 51.50833333
E109: 2023-01-01T08:10:00 | F109: 2023-01-01T08:15:00 | G109: 51.51666667
E110: 2023-01-01T08:15:00 | F110: 2023-01-01T08:20:00 | G110: 49.61111111
E111: 2023-01-01T08:20:00 | F111: 2023-01-01T08:25:00 | G111: 48.12222222
E112: 2023-01-01T08:25:00 | F112: 2023-01-01T08:30:00 | G112: 45.18333333
E113: 2023-01-01T08:30:00 | F113: 2023-01-01T08:35:00 | G113: 45.08333333
E114: 2023-01-01T08:35:00 | F114: 2023-01-01T08:40:00 | G114: 45.93333333
E115: 2023-01-01T08:40:00 | F115: 2023-01-01T08:45:00 | G115: 45.46666667
E116: 2023-01-01T08:45:00 | F116: 2023-01-01T08:50:00 | G116: 42.66568627
E117: 2023-01-01T08:50:00 | F117: 2023-01-01T08:55:00 | G117: 41.6355042
E118: 2023-01-01T08:55:00 | F118: 2023-01-01T09:00:00 | G118: 37.52380952
E119: 2023-01-01T09:00:00 | F119: 2023-01-01T09:05:00 | G119: 35.89833333
E120: 2023-01-01T09:05:00 | F120: 2023-01-01T09:10:00 | G120: 39.76
E121: 2023-01-01T09:10:00 | F121: 2023-01-01T09:15:00 | G121: 42.0875
E122: 2023-01-01T09:15:00 | F122: 2023-01-01T09:20:00 | G122: 40.6078125
E123: 2023-01-01T09:20:00 | F123: 2023-01-01T09:25:00 | G123: 36.9296875
E124: 2023-01-01T09:25:00 | F124: 2023-01-01T09:30:00 | G124: 33.33888889
E125: 2023-01-01T09:30:00 | F125: 2023-01-01T09:35:00 | G125: 30.51111111
E126: 2023-01-01T09:35:00 | F126: 2023-01-01T09:40:00 | G126: 28.3
E127: 2023-01-01T09:40:00 | F127: 2023-01-01T09:45:00 | G127: 29.45714286
E128: 2023-01-01T09:45:00 | F128: 2023-01-01T09:50:00 | G128: 27.27619048
E129: 2023-01-01T09:50:00 | F129: 2023-01-01T09:55:00 | G129: 25.71666667
E130: 2023-01-01T09:55:00 | F130: 2023-01-01T10:00:00 | G130: 26.69166667
E131: 2023-01-01T10:00:00 | F131: 2023-01-01T10:05:00 | G131: 24.84166667
E132: 2023-01-01T10:05:00 | F132: 2023-01-01T10:10:00 | G132: 24.26666667
E133: 2023-01-01T10:10:00 | F133: 2023-01-01T10:15:00 | G133: 23.92857143
E134: 2023-01-01T10:15:00 | F134: 2023-01-01T10:20:00 | G134: 24.93928571
E135: 2023-01-01T10:20:00 | F135: 2023-01-01T10:25:00 | G135: 22.23214286
E136: 2023-01-01T10:25:00 | F136: 2023-01-01T10:30:00 | G136: 20.22142857
E137: 2023-01-01T10:30:00 | F137: 2023-01-01T10:35:00 | G137: 22.81190476
E138: 2023-01-01T10:35:00 | F138: 2023-01-01T10:40:00 | G138: 25.34166667
E139: 2023-01-01T10:40:00 | F139: 2023-01-01T10:45:00 | G139: 26.24166667
E140: 2023-01-01T10:45:00 | F140: 2023-01-01T10:50:00 | G140: 25.12333333
E141: 2023-01-01T10:50:00 | F141: 2023-01-01T10:55:00 | G141: 27.71
E142: 2023-01-01T10:55:00 | F142: 2023-01-01T11:00:00 | G142: 25.74473684
E143: 2023-01-01T11:00:00 | F143: 2023-01-01T11:05:00 | G143: 27.62192982
E144: 2023-01-01T11:05:00 | F144: 2023-01-01T11:10:00 | G144: 25.5625
E145: 2023-01-01T11:10:00 | F145: 2023-01-01T11:15:00 | G145: 24.06875
E146: 2023-01-01T11:15:00 | F146: 2023-01-01T11:20:00 | G146: 22.74458333
E147: 2023-01-01T11:20:00 | F147: 2023-01-01T11:25:00 | G147: 22.30333333
E148: 2023-01-01T11:25:00 | F148: 2023-01-01T11:30:00 | G148: 20.95059524
E149: 2023-01-01T11:30:00 | F149: 2023-01-01T11:35:00 | G149: 19.47857143
E150: 2023-01-01T11:35:00 | F150: 2023-01-01T11:40:00 | G150: 20.32083333
E151: 2023-01-01T11:40:00 | F151: 2023-01-01T11:45:00 | G151: 19.72202381
E152: 2023-01-01T11:45:00 | F152: 2023-01-01T11:50:00 | G152: 19.29714286
E153: 2023-01-01T11:50:00 | F153: 2023-01-01T11:55:00 | G153: 20.56416667
E154: 2023-01-01T11:55:00 | F154: 2023-01-01T12:00:00 | G154: 22.6375
E155: 2023-01-01T12:00:00 | F155: 2023-01-01T12:05:00 | G155: 23.78333333
E156: 2023-01-01T12:05:00 | F156: 2023-01-01T12:10:00 | G156: 25.80833333
E157: 2023-01-01T12:10:00 | F157: 2023-01-01T12:15:00 | G157: 22.12380952
E158: 2023-01-01T12:15:00 | F158: 2023-01-01T12:20:00 | G158: 24.23660714
E159: 2023-01-01T12:20:00 | F159: 2023-01-01T12:25:00 | G159: 27.05208333
E160: 2023-01-01T12:25:00 | F160: 2023-01-01T12:30:00 | G160: 30.07222222
E161: 2023-01-01T12:30:00 | F161: 2023-01-01T12:35:00 | G161: 30.00694444
E162: 2023-01-01T12:35:00 | F162: 2023-01-01T12:40:00 | G162: 31.51666667
E163: 2023-01-01T12:40:00 | F163: 2023-01-01T12:45:00 | G163: 31.40416667
E164: 2023-01-01T12:45:00 | F164: 2023-01-01T12:50:00 | G164: 32.22416667
E165: 2023-01-01T12:50:00 | F165: 2023-01-01T12:55:00 | G165: 29.61125
E166: 2023-01-01T12:55:00 | F166: 2023-01-01T13:00:00 | G166: 29.49791667
E167: 2023-01-01T13:00:00 | F167: 2023-01-01T13:05:00 | G167: 31.24583333
E168: 2023-01-01T13:05:00 | F168: 2023-01-01T13:10:00 | G168: 38.44583333
E169: 2023-01-01T13:10:00 | F169: 2023-01-01T13:15:00 | G169: 39.65
E170: 2023-01-01T13:15:00 | F170: 2023-01-01T13:20:00 | G170: 42.16666667
E171: 2023-01-01T13:20:00 | F171: 2023-01-01T13:25:00 | G171: 37.35416667
E172: 2023-01-01T13:25:00 | F172: 2023-01-01T13:30:00 | G172: 44.00833333
E173: 2023-01-01T13:30:00 | F173: 2023-01-01T13:35:00 | G173: 49.5
E174: 2023-01-01T13:35:00 | F174: 2023-01-01T13:40:00 | G174: 45.47916667
E175: 2023-01-01T13:40:00 | F175: 2023-01-01T13:45:00 | G175: 48.40833333
E176: 2023-01-01T13:45:00 | F176: 2023-01-01T13:50:00 | G176: 50.425
E177: 2023-01-01T13:50:00 | F177: 2023-01-01T13:55:00 | G177: 51.42321429
E178: 2023-01-01T13:55:00 | F178: 2023-01-01T14:00:00 | G178: 64.17053571
E179: 2023-01-01T14:00:00 | F179: 2023-01-01T14:05:00 | G179: 51.66875
E180: 2023-01-01T14:05:00 | F180: 2023-01-01T14:10:00 | G180: 55.04583333
E181: 2023-01-01T14:10:00 | F181: 2023-01-01T14:15:00 | G181: 66.40833333
E182: 2023-01-01T14:15:00 | F182: 2023-01-01T14:20:00 | G182: 81.28958333
E183: 2023-01-01T14:20:00 | F183: 2023-01-01T14:25:00 | G183: 82.8875
E184: 2023-01-01T14:25:00 | F184: 2023-01-01T14:30:00 | G184: 71.00625
E185: 2023-01-01T14:30:00 | F185: 2023-01-01T14:35:00 | G185: 66.3625
E186: 2023-01-01T14:35:00 | F186: 2023-01-01T14:40:00 | G186: 79.425
E187: 2023-01-01T14:40:00 | F187: 2023-01-01T14:45:00 | G187: 80.71666667
E188: 2023-01-01T14:45:00 | F188: 2023-01-01T14:50:00 | G188: 84.18958333
E189: 2023-01-01T14:50:00 | F189: 2023-01-01T14:55:00 | G189: 91.10089286
E190: 2023-01-01T14:55:00 | F190: 2023-01-01T15:00:00 | G190: 90.94702381
E191: 2023-01-01T15:00:00 | F191: 2023-01-01T15:05:00 | G191: 90.20833333
E192: 2023-01-01T15:05:00 | F192: 2023-01-01T15:10:00 | G192: 85.57083333
E193: 2023-01-01T15:10:00 | F193: 2023-01-01T15:15:00 | G193: 81.6125
E194: 2023-01-01T15:15:00 | F194: 2023-01-01T15:20:00 | G194: 93.48541667
E195: 2023-01-01T15:20:00 | F195: 2023-01-01T15:25:00 | G195: 94.27291667
E196: 2023-01-01T15:25:00 | F196: 2023-01-01T15:30:00 | G196: 79.8375
E197: 2023-01-01T15:30:00 | F197: 2023-01-01T15:35:00 | G197: 66.67083333
E198: 2023-01-01T15:35:00 | F198: 2023-01-01T15:40:00 | G198: 57.21944444
E199: 2023-01-01T15:40:00 | F199: 2023-01-01T15:45:00 | G199: 55.97222222
E200: 2023-01-01T15:45:00 | F200: 2023-01-01T15:50:00 | G200: 62.81458333
E201: 2023-01-01T15:50:00 | F201: 2023-01-01T15:55:00 | G201: 72.41875
E202: 2023-01-01T15:55:00 | F202: 2023-01-01T16:00:00 | G202: 63.95833333
E203: 2023-01-01T16:00:00 | F203: 2023-01-01T16:05:00 | G203: 67.47916667
E204: 2023-01-01T16:05:00 | F204: 2023-01-01T16:10:00 | G204: 62.24166667
E205: 2023-01-01T16:10:00 | F205: 2023-01-01T16:15:00 | G205: 69.65416667
E206: 2023-01-01T16:15:00 | F206: 2023-01-01T16:20:00 | G206: 62.42916667
E207: 2023-01-01T16:20:00 | F207: 2023-01-01T16:25:00 | G207: 66.78125
... 4272 more rows

Sheet GSLs
A6: GSLs
A7: This sheet includes the GSL payments for BN11 pre-REFCL.
A12: BN11 GSL Payments provided from AusNet
A13: Regulatory Year | B13: Amount | D13: 2024$s | E13: Escalated by CPI, as per the CPI tab in this spreadsheet and the June 2024 CPI figure from the ABS.
A14: CY17 | B14: 52040 | D14: =('Base Benefit Assumptions'!$B$13/CPI!E33)*GSLs!B14 -> 64434.89741
A15: CY18 | B15: 124230 | D15: =('Base Benefit Assumptions'!$B$13/CPI!E37)*GSLs!B15 -> 151122.9097
A16: CY19 | B16: 153350 | D16: =('Base Benefit Assumptions'!$B$13/CPI!E41)*GSLs!B16 -> 183175.3873
A17: CY20 | B17: 80880 | D17: =('Base Benefit Assumptions'!$B$13/CPI!E45)*GSLs!B17 -> 95786.2116
A18: FY22 | B18: 69920 | D18: =('Base Benefit Assumptions'!$B$13/CPI!E51)*GSLs!B18 -> 76961.90325
A22: Average of CY17 to CY20 and FY22 | B22: =AVERAGE(B14:B18) -> 96084 | D22: =AVERAGE(D14:D18) -> 114296.2619
A45: End of Sheet

Sheet NPV Model Outputs
A7: NPV Output Summary
A9: Base Case: Do Nothing
B10: ='4_Summary'!C21 -> Central Assumptions | C10: ='4_Summary'!D21 -> Higher Discount Rate | D10: ='4_Summary'!E21 -> Lower Discount Rate | E10: ='4_Summary'!F21 -> Higher Costs | F10: ='4_Summary'!G21 -> Lower Costs | G10: ='4_Summary'!H21 -> Average
A11: ='4_Summary'!B22 -> Base Case | B11: ='4_Summary'!C22 -> 0 | C11: ='4_Summary'!D22 -> 0 | D11: ='4_Summary'!E22 -> 0 | E11: ='4_Summary'!F22 -> 0 | F11: ='4_Summary'!G22 -> 0 | G11: ='4_Summary'!H22 -> 0
A12: ='4_Summary'!B23 -> Option 1 | B12: ='4_Summary'!C23 -> -1.368329018 | C12: ='4_Summary'!D23 -> -2.948903917 | D12: ='4_Summary'!E23 -> 0.6248752869 | E12: ='4_Summary'!F23 -> -3.009867986 | F12: ='4_Summary'!G23 -> 0.2732099507 | G12: ='4_Summary'!H23 -> -1.285803137
A13: ='4_Summary'!B24 -> Option 2 | B13: ='4_Summary'!C24 -> -5.026763174 | C13: ='4_Summary'!D24 -> -7.550772371 | D13: ='4_Summary'!E24 -> -1.724454937 | E13: ='4_Summary'!F24 -> -6.738304061 | F13: ='4_Summary'!G24 -> -3.315222288 | G13: ='4_Summary'!H24 -> -4.871103366
A14: ='4_Summary'!B25 -> Option 3 | B14: ='4_Summary'!C25 -> 0.9752135546 | C14: ='4_Summary'!D25 -> -0.7719826102 | D14: ='4_Summary'!E25 -> 3.091984263 | E14: ='4_Summary'!F25 -> -0.3147940279 | F14: ='4_Summary'!G25 -> 2.265221137 | G14: ='4_Summary'!H25 -> 1.049128463
A15: ='4_Summary'!B26 -> Option 4 | B15: ='4_Summary'!C26 -> 1.919956204 | C15: ='4_Summary'!D26 -> -1.708804106 | D15: ='4_Summary'!E26 -> 6.655678638 | E15: ='4_Summary'!F26 -> 0.2345093377 | F15: ='4_Summary'!G26 -> 3.605403071 | G15: ='4_Summary'!H26 -> 2.141348629
A16: ='4_Summary'!B27 -> Option 5 | B16: ='4_Summary'!C27 ->  | C16: ='4_Summary'!D27 ->  | D16: ='4_Summary'!E27 ->  | E16: ='4_Summary'!F27 ->  | F16: ='4_Summary'!G27 ->  | G16: ='4_Summary'!H27 -> 
A19: NPV Model Outputs
A21: Base Case: Do Nothing
B22: FY27 | C22: FY28 | D22: FY29 | E22: FY30 | F22: FY31 | G22: Total FY27-31 | H22: Full assessment period
A23: Cost | B23: ='4_BC'!C11 -> 0.6986962619 | C23: ='4_BC'!D11 -> 0.6618949051 | D23: ='4_BC'!E11 -> 0.6270319298 | E23: ='4_BC'!F11 -> 0.5940052386 | F23: ='4_BC'!G11 -> 0.5627181116 | G23: ='4_BC'!H11 -> 3.144346447 | H23: ='4_BC'!I11 -> 13.24740722
A24: Energy at risk | B24: ='4_BC'!C12 -> -0.8124818542 | C24: ='4_BC'!D12 -> -0.7785266431 | D24: ='4_BC'!E12 -> -0.7481254013 | E24: ='4_BC'!F12 -> -0.7180722929 | F24: ='4_BC'!G12 -> -0.6903876998 | G24: ='4_BC'!H12 -> -3.747593891 | H24: ='4_BC'!I12 -> -14.3580273
A25: NPV | B25: ='4_BC'!C13 -> -27.60543452
A28: Option 1 (Relative to Base Case) | C28: ='1_KMA'!E11 -> New BESS for Euroa
B29: FY27 | C29: FY28 | D29: FY29 | E29: FY30 | F29: FY31 | G29: Total FY27-31 | H29: Full assessment period
A30: Cost | B30: ='4_Op1'!C15 -> 9.347903178 | C30: ='4_Op1'!D15 -> 5.442769346 | D30: ='4_Op1'!E15 -> -0.4219023976 | E30: ='4_Op1'!F15 -> -0.3996801796 | F30: ='4_Op1'!G15 -> -0.3786284384 | G30: ='4_Op1'!H15 -> 13.59046151 | H30: ='4_Op1'!I15 -> 10.94359312
A31: Energy at risk | B31: ='4_Op1'!C16 -> 0 | C31: ='4_Op1'!D16 -> 0 | D31: ='4_Op1'!E16 -> 0.561094051 | E31: ='4_Op1'!F16 -> 0.5385542197 | F31: ='4_Op1'!G16 -> 0.5177907748 | G31: ='4_Op1'!H16 -> 1.617439046 | H31: ='4_Op1'!I16 -> 9.575264104
A32: NPV | B32: ='4_Op1'!C17 -> -1.368329018
A35: Option 2 (Relative to Base Case) | C35: ='1_KMA'!E12 -> Partial supply of BN11 load from RUBA12 and MSD2
B36: FY27 | C36: FY28 | D36: FY29 | E36: FY30 | F36: FY31 | G36: Total FY27-31 | H36: Full assessment period
A37: Cost | B37: ='4_Op2'!C15 -> 13.73213717 | C37: ='4_Op2'!D15 -> 8.140593012 | D37: ='4_Op2'!E15 -> -0.530873838 | E37: ='4_Op2'!F15 -> -0.5029119344 | F37: ='4_Op2'!G15 -> -0.4764228253 | G37: ='4_Op2'!H15 -> 20.36252159 | H37: ='4_Op2'!I15 -> 11.41027258
A38: Energy at risk | B38: ='4_Op2'!C16 -> 0 | C38: ='4_Op2'!D16 -> 0 | D38: ='4_Op2'!E16 -> 0.3740627007 | E38: ='4_Op2'!F16 -> 0.3590361465 | F38: ='4_Op2'!G16 -> 0.3451938499 | G38: ='4_Op2'!H16 -> 1.078292697 | H38: ='4_Op2'!I16 -> 6.383509403
A39: NPV | B39: ='4_Op2'!C17 -> -5.026763174
A42: Option 3 (Relative to Base Case) | C42: ='1_KMA'!E13 -> Euroa diesel generators
B43: FY27 | C43: FY28 | D43: FY29 | E43: FY30 | F43: FY31 | G43: Total FY27-31 | H43: Full assessment period
A44: Cost | B44: ='4_Op3'!C15 -> 8.786290139 | C44: ='4_Op3'!D15 -> 5.063719765 | D44: ='4_Op3'!E15 -> -0.4667739651 | E44: ='4_Op3'!F15 -> -0.4421882959 | F44: ='4_Op3'!G15 -> -0.4188975899 | G44: ='4_Op3'!H15 -> 12.52215005 | H44: ='4_Op3'!I15 -> 8.60005055
A45: Energy at risk | B45: ='4_Op3'!C16 -> 0 | C45: ='4_Op3'!D16 -> 0 | D45: ='4_Op3'!E16 -> 0.561094051 | E45: ='4_Op3'!F16 -> 0.5385542197 | F45: ='4_Op3'!G16 -> 0.5177907748 | G45: ='4_Op3'!H16 -> 1.617439046 | H45: ='4_Op3'!I16 -> 9.575264104
A46: NPV | B46: ='4_Op3'!C17 -> 0.9752135546
A49: Option 4 (Relative to Base Case) | C49: ='1_KMA'!E14 -> Proposed Benalla to Euroa express feeder with a remote REFCL changeover station
B50: FY27 | C50: FY28 | D50: FY29 | E50: FY30 | F50: FY31 | G50: Total FY27-31 | H50: Full assessment period
A51: Cost | B51: ='4_Op4'!C15 -> 14.09113909 | C51: ='4_Op4'!D15 -> 8.367321516 | D51: ='4_Op4'!E15 -> -0.5821603623 | E51: ='4_Op4'!F15 -> -0.5514971223 | F51: ='4_Op4'!G15 -> -0.5224489601 | G51: ='4_Op4'!H15 -> 20.80235416 | H51: ='4_Op4'!I15 -> 11.23631244
A52: Energy at risk | B52: ='4_Op4'!C16 -> 0 | C52: ='4_Op4'!D16 -> 0.3892633216 | D52: ='4_Op4'!E16 -> 0.7481246114 | E52: ='4_Op4'!F16 -> 0.7180715348 | F52: ='4_Op4'!G16 -> 0.6903869708 | G52: ='4_Op4'!H16 -> 2.545846439 | H52: ='4_Op4'!I16 -> 13.15626865
A53: NPV | B53: ='4_Op4'!C17 -> 1.919956204
A56: Option 1 Capex and Benefits | C56: ='1_KMA'!E11 -> New BESS for Euroa
B57: FY27 | C57: FY28 | D57: FY29 | E57: FY30 | F57: FY31 | G57: Total FY27-31 | H57: Full assessment period
A58: Capex | B58: ='4_Op1'!C24 -> 9.347903178 | C58: ='4_Op1'!D24 -> 5.903690273 | D58: ='4_Op1'!E24 -> 0 | E58: ='4_Op1'!F24 -> 0 | F58: ='4_Op1'!G24 -> 0 | G58: ='4_Op1'!H24 -> 15.25159345 | H58: ='4_Op1'!I24 -> 20.25281326
A59: Opex | B59: ='4_Op1'!C25 -> 0.6986962619 | C59: ='4_Op1'!D25 -> 0.2009739778 | D59: ='4_Op1'!E25 -> 0.2051295322 | E59: ='4_Op1'!F25 -> 0.194325059 | F59: ='4_Op1'!G25 -> 0.1840896731 | G59: ='4_Op1'!H25 -> 1.483214504 | H59: ='4_Op1'!I25 -> 3.938187079
A60: Benefits | B60: ='4_Op2'!C16 -> 0 | C60: ='4_Op2'!D16 -> 0 | D60: ='4_Op2'!E16 -> 0.3740627007 | E60: ='4_Op2'!F16 -> 0.3590361465 | F60: ='4_Op2'!G16 -> 0.3451938499 | G60: ='4_Op2'!H16 -> 1.078292697 | H60: ='4_Op2'!I16 -> 6.383509403
A63: Option 2 Capex and Benefits | C63: ='1_KMA'!E12 -> Partial supply of BN11 load from RUBA12 and MSD2
B64: FY27 | C64: FY28 | D64: FY29 | E64: FY30 | F64: FY31 | G64: Total FY27-31 | H64: Full assessment period
A65: Capex | B65: ='4_Op2'!C27 -> 13.73213717 | C65: ='4_Op2'!D27 -> 8.672563579 | D65: ='4_Op2'!E27 -> 0 | E65: ='4_Op2'!F27 -> 0 | F65: ='4_Op2'!G27 -> 0 | G65: ='4_Op2'!H27 -> 22.40470075 | H65: ='4_Op2'!I27 -> 22.40470075
A66: Opex | B66: ='4_Op2'!C28 -> 0 | C66: ='4_Op2'!D28 -> -0.5319705674 | D66: ='4_Op2'!E28 -> -0.530873838 | E66: ='4_Op2'!F28 -> -0.5029119344 | F66: ='4_Op2'!G28 -> -0.4764228253 | G66: ='4_Op2'!H28 -> -2.042179165 | H66: ='4_Op2'!I28 -> -10.99442817
A67: Benefits | B67: ='4_Op2'!C16 -> 0 | C67: ='4_Op2'!D16 -> 0 | D67: ='4_Op2'!E16 -> 0.3740627007 | E67: ='4_Op2'!F16 -> 0.3590361465 | F67: ='4_Op2'!G16 -> 0.3451938499 | G67: ='4_Op2'!H16 -> 1.078292697 | H67: ='4_Op2'!I16 -> 6.383509403
A70: Option 3 Capex and Benefits | C70: ='1_KMA'!E13 -> Euroa diesel generators
B71: FY27 | C71: FY28 | D71: FY29 | E71: FY30 | F71: FY31 | G71: Total FY27-31 | H71: Full assessment period
A72: Capex | B72: ='4_Op3'!C27 -> 8.781993877 | C72: ='4_Op3'!D27 -> 5.54628892 | D72: ='4_Op3'!E27 -> 0 | E72: ='4_Op3'!F27 -> 0 | F72: ='4_Op3'!G27 -> 0 | G72: ='4_Op3'!H27 -> 14.3282828 | H72: ='4_Op3'!I27 -> 17.91302525
A73: Opex | B73: ='4_Op3'!C28 -> 0.004296261852 | C73: ='4_Op3'!D28 -> -0.482569155 | D73: ='4_Op3'!E28 -> -0.4667739651 | E73: ='4_Op3'!F28 -> -0.4421882959 | F73: ='4_Op3'!G28 -> -0.4188975899 | G73: ='4_Op3'!H28 -> -1.806132744 | H73: ='4_Op3'!I28 -> -9.312974702
A74: Benefits | B74: ='4_Op3'!C16 -> 0 | C74: ='4_Op3'!D16 -> 0 | D74: ='4_Op3'!E16 -> 0.561094051 | E74: ='4_Op3'!F16 -> 0.5385542197 | F74: ='4_Op3'!G16 -> 0.5177907748 | G74: ='4_Op3'!H16 -> 1.617439046 | H74: ='4_Op3'!I16 -> 9.575264104
A77: Option 4 Capex and Benefits | C77: ='1_KMA'!E14 -> Proposed Benalla to Euroa express feeder with a remote REFCL changeover station
B78: FY27 | C78: FY28 | D78: FY29 | E78: FY30 | F78: FY31 | G78: Total FY27-31 | H78: Full assessment period
A79: Capex | B79: ='4_Op4'!C27 -> 14.09113909 | C79: ='4_Op4'!D27 -> 8.899292084 | D79: ='4_Op4'!E27 -> 0 | E79: ='4_Op4'!F27 -> 0 | F79: ='4_Op4'!G27 -> 0 | G79: ='4_Op4'!H27 -> 22.99043117 | H79: ='4_Op4'!I27 -> 22.99043117
A80: Opex | B80: ='4_Op4'!C28 -> 0 | C80: ='4_Op4'!D28 -> -0.5319705674 | D80: ='4_Op4'!E28 -> -0.5821603623 | E80: ='4_Op4'!F28 -> -0.5514971223 | F80: ='4_Op4'!G28 -> -0.5224489601 | G80: ='4_Op4'!H28 -> -2.188077012 | H80: ='4_Op4'!I28 -> -11.75411873
A81: Benefits | B81: ='4_Op4'!C16 -> 0 | C81: ='4_Op4'!D16 -> 0.3892633216 | D81: ='4_Op4'!E16 -> 0.7481246114 | E81: ='4_Op4'!F16 -> 0.7180715348 | F81: ='4_Op4'!G16 -> 0.6903869708 | G81: ='4_Op4'!H16 -> 2.545846439 | H81: ='4_Op4'!I16 -> 13.15626865
A86: End of Sheet

Sheet NPV Model->>
A6: NPV Model

Sheet Instructions
A1: Some cells are protected to prevent accidential edits. The password to unprotect the sheet is 1.
A3: Structure:
B4: Section 1: Key Modelling Assumptions | F4: User input needed | H4: Please enter assumptions such as denomination ($dollars, $thousands or $millions) and evaluation period (e.g., 30 years).
B5: Section 2: General Inputs | F5: User input needed | H5: Please enter capex, opex and benefits assumptions for the base case and alternative options - there is one worksheet per option.
B6: Section 3: Output Calculations | F6: No inputs needed | H6: Automatic calculations & no inputs needed. This section is hidden.
B7: Section 4: Outputs | F7: No inputs needed | H7: Summary tables have been automatically generated & no inputs needed.
B8: Appendix A: CPI | F8: No inputs needed | H8: This section automatically calculates the escalation factor to convert dollars from one basis to another. No inputs needed.
B9: Appendix B: Modelling Controls | F9: No inputs needed | H9: No inputs needed.
A11: Cell types:
C12: Comment
B13: Blue cells | C13: User to enter inputs, whether it be:
B14: Blue cells | C14: entering data in directly
B15: Blue cells | C15: adjusting the formula to suit your specific needs
B16: White cells | C16: No need for inputs
B17: Black cells | C17: Headings
B18: Grey cells | C18: Headings
B19: Red Text | C19: White cells with red text contains reminders about how the inputs should be entered
B20: 2023-06-30 | C20: For example "30-June-23" is a reminder that the model is expecting the dollar amounts to be in June-23 dollars.
B21: $millions | C21: For example "$millions" is a reminder that the model is expecting the dollar amounts to be in millions.

Sheet Cover
C9: AusNet Services
C10: Business Case Evaluation
C11: High Voltage Feeder Benalla Number 11 (BN11)

Sheet 1_KMA->
C6: Key Modelling Assumptions
C7: Section 1.
C9: =Cover!$C$9 -> AusNet Services
C10: =Cover!$C$10 -> Business Case Evaluation
C11: =Cover!$C$11 -> High Voltage Feeder Benalla Number 11 (BN11)

Sheet 1_KMA
B1: Key Modelling Assumptions | I1: Regulatory Period Indicator | J1: ='1_KMA'!J30 -> 1 | K1: ='1_KMA'!K30 -> 1 | L1: ='1_KMA'!L30 -> 1 | M1: ='1_KMA'!M30 -> 1 | N1: ='1_KMA'!N30 -> 1 | O1: ='1_KMA'!O30 -> 0 | P1: ='1_KMA'!P30 -> 0 | Q1: ='1_KMA'!Q30 -> 0 | R1: ='1_KMA'!R30 -> 0 | S1: ='1_KMA'!S30 -> 0 | T1: ='1_KMA'!T30 -> 0 | U1: ='1_KMA'!U30 -> 0 | V1: ='1_KMA'!V30 -> 0 | W1: ='1_KMA'!W30 -> 0 | X1: ='1_KMA'!X30 -> 0 | Y1: ='1_KMA'!Y30 -> 0 | Z1: ='1_KMA'!Z30 -> 0 | AA1: ='1_KMA'!AA30 -> 0 | AB1: ='1_KMA'!AB30 -> 0 | AC1: ='1_KMA'!AC30 -> 0 | AD1: ='1_KMA'!AD30 -> 0 | AE1: ='1_KMA'!AE30 -> 0 | AF1: ='1_KMA'!AF30 -> 0 | AG1: ='1_KMA'!AG30 -> 0 | AH1: ='1_KMA'!AH30 -> 0 | AI1: ='1_KMA'!AI30 -> 0 | AJ1: ='1_KMA'!AJ30 -> 0 | AK1: ='1_KMA'!AK30 -> 0 | AL1: ='1_KMA'!AL30 -> 0 | AM1: ='1_KMA'!AM30 -> 0 | AN1: ='1_KMA'!AN30 -> 0 | AO1: ='1_KMA'!AO30 -> 0 | AP1: ='1_KMA'!AP30 -> 0 | AQ1: ='1_KMA'!AQ30 -> 0 | AR1: ='1_KMA'!AR30 -> 0 | AS1: ='1_KMA'!AS30 -> 0 | AT1: ='1_KMA'!AT30 -> 0 | AU1: ='1_KMA'!AU30 -> 0 | AV1: ='1_KMA'!AV30 -> 0 | AW1: ='1_KMA'!AW30 -> 0 | AX1: ='1_KMA'!AX30 -> 0 | AY1: ='1_KMA'!AY30 -> 0 | AZ1: ='1_KMA'!AZ30 -> 0 | BA1: ='1_KMA'!BA30 -> 0 | BB1: ='1_KMA'!BB30 -> 0 | BC1: ='1_KMA'!BC30 -> 0 | BD1: ='1_KMA'!BD30 -> 0 | BE1: ='1_KMA'!BE30 -> 0 | BF1: ='1_KMA'!BF30 -> 0 | BG1: ='1_KMA'!BG30 -> 0
B2: =Cover!$C$9 -> AusNet Services | I2: Period Start Date | J2: ='1_KMA'!J31 -> 2026-07-01 | K2: ='1_KMA'!K31 -> 2027-07-01 | L2: ='1_KMA'!L31 -> 2028-07-01 | M2: ='1_KMA'!M31 -> 2029-07-01 | N2: ='1_KMA'!N31 -> 2030-07-01 | O2: ='1_KMA'!O31 -> 2031-07-01 | P2: ='1_KMA'!P31 -> 2032-07-01 | Q2: ='1_KMA'!Q31 -> 2033-07-01 | R2: ='1_KMA'!R31 -> 2034-07-01 | S2: ='1_KMA'!S31 -> 2035-07-01 | T2: ='1_KMA'!T31 -> 2036-07-01 | U2: ='1_KMA'!U31 -> 2037-07-01 | V2: ='1_KMA'!V31 -> 2038-07-01 | W2: ='1_KMA'!W31 -> 2039-07-01 | X2: ='1_KMA'!X31 -> 2040-07-01 | Y2: ='1_KMA'!Y31 -> 2041-07-01 | Z2: ='1_KMA'!Z31 -> 2042-07-01 | AA2: ='1_KMA'!AA31 -> 2043-07-01 | AB2: ='1_KMA'!AB31 -> 2044-07-01 | AC2: ='1_KMA'!AC31 -> 2045-07-01 | AD2: ='1_KMA'!AD31 -> 2046-07-01 | AE2: ='1_KMA'!AE31 -> 2047-07-01 | AF2: ='1_KMA'!AF31 -> 2048-07-01 | AG2: ='1_KMA'!AG31 -> 2049-07-01 | AH2: ='1_KMA'!AH31 -> 2050-07-01 | AI2: ='1_KMA'!AI31 -> 2051-07-01 | AJ2: ='1_KMA'!AJ31 -> 2052-07-01 | AK2: ='1_KMA'!AK31 -> 2053-07-01 | AL2: ='1_KMA'!AL31 -> 2054-07-01 | AM2: ='1_KMA'!AM31 -> 2055-07-01 | AN2: ='1_KMA'!AN31 -> 2056-07-01 | AO2: ='1_KMA'!AO31 -> 2057-07-01 | AP2: ='1_KMA'!AP31 -> 2058-07-01 | AQ2: ='1_KMA'!AQ31 -> 2059-07-01 | AR2: ='1_KMA'!AR31 -> 2060-07-01 | AS2: ='1_KMA'!AS31 -> 2061-07-01 | AT2: ='1_KMA'!AT31 -> 2062-07-01 | AU2: ='1_KMA'!AU31 -> 2063-07-01 | AV2: ='1_KMA'!AV31 -> 2064-07-01 | AW2: ='1_KMA'!AW31 -> 2065-07-01 | AX2: ='1_KMA'!AX31 -> 2066-07-01 | AY2: ='1_KMA'!AY31 -> 2067-07-01 | AZ2: ='1_KMA'!AZ31 -> 2068-07-01 | BA2: ='1_KMA'!BA31 -> 2069-07-01 | BB2: ='1_KMA'!BB31 -> 2070-07-01 | BC2: ='1_KMA'!BC31 -> 2071-07-01 | BD2: ='1_KMA'!BD31 -> 2072-07-01 | BE2: ='1_KMA'!BE31 -> 2073-07-01 | BF2: ='1_KMA'!BF31 -> 2074-07-01 | BG2: ='1_KMA'!BG31 -> 2075-07-01
B3: =Cover!$C$10 -> Business Case Evaluation | I3: Period End Date | J3: ='1_KMA'!J32 -> 2027-06-30 | K3: ='1_KMA'!K32 -> 2028-06-30 | L3: ='1_KMA'!L32 -> 2029-06-30 | M3: ='1_KMA'!M32 -> 2030-06-30 | N3: ='1_KMA'!N32 -> 2031-06-30 | O3: ='1_KMA'!O32 -> 2032-06-30 | P3: ='1_KMA'!P32 -> 2033-06-30 | Q3: ='1_KMA'!Q32 -> 2034-06-30 | R3: ='1_KMA'!R32 -> 2035-06-30 | S3: ='1_KMA'!S32 -> 2036-06-30 | T3: ='1_KMA'!T32 -> 2037-06-30 | U3: ='1_KMA'!U32 -> 2038-06-30 | V3: ='1_KMA'!V32 -> 2039-06-30 | W3: ='1_KMA'!W32 -> 2040-06-30 | X3: ='1_KMA'!X32 -> 2041-06-30 | Y3: ='1_KMA'!Y32 -> 2042-06-30 | Z3: ='1_KMA'!Z32 -> 2043-06-30 | AA3: ='1_KMA'!AA32 -> 2044-06-30 | AB3: ='1_KMA'!AB32 -> 2045-06-30 | AC3: ='1_KMA'!AC32 -> 2046-06-30 | AD3: ='1_KMA'!AD32 -> 2047-06-30 | AE3: ='1_KMA'!AE32 -> 2048-06-30 | AF3: ='1_KMA'!AF32 -> 2049-06-30 | AG3: ='1_KMA'!AG32 -> 2050-06-30 | AH3: ='1_KMA'!AH32 -> 2051-06-30 | AI3: ='1_KMA'!AI32 -> 2052-06-30 | AJ3: ='1_KMA'!AJ32 -> 2053-06-30 | AK3: ='1_KMA'!AK32 -> 2054-06-30 | AL3: ='1_KMA'!AL32 -> 2055-06-30 | AM3: ='1_KMA'!AM32 -> 2056-06-30 | AN3: ='1_KMA'!AN32 -> 2057-06-30 | AO3: ='1_KMA'!AO32 -> 2058-06-30 | AP3: ='1_KMA'!AP32 -> 2059-06-30 | AQ3: ='1_KMA'!AQ32 -> 2060-06-30 | AR3: ='1_KMA'!AR32 -> 2061-06-30 | AS3: ='1_KMA'!AS32 -> 2062-06-30 | AT3: ='1_KMA'!AT32 -> 2063-06-30 | AU3: ='1_KMA'!AU32 -> 2064-06-30 | AV3: ='1_KMA'!AV32 -> 2065-06-30 | AW3: ='1_KMA'!AW32 -> 2066-06-30 | AX3: ='1_KMA'!AX32 -> 2067-06-30 | AY3: ='1_KMA'!AY32 -> 2068-06-30 | AZ3: ='1_KMA'!AZ32 -> 2069-06-30 | BA3: ='1_KMA'!BA32 -> 2070-06-30 | BB3: ='1_KMA'!BB32 -> 2071-06-30 | BC3: ='1_KMA'!BC32 -> 2072-06-30 | BD3: ='1_KMA'!BD32 -> 2073-06-30 | BE3: ='1_KMA'!BE32 -> 2074-06-30 | BF3: ='1_KMA'!BF32 -> 2075-06-30 | BG3: ='1_KMA'!BG32 -> 2076-06-30
B4: =Cover!$C$11 -> High Voltage Feeder Benalla Number 11 (BN11) | I4: Project Year | J4: ='1_KMA'!J33 -> 1 | K4: ='1_KMA'!K33 -> 2 | L4: ='1_KMA'!L33 -> 3 | M4: ='1_KMA'!M33 -> 4 | N4: ='1_KMA'!N33 -> 5 | O4: ='1_KMA'!O33 -> 6 | P4: ='1_KMA'!P33 -> 7 | Q4: ='1_KMA'!Q33 -> 8 | R4: ='1_KMA'!R33 -> 9 | S4: ='1_KMA'!S33 -> 10 | T4: ='1_KMA'!T33 -> 11 | U4: ='1_KMA'!U33 -> 12 | V4: ='1_KMA'!V33 -> 13 | W4: ='1_KMA'!W33 -> 14 | X4: ='1_KMA'!X33 -> 15 | Y4: ='1_KMA'!Y33 -> 16 | Z4: ='1_KMA'!Z33 -> 17 | AA4: ='1_KMA'!AA33 -> 18 | AB4: ='1_KMA'!AB33 -> 19 | AC4: ='1_KMA'!AC33 -> 20 | AD4: ='1_KMA'!AD33 -> 21 | AE4: ='1_KMA'!AE33 -> 22 | AF4: ='1_KMA'!AF33 -> 23 | AG4: ='1_KMA'!AG33 -> 24 | AH4: ='1_KMA'!AH33 -> 25 | AI4: ='1_KMA'!AI33 -> 26 | AJ4: ='1_KMA'!AJ33 -> 27 | AK4: ='1_KMA'!AK33 -> 28 | AL4: ='1_KMA'!AL33 -> 29 | AM4: ='1_KMA'!AM33 -> 30 | AN4: ='1_KMA'!AN33 -> 31 | AO4: ='1_KMA'!AO33 -> 32 | AP4: ='1_KMA'!AP33 -> 33 | AQ4: ='1_KMA'!AQ33 -> 34 | AR4: ='1_KMA'!AR33 -> 35 | AS4: ='1_KMA'!AS33 -> 36 | AT4: ='1_KMA'!AT33 -> 37 | AU4: ='1_KMA'!AU33 -> 38 | AV4: ='1_KMA'!AV33 -> 39 | AW4: ='1_KMA'!AW33 -> 40 | AX4: ='1_KMA'!AX33 -> 41 | AY4: ='1_KMA'!AY33 -> 42 | AZ4: ='1_KMA'!AZ33 -> 43 | BA4: ='1_KMA'!BA33 -> 44 | BB4: ='1_KMA'!BB33 -> 45 | BC4: ='1_KMA'!BC33 -> 46 | BD4: ='1_KMA'!BD33 -> 47 | BE4: ='1_KMA'!BE33 -> 48 | BF4: ='1_KMA'!BF33 -> 49 | BG4: ='1_KMA'!BG33 -> 50
I5: Financial Year | J5: ='1_KMA'!J34 -> 2027 | K5: ='1_KMA'!K34 -> 2028 | L5: ='1_KMA'!L34 -> 2029 | M5: ='1_KMA'!M34 -> 2030 | N5: ='1_KMA'!N34 -> 2031 | O5: ='1_KMA'!O34 -> 2032 | P5: ='1_KMA'!P34 -> 2033 | Q5: ='1_KMA'!Q34 -> 2034 | R5: ='1_KMA'!R34 -> 2035 | S5: ='1_KMA'!S34 -> 2036 | T5: ='1_KMA'!T34 -> 2037 | U5: ='1_KMA'!U34 -> 2038 | V5: ='1_KMA'!V34 -> 2039 | W5: ='1_KMA'!W34 -> 2040 | X5: ='1_KMA'!X34 -> 2041 | Y5: ='1_KMA'!Y34 -> 2042 | Z5: ='1_KMA'!Z34 -> 2043 | AA5: ='1_KMA'!AA34 -> 2044 | AB5: ='1_KMA'!AB34 -> 2045 | AC5: ='1_KMA'!AC34 -> 2046 | AD5: ='1_KMA'!AD34 -> 2047 | AE5: ='1_KMA'!AE34 -> 2048 | AF5: ='1_KMA'!AF34 -> 2049 | AG5: ='1_KMA'!AG34 -> 2050 | AH5: ='1_KMA'!AH34 -> 2051 | AI5: ='1_KMA'!AI34 -> 2052 | AJ5: ='1_KMA'!AJ34 -> 2053 | AK5: ='1_KMA'!AK34 -> 2054 | AL5: ='1_KMA'!AL34 -> 2055 | AM5: ='1_KMA'!AM34 -> 2056 | AN5: ='1_KMA'!AN34 -> 2057 | AO5: ='1_KMA'!AO34 -> 2058 | AP5: ='1_KMA'!AP34 -> 2059 | AQ5: ='1_KMA'!AQ34 -> 2060 | AR5: ='1_KMA'!AR34 -> 2061 | AS5: ='1_KMA'!AS34 -> 2062 | AT5: ='1_KMA'!AT34 -> 2063 | AU5: ='1_KMA'!AU34 -> 2064 | AV5: ='1_KMA'!AV34 -> 2065 | AW5: ='1_KMA'!AW34 -> 2066 | AX5: ='1_KMA'!AX34 -> 2067 | AY5: ='1_KMA'!AY34 -> 2068 | AZ5: ='1_KMA'!AZ34 -> 2069 | BA5: ='1_KMA'!BA34 -> 2070 | BB5: ='1_KMA'!BB34 -> 2071 | BC5: ='1_KMA'!BC34 -> 2072 | BD5: ='1_KMA'!BD34 -> 2073 | BE5: ='1_KMA'!BE34 -> 2074 | BF5: ='1_KMA'!BF34 -> 2075 | BG5: ='1_KMA'!BG34 -> 2076
B7: Project Details
B9: Option Name | E9: Description | L9: Life of the asset for annualised cost calculation (years) | O9: Will this option be used in your assessment?
B10: Base Case | O10: Yes
B11: Option 1 | E11: New BESS for Euroa | L11: 20 | O11: Yes | P11: Select "Yes" if this option will be used in your assessment
B12: Option 2 | E12: Partial supply of BN11 load from RUBA12 and MSD2 | L12: 50 | O12: Yes | P12: Select "No" if this option will not be used in your assessment
B13: Option 3 | E13: Euroa diesel generators | L13: 25 | O13: Yes | P13: Selecting "Yes" when you are in fact not assessing this option will negatively affect how the summary charts are presented
B14: Option 4 | E14: Proposed Benalla to Euroa express feeder with a remote REFCL changeover station | L14: 50 | O14: Yes
B15: Option 5 | O15: No
B17: Modelling Controls
B19: Denomination of Entered Cashflows | I19: $millions | J19: Select the denomination that you want the NPV analysis to be in. This does not prevent your capex buildup (for example) to be in dollars or thousands. However, the total row must be in the denomination that you select, which means you might need to adjust the formula (for example divide by 10^6).
B20: Dollar Basis of Entered Value for all Parts of the Model | I20: 2024-06-30 | J20: Select the dollar basis that you are entering unit rates, dollar values, and benefit streams in.
B21: Dollar Basis Needed for EDPR | I21: 2024-06-30 | J21: The reg team is working in FY24 dollars for the Jan 2025 submission, so please ensure this is set to "30-Jun-24". However, this may change as the AER's assessment process evolves.
B22: Model Start Date | I22: 2026-07-01
B23: Assessment Period (Years) | I23: 30
B24: Model End Date | I24: =EOMONTH(I22+(I23*365),0) -> 2056-06-30
B25: Regulatory Period Start Date | I25: 2026-07-01 | J25: Do not change as this is the start date of the next regulatory period
B26: Regulatory Period End Date | I26: 2031-06-30 | J26: Do not change as this is the end date of the next regulatory period
B27: CPI p.a. (for future periods withouta RBA forecast) | I27: 0.025 | J27: Do not change as we have adopted 2.5% p.a. for the periods outside of the RBA's forecast. That is, we use the ABS' actuals where available, the RBA's forecast where available, and then 2.5% p.a. for all other future years.
B28: Real discount rate (base case) | I28: 0.0556 | J28: Do not change as this is the reg team's assumption.
B30: Regulatory Period Indicator | J30: =IF(AND(J$31>=$I$25,J$32<=$I$26),1,0) -> 1 | K30: =IF(AND(K$31>=$I$25,K$32<=$I$26),1,0) -> 1 | L30: 1 | M30: 1 | N30: 1 | O30: 0 | P30: 0 | Q30: 0 | R30: 0 | S30: 0 | T30: 0 | U30: 0 | V30: 0 | W30: 0 | X30: 0 | Y30: 0 | Z30: 0 | AA30: 0 | AB30: 0 | AC30: 0 | AD30: 0 | AE30: 0 | AF30: 0 | AG30: 0 | AH30: 0 | AI30: 0 | AJ30: 0 | AK30: 0 | AL30: 0 | AM30: 0 | AN30: 0 | AO30: 0 | AP30: =IF(AND(AP$31>=$I$25,AP$32<=$I$26),1,0) -> 0 | AQ30: 0 | AR30: 0 | AS30: 0 | AT30: 0 | AU30: 0 | AV30: 0 | AW30: 0 | AX30: 0 | AY30: 0 | AZ30: 0 | BA30: 0 | BB30: 0 | BC30: 0 | BD30: 0 | BE30: 0 | BF30: 0 | BG30: 0
B31: Period Start Date | J31: =EDATE($I$22,(J33-1)*12) -> 2026-07-01 | K31: =EDATE($I$22,(K33-1)*12) -> 2027-07-01 | L31: 2028-07-01 | M31: 2029-07-01 | N31: 2030-07-01 | O31: 2031-07-01 | P31: 2032-07-01 | Q31: 2033-07-01 | R31: 2034-07-01 | S31: 2035-07-01 | T31: 2036-07-01 | U31: 2037-07-01 | V31: 2038-07-01 | W31: 2039-07-01 | X31: 2040-07-01 | Y31: 2041-07-01 | Z31: 2042-07-01 | AA31: 2043-07-01 | AB31: 2044-07-01 | AC31: 2045-07-01 | AD31: 2046-07-01 | AE31: 2047-07-01 | AF31: 2048-07-01 | AG31: 2049-07-01 | AH31: 2050-07-01 | AI31: 2051-07-01 | AJ31: 2052-07-01 | AK31: 2053-07-01 | AL31: 2054-07-01 | AM31: 2055-07-01 | AN31: 2056-07-01 | AO31: 2057-07-01 | AP31: =EDATE($I$22,(AP33-1)*12) -> 2058-07-01 | AQ31: 2059-07-01 | AR31: 2060-07-01 | AS31: 2061-07-01 | AT31: 2062-07-01 | AU31: 2063-07-01 | AV31: 2064-07-01 | AW31: 2065-07-01 | AX31: 2066-07-01 | AY31: 2067-07-01 | AZ31: 2068-07-01 | BA31: 2069-07-01 | BB31: 2070-07-01 | BC31: 2071-07-01 | BD31: 2072-07-01 | BE31: 2073-07-01 | BF31: 2074-07-01 | BG31: 2075-07-01
B32: Period End Date | J32: =EDATE(J31,12)-1 -> 2027-06-30 | K32: =EDATE(K31,12)-1 -> 2028-06-30 | L32: 2029-06-30 | M32: =EDATE(M31,12)-1 -> 2030-06-30 | N32: 2031-06-30 | O32: 2032-06-30 | P32: 2033-06-30 | Q32: 2034-06-30 | R32: 2035-06-30 | S32: 2036-06-30 | T32: 2037-06-30 | U32: 2038-06-30 | V32: 2039-06-30 | W32: 2040-06-30 | X32: 2041-06-30 | Y32: 2042-06-30 | Z32: 2043-06-30 | AA32: 2044-06-30 | AB32: 2045-06-30 | AC32: 2046-06-30 | AD32: 2047-06-30 | AE32: 2048-06-30 | AF32: 2049-06-30 | AG32: 2050-06-30 | AH32: 2051-06-30 | AI32: 2052-06-30 | AJ32: 2053-06-30 | AK32: 2054-06-30 | AL32: 2055-06-30 | AM32: 2056-06-30 | AN32: 2057-06-30 | AO32: 2058-06-30 | AP32: 2059-06-30 | AQ32: 2060-06-30 | AR32: 2061-06-30 | AS32: 2062-06-30 | AT32: 2063-06-30 | AU32: 2064-06-30 | AV32: 2065-06-30 | AW32: 2066-06-30 | AX32: 2067-06-30 | AY32: 2068-06-30 | AZ32: 2069-06-30 | BA32: 2070-06-30 | BB32: 2071-06-30 | BC32: 2072-06-30 | BD32: 2073-06-30 | BE32: 2074-06-30 | BF32: 2075-06-30 | BG32: 2076-06-30
B33: ="Project Year" -> Project Year | J33: =COLUMNS($J33:J33) -> 1 | K33: =COLUMNS($J33:K33) -> 2 | L33: =COLUMNS($J33:L33) -> 3 | M33: =COLUMNS($J33:M33) -> 4 | N33: =COLUMNS($J33:N33) -> 5 | O33: =COLUMNS($J33:O33) -> 6 | P33: =COLUMNS($J33:P33) -> 7 | Q33: =COLUMNS($J33:Q33) -> 8 | R33: =COLUMNS($J33:R33) -> 9 | S33: =COLUMNS($J33:S33) -> 10 | T33: =COLUMNS($J33:T33) -> 11 | U33: =COLUMNS($J33:U33) -> 12 | V33: =COLUMNS($J33:V33) -> 13 | W33: =COLUMNS($J33:W33) -> 14 | X33: =COLUMNS($J33:X33) -> 15 | Y33: =COLUMNS($J33:Y33) -> 16 | Z33: =COLUMNS($J33:Z33) -> 17 | AA33: =COLUMNS($J33:AA33) -> 18 | AB33: =COLUMNS($J33:AB33) -> 19 | AC33: =COLUMNS($J33:AC33) -> 20 | AD33: =COLUMNS($J33:AD33) -> 21 | AE33: =COLUMNS($J33:AE33) -> 22 | AF33: =COLUMNS($J33:AF33) -> 23 | AG33: =COLUMNS($J33:AG33) -> 24 | AH33: =COLUMNS($J33:AH33) -> 25 | AI33: =COLUMNS($J33:AI33) -> 26 | AJ33: =COLUMNS($J33:AJ33) -> 27 | AK33: =COLUMNS($J33:AK33) -> 28 | AL33: =COLUMNS($J33:AL33) -> 29 | AM33: =COLUMNS($J33:AM33) -> 30 | AN33: =COLUMNS($J33:AN33) -> 31 | AO33: =COLUMNS($J33:AO33) -> 32 | AP33: =COLUMNS($J33:AP33) -> 33 | AQ33: =COLUMNS($J33:AQ33) -> 34 | AR33: =COLUMNS($J33:AR33) -> 35 | AS33: =COLUMNS($J33:AS33) -> 36 | AT33: =COLUMNS($J33:AT33) -> 37 | AU33: =COLUMNS($J33:AU33) -> 38 | AV33: =COLUMNS($J33:AV33) -> 39 | AW33: =COLUMNS($J33:AW33) -> 40 | AX33: =COLUMNS($J33:AX33) -> 41 | AY33: =COLUMNS($J33:AY33) -> 42 | AZ33: =COLUMNS($J33:AZ33) -> 43 | BA33: =COLUMNS($J33:BA33) -> 44 | BB33: =COLUMNS($J33:BB33) -> 45 | BC33: =COLUMNS($J33:BC33) -> 46 | BD33: =COLUMNS($J33:BD33) -> 47 | BE33: =COLUMNS($J33:BE33) -> 48 | BF33: =COLUMNS($J33:BF33) -> 49 | BG33: =COLUMNS($J33:BG33) -> 50
B34: Financial Year | J34: =YEAR(J32) -> 2027 | K34: =YEAR(K32) -> 2028 | L34: 2029 | M34: 2030 | N34: 2031 | O34: 2032 | P34: 2033 | Q34: 2034 | R34: 2035 | S34: 2036 | T34: 2037 | U34: 2038 | V34: 2039 | W34: 2040 | X34: 2041 | Y34: 2042 | Z34: 2043 | AA34: 2044 | AB34: 2045 | AC34: 2046 | AD34: 2047 | AE34: 2048 | AF34: 2049 | AG34: 2050 | AH34: 2051 | AI34: 2052 | AJ34: 2053 | AK34: 2054 | AL34: 2055 | AM34: 2056 | AN34: 2057 | AO34: 2058 | AP34: 2059 | AQ34: 2060 | AR34: 2061 | AS34: 2062 | AT34: 2063 | AU34: 2064 | AV34: 2065 | AW34: 2066 | AX34: 2067 | AY34: 2068 | AZ34: 2069 | BA34: 2070 | BB34: 2071 | BC34: 2072 | BD34: 2073 | BE34: 2074 | BF34: 2075 | BG34: 2076

Sheet 2.1_Inputs
C6: Inputs
C7: Section 2.1.
C9: =Cover!$C$9 -> AusNet Services
C10: =Cover!$C$10 -> Business Case Evaluation
C11: =Cover!$C$11 -> High Voltage Feeder Benalla Number 11 (BN11)

Sheet 2.1_BC
B1: General Inputs: Base Case | I1: Regulatory Period Indicator | J1: ='1_KMA'!J30 -> 1 | K1: ='1_KMA'!K30 -> 1 | L1: ='1_KMA'!L30 -> 1 | M1: ='1_KMA'!M30 -> 1 | N1: ='1_KMA'!N30 -> 1 | O1: ='1_KMA'!O30 -> 0 | P1: ='1_KMA'!P30 -> 0 | Q1: ='1_KMA'!Q30 -> 0 | R1: ='1_KMA'!R30 -> 0 | S1: ='1_KMA'!S30 -> 0 | T1: ='1_KMA'!T30 -> 0 | U1: ='1_KMA'!U30 -> 0 | V1: ='1_KMA'!V30 -> 0 | W1: ='1_KMA'!W30 -> 0 | X1: ='1_KMA'!X30 -> 0 | Y1: ='1_KMA'!Y30 -> 0 | Z1: ='1_KMA'!Z30 -> 0 | AA1: ='1_KMA'!AA30 -> 0 | AB1: ='1_KMA'!AB30 -> 0 | AC1: ='1_KMA'!AC30 -> 0 | AD1: ='1_KMA'!AD30 -> 0 | AE1: ='1_KMA'!AE30 -> 0 | AF1: ='1_KMA'!AF30 -> 0 | AG1: ='1_KMA'!AG30 -> 0 | AH1: ='1_KMA'!AH30 -> 0 | AI1: ='1_KMA'!AI30 -> 0 | AJ1: ='1_KMA'!AJ30 -> 0 | AK1: ='1_KMA'!AK30 -> 0 | AL1: ='1_KMA'!AL30 -> 0 | AM1: ='1_KMA'!AM30 -> 0 | AN1: ='1_KMA'!AN30 -> 0 | AO1: ='1_KMA'!AO30 -> 0 | AP1: ='1_KMA'!AP30 -> 0 | AQ1: ='1_KMA'!AQ30 -> 0 | AR1: ='1_KMA'!AR30 -> 0 | AS1: ='1_KMA'!AS30 -> 0 | AT1: ='1_KMA'!AT30 -> 0 | AU1: ='1_KMA'!AU30 -> 0 | AV1: ='1_KMA'!AV30 -> 0 | AW1: ='1_KMA'!AW30 -> 0 | AX1: ='1_KMA'!AX30 -> 0 | AY1: ='1_KMA'!AY30 -> 0 | AZ1: ='1_KMA'!AZ30 -> 0 | BA1: ='1_KMA'!BA30 -> 0 | BB1: ='1_KMA'!BB30 -> 0 | BC1: ='1_KMA'!BC30 -> 0 | BD1: ='1_KMA'!BD30 -> 0 | BE1: ='1_KMA'!BE30 -> 0 | BF1: ='1_KMA'!BF30 -> 0 | BG1: ='1_KMA'!BG30 -> 0
B2: =Cover!$C$9 -> AusNet Services | I2: Period Start Date | J2: ='1_KMA'!J31 -> 2026-07-01 | K2: ='1_KMA'!K31 -> 2027-07-01 | L2: ='1_KMA'!L31 -> 2028-07-01 | M2: ='1_KMA'!M31 -> 2029-07-01 | N2: ='1_KMA'!N31 -> 2030-07-01 | O2: ='1_KMA'!O31 -> 2031-07-01 | P2: ='1_KMA'!P31 -> 2032-07-01 | Q2: ='1_KMA'!Q31 -> 2033-07-01 | R2: ='1_KMA'!R31 -> 2034-07-01 | S2: ='1_KMA'!S31 -> 2035-07-01 | T2: ='1_KMA'!T31 -> 2036-07-01 | U2: ='1_KMA'!U31 -> 2037-07-01 | V2: ='1_KMA'!V31 -> 2038-07-01 | W2: ='1_KMA'!W31 -> 2039-07-01 | X2: ='1_KMA'!X31 -> 2040-07-01 | Y2: ='1_KMA'!Y31 -> 2041-07-01 | Z2: ='1_KMA'!Z31 -> 2042-07-01 | AA2: ='1_KMA'!AA31 -> 2043-07-01 | AB2: ='1_KMA'!AB31 -> 2044-07-01 | AC2: ='1_KMA'!AC31 -> 2045-07-01 | AD2: ='1_KMA'!AD31 -> 2046-07-01 | AE2: ='1_KMA'!AE31 -> 2047-07-01 | AF2: ='1_KMA'!AF31 -> 2048-07-01 | AG2: ='1_KMA'!AG31 -> 2049-07-01 | AH2: ='1_KMA'!AH31 -> 2050-07-01 | AI2: ='1_KMA'!AI31 -> 2051-07-01 | AJ2: ='1_KMA'!AJ31 -> 2052-07-01 | AK2: ='1_KMA'!AK31 -> 2053-07-01 | AL2: ='1_KMA'!AL31 -> 2054-07-01 | AM2: ='1_KMA'!AM31 -> 2055-07-01 | AN2: ='1_KMA'!AN31 -> 2056-07-01 | AO2: ='1_KMA'!AO31 -> 2057-07-01 | AP2: ='1_KMA'!AP31 -> 2058-07-01 | AQ2: ='1_KMA'!AQ31 -> 2059-07-01 | AR2: ='1_KMA'!AR31 -> 2060-07-01 | AS2: ='1_KMA'!AS31 -> 2061-07-01 | AT2: ='1_KMA'!AT31 -> 2062-07-01 | AU2: ='1_KMA'!AU31 -> 2063-07-01 | AV2: ='1_KMA'!AV31 -> 2064-07-01 | AW2: ='1_KMA'!AW31 -> 2065-07-01 | AX2: ='1_KMA'!AX31 -> 2066-07-01 | AY2: ='1_KMA'!AY31 -> 2067-07-01 | AZ2: ='1_KMA'!AZ31 -> 2068-07-01 | BA2: ='1_KMA'!BA31 -> 2069-07-01 | BB2: ='1_KMA'!BB31 -> 2070-07-01 | BC2: ='1_KMA'!BC31 -> 2071-07-01 | BD2: ='1_KMA'!BD31 -> 2072-07-01 | BE2: ='1_KMA'!BE31 -> 2073-07-01 | BF2: ='1_KMA'!BF31 -> 2074-07-01 | BG2: ='1_KMA'!BG31 -> 2075-07-01
B3: =Cover!$C$10 -> Business Case Evaluation | I3: Period End Date | J3: ='1_KMA'!J32 -> 2027-06-30 | K3: ='1_KMA'!K32 -> 2028-06-30 | L3: ='1_KMA'!L32 -> 2029-06-30 | M3: ='1_KMA'!M32 -> 2030-06-30 | N3: ='1_KMA'!N32 -> 2031-06-30 | O3: ='1_KMA'!O32 -> 2032-06-30 | P3: ='1_KMA'!P32 -> 2033-06-30 | Q3: ='1_KMA'!Q32 -> 2034-06-30 | R3: ='1_KMA'!R32 -> 2035-06-30 | S3: ='1_KMA'!S32 -> 2036-06-30 | T3: ='1_KMA'!T32 -> 2037-06-30 | U3: ='1_KMA'!U32 -> 2038-06-30 | V3: ='1_KMA'!V32 -> 2039-06-30 | W3: ='1_KMA'!W32 -> 2040-06-30 | X3: ='1_KMA'!X32 -> 2041-06-30 | Y3: ='1_KMA'!Y32 -> 2042-06-30 | Z3: ='1_KMA'!Z32 -> 2043-06-30 | AA3: ='1_KMA'!AA32 -> 2044-06-30 | AB3: ='1_KMA'!AB32 -> 2045-06-30 | AC3: ='1_KMA'!AC32 -> 2046-06-30 | AD3: ='1_KMA'!AD32 -> 2047-06-30 | AE3: ='1_KMA'!AE32 -> 2048-06-30 | AF3: ='1_KMA'!AF32 -> 2049-06-30 | AG3: ='1_KMA'!AG32 -> 2050-06-30 | AH3: ='1_KMA'!AH32 -> 2051-06-30 | AI3: ='1_KMA'!AI32 -> 2052-06-30 | AJ3: ='1_KMA'!AJ32 -> 2053-06-30 | AK3: ='1_KMA'!AK32 -> 2054-06-30 | AL3: ='1_KMA'!AL32 -> 2055-06-30 | AM3: ='1_KMA'!AM32 -> 2056-06-30 | AN3: ='1_KMA'!AN32 -> 2057-06-30 | AO3: ='1_KMA'!AO32 -> 2058-06-30 | AP3: ='1_KMA'!AP32 -> 2059-06-30 | AQ3: ='1_KMA'!AQ32 -> 2060-06-30 | AR3: ='1_KMA'!AR32 -> 2061-06-30 | AS3: ='1_KMA'!AS32 -> 2062-06-30 | AT3: ='1_KMA'!AT32 -> 2063-06-30 | AU3: ='1_KMA'!AU32 -> 2064-06-30 | AV3: ='1_KMA'!AV32 -> 2065-06-30 | AW3: ='1_KMA'!AW32 -> 2066-06-30 | AX3: ='1_KMA'!AX32 -> 2067-06-30 | AY3: ='1_KMA'!AY32 -> 2068-06-30 | AZ3: ='1_KMA'!AZ32 -> 2069-06-30 | BA3: ='1_KMA'!BA32 -> 2070-06-30 | BB3: ='1_KMA'!BB32 -> 2071-06-30 | BC3: ='1_KMA'!BC32 -> 2072-06-30 | BD3: ='1_KMA'!BD32 -> 2073-06-30 | BE3: ='1_KMA'!BE32 -> 2074-06-30 | BF3: ='1_KMA'!BF32 -> 2075-06-30 | BG3: ='1_KMA'!BG32 -> 2076-06-30
B4: =Cover!$C$11 -> High Voltage Feeder Benalla Number 11 (BN11) | I4: Project Year | J4: ='1_KMA'!J33 -> 1 | K4: ='1_KMA'!K33 -> 2 | L4: ='1_KMA'!L33 -> 3 | M4: ='1_KMA'!M33 -> 4 | N4: ='1_KMA'!N33 -> 5 | O4: ='1_KMA'!O33 -> 6 | P4: ='1_KMA'!P33 -> 7 | Q4: ='1_KMA'!Q33 -> 8 | R4: ='1_KMA'!R33 -> 9 | S4: ='1_KMA'!S33 -> 10 | T4: ='1_KMA'!T33 -> 11 | U4: ='1_KMA'!U33 -> 12 | V4: ='1_KMA'!V33 -> 13 | W4: ='1_KMA'!W33 -> 14 | X4: ='1_KMA'!X33 -> 15 | Y4: ='1_KMA'!Y33 -> 16 | Z4: ='1_KMA'!Z33 -> 17 | AA4: ='1_KMA'!AA33 -> 18 | AB4: ='1_KMA'!AB33 -> 19 | AC4: ='1_KMA'!AC33 -> 20 | AD4: ='1_KMA'!AD33 -> 21 | AE4: ='1_KMA'!AE33 -> 22 | AF4: ='1_KMA'!AF33 -> 23 | AG4: ='1_KMA'!AG33 -> 24 | AH4: ='1_KMA'!AH33 -> 25 | AI4: ='1_KMA'!AI33 -> 26 | AJ4: ='1_KMA'!AJ33 -> 27 | AK4: ='1_KMA'!AK33 -> 28 | AL4: ='1_KMA'!AL33 -> 29 | AM4: ='1_KMA'!AM33 -> 30 | AN4: ='1_KMA'!AN33 -> 31 | AO4: ='1_KMA'!AO33 -> 32 | AP4: ='1_KMA'!AP33 -> 33 | AQ4: ='1_KMA'!AQ33 -> 34 | AR4: ='1_KMA'!AR33 -> 35 | AS4: ='1_KMA'!AS33 -> 36 | AT4: ='1_KMA'!AT33 -> 37 | AU4: ='1_KMA'!AU33 -> 38 | AV4: ='1_KMA'!AV33 -> 39 | AW4: ='1_KMA'!AW33 -> 40 | AX4: ='1_KMA'!AX33 -> 41 | AY4: ='1_KMA'!AY33 -> 42 | AZ4: ='1_KMA'!AZ33 -> 43 | BA4: ='1_KMA'!BA33 -> 44 | BB4: ='1_KMA'!BB33 -> 45 | BC4: ='1_KMA'!BC33 -> 46 | BD4: ='1_KMA'!BD33 -> 47 | BE4: ='1_KMA'!BE33 -> 48 | BF4: ='1_KMA'!BF33 -> 49 | BG4: ='1_KMA'!BG33 -> 50
I5: Financial Year | J5: ='1_KMA'!J34 -> 2027 | K5: ='1_KMA'!K34 -> 2028 | L5: ='1_KMA'!L34 -> 2029 | M5: ='1_KMA'!M34 -> 2030 | N5: ='1_KMA'!N34 -> 2031 | O5: ='1_KMA'!O34 -> 2032 | P5: ='1_KMA'!P34 -> 2033 | Q5: ='1_KMA'!Q34 -> 2034 | R5: ='1_KMA'!R34 -> 2035 | S5: ='1_KMA'!S34 -> 2036 | T5: ='1_KMA'!T34 -> 2037 | U5: ='1_KMA'!U34 -> 2038 | V5: ='1_KMA'!V34 -> 2039 | W5: ='1_KMA'!W34 -> 2040 | X5: ='1_KMA'!X34 -> 2041 | Y5: ='1_KMA'!Y34 -> 2042 | Z5: ='1_KMA'!Z34 -> 2043 | AA5: ='1_KMA'!AA34 -> 2044 | AB5: ='1_KMA'!AB34 -> 2045 | AC5: ='1_KMA'!AC34 -> 2046 | AD5: ='1_KMA'!AD34 -> 2047 | AE5: ='1_KMA'!AE34 -> 2048 | AF5: ='1_KMA'!AF34 -> 2049 | AG5: ='1_KMA'!AG34 -> 2050 | AH5: ='1_KMA'!AH34 -> 2051 | AI5: ='1_KMA'!AI34 -> 2052 | AJ5: ='1_KMA'!AJ34 -> 2053 | AK5: ='1_KMA'!AK34 -> 2054 | AL5: ='1_KMA'!AL34 -> 2055 | AM5: ='1_KMA'!AM34 -> 2056 | AN5: ='1_KMA'!AN34 -> 2057 | AO5: ='1_KMA'!AO34 -> 2058 | AP5: ='1_KMA'!AP34 -> 2059 | AQ5: ='1_KMA'!AQ34 -> 2060 | AR5: ='1_KMA'!AR34 -> 2061 | AS5: ='1_KMA'!AS34 -> 2062 | AT5: ='1_KMA'!AT34 -> 2063 | AU5: ='1_KMA'!AU34 -> 2064 | AV5: ='1_KMA'!AV34 -> 2065 | AW5: ='1_KMA'!AW34 -> 2066 | AX5: ='1_KMA'!AX34 -> 2067 | AY5: ='1_KMA'!AY34 -> 2068 | AZ5: ='1_KMA'!AZ34 -> 2069 | BA5: ='1_KMA'!BA34 -> 2070 | BB5: ='1_KMA'!BB34 -> 2071 | BC5: ='1_KMA'!BC34 -> 2072 | BD5: ='1_KMA'!BD34 -> 2073 | BE5: ='1_KMA'!BE34 -> 2074 | BF5: ='1_KMA'!BF34 -> 2075 | BG5: ='1_KMA'!BG34 -> 2076
B7: Summary
B9: Costs | G9: $ Basis Reminder | H9: $ Reminder | J9: ="Ensure this section [Summary] is picking up the relevant rows" -> Ensure this section [Summary] is picking up the relevant rows
B10: Capex | G10: ='1_KMA'!$I$20 -> 2024-06-30 | H10: ='1_KMA'!$I$19 -> $millions | J10: =J47 -> 0 | K10: =K47 -> 0 | L10: =L47 -> 0 | M10: 0 | N10: 0 | O10: 0 | P10: 0 | Q10: 0 | R10: 0 | S10: 0 | T10: 0 | U10: 0 | V10: 0 | W10: 0 | X10: 0 | Y10: 0 | Z10: 0 | AA10: 0 | AB10: 0 | AC10: 0 | AD10: 0 | AE10: 0 | AF10: 0 | AG10: 0 | AH10: 0 | AI10: 0 | AJ10: 0 | AK10: 0 | AL10: 0 | AM10: 0 | AN10: 0 | AO10: 0 | AP10: 0 | AQ10: 0 | AR10: 0 | AS10: 0 | AT10: 0 | AU10: 0 | AV10: 0 | AW10: 0 | AX10: 0 | AY10: 0 | AZ10: 0 | BA10: 0 | BB10: 0 | BC10: 0 | BD10: 0 | BE10: 0 | BF10: 0 | BG10: 0
B11: Capex offset | G11: ='1_KMA'!$I$20 -> 2024-06-30 | H11: ='1_KMA'!$I$19 -> $millions | J11: =-J59 -> 0 | K11: =-K59 -> 0 | L11: =-L59 -> 0 | M11: 0 | N11: 0 | O11: 0 | P11: 0 | Q11: 0 | R11: 0 | S11: 0 | T11: 0 | U11: 0 | V11: 0 | W11: 0 | X11: 0 | Y11: 0 | Z11: 0 | AA11: 0 | AB11: 0 | AC11: 0 | AD11: 0 | AE11: 0 | AF11: 0 | AG11: 0 | AH11: 0 | AI11: 0 | AJ11: 0 | AK11: 0 | AL11: 0 | AM11: 0 | AN11: 0 | AO11: 0 | AP11: 0 | AQ11: 0 | AR11: 0 | AS11: 0 | AT11: 0 | AU11: 0 | AV11: 0 | AW11: 0 | AX11: 0 | AY11: 0 | AZ11: 0 | BA11: 0 | BB11: 0 | BC11: 0 | BD11: 0 | BE11: 0 | BF11: 0 | BG11: 0
B12: Opex | G12: ='1_KMA'!$I$20 -> 2024-06-30 | H12: ='1_KMA'!$I$19 -> $millions | J12: =J85 -> 0.6986962619 | K12: =K85 -> 0.6986962619 | L12: =L85 -> 0.6986962619 | M12: =M85 -> 0.6986962619 | N12: =N85 -> 0.6986962619 | O12: 0.8426962619 | P12: 0.8426962619 | Q12: 0.8426962619 | R12: 0.8426962619 | S12: 0.8426962619 | T12: 0.9866962619 | U12: 0.9866962619 | V12: 0.9866962619 | W12: 0.9866962619 | X12: 0.9866962619 | Y12: 0.9866962619 | Z12: 0.9866962619 | AA12: 0.9866962619 | AB12: 0.9866962619 | AC12: 0.9866962619 | AD12: 0.9866962619 | AE12: 0.9866962619 | AF12: 0.9866962619 | AG12: 0.9866962619 | AH12: 0.9866962619 | AI12: 0.9866962619 | AJ12: 0.9866962619 | AK12: 0.9866962619 | AL12: 0.9866962619 | AM12: 0.9866962619 | AN12: 0.9866962619 | AO12: 0.9866962619 | AP12: 0.9866962619 | AQ12: 0.9866962619 | AR12: 0.9866962619 | AS12: 0.9866962619 | AT12: 0.9866962619 | AU12: 0.9866962619 | AV12: 0.9866962619 | AW12: 0.9866962619 | AX12: 0.9866962619 | AY12: 0.9866962619 | AZ12: 0.9866962619 | BA12: 0.9866962619 | BB12: 0.9866962619 | BC12: 0.9866962619 | BD12: 0.9866962619 | BE12: 0.9866962619 | BF12: 0.9866962619 | BG12: 0.9866962619
B13: Total | G13: ='1_KMA'!$I$20 -> 2024-06-30 | H13: ='1_KMA'!$I$19 -> $millions | J13: =SUM(J10:J12) -> 0.6986962619 | K13: =SUM(K10:K12) -> 0.6986962619 | L13: 0.6986962619 | M13: 0.6986962619 | N13: 0.6986962619 | O13: 0.8426962619 | P13: 0.8426962619 | Q13: 0.8426962619 | R13: 0.8426962619 | S13: 0.8426962619 | T13: 0.9866962619 | U13: 0.9866962619 | V13: 0.9866962619 | W13: 0.9866962619 | X13: 0.9866962619 | Y13: 0.9866962619 | Z13: 0.9866962619 | AA13: 0.9866962619 | AB13: 0.9866962619 | AC13: 0.9866962619 | AD13: 0.9866962619 | AE13: 0.9866962619 | AF13: 0.9866962619 | AG13: 0.9866962619 | AH13: 0.9866962619 | AI13: 0.9866962619 | AJ13: 0.9866962619 | AK13: 0.9866962619 | AL13: 0.9866962619 | AM13: 0.9866962619 | AN13: 0.9866962619 | AO13: 0.9866962619 | AP13: 0.9866962619 | AQ13: 0.9866962619 | AR13: 0.9866962619 | AS13: 0.9866962619 | AT13: 0.9866962619 | AU13: 0.9866962619 | AV13: 0.9866962619 | AW13: 0.9866962619 | AX13: 0.9866962619 | AY13: 0.9866962619 | AZ13: 0.9866962619 | BA13: 0.9866962619 | BB13: 0.9866962619 | BC13: 0.9866962619 | BD13: 0.9866962619 | BE13: 0.9866962619 | BF13: 0.9866962619 | BG13: 0.9866962619
B15: Benefits | G15: $ Basis Reminder | H15: $ Reminder | J15: ="Ensure this section [Summary] is picking up the relevant rows" -> Ensure this section [Summary] is picking up the relevant rows
B16: Value of EUE | G16: ='1_KMA'!$I$20 -> 2024-06-30 | H16: ='1_KMA'!$I$19 -> $millions | J16: =-J96 -> -0.8124818542 | K16: =-K96 -> -0.8218127245 | L16: -0.8336296709 | M16: -0.8446296333 | N16: -0.8572165977 | O16: -0.870007331 | P16: -0.8834547284 | Q16: -0.8975184819 | R16: -0.9121352872 | S16: -0.9255037288 | T16: -0.9377361863 | U16: -0.9494550116 | V16: -0.9608253444 | W16: -0.9723318442 | X16: -0.9839761417 | Y16: -0.9957598872 | Z16: -1.007684751 | AA16: -1.019752422 | AB16: -1.031964611 | AC16: -1.044323049 | AD16: -1.056829488 | AE16: -1.069485699 | AF16: -1.082293476 | AG16: -1.095254634 | AH16: -1.108371011 | AI16: -1.121644465 | AJ16: -1.135076877 | AK16: -1.148670151 | AL16: -1.162426212 | AM16: -1.176347012 | AN16: -1.190434522 | AO16: -1.204690739 | AP16: -1.219117683 | AQ16: -1.233717399 | AR16: -1.248491957 | AS16: -1.263443449 | AT16: -1.278573994 | AU16: -1.293885738 | AV16: -1.30938085 | AW16: -1.325061525 | AX16: -1.340929987 | AY16: -1.356988484 | AZ16: -1.373239291 | BA16: -1.389684712 | BB16: -1.406327078 | BC16: -1.423168747 | BD16: -1.440212106 | BE16: -1.457459569 | BF16: 0 | BG16: 0
B17: Reliability | G17: ='1_KMA'!$I$20 -> 2024-06-30 | H17: ='1_KMA'!$I$19 -> $millions | J17: =J114 -> 0 | K17: =K114 -> 0 | L17: 0 | M17: 0 | N17: 0 | O17: 0 | P17: 0 | Q17: 0 | R17: 0 | S17: 0 | T17: 0 | U17: 0 | V17: 0 | W17: 0 | X17: 0 | Y17: 0 | Z17: 0 | AA17: 0 | AB17: 0 | AC17: 0 | AD17: 0 | AE17: 0 | AF17: 0 | AG17: 0 | AH17: 0 | AI17: 0 | AJ17: 0 | AK17: 0 | AL17: 0 | AM17: 0 | AN17: 0 | AO17: 0 | AP17: 0 | AQ17: 0 | AR17: 0 | AS17: 0 | AT17: 0 | AU17: 0 | AV17: 0 | AW17: 0 | AX17: 0 | AY17: 0 | AZ17: 0 | BA17: 0 | BB17: 0 | BC17: 0 | BD17: 0 | BE17: 0 | BF17: 0 | BG17: 0
B18: Resilience | G18: ='1_KMA'!$I$20 -> 2024-06-30 | H18: ='1_KMA'!$I$19 -> $millions | J18: =J135 -> 0 | K18: =K135 -> 0 | L18: 0 | M18: 0 | N18: 0 | O18: 0 | P18: 0 | Q18: 0 | R18: 0 | S18: 0 | T18: 0 | U18: 0 | V18: 0 | W18: 0 | X18: 0 | Y18: 0 | Z18: 0 | AA18: 0 | AB18: 0 | AC18: 0 | AD18: 0 | AE18: 0 | AF18: 0 | AG18: 0 | AH18: 0 | AI18: 0 | AJ18: 0 | AK18: 0 | AL18: 0 | AM18: 0 | AN18: 0 | AO18: 0 | AP18: 0 | AQ18: 0 | AR18: 0 | AS18: 0 | AT18: 0 | AU18: 0 | AV18: 0 | AW18: 0 | AX18: 0 | AY18: 0 | AZ18: 0 | BA18: 0 | BB18: 0 | BC18: 0 | BD18: 0 | BE18: 0 | BF18: 0 | BG18: 0
B19: Batteries | G19: ='1_KMA'!$I$20 -> 2024-06-30 | H19: ='1_KMA'!$I$19 -> $millions | J19: =J171 -> 0 | K19: =K171 -> 0 | L19: 0 | M19: 0 | N19: 0 | O19: 0 | P19: 0 | Q19: 0 | R19: 0 | S19: 0 | T19: 0 | U19: 0 | V19: 0 | W19: 0 | X19: 0 | Y19: 0 | Z19: 0 | AA19: 0 | AB19: 0 | AC19: 0 | AD19: 0 | AE19: 0 | AF19: 0 | AG19: 0 | AH19: 0 | AI19: 0 | AJ19: 0 | AK19: 0 | AL19: 0 | AM19: 0 | AN19: 0 | AO19: 0 | AP19: 0 | AQ19: 0 | AR19: 0 | AS19: 0 | AT19: 0 | AU19: 0 | AV19: 0 | AW19: 0 | AX19: 0 | AY19: 0 | AZ19: 0 | BA19: 0 | BB19: 0 | BC19: 0 | BD19: 0 | BE19: 0 | BF19: 0 | BG19: 0
B20: Others | G20: ='1_KMA'!$I$20 -> 2024-06-30 | H20: ='1_KMA'!$I$19 -> $millions
B21: Total | G21: ='1_KMA'!$I$20 -> 2024-06-30 | H21: ='1_KMA'!$I$19 -> $millions | J21: =SUM(J16:J20) -> -0.8124818542 | K21: =SUM(K16:K20) -> -0.8218127245 | L21: -0.8336296709 | M21: -0.8446296333 | N21: -0.8572165977 | O21: -0.870007331 | P21: -0.8834547284 | Q21: -0.8975184819 | R21: -0.9121352872 | S21: -0.9255037288 | T21: -0.9377361863 | U21: -0.9494550116 | V21: -0.9608253444 | W21: -0.9723318442 | X21: -0.9839761417 | Y21: -0.9957598872 | Z21: -1.007684751 | AA21: -1.019752422 | AB21: -1.031964611 | AC21: -1.044323049 | AD21: -1.056829488 | AE21: -1.069485699 | AF21: -1.082293476 | AG21: -1.095254634 | AH21: -1.108371011 | AI21: -1.121644465 | AJ21: -1.135076877 | AK21: -1.148670151 | AL21: -1.162426212 | AM21: -1.176347012 | AN21: -1.190434522 | AO21: -1.204690739 | AP21: -1.219117683 | AQ21: -1.233717399 | AR21: -1.248491957 | AS21: -1.263443449 | AT21: -1.278573994 | AU21: -1.293885738 | AV21: -1.30938085 | AW21: -1.325061525 | AX21: -1.340929987 | AY21: -1.356988484 | AZ21: -1.373239291 | BA21: -1.389684712 | BB21: -1.406327078 | BC21: -1.423168747 | BD21: -1.440212106 | BE21: -1.457459569 | BF21: 0 | BG21: 0
B24: Cost Inputs
B26: Capex Build Up
B28: Name | H28: Unit | J28: Unit Rate
B29: [e.g. New feeder] | H29: [e.g., $million per feeder km]
B30: [e.g. New switchboard] | H30: [e.g., $million per switchboard]
B34: Name | H34: Unit | J34: Quantities
B35: =B29 -> [e.g. New feeder] | H35: [e.g., feeder km]
B36: =B30 -> [e.g. New switchboard] | H36: [e.g., count of switchboards]
B40: Name | G40: $ Basis Reminder | H40: $ Reminder | J40: ="Costs - ensure costs have been converted to "&'1_KMA'!$I$19 -> Costs - ensure costs have been converted to $millions
B41: =B29 -> [e.g. New feeder] | G41: ='1_KMA'!$I$20 -> 2024-06-30 | H41: ='1_KMA'!$I$19 -> $millions | J41: =$J$29*J35 -> 0 | K41: =$J$29*K35 -> 0 | L41: =$J$29*L35 -> 0 | M41: =$J$29*M35 -> 0 | N41: 0 | O41: 0 | P41: 0 | Q41: 0 | R41: 0 | S41: 0 | T41: 0 | U41: 0 | V41: 0 | W41: 0 | X41: 0 | Y41: 0 | Z41: 0 | AA41: 0 | AB41: 0 | AC41: 0 | AD41: 0 | AE41: 0 | AF41: 0 | AG41: 0 | AH41: 0 | AI41: 0 | AJ41: 0 | AK41: 0 | AL41: 0 | AM41: 0 | AN41: 0 | AO41: 0 | AP41: 0 | AQ41: 0 | AR41: 0 | AS41: 0 | AT41: 0 | AU41: 0 | AV41: 0 | AW41: 0 | AX41: 0 | AY41: 0 | AZ41: 0 | BA41: 0 | BB41: 0 | BC41: 0 | BD41: 0 | BE41: 0 | BF41: 0 | BG41: 0
B42: =B30 -> [e.g. New switchboard] | G42: ='1_KMA'!$I$20 -> 2024-06-30 | H42: ='1_KMA'!$I$19 -> $millions | J42: =$J$30*J36 -> 0 | K42: =$J$30*K36 -> 0 | L42: =$J$30*L36 -> 0 | M42: =$J$30*M36 -> 0 | N42: 0 | O42: 0 | P42: 0 | Q42: 0 | R42: 0 | S42: 0 | T42: 0 | U42: 0 | V42: 0 | W42: 0 | X42: 0 | Y42: 0 | Z42: 0 | AA42: 0 | AB42: 0 | AC42: 0 | AD42: 0 | AE42: 0 | AF42: 0 | AG42: 0 | AH42: 0 | AI42: 0 | AJ42: 0 | AK42: 0 | AL42: 0 | AM42: 0 | AN42: 0 | AO42: 0 | AP42: 0 | AQ42: 0 | AR42: 0 | AS42: 0 | AT42: 0 | AU42: 0 | AV42: 0 | AW42: 0 | AX42: 0 | AY42: 0 | AZ42: 0 | BA42: 0 | BB42: 0 | BC42: 0 | BD42: 0 | BE42: 0 | BF42: 0 | BG42: 0
G43: ='1_KMA'!$I$20 -> 2024-06-30 | H43: ='1_KMA'!$I$19 -> $millions | J43: =$J$31*J37 -> 0 | K43: =$J$31*K37 -> 0 | L43: =$J$31*L37 -> 0 | M43: =$J$31*M37 -> 0 | N43: 0 | O43: 0 | P43: 0 | Q43: 0 | R43: 0 | S43: 0 | T43: 0 | U43: 0 | V43: 0 | W43: 0 | X43: 0 | Y43: 0 | Z43: 0 | AA43: 0 | AB43: 0 | AC43: 0 | AD43: 0 | AE43: 0 | AF43: 0 | AG43: 0 | AH43: 0 | AI43: 0 | AJ43: 0 | AK43: 0 | AL43: 0 | AM43: 0 | AN43: 0 | AO43: 0 | AP43: 0 | AQ43: 0 | AR43: 0 | AS43: 0 | AT43: 0 | AU43: 0 | AV43: 0 | AW43: 0 | AX43: 0 | AY43: 0 | AZ43: 0 | BA43: 0 | BB43: 0 | BC43: 0 | BD43: 0 | BE43: 0 | BF43: 0 | BG43: 0
G44: ='1_KMA'!$I$20 -> 2024-06-30 | H44: ='1_KMA'!$I$19 -> $millions | J44: =$J$32*J38 -> 0 | K44: =$J$32*K38 -> 0 | L44: =$J$32*L38 -> 0 | M44: =$J$32*M38 -> 0 | N44: =$J$32*N38 -> 0 | O44: 0 | P44: 0 | Q44: 0 | R44: 0 | S44: 0 | T44: 0 | U44: 0 | V44: 0 | W44: 0 | X44: 0 | Y44: 0 | Z44: 0 | AA44: 0 | AB44: 0 | AC44: 0 | AD44: 0 | AE44: 0 | AF44: 0 | AG44: 0 | AH44: 0 | AI44: 0 | AJ44: 0 | AK44: 0 | AL44: 0 | AM44: 0 | AN44: 0 | AO44: 0 | AP44: 0 | AQ44: 0 | AR44: 0 | AS44: 0 | AT44: 0 | AU44: 0 | AV44: 0 | AW44: 0 | AX44: 0 | AY44: 0 | AZ44: 0 | BA44: 0 | BB44: 0 | BC44: 0 | BD44: 0 | BE44: 0 | BF44: 0 | BG44: 0
G46: $ Basis Reminder | H46: $ Reminder | J46: Summary table above picks up this total row
B47: Total | G47: ='1_KMA'!$I$20 -> 2024-06-30 | H47: ='1_KMA'!$I$19 -> $millions | J47: =SUM(J41:J44) -> 0 | K47: =SUM(K41:K44) -> 0 | L47: 0 | M47: =SUM(M41:M44) -> 0 | N47: 0 | O47: 0 | P47: 0 | Q47: 0 | R47: 0 | S47: 0 | T47: 0 | U47: 0 | V47: 0 | W47: 0 | X47: 0 | Y47: 0 | Z47: 0 | AA47: 0 | AB47: 0 | AC47: 0 | AD47: 0 | AE47: 0 | AF47: 0 | AG47: 0 | AH47: 0 | AI47: 0 | AJ47: 0 | AK47: 0 | AL47: 0 | AM47: 0 | AN47: 0 | AO47: 0 | AP47: =SUM(AP41:AP44) -> 0 | AQ47: 0 | AR47: 0 | AS47: 0 | AT47: 0 | AU47: 0 | AV47: 0 | AW47: 0 | AX47: 0 | AY47: 0 | AZ47: 0 | BA47: 0 | BB47: 0 | BC47: 0 | BD47: 0 | BE47: 0 | BF47: 0 | BG47: 0
B49: Capex Offset
J51: ="Capex offsets - ensure capex offsets have been converted to "&'1_KMA'!$I$19 -> Capex offsets - ensure capex offsets have been converted to $millions
B52: Name | G52: $ Basis Reminder | H52: $ Reminder | J52: Enter capex offsets as positive values as the spreadsheet later nets this off the gross amounts
B53: [e.g. Government subsidy] | G53: ='1_KMA'!$I$20 -> 2024-06-30 | H53: ='1_KMA'!$I$19 -> $millions
B54: [e.g. Customer contribution] | G54: ='1_KMA'!$I$20 -> 2024-06-30 | H54: ='1_KMA'!$I$19 -> $millions
G55: ='1_KMA'!$I$20 -> 2024-06-30 | H55: ='1_KMA'!$I$19 -> $millions
G56: ='1_KMA'!$I$20 -> 2024-06-30 | H56: ='1_KMA'!$I$19 -> $millions
G58: $ Basis Reminder | H58: $ Reminder | J58: Summary table above picks up this total row
B59: Total | G59: ='1_KMA'!$I$20 -> 2024-06-30 | H59: ='1_KMA'!$I$19 -> $millions | J59: =SUM(J53:J56) -> 0 | K59: =SUM(K53:K56) -> 0 | L59: =SUM(L53:L56) -> 0 | M59: 0 | N59: 0 | O59: 0 | P59: 0 | Q59: 0 | R59: 0 | S59: 0 | T59: 0 | U59: 0 | V59: 0 | W59: 0 | X59: 0 | Y59: 0 | Z59: 0 | AA59: 0 | AB59: 0 | AC59: 0 | AD59: 0 | AE59: 0 | AF59: 0 | AG59: 0 | AH59: 0 | AI59: 0 | AJ59: 0 | AK59: 0 | AL59: 0 | AM59: 0 | AN59: 0 | AO59: 0 | AP59: 0 | AQ59: 0 | AR59: 0 | AS59: 0 | AT59: 0 | AU59: 0 | AV59: 0 | AW59: 0 | AX59: 0 | AY59: 0 | AZ59: 0 | BA59: 0 | BB59: 0 | BC59: 0 | BD59: 0 | BE59: 0 | BF59: 0 | BG59: =SUM(BG53:BG56) -> 0
B61: Opex Build Up
B63: Name | H63: Unit | J63: Value
B64: Back office response to customer complaints, preemptively placing field resource in Euroa prior to storm events and additional line inspections on Benalla to Euroa line and follow ups. | H64: $s per annum | J64: =0.01+0.05+0.05 -> 0.11
B65: Generators for peak demand 2024-2030 | H65: $s per annum | J65: 0.4744
B66: Generators for peak demand 2031-2036 | H66: $s per annum | J66: 0.6184
B67: Generators for peak demand 2036 onwards | H67: $s per annum | J67: 0.7624
B68: GSLs | H68: $s per annum | J68: =GSLs!D22/1000000 -> 0.1142962619
B70: Name | H70: Unit | J70: Quantities
B71: Back office response to customer complaints | H71: Per annum | J71: 1 | K71: 1 | L71: 1 | M71: 1 | N71: 1 | O71: 1 | P71: 1 | Q71: 1 | R71: 1 | S71: 1 | T71: 1 | U71: 1 | V71: 1 | W71: 1 | X71: 1 | Y71: 1 | Z71: 1 | AA71: 1 | AB71: 1 | AC71: 1 | AD71: 1 | AE71: 1 | AF71: 1 | AG71: 1 | AH71: 1 | AI71: 1 | AJ71: 1 | AK71: 1 | AL71: 1 | AM71: 1 | AN71: 1 | AO71: 1 | AP71: 1 | AQ71: 1 | AR71: 1 | AS71: 1 | AT71: 1 | AU71: 1 | AV71: 1 | AW71: 1 | AX71: 1 | AY71: 1 | AZ71: 1 | BA71: 1 | BB71: 1 | BC71: 1 | BD71: 1 | BE71: 1 | BF71: 1 | BG71: 1
B72: =B65 -> Generators for peak demand 2024-2030 | H72: Per annum | J72: 1 | K72: 1 | L72: 1 | M72: 1 | N72: 1 | O72: 0 | P72: 0 | Q72: 0 | R72: 0 | S72: 0 | T72: 0 | U72: 0 | V72: 0 | W72: 0 | X72: 0 | Y72: 0 | Z72: 0 | AA72: 0 | AB72: 0 | AC72: 0 | AD72: 0 | AE72: 0 | AF72: 0 | AG72: 0 | AH72: 0 | AI72: 0 | AJ72: 0 | AK72: 0 | AL72: 0 | AM72: 0 | AN72: 0 | AO72: 0 | AP72: 0 | AQ72: 0 | AR72: 0 | AS72: 0 | AT72: 0 | AU72: 0 | AV72: 0 | AW72: 0 | AX72: 0 | AY72: 0 | AZ72: 0 | BA72: 0 | BB72: 0 | BC72: 0 | BD72: 0 | BE72: 0 | BF72: 0 | BG72: 0
B73: =B66 -> Generators for peak demand 2031-2036 | H73: Per annum | J73: 0 | K73: 0 | L73: 0 | M73: 0 | N73: 0 | O73: 1 | P73: 1 | Q73: 1 | R73: 1 | S73: 1 | T73: 0 | U73: 0 | V73: 0 | W73: 0 | X73: 0 | Y73: 0 | Z73: 0 | AA73: 0 | AB73: 0 | AC73: 0 | AD73: 0 | AE73: 0 | AF73: 0 | AG73: 0 | AH73: 0 | AI73: 0 | AJ73: 0 | AK73: 0 | AL73: 0 | AM73: 0 | AN73: 0 | AO73: 0 | AP73: 0 | AQ73: 0 | AR73: 0 | AS73: 0 | AT73: 0 | AU73: 0 | AV73: 0 | AW73: 0 | AX73: 0 | AY73: 0 | AZ73: 0 | BA73: 0 | BB73: 0 | BC73: 0 | BD73: 0 | BE73: 0 | BF73: 0 | BG73: 0
B74: =B67 -> Generators for peak demand 2036 onwards | H74: Per annum | J74: 0 | K74: 0 | L74: 0 | M74: 0 | N74: 0 | O74: 0 | P74: 0 | Q74: 0 | R74: 0 | S74: 0 | T74: 1 | U74: 1 | V74: 1 | W74: 1 | X74: 1 | Y74: 1 | Z74: 1 | AA74: 1 | AB74: 1 | AC74: 1 | AD74: 1 | AE74: 1 | AF74: 1 | AG74: 1 | AH74: 1 | AI74: 1 | AJ74: 1 | AK74: 1 | AL74: 1 | AM74: 1 | AN74: 1 | AO74: 1 | AP74: 1 | AQ74: 1 | AR74: 1 | AS74: 1 | AT74: 1 | AU74: 1 | AV74: 1 | AW74: 1 | AX74: 1 | AY74: 1 | AZ74: 1 | BA74: 1 | BB74: 1 | BC74: 1 | BD74: 1 | BE74: 1 | BF74: 1 | BG74: 1
B75: GSLs | H75: Per annum | J75: 1 | K75: 1 | L75: 1 | M75: 1 | N75: 1 | O75: 1 | P75: 1 | Q75: 1 | R75: 1 | S75: 1 | T75: 1 | U75: 1 | V75: 1 | W75: 1 | X75: 1 | Y75: 1 | Z75: 1 | AA75: 1 | AB75: 1 | AC75: 1 | AD75: 1 | AE75: 1 | AF75: 1 | AG75: 1 | AH75: 1 | AI75: 1 | AJ75: 1 | AK75: 1 | AL75: 1 | AM75: 1 | AN75: 1 | AO75: 1 | AP75: 1 | AQ75: 1 | AR75: 1 | AS75: 1 | AT75: 1 | AU75: 1 | AV75: 1 | AW75: 1 | AX75: 1 | AY75: 1 | AZ75: 1 | BA75: 1 | BB75: 1 | BC75: 1 | BD75: 1 | BE75: 1 | BF75: 1 | BG75: 1
B77: Name | G77: $ Basis Reminder | H77: $ Reminder | J77: ="Costs - ensure costs have been converted to "&'1_KMA'!$I$19 -> Costs - ensure costs have been converted to $millions
B78: =B64 -> Back office response to customer complaints, preemptively placing field resource in Euroa prior to storm events and additional line inspections on Benalla to Euroa line and follow ups. | G78: ='1_KMA'!$I$20 -> 2024-06-30 | H78: ='1_KMA'!$I$19 -> $millions | J78: =$J$64*J71 -> 0.11 | K78: 0.11 | L78: 0.11 | M78: 0.11 | N78: 0.11 | O78: 0.11 | P78: 0.11 | Q78: 0.11 | R78: 0.11 | S78: 0.11 | T78: 0.11 | U78: 0.11 | V78: 0.11 | W78: 0.11 | X78: 0.11 | Y78: 0.11 | Z78: 0.11 | AA78: 0.11 | AB78: 0.11 | AC78: 0.11 | AD78: 0.11 | AE78: 0.11 | AF78: 0.11 | AG78: 0.11 | AH78: 0.11 | AI78: 0.11 | AJ78: 0.11 | AK78: 0.11 | AL78: 0.11 | AM78: 0.11 | AN78: 0.11 | AO78: 0.11 | AP78: =$J$64*AP71 -> 0.11 | AQ78: 0.11 | AR78: 0.11 | AS78: 0.11 | AT78: 0.11 | AU78: 0.11 | AV78: 0.11 | AW78: 0.11 | AX78: 0.11 | AY78: 0.11 | AZ78: 0.11 | BA78: 0.11 | BB78: 0.11 | BC78: 0.11 | BD78: 0.11 | BE78: 0.11 | BF78: 0.11 | BG78: 0.11
B79: =B65 -> Generators for peak demand 2024-2030 | G79: ='1_KMA'!$I$20 -> 2024-06-30 | H79: ='1_KMA'!$I$19 -> $millions | J79: =$J$65*J72 -> 0.4744 | K79: 0.4744 | L79: 0.4744 | M79: 0.4744 | N79: 0.4744 | O79: 0 | P79: 0 | Q79: 0 | R79: 0 | S79: 0 | T79: 0 | U79: 0 | V79: 0 | W79: 0 | X79: 0 | Y79: 0 | Z79: 0 | AA79: 0 | AB79: 0 | AC79: 0 | AD79: 0 | AE79: 0 | AF79: 0 | AG79: 0 | AH79: 0 | AI79: 0 | AJ79: 0 | AK79: 0 | AL79: 0 | AM79: 0 | AN79: 0 | AO79: 0 | AP79: =$J$65*AP72 -> 0 | AQ79: 0 | AR79: 0 | AS79: 0 | AT79: 0 | AU79: 0 | AV79: 0 | AW79: 0 | AX79: 0 | AY79: 0 | AZ79: 0 | BA79: 0 | BB79: 0 | BC79: 0 | BD79: 0 | BE79: 0 | BF79: 0 | BG79: 0
B80: =B66 -> Generators for peak demand 2031-2036 | G80: ='1_KMA'!$I$20 -> 2024-06-30 | H80: ='1_KMA'!$I$19 -> $millions | J80: =$J$66*J73 -> 0 | K80: 0 | L80: 0 | M80: 0 | N80: 0 | O80: 0.6184 | P80: 0.6184 | Q80: 0.6184 | R80: 0.6184 | S80: 0.6184 | T80: 0 | U80: 0 | V80: 0 | W80: 0 | X80: 0 | Y80: 0 | Z80: 0 | AA80: 0 | AB80: 0 | AC80: 0 | AD80: 0 | AE80: 0 | AF80: 0 | AG80: 0 | AH80: 0 | AI80: 0 | AJ80: 0 | AK80: 0 | AL80: 0 | AM80: 0 | AN80: 0 | AO80: 0 | AP80: =$J$66*AP73 -> 0 | AQ80: 0 | AR80: 0 | AS80: 0 | AT80: 0 | AU80: 0 | AV80: 0 | AW80: 0 | AX80: 0 | AY80: 0 | AZ80: 0 | BA80: 0 | BB80: 0 | BC80: 0 | BD80: 0 | BE80: 0 | BF80: 0 | BG80: 0
B81: =B67 -> Generators for peak demand 2036 onwards | G81: ='1_KMA'!$I$20 -> 2024-06-30 | H81: ='1_KMA'!$I$19 -> $millions | J81: =$J$67*J74 -> 0 | K81: 0 | L81: 0 | M81: 0 | N81: 0 | O81: 0 | P81: 0 | Q81: 0 | R81: 0 | S81: 0 | T81: 0.7624 | U81: 0.7624 | V81: 0.7624 | W81: 0.7624 | X81: 0.7624 | Y81: 0.7624 | Z81: 0.7624 | AA81: 0.7624 | AB81: 0.7624 | AC81: 0.7624 | AD81: 0.7624 | AE81: 0.7624 | AF81: 0.7624 | AG81: 0.7624 | AH81: 0.7624 | AI81: 0.7624 | AJ81: 0.7624 | AK81: 0.7624 | AL81: 0.7624 | AM81: 0.7624 | AN81: 0.7624 | AO81: 0.7624 | AP81: =$J$67*AP74 -> 0.7624 | AQ81: 0.7624 | AR81: 0.7624 | AS81: 0.7624 | AT81: 0.7624 | AU81: 0.7624 | AV81: 0.7624 | AW81: 0.7624 | AX81: 0.7624 | AY81: 0.7624 | AZ81: 0.7624 | BA81: 0.7624 | BB81: 0.7624 | BC81: 0.7624 | BD81: 0.7624 | BE81: 0.7624 | BF81: 0.7624 | BG81: 0.7624
B82: GSLs | G82: ='1_KMA'!$I$20 -> 2024-06-30 | H82: ='1_KMA'!$I$19 -> $millions | J82: =$J$68*J75 -> 0.1142962619 | K82: 0.1142962619 | L82: 0.1142962619 | M82: 0.1142962619 | N82: 0.1142962619 | O82: 0.1142962619 | P82: 0.1142962619 | Q82: 0.1142962619 | R82: 0.1142962619 | S82: 0.1142962619 | T82: 0.1142962619 | U82: 0.1142962619 | V82: 0.1142962619 | W82: 0.1142962619 | X82: 0.1142962619 | Y82: 0.1142962619 | Z82: 0.1142962619 | AA82: 0.1142962619 | AB82: 0.1142962619 | AC82: 0.1142962619 | AD82: 0.1142962619 | AE82: 0.1142962619 | AF82: 0.1142962619 | AG82: 0.1142962619 | AH82: 0.1142962619 | AI82: 0.1142962619 | AJ82: 0.1142962619 | AK82: 0.1142962619 | AL82: 0.1142962619 | AM82: 0.1142962619 | AN82: 0.1142962619 | AO82: 0.1142962619 | AP82: =$J$68*AP75 -> 0.1142962619 | AQ82: 0.1142962619 | AR82: 0.1142962619 | AS82: 0.1142962619 | AT82: 0.1142962619 | AU82: 0.1142962619 | AV82: 0.1142962619 | AW82: 0.1142962619 | AX82: 0.1142962619 | AY82: 0.1142962619 | AZ82: 0.1142962619 | BA82: 0.1142962619 | BB82: 0.1142962619 | BC82: 0.1142962619 | BD82: 0.1142962619 | BE82: 0.1142962619 | BF82: 0.1142962619 | BG82: 0.1142962619
G84: $ Basis Reminder | H84: $ Reminder | J84: Summary table above picks up this total row
B85: Total | G85: ='1_KMA'!$I$20 -> 2024-06-30 | H85: ='1_KMA'!$I$19 -> $millions | J85: =SUM(J78:J82) -> 0.6986962619 | K85: 0.6986962619 | L85: 0.6986962619 | M85: 0.6986962619 | N85: 0.6986962619 | O85: 0.8426962619 | P85: 0.8426962619 | Q85: 0.8426962619 | R85: 0.8426962619 | S85: 0.8426962619 | T85: 0.9866962619 | U85: 0.9866962619 | V85: 0.9866962619 | W85: 0.9866962619 | X85: 0.9866962619 | Y85: 0.9866962619 | Z85: 0.9866962619 | AA85: 0.9866962619 | AB85: 0.9866962619 | AC85: 0.9866962619 | AD85: 0.9866962619 | AE85: 0.9866962619 | AF85: 0.9866962619 | AG85: 0.9866962619 | AH85: 0.9866962619 | AI85: 0.9866962619 | AJ85: 0.9866962619 | AK85: 0.9866962619 | AL85: 0.9866962619 | AM85: 0.9866962619 | AN85: 0.9866962619 | AO85: 0.9866962619 | AP85: =SUM(AP78:AP82) -> 0.9866962619 | AQ85: 0.9866962619 | AR85: 0.9866962619 | AS85: 0.9866962619 | AT85: 0.9866962619 | AU85: 0.9866962619 | AV85: 0.9866962619 | AW85: 0.9866962619 | AX85: 0.9866962619 | AY85: 0.9866962619 | AZ85: 0.9866962619 | BA85: 0.9866962619 | BB85: 0.9866962619 | BC85: 0.9866962619 | BD85: 0.9866962619 | BE85: 0.9866962619 | BF85: 0.9866962619 | BG85: 0.9866962619
B87: Benefits Inputs
B89: Value of EUE
J91: ="Values - ensure values have been converted to "&'1_KMA'!$I$19 -> Values - ensure values have been converted to $millions
G92: $ Basis Reminder | H92: $ Reminder | J92: Enter this as a positive value, as the spreadsheet later converts this to a negative benefit
B93: Value of Expected Unserved Energy (EUE) | G93: ='1_KMA'!$I$20 -> 2024-06-30 | H93: ='1_KMA'!$I$19 -> $millions | J93: =Forecasts!O28 -> 0.8124818542 | K93: =Forecasts!P28 -> 0.8218127245 | L93: =Forecasts!Q28 -> 0.8336296709 | M93: =Forecasts!R28 -> 0.8446296333 | N93: =Forecasts!S28 -> 0.8572165977 | O93: =Forecasts!T28 -> 0.870007331 | P93: =Forecasts!U28 -> 0.8834547284 | Q93: =Forecasts!V28 -> 0.8975184819 | R93: =Forecasts!W28 -> 0.9121352872 | S93: =Forecasts!X28 -> 0.9255037288 | T93: =Forecasts!Y28 -> 0.9377361863 | U93: =Forecasts!Z28 -> 0.9494550116 | V93: =Forecasts!AA28 -> 0.9608253444 | W93: =Forecasts!AB28 -> 0.9723318442 | X93: =Forecasts!AC28 -> 0.9839761417 | Y93: =Forecasts!AD28 -> 0.9957598872 | Z93: =Forecasts!AE28 -> 1.007684751 | AA93: =Forecasts!AF28 -> 1.019752422 | AB93: =Forecasts!AG28 -> 1.031964611 | AC93: =Forecasts!AH28 -> 1.044323049 | AD93: =Forecasts!AI28 -> 1.056829488 | AE93: =Forecasts!AJ28 -> 1.069485699 | AF93: =Forecasts!AK28 -> 1.082293476 | AG93: =Forecasts!AL28 -> 1.095254634 | AH93: =Forecasts!AM28 -> 1.108371011 | AI93: =Forecasts!AN28 -> 1.121644465 | AJ93: =Forecasts!AO28 -> 1.135076877 | AK93: =Forecasts!AP28 -> 1.148670151 | AL93: =Forecasts!AQ28 -> 1.162426212 | AM93: =Forecasts!AR28 -> 1.176347012 | AN93: =Forecasts!AS28 -> 1.190434522 | AO93: =Forecasts!AT28 -> 1.204690739 | AP93: =Forecasts!AU28 -> 1.219117683 | AQ93: =Forecasts!AV28 -> 1.233717399 | AR93: =Forecasts!AW28 -> 1.248491957 | AS93: =Forecasts!AX28 -> 1.263443449 | AT93: =Forecasts!AY28 -> 1.278573994 | AU93: =Forecasts!AZ28 -> 1.293885738 | AV93: =Forecasts!BA28 -> 1.30938085 | AW93: =Forecasts!BB28 -> 1.325061525 | AX93: =Forecasts!BC28 -> 1.340929987 | AY93: =Forecasts!BD28 -> 1.356988484 | AZ93: =Forecasts!BE28 -> 1.373239291 | BA93: =Forecasts!BF28 -> 1.389684712 | BB93: =Forecasts!BG28 -> 1.406327078 | BC93: =Forecasts!BH28 -> 1.423168747 | BD93: =Forecasts!BI28 -> 1.440212106 | BE93: =Forecasts!BJ28 -> 1.457459569 | BF93: =Forecasts!BK28 -> 0 | BG93: =Forecasts!BL28 -> 0
G95: $ Basis Reminder | H95: $ Reminder | J95: Summary table above picks up this total row
B96: Total | G96: ='1_KMA'!$I$20 -> 2024-06-30 | H96: ='1_KMA'!$I$19 -> $millions | J96: =J93 -> 0.8124818542 | K96: =K93 -> 0.8218127245 | L96: =L93 -> 0.8336296709 | M96: 0.8446296333 | N96: 0.8572165977 | O96: 0.870007331 | P96: 0.8834547284 | Q96: 0.8975184819 | R96: 0.9121352872 | S96: 0.9255037288 | T96: 0.9377361863 | U96: 0.9494550116 | V96: 0.9608253444 | W96: 0.9723318442 | X96: 0.9839761417 | Y96: 0.9957598872 | Z96: 1.007684751 | AA96: 1.019752422 | AB96: 1.031964611 | AC96: 1.044323049 | AD96: 1.056829488 | AE96: 1.069485699 | AF96: 1.082293476 | AG96: 1.095254634 | AH96: 1.108371011 | AI96: 1.121644465 | AJ96: 1.135076877 | AK96: 1.148670151 | AL96: 1.162426212 | AM96: 1.176347012 | AN96: 1.190434522 | AO96: 1.204690739 | AP96: 1.219117683 | AQ96: 1.233717399 | AR96: 1.248491957 | AS96: 1.263443449 | AT96: 1.278573994 | AU96: 1.293885738 | AV96: 1.30938085 | AW96: 1.325061525 | AX96: 1.340929987 | AY96: 1.356988484 | AZ96: 1.373239291 | BA96: 1.389684712 | BB96: 1.406327078 | BC96: 1.423168747 | BD96: 1.440212106 | BE96: 1.457459569 | BF96: 0 | BG96: =BG93 -> 0
B98: Reliability
B100: QCV research | H100: Unit | J100: Unit Rate
B101: Fewer unplanned outages, longer than 12 hours
B102: Fewer unplanned outages in the worst served areas
H105: Unit | J105: Quantities
B106: Fewer unplanned outages, longer than 12 hours
B107: Fewer unplanned outages in the worst served areas
G109: $ Basis Reminder | H109: $ Reminder | J109: ="Values - ensure values have been converted to "&'1_KMA'!$I$19 -> Values - ensure values have been converted to $millions
B110: Fewer unplanned outages, longer than 12 hours | G110: ='1_KMA'!$I$20 -> 2024-06-30 | H110: ='1_KMA'!$I$19 -> $millions | J110: =J106*$J$101 -> 0 | K110: =K106*$J$101 -> 0 | L110: =L106*$J$101 -> 0 | M110: =M106*$J$101 -> 0 | N110: =N106*$J$101 -> 0 | O110: =O106*$J$101 -> 0 | P110: 0 | Q110: 0 | R110: 0 | S110: 0 | T110: 0 | U110: 0 | V110: 0 | W110: 0 | X110: 0 | Y110: 0 | Z110: 0 | AA110: 0 | AB110: 0 | AC110: 0 | AD110: 0 | AE110: 0 | AF110: 0 | AG110: 0 | AH110: 0 | AI110: 0 | AJ110: 0 | AK110: 0 | AL110: 0 | AM110: 0 | AN110: 0 | AO110: 0 | AP110: 0 | AQ110: 0 | AR110: 0 | AS110: 0 | AT110: 0 | AU110: 0 | AV110: 0 | AW110: 0 | AX110: 0 | AY110: 0 | AZ110: 0 | BA110: 0 | BB110: 0 | BC110: 0 | BD110: 0 | BE110: 0 | BF110: 0 | BG110: 0
B111: Fewer unplanned outages in the worst served areas | G111: ='1_KMA'!$I$20 -> 2024-06-30 | H111: ='1_KMA'!$I$19 -> $millions | J111: =J107*$J$102 -> 0 | K111: =K107*$J$102 -> 0 | L111: =L107*$J$102 -> 0 | M111: =M107*$J$102 -> 0 | N111: =N107*$J$102 -> 0 | O111: =O107*$J$102 -> 0 | P111: 0 | Q111: 0 | R111: 0 | S111: 0 | T111: 0 | U111: 0 | V111: 0 | W111: 0 | X111: 0 | Y111: 0 | Z111: 0 | AA111: 0 | AB111: 0 | AC111: 0 | AD111: 0 | AE111: 0 | AF111: 0 | AG111: 0 | AH111: 0 | AI111: 0 | AJ111: 0 | AK111: 0 | AL111: 0 | AM111: 0 | AN111: 0 | AO111: 0 | AP111: 0 | AQ111: 0 | AR111: 0 | AS111: 0 | AT111: 0 | AU111: 0 | AV111: 0 | AW111: 0 | AX111: 0 | AY111: 0 | AZ111: 0 | BA111: 0 | BB111: 0 | BC111: 0 | BD111: 0 | BE111: 0 | BF111: 0 | BG111: 0
G113: $ Basis Reminder | H113: $ Reminder | J113: Summary table above picks up this total row
B114: Total | G114: ='1_KMA'!$I$20 -> 2024-06-30 | H114: ='1_KMA'!$I$19 -> $millions | J114: =SUM(J110:J111) -> 0 | K114: =SUM(K110:K111) -> 0 | L114: 0 | M114: 0 | N114: =SUM(N110:N111) -> 0 | O114: 0 | P114: 0 | Q114: 0 | R114: 0 | S114: 0 | T114: 0 | U114: 0 | V114: 0 | W114: 0 | X114: 0 | Y114: 0 | Z114: 0 | AA114: 0 | AB114: 0 | AC114: 0 | AD114: 0 | AE114: 0 | AF114: 0 | AG114: 0 | AH114: 0 | AI114: 0 | AJ114: 0 | AK114: 0 | AL114: 0 | AM114: 0 | AN114: 0 | AO114: 0 | AP114: 0 | AQ114: 0 | AR114: 0 | AS114: 0 | AT114: 0 | AU114: 0 | AV114: 0 | AW114: 0 | AX114: 0 | AY114: 0 | AZ114: 0 | BA114: 0 | BB114: 0 | BC114: 0 | BD114: 0 | BE114: 0 | BF114: 0 | BG114: 0
B116: Resilience
B118: QCV research | H118: Unit | J118: Unit Rate
B119: Fewer unplanned outages, longer than 12 hours
B120: Faster restoration of power when an outage has occurred
B121: Community hub offering essential services during long duration outages
H124: Unit | J124: Quantities
B125: Fewer unplanned outages, longer than 12 hours
B126: Faster restoration of power when an outage has occurred
B127: Community hub offering essential services
G129: $ Basis Reminder | H129: $ Reminder | J129: ="Values - ensure values have been converted to "&'1_KMA'!$I$19 -> Values - ensure values have been converted to $millions
B130: Fewer unplanned outages, longer than 12 hours | G130: ='1_KMA'!$I$20 -> 2024-06-30 | H130: ='1_KMA'!$I$19 -> $millions | J130: =J125*'2.1_BC'!$J$119 -> 0 | K130: =K125*'2.1_BC'!$J$119 -> 0 | L130: =L125*'2.1_BC'!$J$119 -> 0 | M130: =M125*'2.1_BC'!$J$119 -> 0 | N130: =N125*'2.1_BC'!$J$119 -> 0 | O130: =O125*'2.1_BC'!$J$119 -> 0 | P130: =P125*'2.1_BC'!$J$119 -> 0 | Q130: =Q125*'2.1_BC'!$J$119 -> 0 | R130: =R125*'2.1_BC'!$J$119 -> 0 | S130: =S125*'2.1_BC'!$J$119 -> 0 | T130: =T125*'2.1_BC'!$J$119 -> 0 | U130: =U125*'2.1_BC'!$J$119 -> 0 | V130: =V125*'2.1_BC'!$J$119 -> 0 | W130: =W125*'2.1_BC'!$J$119 -> 0 | X130: =X125*'2.1_BC'!$J$119 -> 0 | Y130: =Y125*'2.1_BC'!$J$119 -> 0 | Z130: =Z125*'2.1_BC'!$J$119 -> 0 | AA130: =AA125*'2.1_BC'!$J$119 -> 0 | AB130: =AB125*'2.1_BC'!$J$119 -> 0 | AC130: =AC125*'2.1_BC'!$J$119 -> 0 | AD130: =AD125*'2.1_BC'!$J$119 -> 0 | AE130: =AE125*'2.1_BC'!$J$119 -> 0 | AF130: =AF125*'2.1_BC'!$J$119 -> 0 | AG130: =AG125*'2.1_BC'!$J$119 -> 0 | AH130: =AH125*'2.1_BC'!$J$119 -> 0 | AI130: =AI125*'2.1_BC'!$J$119 -> 0 | AJ130: =AJ125*'2.1_BC'!$J$119 -> 0 | AK130: =AK125*'2.1_BC'!$J$119 -> 0 | AL130: =AL125*'2.1_BC'!$J$119 -> 0 | AM130: =AM125*'2.1_BC'!$J$119 -> 0 | AN130: =AN125*'2.1_BC'!$J$119 -> 0 | AO130: =AO125*'2.1_BC'!$J$119 -> 0 | AP130: =AP125*'2.1_BC'!$J$119 -> 0 | AQ130: =AQ125*'2.1_BC'!$J$119 -> 0 | AR130: =AR125*'2.1_BC'!$J$119 -> 0 | AS130: =AS125*'2.1_BC'!$J$119 -> 0 | AT130: =AT125*'2.1_BC'!$J$119 -> 0 | AU130: =AU125*'2.1_BC'!$J$119 -> 0 | AV130: =AV125*'2.1_BC'!$J$119 -> 0 | AW130: =AW125*'2.1_BC'!$J$119 -> 0 | AX130: =AX125*'2.1_BC'!$J$119 -> 0 | AY130: =AY125*'2.1_BC'!$J$119 -> 0 | AZ130: =AZ125*'2.1_BC'!$J$119 -> 0 | BA130: =BA125*'2.1_BC'!$J$119 -> 0 | BB130: =BB125*'2.1_BC'!$J$119 -> 0 | BC130: =BC125*'2.1_BC'!$J$119 -> 0 | BD130: =BD125*'2.1_BC'!$J$119 -> 0 | BE130: =BE125*'2.1_BC'!$J$119 -> 0 | BF130: =BF125*'2.1_BC'!$J$119 -> 0 | BG130: =BG125*'2.1_BC'!$J$119 -> 0
B131: Faster restoration of power when an outage has occurred | G131: ='1_KMA'!$I$20 -> 2024-06-30 | H131: ='1_KMA'!$I$19 -> $millions | J131: =J126*'2.1_BC'!$J$120 -> 0 | K131: =K126*'2.1_BC'!$J$120 -> 0 | L131: =L126*'2.1_BC'!$J$120 -> 0 | M131: =M126*'2.1_BC'!$J$120 -> 0 | N131: =N126*'2.1_BC'!$J$120 -> 0 | O131: =O126*'2.1_BC'!$J$120 -> 0 | P131: =P126*'2.1_BC'!$J$120 -> 0 | Q131: =Q126*'2.1_BC'!$J$120 -> 0 | R131: =R126*'2.1_BC'!$J$120 -> 0 | S131: =S126*'2.1_BC'!$J$120 -> 0 | T131: =T126*'2.1_BC'!$J$120 -> 0 | U131: =U126*'2.1_BC'!$J$120 -> 0 | V131: =V126*'2.1_BC'!$J$120 -> 0 | W131: =W126*'2.1_BC'!$J$120 -> 0 | X131: =X126*'2.1_BC'!$J$120 -> 0 | Y131: =Y126*'2.1_BC'!$J$120 -> 0 | Z131: =Z126*'2.1_BC'!$J$120 -> 0 | AA131: =AA126*'2.1_BC'!$J$120 -> 0 | AB131: =AB126*'2.1_BC'!$J$120 -> 0 | AC131: =AC126*'2.1_BC'!$J$120 -> 0 | AD131: =AD126*'2.1_BC'!$J$120 -> 0 | AE131: =AE126*'2.1_BC'!$J$120 -> 0 | AF131: =AF126*'2.1_BC'!$J$120 -> 0 | AG131: =AG126*'2.1_BC'!$J$120 -> 0 | AH131: =AH126*'2.1_BC'!$J$120 -> 0 | AI131: =AI126*'2.1_BC'!$J$120 -> 0 | AJ131: =AJ126*'2.1_BC'!$J$120 -> 0 | AK131: =AK126*'2.1_BC'!$J$120 -> 0 | AL131: =AL126*'2.1_BC'!$J$120 -> 0 | AM131: =AM126*'2.1_BC'!$J$120 -> 0 | AN131: =AN126*'2.1_BC'!$J$120 -> 0 | AO131: =AO126*'2.1_BC'!$J$120 -> 0 | AP131: =AP126*'2.1_BC'!$J$120 -> 0 | AQ131: =AQ126*'2.1_BC'!$J$120 -> 0 | AR131: =AR126*'2.1_BC'!$J$120 -> 0 | AS131: =AS126*'2.1_BC'!$J$120 -> 0 | AT131: =AT126*'2.1_BC'!$J$120 -> 0 | AU131: =AU126*'2.1_BC'!$J$120 -> 0 | AV131: =AV126*'2.1_BC'!$J$120 -> 0 | AW131: =AW126*'2.1_BC'!$J$120 -> 0 | AX131: =AX126*'2.1_BC'!$J$120 -> 0 | AY131: =AY126*'2.1_BC'!$J$120 -> 0 | AZ131: =AZ126*'2.1_BC'!$J$120 -> 0 | BA131: =BA126*'2.1_BC'!$J$120 -> 0 | BB131: =BB126*'2.1_BC'!$J$120 -> 0 | BC131: =BC126*'2.1_BC'!$J$120 -> 0 | BD131: =BD126*'2.1_BC'!$J$120 -> 0 | BE131: =BE126*'2.1_BC'!$J$120 -> 0 | BF131: =BF126*'2.1_BC'!$J$120 -> 0 | BG131: =BG126*'2.1_BC'!$J$120 -> 0
B132: Community hub offering essential services | G132: ='1_KMA'!$I$20 -> 2024-06-30 | H132: ='1_KMA'!$I$19 -> $millions | J132: =J127*'2.1_BC'!$J$121 -> 0 | K132: =K127*'2.1_BC'!$J$121 -> 0 | L132: =L127*'2.1_BC'!$J$121 -> 0 | M132: =M127*'2.1_BC'!$J$121 -> 0 | N132: =N127*'2.1_BC'!$J$121 -> 0 | O132: =O127*'2.1_BC'!$J$121 -> 0 | P132: =P127*'2.1_BC'!$J$121 -> 0 | Q132: =Q127*'2.1_BC'!$J$121 -> 0 | R132: =R127*'2.1_BC'!$J$121 -> 0 | S132: =S127*'2.1_BC'!$J$121 -> 0 | T132: =T127*'2.1_BC'!$J$121 -> 0 | U132: =U127*'2.1_BC'!$J$121 -> 0 | V132: =V127*'2.1_BC'!$J$121 -> 0 | W132: =W127*'2.1_BC'!$J$121 -> 0 | X132: =X127*'2.1_BC'!$J$121 -> 0 | Y132: =Y127*'2.1_BC'!$J$121 -> 0 | Z132: =Z127*'2.1_BC'!$J$121 -> 0 | AA132: =AA127*'2.1_BC'!$J$121 -> 0 | AB132: =AB127*'2.1_BC'!$J$121 -> 0 | AC132: =AC127*'2.1_BC'!$J$121 -> 0 | AD132: =AD127*'2.1_BC'!$J$121 -> 0 | AE132: =AE127*'2.1_BC'!$J$121 -> 0 | AF132: =AF127*'2.1_BC'!$J$121 -> 0 | AG132: =AG127*'2.1_BC'!$J$121 -> 0 | AH132: =AH127*'2.1_BC'!$J$121 -> 0 | AI132: =AI127*'2.1_BC'!$J$121 -> 0 | AJ132: =AJ127*'2.1_BC'!$J$121 -> 0 | AK132: =AK127*'2.1_BC'!$J$121 -> 0 | AL132: =AL127*'2.1_BC'!$J$121 -> 0 | AM132: =AM127*'2.1_BC'!$J$121 -> 0 | AN132: =AN127*'2.1_BC'!$J$121 -> 0 | AO132: =AO127*'2.1_BC'!$J$121 -> 0 | AP132: =AP127*'2.1_BC'!$J$121 -> 0 | AQ132: =AQ127*'2.1_BC'!$J$121 -> 0 | AR132: =AR127*'2.1_BC'!$J$121 -> 0 | AS132: =AS127*'2.1_BC'!$J$121 -> 0 | AT132: =AT127*'2.1_BC'!$J$121 -> 0 | AU132: =AU127*'2.1_BC'!$J$121 -> 0 | AV132: =AV127*'2.1_BC'!$J$121 -> 0 | AW132: =AW127*'2.1_BC'!$J$121 -> 0 | AX132: =AX127*'2.1_BC'!$J$121 -> 0 | AY132: =AY127*'2.1_BC'!$J$121 -> 0 | AZ132: =AZ127*'2.1_BC'!$J$121 -> 0 | BA132: =BA127*'2.1_BC'!$J$121 -> 0 | BB132: =BB127*'2.1_BC'!$J$121 -> 0 | BC132: =BC127*'2.1_BC'!$J$121 -> 0 | BD132: =BD127*'2.1_BC'!$J$121 -> 0 | BE132: =BE127*'2.1_BC'!$J$121 -> 0 | BF132: =BF127*'2.1_BC'!$J$121 -> 0 | BG132: =BG127*'2.1_BC'!$J$121 -> 0
G134: $ Basis Reminder | H134: $ Reminder | J134: Summary table above picks up this total row
B135: Total | G135: ='1_KMA'!$I$20 -> 2024-06-30 | H135: ='1_KMA'!$I$19 -> $millions | J135: =SUM(J130:J132) -> 0 | K135: =SUM(K130:K132) -> 0 | L135: =SUM(L130:L132) -> 0 | M135: 0 | N135: 0 | O135: 0 | P135: 0 | Q135: 0 | R135: 0 | S135: 0 | T135: 0 | U135: 0 | V135: 0 | W135: 0 | X135: 0 | Y135: 0 | Z135: 0 | AA135: 0 | AB135: 0 | AC135: 0 | AD135: 0 | AE135: 0 | AF135: 0 | AG135: 0 | AH135: 0 | AI135: 0 | AJ135: 0 | AK135: 0 | AL135: 0 | AM135: 0 | AN135: 0 | AO135: 0 | AP135: 0 | AQ135: 0 | AR135: 0 | AS135: 0 | AT135: 0 | AU135: 0 | AV135: 0 | AW135: 0 | AX135: 0 | AY135: 0 | AZ135: 0 | BA135: 0 | BB135: 0 | BC135: 0 | BD135: 0 | BE135: 0 | BF135: 0 | BG135: 0
B137: Batteries
B139: AusNet Savings from Wholesale Arbitrage
H140: Unit | J140: Value
B141: Wholesale market price differential | H141: [e.g. $dollars per MWh]
B142: AusNet Share in Wholesale arbitrage | H142: [e.g. %]
B143: Average annual battery derating | H143: [e.g. % p.a.]
H145: Unit | J145: Location 1 | K145: Location 2 | L145: Location 3 | M145: Location 4 | N145: Location 5
B146: Battery Rating (kW) | H146: kW
B147: Battery Rating (hr) | H147: hr
B148: Battery Rating (kWh) | H148: kWh | J148: =J146*J147 -> 0 | K148: =K146*K147 -> 0 | L148: =L146*L147 -> 0 | M148: =M146*M147 -> 0 | N148: =N146*N147 -> 0
B149: Retailer benefit by wholesale arbitrage | H149: [e.g. $millions, $thousands or $dollars per year] | J149: =J148*$J$141*0.8*5*52/1000 -> 0 | K149: =K148*$J$141*0.8*5*52/1000 -> 0 | L149: =L148*$J$141*0.8*5*52/1000 -> 0 | M149: =M148*$J$141*0.8*5*52/1000 -> 0 | N149: =N148*$J$141*0.8*5*52/1000 -> 0
G151: $ Basis Reminder | H151: $ Reminder | J151: ="Values - ensure values have been converted to "&'1_KMA'!$I$19 -> Values - ensure values have been converted to $millions
B152: AusNet Savings from Wholesale Arbitrage | G152: ='1_KMA'!$I$20 -> 2024-06-30 | H152: ='1_KMA'!$I$19 -> $millions | J152: =(SUM($J$149:$N$149)*$J$142*(1/(1+$J$143)^(J4-1)))/10^6 -> 0 | K152: 0 | L152: 0 | M152: 0 | N152: 0 | O152: 0 | P152: 0 | Q152: 0 | R152: 0 | S152: 0 | T152: 0 | U152: 0 | V152: 0 | W152: 0 | X152: 0 | Y152: 0 | Z152: 0 | AA152: 0 | AB152: 0 | AC152: 0 | AD152: 0 | AE152: 0 | AF152: 0 | AG152: 0 | AH152: 0 | AI152: 0 | AJ152: 0 | AK152: 0 | AL152: 0 | AM152: 0 | AN152: 0 | AO152: 0 | AP152: =(SUM($J$149:$N$149)*$J$142*(1/(1+$J$143)^(AP4-1)))/10^6 -> 0 | AQ152: 0 | AR152: 0 | AS152: 0 | AT152: 0 | AU152: 0 | AV152: 0 | AW152: 0 | AX152: 0 | AY152: 0 | AZ152: 0 | BA152: 0 | BB152: 0 | BC152: 0 | BD152: 0 | BE152: 0 | BF152: 0 | BG152: 0
B154: AusNet Revenue from FCAS
H155: Unit | J155: Value
B156: FCAS participation price | H156: [e.g. $ollars per MW per hour]
B157: Average annual participation All batteries | H157: [e.g. MW per hour]
G159: $ Basis Reminder | H159: $ Reminder | J159: ="Values - ensure values have been converted to "&'1_KMA'!$I$19 -> Values - ensure values have been converted to $millions
B160: AusNet Revenue from FCAS | G160: ='1_KMA'!$I$20 -> 2024-06-30 | H160: ='1_KMA'!$I$19 -> $millions | J160: =$J$156*$J$157/10^6 -> 0 | K160: =$J$156*$J$157/10^6 -> 0 | L160: 0 | M160: 0 | N160: 0 | O160: 0 | P160: 0 | Q160: 0 | R160: 0 | S160: 0 | T160: 0 | U160: 0 | V160: 0 | W160: 0 | X160: 0 | Y160: 0 | Z160: 0 | AA160: 0 | AB160: 0 | AC160: 0 | AD160: 0 | AE160: 0 | AF160: 0 | AG160: 0 | AH160: 0 | AI160: 0 | AJ160: 0 | AK160: 0 | AL160: 0 | AM160: 0 | AN160: 0 | AO160: 0 | AP160: 0 | AQ160: 0 | AR160: 0 | AS160: 0 | AT160: 0 | AU160: 0 | AV160: 0 | AW160: 0 | AX160: 0 | AY160: 0 | AZ160: 0 | BA160: 0 | BB160: 0 | BC160: 0 | BD160: 0 | BE160: 0 | BF160: 0 | BG160: 0
B162: AusNet Savings from Avoided Penalties
H163: Unit | J163: Location 1 | K163: Location 2 | L163: Location 3 | M163: Location 4 | N163: Location 5
B164: Number of average outage events | H164: [e.g. Events per year]
B165: Average Ausnet penalty for outage | H165: [e.g. $dollars per event]
G167: $ Basis Reminder | H167: $ Reminder | J167: ="Values - ensure values have been converted to "&'1_KMA'!$I$19 -> Values - ensure values have been converted to $millions
B168: Ausnet Savings from Avoided Penalties | G168: ='1_KMA'!$I$20 -> 2024-06-30 | H168: ='1_KMA'!$I$19 -> $millions | J168: =SUMPRODUCT($J$164:$N$164,$J$165:$N$165)/10^6 -> 0 | K168: =SUMPRODUCT($J$164:$N$164,$J$165:$N$165)/10^6 -> 0 | L168: 0 | M168: 0 | N168: 0 | O168: 0 | P168: 0 | Q168: 0 | R168: 0 | S168: 0 | T168: 0 | U168: 0 | V168: 0 | W168: 0 | X168: 0 | Y168: 0 | Z168: 0 | AA168: 0 | AB168: 0 | AC168: 0 | AD168: 0 | AE168: 0 | AF168: 0 | AG168: 0 | AH168: 0 | AI168: 0 | AJ168: 0 | AK168: 0 | AL168: 0 | AM168: 0 | AN168: 0 | AO168: 0 | AP168: 0 | AQ168: 0 | AR168: 0 | AS168: 0 | AT168: 0 | AU168: 0 | AV168: 0 | AW168: 0 | AX168: 0 | AY168: 0 | AZ168: 0 | BA168: 0 | BB168: 0 | BC168: 0 | BD168: 0 | BE168: 0 | BF168: 0 | BG168: 0
G170: $ Basis Reminder | H170: $ Reminder | J170: Summary table above picks up this total row
B171: Total | G171: ='1_KMA'!$I$20 -> 2024-06-30 | H171: ='1_KMA'!$I$19 -> $millions | J171: =J152+J160+J168 -> 0 | K171: =K152+K160+K168 -> 0 | L171: 0 | M171: 0 | N171: 0 | O171: 0 | P171: 0 | Q171: 0 | R171: 0 | S171: 0 | T171: 0 | U171: 0 | V171: 0 | W171: 0 | X171: 0 | Y171: 0 | Z171: 0 | AA171: 0 | AB171: 0 | AC171: 0 | AD171: 0 | AE171: 0 | AF171: 0 | AG171: 0 | AH171: 0 | AI171: 0 | AJ171: 0 | AK171: 0 | AL171: 0 | AM171: 0 | AN171: 0 | AO171: 0 | AP171: 0 | AQ171: 0 | AR171: 0 | AS171: 0 | AT171: 0 | AU171: 0 | AV171: 0 | AW171: 0 | AX171: 0 | AY171: 0 | AZ171: 0 | BA171: 0 | BB171: 0 | BC171: 0 | BD171: 0 | BE171: 0 | BF171: 0 | BG171: 0
B173: Others

Sheet 2.1_Op1
B1: General Inputs: Option 1 | I1: Regulatory Period Indicator | J1: ='1_KMA'!J30 -> 1 | K1: ='1_KMA'!K30 -> 1 | L1: ='1_KMA'!L30 -> 1 | M1: ='1_KMA'!M30 -> 1 | N1: ='1_KMA'!N30 -> 1 | O1: ='1_KMA'!O30 -> 0 | P1: ='1_KMA'!P30 -> 0 | Q1: ='1_KMA'!Q30 -> 0 | R1: ='1_KMA'!R30 -> 0 | S1: ='1_KMA'!S30 -> 0 | T1: ='1_KMA'!T30 -> 0 | U1: ='1_KMA'!U30 -> 0 | V1: ='1_KMA'!V30 -> 0 | W1: ='1_KMA'!W30 -> 0 | X1: ='1_KMA'!X30 -> 0 | Y1: ='1_KMA'!Y30 -> 0 | Z1: ='1_KMA'!Z30 -> 0 | AA1: ='1_KMA'!AA30 -> 0 | AB1: ='1_KMA'!AB30 -> 0 | AC1: ='1_KMA'!AC30 -> 0 | AD1: ='1_KMA'!AD30 -> 0 | AE1: ='1_KMA'!AE30 -> 0 | AF1: ='1_KMA'!AF30 -> 0 | AG1: ='1_KMA'!AG30 -> 0 | AH1: ='1_KMA'!AH30 -> 0 | AI1: ='1_KMA'!AI30 -> 0 | AJ1: ='1_KMA'!AJ30 -> 0 | AK1: ='1_KMA'!AK30 -> 0 | AL1: ='1_KMA'!AL30 -> 0 | AM1: ='1_KMA'!AM30 -> 0 | AN1: ='1_KMA'!AN30 -> 0 | AO1: ='1_KMA'!AO30 -> 0 | AP1: ='1_KMA'!AP30 -> 0 | AQ1: ='1_KMA'!AQ30 -> 0 | AR1: ='1_KMA'!AR30 -> 0 | AS1: ='1_KMA'!AS30 -> 0 | AT1: ='1_KMA'!AT30 -> 0 | AU1: ='1_KMA'!AU30 -> 0 | AV1: ='1_KMA'!AV30 -> 0 | AW1: ='1_KMA'!AW30 -> 0 | AX1: ='1_KMA'!AX30 -> 0 | AY1: ='1_KMA'!AY30 -> 0 | AZ1: ='1_KMA'!AZ30 -> 0 | BA1: ='1_KMA'!BA30 -> 0 | BB1: ='1_KMA'!BB30 -> 0 | BC1: ='1_KMA'!BC30 -> 0 | BD1: ='1_KMA'!BD30 -> 0 | BE1: ='1_KMA'!BE30 -> 0 | BF1: ='1_KMA'!BF30 -> 0 | BG1: ='1_KMA'!BG30 -> 0
B2: =Cover!$C$9 -> AusNet Services | I2: Period Start Date | J2: ='1_KMA'!J31 -> 2026-07-01 | K2: ='1_KMA'!K31 -> 2027-07-01 | L2: ='1_KMA'!L31 -> 2028-07-01 | M2: ='1_KMA'!M31 -> 2029-07-01 | N2: ='1_KMA'!N31 -> 2030-07-01 | O2: ='1_KMA'!O31 -> 2031-07-01 | P2: ='1_KMA'!P31 -> 2032-07-01 | Q2: ='1_KMA'!Q31 -> 2033-07-01 | R2: ='1_KMA'!R31 -> 2034-07-01 | S2: ='1_KMA'!S31 -> 2035-07-01 | T2: ='1_KMA'!T31 -> 2036-07-01 | U2: ='1_KMA'!U31 -> 2037-07-01 | V2: ='1_KMA'!V31 -> 2038-07-01 | W2: ='1_KMA'!W31 -> 2039-07-01 | X2: ='1_KMA'!X31 -> 2040-07-01 | Y2: ='1_KMA'!Y31 -> 2041-07-01 | Z2: ='1_KMA'!Z31 -> 2042-07-01 | AA2: ='1_KMA'!AA31 -> 2043-07-01 | AB2: ='1_KMA'!AB31 -> 2044-07-01 | AC2: ='1_KMA'!AC31 -> 2045-07-01 | AD2: ='1_KMA'!AD31 -> 2046-07-01 | AE2: ='1_KMA'!AE31 -> 2047-07-01 | AF2: ='1_KMA'!AF31 -> 2048-07-01 | AG2: ='1_KMA'!AG31 -> 2049-07-01 | AH2: ='1_KMA'!AH31 -> 2050-07-01 | AI2: ='1_KMA'!AI31 -> 2051-07-01 | AJ2: ='1_KMA'!AJ31 -> 2052-07-01 | AK2: ='1_KMA'!AK31 -> 2053-07-01 | AL2: ='1_KMA'!AL31 -> 2054-07-01 | AM2: ='1_KMA'!AM31 -> 2055-07-01 | AN2: ='1_KMA'!AN31 -> 2056-07-01 | AO2: ='1_KMA'!AO31 -> 2057-07-01 | AP2: ='1_KMA'!AP31 -> 2058-07-01 | AQ2: ='1_KMA'!AQ31 -> 2059-07-01 | AR2: ='1_KMA'!AR31 -> 2060-07-01 | AS2: ='1_KMA'!AS31 -> 2061-07-01 | AT2: ='1_KMA'!AT31 -> 2062-07-01 | AU2: ='1_KMA'!AU31 -> 2063-07-01 | AV2: ='1_KMA'!AV31 -> 2064-07-01 | AW2: ='1_KMA'!AW31 -> 2065-07-01 | AX2: ='1_KMA'!AX31 -> 2066-07-01 | AY2: ='1_KMA'!AY31 -> 2067-07-01 | AZ2: ='1_KMA'!AZ31 -> 2068-07-01 | BA2: ='1_KMA'!BA31 -> 2069-07-01 | BB2: ='1_KMA'!BB31 -> 2070-07-01 | BC2: ='1_KMA'!BC31 -> 2071-07-01 | BD2: ='1_KMA'!BD31 -> 2072-07-01 | BE2: ='1_KMA'!BE31 -> 2073-07-01 | BF2: ='1_KMA'!BF31 -> 2074-07-01 | BG2: ='1_KMA'!BG31 -> 2075-07-01
B3: =Cover!$C$10 -> Business Case Evaluation | I3: Period End Date | J3: ='1_KMA'!J32 -> 2027-06-30 | K3: ='1_KMA'!K32 -> 2028-06-30 | L3: ='1_KMA'!L32 -> 2029-06-30 | M3: ='1_KMA'!M32 -> 2030-06-30 | N3: ='1_KMA'!N32 -> 2031-06-30 | O3: ='1_KMA'!O32 -> 2032-06-30 | P3: ='1_KMA'!P32 -> 2033-06-30 | Q3: ='1_KMA'!Q32 -> 2034-06-30 | R3: ='1_KMA'!R32 -> 2035-06-30 | S3: ='1_KMA'!S32 -> 2036-06-30 | T3: ='1_KMA'!T32 -> 2037-06-30 | U3: ='1_KMA'!U32 -> 2038-06-30 | V3: ='1_KMA'!V32 -> 2039-06-30 | W3: ='1_KMA'!W32 -> 2040-06-30 | X3: ='1_KMA'!X32 -> 2041-06-30 | Y3: ='1_KMA'!Y32 -> 2042-06-30 | Z3: ='1_KMA'!Z32 -> 2043-06-30 | AA3: ='1_KMA'!AA32 -> 2044-06-30 | AB3: ='1_KMA'!AB32 -> 2045-06-30 | AC3: ='1_KMA'!AC32 -> 2046-06-30 | AD3: ='1_KMA'!AD32 -> 2047-06-30 | AE3: ='1_KMA'!AE32 -> 2048-06-30 | AF3: ='1_KMA'!AF32 -> 2049-06-30 | AG3: ='1_KMA'!AG32 -> 2050-06-30 | AH3: ='1_KMA'!AH32 -> 2051-06-30 | AI3: ='1_KMA'!AI32 -> 2052-06-30 | AJ3: ='1_KMA'!AJ32 -> 2053-06-30 | AK3: ='1_KMA'!AK32 -> 2054-06-30 | AL3: ='1_KMA'!AL32 -> 2055-06-30 | AM3: ='1_KMA'!AM32 -> 2056-06-30 | AN3: ='1_KMA'!AN32 -> 2057-06-30 | AO3: ='1_KMA'!AO32 -> 2058-06-30 | AP3: ='1_KMA'!AP32 -> 2059-06-30 | AQ3: ='1_KMA'!AQ32 -> 2060-06-30 | AR3: ='1_KMA'!AR32 -> 2061-06-30 | AS3: ='1_KMA'!AS32 -> 2062-06-30 | AT3: ='1_KMA'!AT32 -> 2063-06-30 | AU3: ='1_KMA'!AU32 -> 2064-06-30 | AV3: ='1_KMA'!AV32 -> 2065-06-30 | AW3: ='1_KMA'!AW32 -> 2066-06-30 | AX3: ='1_KMA'!AX32 -> 2067-06-30 | AY3: ='1_KMA'!AY32 -> 2068-06-30 | AZ3: ='1_KMA'!AZ32 -> 2069-06-30 | BA3: ='1_KMA'!BA32 -> 2070-06-30 | BB3: ='1_KMA'!BB32 -> 2071-06-30 | BC3: ='1_KMA'!BC32 -> 2072-06-30 | BD3: ='1_KMA'!BD32 -> 2073-06-30 | BE3: ='1_KMA'!BE32 -> 2074-06-30 | BF3: ='1_KMA'!BF32 -> 2075-06-30 | BG3: ='1_KMA'!BG32 -> 2076-06-30
B4: =Cover!$C$11 -> High Voltage Feeder Benalla Number 11 (BN11) | I4: Project Year | J4: ='1_KMA'!J33 -> 1 | K4: ='1_KMA'!K33 -> 2 | L4: ='1_KMA'!L33 -> 3 | M4: ='1_KMA'!M33 -> 4 | N4: ='1_KMA'!N33 -> 5 | O4: ='1_KMA'!O33 -> 6 | P4: ='1_KMA'!P33 -> 7 | Q4: ='1_KMA'!Q33 -> 8 | R4: ='1_KMA'!R33 -> 9 | S4: ='1_KMA'!S33 -> 10 | T4: ='1_KMA'!T33 -> 11 | U4: ='1_KMA'!U33 -> 12 | V4: ='1_KMA'!V33 -> 13 | W4: ='1_KMA'!W33 -> 14 | X4: ='1_KMA'!X33 -> 15 | Y4: ='1_KMA'!Y33 -> 16 | Z4: ='1_KMA'!Z33 -> 17 | AA4: ='1_KMA'!AA33 -> 18 | AB4: ='1_KMA'!AB33 -> 19 | AC4: ='1_KMA'!AC33 -> 20 | AD4: ='1_KMA'!AD33 -> 21 | AE4: ='1_KMA'!AE33 -> 22 | AF4: ='1_KMA'!AF33 -> 23 | AG4: ='1_KMA'!AG33 -> 24 | AH4: ='1_KMA'!AH33 -> 25 | AI4: ='1_KMA'!AI33 -> 26 | AJ4: ='1_KMA'!AJ33 -> 27 | AK4: ='1_KMA'!AK33 -> 28 | AL4: ='1_KMA'!AL33 -> 29 | AM4: ='1_KMA'!AM33 -> 30 | AN4: ='1_KMA'!AN33 -> 31 | AO4: ='1_KMA'!AO33 -> 32 | AP4: ='1_KMA'!AP33 -> 33 | AQ4: ='1_KMA'!AQ33 -> 34 | AR4: ='1_KMA'!AR33 -> 35 | AS4: ='1_KMA'!AS33 -> 36 | AT4: ='1_KMA'!AT33 -> 37 | AU4: ='1_KMA'!AU33 -> 38 | AV4: ='1_KMA'!AV33 -> 39 | AW4: ='1_KMA'!AW33 -> 40 | AX4: ='1_KMA'!AX33 -> 41 | AY4: ='1_KMA'!AY33 -> 42 | AZ4: ='1_KMA'!AZ33 -> 43 | BA4: ='1_KMA'!BA33 -> 44 | BB4: ='1_KMA'!BB33 -> 45 | BC4: ='1_KMA'!BC33 -> 46 | BD4: ='1_KMA'!BD33 -> 47 | BE4: ='1_KMA'!BE33 -> 48 | BF4: ='1_KMA'!BF33 -> 49 | BG4: ='1_KMA'!BG33 -> 50
I5: Financial Year | J5: ='1_KMA'!J34 -> 2027 | K5: ='1_KMA'!K34 -> 2028 | L5: ='1_KMA'!L34 -> 2029 | M5: ='1_KMA'!M34 -> 2030 | N5: ='1_KMA'!N34 -> 2031 | O5: ='1_KMA'!O34 -> 2032 | P5: ='1_KMA'!P34 -> 2033 | Q5: ='1_KMA'!Q34 -> 2034 | R5: ='1_KMA'!R34 -> 2035 | S5: ='1_KMA'!S34 -> 2036 | T5: ='1_KMA'!T34 -> 2037 | U5: ='1_KMA'!U34 -> 2038 | V5: ='1_KMA'!V34 -> 2039 | W5: ='1_KMA'!W34 -> 2040 | X5: ='1_KMA'!X34 -> 2041 | Y5: ='1_KMA'!Y34 -> 2042 | Z5: ='1_KMA'!Z34 -> 2043 | AA5: ='1_KMA'!AA34 -> 2044 | AB5: ='1_KMA'!AB34 -> 2045 | AC5: ='1_KMA'!AC34 -> 2046 | AD5: ='1_KMA'!AD34 -> 2047 | AE5: ='1_KMA'!AE34 -> 2048 | AF5: ='1_KMA'!AF34 -> 2049 | AG5: ='1_KMA'!AG34 -> 2050 | AH5: ='1_KMA'!AH34 -> 2051 | AI5: ='1_KMA'!AI34 -> 2052 | AJ5: ='1_KMA'!AJ34 -> 2053 | AK5: ='1_KMA'!AK34 -> 2054 | AL5: ='1_KMA'!AL34 -> 2055 | AM5: ='1_KMA'!AM34 -> 2056 | AN5: ='1_KMA'!AN34 -> 2057 | AO5: ='1_KMA'!AO34 -> 2058 | AP5: ='1_KMA'!AP34 -> 2059 | AQ5: ='1_KMA'!AQ34 -> 2060 | AR5: ='1_KMA'!AR34 -> 2061 | AS5: ='1_KMA'!AS34 -> 2062 | AT5: ='1_KMA'!AT34 -> 2063 | AU5: ='1_KMA'!AU34 -> 2064 | AV5: ='1_KMA'!AV34 -> 2065 | AW5: ='1_KMA'!AW34 -> 2066 | AX5: ='1_KMA'!AX34 -> 2067 | AY5: ='1_KMA'!AY34 -> 2068 | AZ5: ='1_KMA'!AZ34 -> 2069 | BA5: ='1_KMA'!BA34 -> 2070 | BB5: ='1_KMA'!BB34 -> 2071 | BC5: ='1_KMA'!BC34 -> 2072 | BD5: ='1_KMA'!BD34 -> 2073 | BE5: ='1_KMA'!BE34 -> 2074 | BF5: ='1_KMA'!BF34 -> 2075 | BG5: ='1_KMA'!BG34 -> 2076
B7: Summary
B9: Costs | G9: $ Basis Reminder | H9: $ Reminder | J9: ="Ensure this section [Summary] is picking up the relevant rows" -> Ensure this section [Summary] is picking up the relevant rows
B10: Capex | G10: ='1_KMA'!$I$20 -> 2024-06-30 | H10: ='1_KMA'!$I$19 -> $millions | J10: =J47 -> 9.347903178 | K10: =K47 -> 6.231935452 | L10: =L47 -> 0 | M10: 0 | N10: 0 | O10: 0 | P10: 0 | Q10: 0 | R10: 0 | S10: 0 | T10: 0 | U10: 0 | V10: 0 | W10: 0 | X10: 0 | Y10: 0 | Z10: 0 | AA10: 0 | AB10: 0 | AC10: 0 | AD10: 0 | AE10: 15.57983863 | AF10: 0 | AG10: 0 | AH10: 0 | AI10: 0 | AJ10: 0 | AK10: 0 | AL10: 0 | AM10: 0 | AN10: 0 | AO10: 0 | AP10: 0 | AQ10: 0 | AR10: 0 | AS10: 0 | AT10: 0 | AU10: 0 | AV10: 0 | AW10: 0 | AX10: 0 | AY10: 0 | AZ10: 0 | BA10: 0 | BB10: 0 | BC10: 0 | BD10: 0 | BE10: 0 | BF10: 0 | BG10: 0
B11: Capex offset | G11: ='1_KMA'!$I$20 -> 2024-06-30 | H11: ='1_KMA'!$I$19 -> $millions | J11: =-J59 -> 0 | K11: =-K59 -> 0 | L11: =-L59 -> 0 | M11: 0 | N11: 0 | O11: 0 | P11: 0 | Q11: 0 | R11: 0 | S11: 0 | T11: 0 | U11: 0 | V11: 0 | W11: 0 | X11: 0 | Y11: 0 | Z11: 0 | AA11: 0 | AB11: 0 | AC11: 0 | AD11: 0 | AE11: 0 | AF11: 0 | AG11: 0 | AH11: 0 | AI11: 0 | AJ11: 0 | AK11: 0 | AL11: 0 | AM11: 0 | AN11: 0 | AO11: 0 | AP11: 0 | AQ11: 0 | AR11: 0 | AS11: 0 | AT11: 0 | AU11: 0 | AV11: 0 | AW11: 0 | AX11: 0 | AY11: 0 | AZ11: 0 | BA11: 0 | BB11: 0 | BC11: 0 | BD11: 0 | BE11: 0 | BF11: 0 | BG11: 0
B12: Opex | G12: ='1_KMA'!$I$20 -> 2024-06-30 | H12: ='1_KMA'!$I$19 -> $millions | J12: =J82 -> 0.6986962619 | K12: =K82 -> 0.2121481309 | L12: 0.2285740655 | M12: =M82 -> 0.2285740655 | N12: 0.2285740655 | O12: 0.2285740655 | P12: 0.2285740655 | Q12: 0.2285740655 | R12: 0.2285740655 | S12: 0.2285740655 | T12: 0.2285740655 | U12: 0.2285740655 | V12: 0.2285740655 | W12: 0.2285740655 | X12: 0.2285740655 | Y12: 0.2285740655 | Z12: 0.2285740655 | AA12: 0.2285740655 | AB12: 0.2285740655 | AC12: 0.2285740655 | AD12: 0.2285740655 | AE12: 0.2285740655 | AF12: 0.2285740655 | AG12: 0.2285740655 | AH12: 0.2285740655 | AI12: 0.2285740655 | AJ12: 0.2285740655 | AK12: 0.2285740655 | AL12: 0.2285740655 | AM12: 0.2285740655 | AN12: 0.2285740655 | AO12: 0.2285740655 | AP12: 0.2285740655 | AQ12: 0.2285740655 | AR12: 0.2285740655 | AS12: 0.2285740655 | AT12: 0.2285740655 | AU12: 0.2285740655 | AV12: 0.2285740655 | AW12: 0.2285740655 | AX12: 0.2285740655 | AY12: 0.2285740655 | AZ12: 0.2285740655 | BA12: 0.2285740655 | BB12: 0.2285740655 | BC12: 0.2285740655 | BD12: 0.2285740655 | BE12: 0.2285740655 | BF12: 0.2285740655 | BG12: 0.2285740655
B13: Total | G13: ='1_KMA'!$I$20 -> 2024-06-30 | H13: ='1_KMA'!$I$19 -> $millions | J13: =SUM(J10:J12) -> 10.04659944 | K13: =SUM(K10:K12) -> 6.444083583 | L13: =SUM(L10:L12) -> 0.2285740655 | M13: 0.2285740655 | N13: 0.2285740655 | O13: 0.2285740655 | P13: 0.2285740655 | Q13: 0.2285740655 | R13: 0.2285740655 | S13: 0.2285740655 | T13: 0.2285740655 | U13: 0.2285740655 | V13: 0.2285740655 | W13: 0.2285740655 | X13: 0.2285740655 | Y13: 0.2285740655 | Z13: 0.2285740655 | AA13: 0.2285740655 | AB13: 0.2285740655 | AC13: 0.2285740655 | AD13: 0.2285740655 | AE13: 15.8084127 | AF13: 0.2285740655 | AG13: 0.2285740655 | AH13: 0.2285740655 | AI13: 0.2285740655 | AJ13: 0.2285740655 | AK13: 0.2285740655 | AL13: 0.2285740655 | AM13: 0.2285740655 | AN13: 0.2285740655 | AO13: 0.2285740655 | AP13: 0.2285740655 | AQ13: 0.2285740655 | AR13: 0.2285740655 | AS13: 0.2285740655 | AT13: 0.2285740655 | AU13: 0.2285740655 | AV13: 0.2285740655 | AW13: 0.2285740655 | AX13: 0.2285740655 | AY13: 0.2285740655 | AZ13: 0.2285740655 | BA13: 0.2285740655 | BB13: 0.2285740655 | BC13: 0.2285740655 | BD13: 0.2285740655 | BE13: 0.2285740655 | BF13: 0.2285740655 | BG13: 0.2285740655
B15: Benefits | G15: $ Basis Reminder | H15: $ Reminder | J15: ="Ensure this section [Summary] is picking up the relevant rows" -> Ensure this section [Summary] is picking up the relevant rows
B16: Value of EUE | G16: ='1_KMA'!$I$20 -> 2024-06-30 | H16: ='1_KMA'!$I$19 -> $millions | J16: =-J93 -> -0.8124818542 | K16: =-K93 -> -0.8218127245 | L16: -0.2084074177 | M16: -0.2111574083 | N16: -0.2143041494 | O16: -0.2175018328 | P16: -0.2208636821 | Q16: -0.2243796205 | R16: -0.2280338218 | S16: -0.2313759322 | T16: -0.2344340466 | U16: -0.2373637529 | V16: -0.2402063361 | W16: -0.243082961 | X16: -0.2459940354 | Y16: -0.2489399718 | Z16: -0.2519211876 | AA16: -0.2549381054 | AB16: -0.2579911528 | AC16: -0.2610807623 | AD16: -0.2642073719 | AE16: -0.2673714247 | AF16: -0.270573369 | AG16: -0.2738136586 | AH16: -0.2770927528 | AI16: -0.2804111162 | AJ16: -0.2837692192 | AK16: -0.2871675376 | AL16: -0.2906065531 | AM16: -0.294086753 | AN16: -0.2976086305 | AO16: -0.3011726847 | AP16: -0.3047794208 | AQ16: -0.3084293499 | AR16: -0.3121229892 | AS16: -0.3158608622 | AT16: -0.3196434986 | AU16: -0.3234714345 | AV16: -0.3273452124 | AW16: -0.3312653813 | AX16: -0.3352324967 | AY16: -0.3392471209 | AZ16: -0.3433098228 | BA16: -0.3474211781 | BB16: -0.3515817696 | BC16: -0.3557921868 | BD16: -0.3600530264 | BE16: -0.3643648924 | BF16: 0 | BG16: 0
B17: Reliability | G17: ='1_KMA'!$I$20 -> 2024-06-30 | H17: ='1_KMA'!$I$19 -> $millions | J17: =J111 -> 0 | K17: =K111 -> 0 | L17: 0 | M17: 0 | N17: 0 | O17: 0 | P17: 0 | Q17: 0 | R17: 0 | S17: 0 | T17: 0 | U17: 0 | V17: 0 | W17: 0 | X17: 0 | Y17: 0 | Z17: 0 | AA17: 0 | AB17: 0 | AC17: 0 | AD17: 0 | AE17: 0 | AF17: 0 | AG17: 0 | AH17: 0 | AI17: 0 | AJ17: 0 | AK17: 0 | AL17: 0 | AM17: 0 | AN17: 0 | AO17: 0 | AP17: 0 | AQ17: 0 | AR17: 0 | AS17: 0 | AT17: 0 | AU17: 0 | AV17: 0 | AW17: 0 | AX17: 0 | AY17: 0 | AZ17: 0 | BA17: 0 | BB17: 0 | BC17: 0 | BD17: 0 | BE17: 0 | BF17: 0 | BG17: 0
B18: Resilience | G18: ='1_KMA'!$I$20 -> 2024-06-30 | H18: ='1_KMA'!$I$19 -> $millions | J18: =J132 -> 0 | K18: =K132 -> 0 | L18: 0 | M18: 0 | N18: 0 | O18: 0 | P18: 0 | Q18: 0 | R18: 0 | S18: 0 | T18: 0 | U18: 0 | V18: 0 | W18: 0 | X18: 0 | Y18: 0 | Z18: 0 | AA18: 0 | AB18: 0 | AC18: 0 | AD18: 0 | AE18: 0 | AF18: 0 | AG18: 0 | AH18: 0 | AI18: 0 | AJ18: 0 | AK18: 0 | AL18: 0 | AM18: 0 | AN18: 0 | AO18: 0 | AP18: 0 | AQ18: 0 | AR18: 0 | AS18: 0 | AT18: 0 | AU18: 0 | AV18: 0 | AW18: 0 | AX18: 0 | AY18: 0 | AZ18: 0 | BA18: 0 | BB18: 0 | BC18: 0 | BD18: 0 | BE18: 0 | BF18: 0 | BG18: 0
B19: Batteries | G19: ='1_KMA'!$I$20 -> 2024-06-30 | H19: ='1_KMA'!$I$19 -> $millions | J19: =J168 -> 0 | K19: =K168 -> 0 | L19: 0 | M19: 0 | N19: 0 | O19: 0 | P19: 0 | Q19: 0 | R19: 0 | S19: 0 | T19: 0 | U19: 0 | V19: 0 | W19: 0 | X19: 0 | Y19: 0 | Z19: 0 | AA19: 0 | AB19: 0 | AC19: 0 | AD19: 0 | AE19: 0 | AF19: 0 | AG19: 0 | AH19: 0 | AI19: 0 | AJ19: 0 | AK19: 0 | AL19: 0 | AM19: 0 | AN19: 0 | AO19: 0 | AP19: 0 | AQ19: 0 | AR19: 0 | AS19: 0 | AT19: 0 | AU19: 0 | AV19: 0 | AW19: 0 | AX19: 0 | AY19: 0 | AZ19: 0 | BA19: 0 | BB19: 0 | BC19: 0 | BD19: 0 | BE19: 0 | BF19: 0 | BG19: 0
B20: Others | G20: ='1_KMA'!$I$20 -> 2024-06-30 | H20: ='1_KMA'!$I$19 -> $millions
B21: Total | G21: ='1_KMA'!$I$20 -> 2024-06-30 | H21: ='1_KMA'!$I$19 -> $millions | J21: =SUM(J16:J20) -> -0.8124818542 | K21: =SUM(K16:K20) -> -0.8218127245 | L21: -0.2084074177 | M21: -0.2111574083 | N21: -0.2143041494 | O21: -0.2175018328 | P21: -0.2208636821 | Q21: -0.2243796205 | R21: -0.2280338218 | S21: -0.2313759322 | T21: -0.2344340466 | U21: -0.2373637529 | V21: -0.2402063361 | W21: -0.243082961 | X21: -0.2459940354 | Y21: -0.2489399718 | Z21: -0.2519211876 | AA21: -0.2549381054 | AB21: -0.2579911528 | AC21: -0.2610807623 | AD21: -0.2642073719 | AE21: -0.2673714247 | AF21: -0.270573369 | AG21: -0.2738136586 | AH21: -0.2770927528 | AI21: -0.2804111162 | AJ21: -0.2837692192 | AK21: -0.2871675376 | AL21: -0.2906065531 | AM21: -0.294086753 | AN21: -0.2976086305 | AO21: -0.3011726847 | AP21: -0.3047794208 | AQ21: -0.3084293499 | AR21: -0.3121229892 | AS21: -0.3158608622 | AT21: -0.3196434986 | AU21: -0.3234714345 | AV21: -0.3273452124 | AW21: -0.3312653813 | AX21: -0.3352324967 | AY21: -0.3392471209 | AZ21: -0.3433098228 | BA21: -0.3474211781 | BB21: -0.3515817696 | BC21: -0.3557921868 | BD21: -0.3600530264 | BE21: -0.3643648924 | BF21: 0 | BG21: 0
B24: Cost Inputs
B26: Capex Build Up
B28: Name | H28: Unit | J28: Unit Rate
B29: New BESS at Euroa | H29: $s | J29: 15.57983863
B34: Name | H34: Unit | J34: Quantities
B35: =B29 -> New BESS at Euroa | H35: Per annum | J35: 0.6 | K35: 0.4 | AE35: 1
B36: =B30 -> 0
B40: Name | G40: $ Basis Reminder | H40: $ Reminder | J40: ="Costs - ensure costs have been converted to "&'1_KMA'!$I$19 -> Costs - ensure costs have been converted to $millions
